Workbook

Sheet Data
A1: Acct | B1: Date | C1: Amt | D1: Year | E1: Last row | F1: First year | G1: No. Gifts | H1: Total Amt | P1: P | Q1: Q
E2: 59741 | F2: 2002 | G2: =E2-1 -> 59740 | H2: =SUM(C2:C500000) -> 0 | P2: 14 | Q2: 9
G3: =FEPdata!X6 -> 59740 | H3: =FEPdata!W6 -> 4105073 | P3: 14 | Q3: 4
G4: ------- need to be equal --------- | P4: 14 | Q4: 3
Q5: 7
Q6: 3
Q7: 7
Q8: 12
Q9: 2
Q10: 10
Q11: 9
Q12: 10
Q13: 12
Q14: 3
Q15: 12
Q16: 4
Q17: 1
Q18: 12
Q19: 5
Q20: 7
Q21: 8
Q22: 10
Q23: 10
Q24: 11
Q25: 12
Q26: 2
Q27: 2
Q28: 2
Q29: 4
Q30: 5
Q31: 6
Q32: 7
Q33: 8
Q34: 5
Q35: 6
Q36: 6
Q37: 7
Q38: 8
Q39: 9
Q40: 10
Q41: 11
Q42: 12
Q43: 1
Q44: 2
Q45: 3
Q46: 4
Q47: 5
Q48: 6
Q49: 7
Q50: 8
Q51: 9
Q52: 10
Q53: 11
Q54: 12
Q55: 1
Q56: 2
Q57: 3
Q58: 3
Q59: 4
Q60: 5
Q61: 6
Q62: 7
Q63: 8
Q64: 9
Q65: 10
Q66: 11
Q67: 12
Q68: 1
Q69: 2
Q70: 3
Q71: 4
Q72: 5
Q73: 6
Q74: 7
Q75: 8
Q76: 9
Q77: 10
Q78: 11
Q79: 12
Q80: 1
Q81: 2
Q82: 3
Q83: 4
Q84: 5
Q85: 6
Q86: 7
Q87: 8
Q88: 9
Q89: 10
Q90: 11
Q91: 12
Q92: 7
Q93: 7
Q94: 4
Q95: 1
Q96: 6
Q97: 7
Q98: 7
Q99: 3
Q100: 2
Q101: 1
Q102: 2
Q103: 3
Q104: 4
Q105: 5
Q106: 6
Q107: 7
Q108: 8
Q109: 9
Q110: 10
Q111: 11
Q112: 12
Q113: 12
Q114: 1
Q115: 2
Q116: 3
Q117: 4
Q118: 5
Q119: 6
Q120: 7
Q121: 8
Q122: 9
Q123: 10
Q124: 10
Q125: 11
Q126: 12
Q127: 1
Q128: 2
Q129: 3
Q130: 4
Q131: 5
Q132: 6
Q133: 7
Q134: 8
Q135: 9
Q136: 10
Q137: 11
Q138: 12
Q139: 1
Q140: 2
Q141: 3
Q142: 4
Q143: 5
Q144: 6
Q145: 7
Q146: 8
Q147: 9
Q148: 10
Q149: 10
Q150: 11
Q151: 12
Q152: 1
Q153: 2
Q154: 3
Q155: 4
Q156: 5
Q157: 6
Q158: 8
Q159: 8
Q160: 9
Q161: 10
Q162: 11
Q163: 11
Q164: 12
Q165: 1
Q166: 2
Q167: 3
Q168: 4
Q169: 5
Q170: 6
Q171: 7
Q172: 8
Q173: 9
Q174: 10
Q175: 11
Q176: 12
Q177: 1
Q178: 2
Q179: 3
Q180: 4
Q181: 5
Q182: 6
Q183: 7
Q184: 8
Q185: 9
Q186: 10
Q187: 11
Q188: 12
Q189: 1
Q190: 2
Q191: 3
Q192: 4
Q193: 5
Q194: 6
Q195: 7
Q196: 8
Q197: 9
Q198: 10
Q199: 11
Q200: 12
... 4300 more rows

Sheet StepByStep
A1: StepByStep | C1: FEP Analytics | G1: =TODAY() -> 2014-08-31 | H1: 07:31:06 | I1: 09:21:12 | J1: 07:50:21
C2: By Fundraising Effectiveness Project | H2: 08:01:42 | I2: 07:50:21 | J2: 08:01:42 | K2: Include gift-trans by month range
A3: RUN Macros | H3: =H2-H1 -> 00:30:36 | I3: =I2-I1 -> -0.06309027778 | J3: =J2-J1 -> 00:11:21 | K3: 0 | L3: <-- 1st month
C4: FEP Fundraising Fitness Test | H4: FEP Fitness | I4: Indicators | J4: Indicators | K4: 0 | L4: <-- Last month
H5: Test | I5: By Year2 | J5: Trends | K5: E.G., where '1' = Jan & '12' = Dec
A6: MUST Enable Content (above) before macros can be run. | B6: FEP Fundraising Performance Indicators | K6: 0' in either field & option ignored
B7: Using Gift Transaction Data* By Giving Level/Range | G7: 12 | H7: <-- 12 = Jan-Dec. Change Year for Fiscal Calculations.
B8: * Can be all gifts or by fundraising program
G9: Initial Year2
B10: Growth-in-Giving is measured for Year2 --------> | F10: Year2: | G10: 2013 | H10: <-- Always the most current year
F11: Year1: | G11: =G10-1 -> 2012 | H11: <-- Always the prior year
A13: Step 1 | B13: Enter gift transaction data in columns A, B and C of "Data" Worksheet - start in row 2. [See "Data" worksheet instructions]
B14: First, delete prior data from row 2 down to end of data.
A15: Step 2 | B15: Enter Year2 above for the initial year to be analyzed
A16: Step 3 | B16: Click on the "FEP Fitness Test" button ----------------------> | G16: FEP Fitness Test
B17: Can take up to 30 minutes -- or more
A18: Step 4 | B18: Print and/or save(*) FEP Analytics Tables 1 & 4 and other FEP report worksheets for analysis
A20: Steps 5-7 replace results in Tables 1 & 4 for each additional Year2
A21: Step 5 | B21: Enter another Year2 for each additional year as needed using same gift data.
A22: Step 6 | B22: Click on the "FEP Indicators by Year2" button -------------> | I22: <---Macro calculates in worksheet "FEPdata"
B23: Can take up to 10 minutes -- or more | G23: FEP Indicators by Year2
A24: Step 7 | B24: Repeat print-or-save Step 4 for each Year2. | J24: <-- MultiGift yearly analysis:
J25: Enter 'Only' to include MultiGift donors
A26: Additional "FEP Growth-in-Giving (GiG) Reports" are availble at www.afpnet.org/FEP | J26: or 'Not' to exclude MultiGift donors.
A27: 1. Goto www.afpnet.org/FEP, scroll down to and click on "FEP Growth-in-Giving (GiG) Reports" | J27: Leave blank to skip MultiGift analysis.
A28: and download the Excel-based "GiG Reports Template" that has 8 more very useful GiG reports.
A29: 2. For instruction #2 in the "GiG Reports Template," you can copy gain(loss) data sets from the FEP Fitness Test | J29: Where "X" =
A30: to the "DataInput" worksheet. Copy cells B12 to E18 in Fitness Test worksheets "FEPdata," "FEP100dn," | K30: From: | L30: 1 | M30: times yearly
A31: "FEP100to249." "FEP250to999," "FEP1000to4999," or "FEP5000up"to cells B22 to E28 in the "DataInput" worksheet | K31: To: | L31: 100 | M31: times yearly
A32: of the "GiG Reports Template" and print and/or save the 8 GiG reports.
A33: 3. Other useful FEP data and guidance can be found at www.afpnet.org/FEP.
A35: Questions or comments
A36: Email FEP@afpnet.org
A38: (*) Save FEP report worksheets by copying them (Alt-E;M;Alt-C) to new worksheets in a separate or new workbook.
A39: Then selecting and copying all cells (A1 to Xn) in each new workbook and pasting in cell A1 as values (Alt-E;S;V).

Sheet TOP Indicators
A1: Top Actionable Indicators | C1: FEP Fundraising Fitness Test | G1: =TODAY() -> 2014-08-31
B2: See "All Indicators" worksheet for details and
B3: formulas by "Ind. No." | F3: =StepByStep!$G$7 -> 12 | G3: <-- Year-end month
B4: Fundraising Performance Indicators | G4: Year2: | H4: =StepByStep!$G$10 -> 2013
B5: Using Gift Transaction Data By Giving Level/Range | G5: Year1: | H5: =H4-1 -> 2012
A6: Ind | D6: ------------------------------- Giving Level/Range ------------------------------
A7: No. | B7: Fundraising Performance Indicator | C7: All Donors | D7: Under $100 | E7: $100-$249 | F7: $250-$999 | G7: $1,000- $4,999 | H7: $5,000 & Up
A8: Donor retention rate
A9: 1 | B9: New donor retention rate | C9: =(FEPdata!$B22-FEPdata!$B17)/FEPdata!$B22 -> 0.3160220994 | D9: =(FEP100Dn!$B22-FEP100Dn!$B17)/FEP100Dn!$B22 -> 0.1908256881 | E9: =(FEP100to249!$B22-FEP100to249!$B17)/FEP100to249!$B22 -> 0.4143426295 | F9: =(FEP250to999!$B22-FEP250to999!$B17)/FEP250to999!$B22 -> 0.7222222222 | G9: =(FEP1000to4999!$B22-FEP1000to4999!$B17)/FEP1000to4999!$B22 -> 0.7692307692 | H9: =(FEP5000Up!$B22-FEP5000Up!$B17)/FEP5000Up!$B22 -> 0.5
A10: 2 | B10: Repeat donor retention rate | C10: =(FEPdata!$B19 - FEPdata!$B22-FEPdata!$B18)/(FEPdata!$B19 - FEPdata!$B22) -> 0.7471910112 | D10: =(FEP100Dn!$B19 - FEP100Dn!$B22-FEP100Dn!$B18)/(FEP100Dn!$B19 - FEP100Dn!$B22) -> 0.553008596 | E10: =(FEP100to249!$B19 - FEP100to249!$B22-FEP100to249!$B18)/(FEP100to249!$B19 - FEP100to249!$B22) -> 0.7306273063 | F10: =(FEP250to999!$B19 - FEP250to999!$B22-FEP250to999!$B18)/(FEP250to999!$B19 - FEP250to999!$B22) -> 0.849122807 | G10: =(FEP1000to4999!$B19 - FEP1000to4999!$B22-FEP1000to4999!$B18)/(FEP1000to4999!$B19 - FEP1000to4999!$B22) -> 0.8974358974 | H10: =(FEP5000Up!$B19 - FEP5000Up!$B22-FEP5000Up!$B18)/(FEP5000Up!$B19 - FEP5000Up!$B22) -> 0.7916666667
A11: 3 | B11: Overall donor retention rate | C11: =(FEPdata!$B19-FEPdata!$B17-FEPdata!$B18)/FEPdata!$B19 -> 0.5915436777 | D11: =(FEP100Dn!$B19-FEP100Dn!$B17-FEP100Dn!$B18)/FEP100Dn!$B19 -> 0.3322147651 | E11: =(FEP100to249!$B19-FEP100to249!$B17-FEP100to249!$B18)/FEP100to249!$B19 -> 0.630517024 | F11: =(FEP250to999!$B19-FEP250to999!$B17-FEP250to999!$B18)/FEP250to999!$B19 -> 0.8318181818 | G11: =(FEP1000to4999!$B19-FEP1000to4999!$B17-FEP1000to4999!$B18)/FEP1000to4999!$B19 -> 0.8846153846 | H11: =(FEP5000Up!$B19-FEP5000Up!$B17-FEP5000Up!$B18)/FEP5000Up!$B19 -> 0.7333333333
A12: 4 | B12: Database donor retention rate | C12: =C55 -> 0.2974619289 | D12: =D55 -> 0.1366137909 | E12: =E55 -> 0.3552009456 | F12: 0.6471238938 | G12: 0.7352941176 | H12: =H55 -> 0.4545454545
A13: Donor acquisition rate
A14: 5a | B14: New donors in Year 2 | C14: =FEPdata!$D12 -> 1012 | D14: =FEP100Dn!$D12 -> 684 | E14: =FEP100to249!$D12 -> 242 | F14: =FEP250to999!$D12 -> 79 | G14: =FEP1000to4999!$D12 -> 6 | H14: =FEP5000Up!$D12 -> 1
A15: 6a | B15: New donor acquisition rate | C15: =C14/C$32 -> 0.4036697248 | D15: 0.7651006711 | E15: 0.3051702396 | F15: 0.1196969697 | G15: 0.04615384615 | H15: 0.03333333333
A16: 5b | B16: Recaptured donors in Year 2 | C16: =FEPdata!$D13 -> 275 | D16: =FEP100Dn!$D13 -> 125 | E16: =FEP100to249!$D13 -> 101 | F16: =FEP250to999!$D13 -> 36 | G16: =FEP1000to4999!$D13 -> 10 | H16: =FEP5000Up!$D13 -> 3
A17: 6b | B17: Repeat donor re-acquisition rate | C17: =C16/C$32 -> 0.10969286 | D17: 0.1398210291 | E17: 0.1273644388 | F17: 0.05454545455 | G17: 0.07692307692 | H17: 0.1
A18: 5 | B18: Donor gains (New + Recaptured) | C18: =FEPdata!$D12+FEPdata!$D13 -> 1287 | D18: =FEP100Dn!$D12+FEP100Dn!$D13 -> 809 | E18: =FEP100to249!$D12+FEP100to249!$D13 -> 343 | F18: =FEP250to999!$D12+FEP250to999!$D13 -> 115 | G18: =FEP1000to4999!$D12+FEP1000to4999!$D13 -> 16 | H18: =FEP5000Up!$D12+FEP5000Up!$D13 -> 4
A19: 6 | B19: Overall donor acquisition rate | C19: =C18/C$32 -> 0.5133625848 | D19: 0.9049217002 | E19: 0.4325346784 | F19: 0.1742424242 | G19: 0.1230769231 | H19: 0.1333333333
A20: Donor gains, losses & net
A21: 5 | B21: Donor gains | C21: =FEPdata!$D12+FEPdata!$D13 -> 1287 | D21: =FEP100Dn!$D12+FEP100Dn!$D13 -> 809 | E21: =FEP100to249!$D12+FEP100to249!$D13 -> 343 | F21: =FEP250to999!$D12+FEP250to999!$D13 -> 115 | G21: =FEP1000to4999!$D12+FEP1000to4999!$D13 -> 16 | H21: =FEP5000Up!$D12+FEP5000Up!$D13 -> 4
A22: 6 | B22: Gains as % of Year 1 donors | C22: =C21/C$32 -> 0.5133625848 | D22: 0.9049217002 | E22: 0.4325346784 | F22: 0.1742424242 | G22: 0.1230769231 | H22: 0.1333333333
A23: 7 | B23: Donor losses | C23: =FEPdata!$B17+FEPdata!$B18 -> 1024 | D23: =FEP100Dn!$B17+FEP100Dn!$B18 -> 597 | E23: =FEP100to249!$B17+FEP100to249!$B18 -> 293 | F23: =FEP250to999!$B17+FEP250to999!$B18 -> 111 | G23: =FEP1000to4999!$B17+FEP1000to4999!$B18 -> 15 | H23: =FEP5000Up!$B17+FEP5000Up!$B18 -> 8
A24: 8 | B24: Losses as % of Year 1 donors | C24: =C23/C$32 -> 0.4084563223 | D24: 0.6677852349 | E24: 0.369482976 | F24: 0.1681818182 | G24: 0.1153846154 | H24: 0.2666666667
A25: 9 | B25: Donors lost for every 100 gained | C25: =C23/C21*100 -> 79.56487956 | D25: 73.79480841 | E25: 85.42274052 | F25: 96.52173913 | G25: 93.75 | H25: 200
A26: 10 | B26: Donor losses as % of gains | C26: =C25/100 -> 0.7956487956 | D26: 0.7379480841 | E26: 0.8542274052 | F26: 0.9652173913 | G26: 0.9375 | H26: 2
A27: 9a | B27: Net gain in donors | C27: =C21-C23 -> 263 | D27: =D21-D23 -> 212 | E27: 50 | F27: 4 | G27: 1 | H27: -4
A28: 11 | B28: Net gain in donors | C28: =100-C25 -> 20.43512044 | D28: 26.20519159 | E28: 14.57725948 | F28: 3.47826087 | G28: 6.25 | H28: -100
A29: 12 | B29: Net gain in donors (%) | C29: =C28/100 -> 0.2043512044 | D29: =D28/100 -> 0.2620519159 | E29: =E28/100 -> 0.1457725948 | F29: 0.0347826087 | G29: 0.0625 | H29: =H28/100 -> -1
A30: Number of donors
A31: 13 | B31: Overall donors retained | C31: =FEPdata!$B14+FEPdata!$B15+FEPdata!$B16 -> 1483 | D31: =FEP100Dn!$B14+FEP100Dn!$B15+FEP100Dn!$B16 -> 297 | E31: =FEP100to249!$B14+FEP100to249!$B15+FEP100to249!$B16 -> 500 | F31: =FEP250to999!$B14+FEP250to999!$B15+FEP250to999!$B16 -> 549 | G31: =FEP1000to4999!$B14+FEP1000to4999!$B15+FEP1000to4999!$B16 -> 115 | H31: =FEP5000Up!$B14+FEP5000Up!$B15+FEP5000Up!$B16 -> 22
A32: 14 | B32: Year1 total donors | C32: =FEPdata!$B19 -> 2507 | D32: =FEP100Dn!$B19 -> 894 | E32: =FEP100to249!$B19 -> 793 | F32: =FEP250to999!$B19 -> 660 | G32: =FEP1000to4999!$B19 -> 130 | H32: =FEP5000Up!$B19 -> 30
A33: 15 | B33: Year2 total donors | C33: =FEPdata!$D19 -> 2770 | D33: =FEP100Dn!$D19 -> 1106 | E33: =FEP100to249!$D19 -> 843 | F33: =FEP250to999!$D19 -> 664 | G33: =FEP1000to4999!$D19 -> 131 | H33: =FEP5000Up!$D19 -> 26
A34: 16 | B34: Percent of Year2 donors by range | C34: =C33/$C33 -> 1 | D34: 0.3992779783 | E34: 0.30433213 | F34: 0.2397111913 | G34: 0.04729241877 | H34: 0.009386281588
A35: Amount of gifts
A36: 17 | B36: Amount of gift$ Year2 | C36: =FEPdata!$E19 -> 737676 | D36: =FEP100Dn!$E19 -> 39156 | E36: =FEP100to249!$E19 -> 101764 | F36: =FEP250to999!$E19 -> 234960 | G36: =FEP1000to4999!$E19 -> 171228 | H36: =FEP5000Up!$E19 -> 190568
A37: 18 | B37: Percent of Year2 gift$ by range | C37: =C36/$C36 -> 1 | D37: 0.05308021408 | E37: 0.1379521633 | F37: 0.3185138191 | G37: 0.2321181657 | H37: 0.2583356379
A38: 19 | B38: Average gift size in Year2 | C38: =C36/C33 -> 266.3090253 | D38: 35.40325497 | E38: 120.7164887 | F38: 353.8554217 | G38: 1307.083969 | H38: 7329.538462
H39: Page 2
B40: Fundraising Performance Indicator | C40: All Donors | D40: Donors Under $100 | E40: $100 to $249 | F40: $250 to $999 | G40: $1,000 to $4,999 | H40: Donors $5,000 & Up
A42: Dollar gains, losses & net
A43: 20 | B43: Dollar gains | C43: =FEPdata!$E12+FEPdata!$E13+FEPdata!$E14-FEPdata!$C14 -> 312277 | D43: =FEP100Dn!$E12+FEP100Dn!$E13+FEP100Dn!$E14-FEP100Dn!$C14 -> 29916 | E43: =FEP100to249!$E12+FEP100to249!$E13+FEP100to249!$E14-FEP100to249!$C14 -> 51142 | F43: =FEP250to999!$E12+FEP250to999!$E13+FEP250to999!$E14-FEP250to999!$C14 -> 82117 | G43: =FEP1000to4999!$E12+FEP1000to4999!$E13+FEP1000to4999!$E14-FEP1000to4999!$C14 -> 48409 | H43: =FEP5000Up!$E12+FEP5000Up!$E13+FEP5000Up!$E14-FEP5000Up!$C14 -> 100693
A44: 21 | B44: Gains as % of Year 1 dollars | C44: =C43/FEPdata!$C$19 -> 0.381640552 | D44: =D43/FEP100Dn!$C$19 -> 0.9425330813 | E44: =E43/FEP100to249!$C$19 -> 0.5387338039 | F44: =F43/FEP250to999!$C$19 -> 0.3886349008 | G44: =G43/FEP1000to4999!$C$19 -> 0.304388287 | H44: =H43/FEP5000Up!$C$19 -> 0.313445148
A45: 22 | B45: Dollar losses | C45: =FEPdata!$C17+FEPdata!$C18+FEPdata!$C16-FEPdata!$E16 -> 392850 | D45: =FEP100Dn!$C17+FEP100Dn!$C18+FEP100Dn!$C16-FEP100Dn!$E16 -> 22500 | E45: =FEP100to249!$C17+FEP100to249!$C18+FEP100to249!$C16-FEP100to249!$E16 -> 44308 | F45: =FEP250to999!$C17+FEP250to999!$C18+FEP250to999!$C16-FEP250to999!$E16 -> 58453 | G45: =FEP1000to4999!$C17+FEP1000to4999!$C18+FEP1000to4999!$C16-FEP1000to4999!$E16 -> 36218 | H45: =FEP5000Up!$C17+FEP5000Up!$C18+FEP5000Up!$C16-FEP5000Up!$E16 -> 231371
A46: 23 | B46: Losses as % of Year 1 dollars | C46: =C45/FEPdata!$C$19 -> 0.4801105776 | D46: =D45/FEP100Dn!$C$19 -> 0.7088846881 | E46: =E45/FEP100to249!$C$19 -> 0.4667439166 | F46: =F45/FEP250to999!$C$19 -> 0.2766403529 | G46: =G45/FEP1000to4999!$C$19 -> 0.227733169 | H46: =H45/FEP5000Up!$C$19 -> 0.7202299795
A47: 24 | B47: Dollars lost for every $100 gained | C47: =C45/C43*100 -> 125.8017721 | D47: 75.21058965 | E47: 86.63720621 | F47: 71.18258095 | G47: 74.81666632 | H47: 229.7786341
A48: 25 | B48: Loss per dollar gained (%) | C48: =C47/100 -> 1.258017721 | D48: =D47/100 -> 0.7521058965 | E48: =E47/100 -> 0.8663720621 | F48: =F47/100 -> 0.7118258095 | G48: 0.7481666632 | H48: =H47/100 -> 2.297786341
A49: 26 | B49: Net gain in gifts | C49: =100-C47 -> -25.80177214 | D49: =100-D47 -> 24.78941035 | E49: =100-E47 -> 13.36279379 | F49: =100-F47 -> 28.81741905 | G49: 25.18333368 | H49: =100-H47 -> -129.7786341
A50: 27 | B50: Net gain in dollars (%) | C50: =C49/100 -> -0.2580177214 | D50: =D49/100 -> 0.2478941035 | E50: =E49/100 -> 0.1336279379 | F50: =F49/100 -> 0.2881741905 | G50: 0.2518333368 | H50: =H49/100 -> -1.297786341
B52: Database & one-time donors
A53: 28 | B53: Prior donors retained in Year2 | C53: =FEPdata!$D19-FEPdata!$D12 -> 1758 | D53: =FEP100Dn!$D19-FEP100Dn!$D12 -> 422 | E53: =FEP100to249!$D19-FEP100to249!$D12 -> 601 | F53: =FEP250to999!$D19-FEP250to999!$D12 -> 585 | G53: =FEP1000to4999!$D19-FEP1000to4999!$D12 -> 125 | H53: =FEP5000Up!$D19-FEP5000Up!$D12 -> 25
A54: 29 | B54: Donors in database end of Year1 | C54: =FEPdata!$B23 -> 5910 | D54: =FEP100Dn!$B23 -> 3089 | E54: =FEP100to249!$B23 -> 1692 | F54: =FEP250to999!$B23 -> 904 | G54: =FEP1000to4999!$B23 -> 170 | H54: =FEP5000Up!$B23 -> 55
A55: 30 | B55: Database donor retention rate | C55: =C53/C54 -> 0.2974619289 | D55: =D53/D54 -> 0.1366137909 | E55: =E53/E54 -> 0.3552009456 | F55: =F53/F54 -> 0.6471238938 | G55: 0.7352941176 | H55: =H53/H54 -> 0.4545454545
A56: 31 | B56: Total donors in database | C56: =FEPdata!$K$23 -> 6922 | D56: =FEP100Dn!$K$23 -> 3773 | E56: =FEP100to249!$K$23 -> 1934 | F56: =FEP250to999!$K$23 -> 983 | G56: =FEP1000to4999!$K$23 -> 176 | H56: =FEP5000Up!$K$23 -> 56
A57: 32 | B57: Total monthly donors in database | C57: =FEPdata!$K$25 -> 1025 | D57: =FEP100Dn!$K$25 -> 49 | E57: =FEP100to249!$K$25 -> 362 | F57: =FEP250to999!$K$25 -> 519 | G57: =FEP1000to4999!$K$25 -> 78 | H57: =FEP5000Up!$K$25 -> 17
A58: 33 | B58: Monthly donors as % of total | C58: =C57/C56 -> 0.14807859 | D58: =D57/D56 -> 0.01298701299 | E58: 0.1871768356 | F58: 0.5279755849 | G58: =G57/G56 -> 0.4431818182 | H58: 0.3035714286
A59: 34 | B59: One time lapsed donors | C59: =FEPdata!$B24 -> 3069 | D59: =FEP100Dn!$B24 -> 2214 | E59: =FEP100to249!$B24 -> 702 | F59: =FEP250to999!$B24 -> 109 | G59: =FEP1000to4999!$B24 -> 24 | H59: =FEP5000Up!$B24 -> 20
A60: 35 | B60: One time lapsed-donor rate | C60: =C59/C54 -> 0.5192893401 | D60: =D59/D54 -> 0.716736808 | E60: =E59/E54 -> 0.414893617 | F60: 0.1205752212 | G60: 0.1411764706 | H60: =H59/H54 -> 0.3636363636
A61: Growth in giving (GiG)
A62: 36 | B62: Total gifts raised in Year1 | C62: =FEPdata!$C19 -> 818249 | D62: =FEP100Dn!$C19 -> 31740 | E62: =FEP100to249!$C19 -> 94930 | F62: =FEP250to999!$C19 -> 211296 | G62: =FEP1000to4999!$C19 -> 159037 | H62: =FEP5000Up!$C19 -> 321246
A63: 37 | B63: Total gifts raised in Year2 | C63: =FEPdata!$E19 -> 737676 | D63: =FEP100Dn!$E19 -> 39156 | E63: =FEP100to249!$E19 -> 101764 | F63: =FEP250to999!$E19 -> 234960 | G63: =FEP1000to4999!$E19 -> 171228 | H63: =FEP5000Up!$E19 -> 190568
A64: 38 | B64: Net growth in giving | C64: =C63-C62 -> -80573 | D64: =D63-D62 -> 7416 | E64: =E63-E62 -> 6834 | F64: =F63-F62 -> 23664 | G64: =G63-G62 -> 12191 | H64: =H63-H62 -> -130678
A65: 39 | B65: Overall rate of growth in gifts | C65: =C64/C62 -> -0.09847002563 | D65: =D64/D62 -> 0.2336483932 | E65: =E64/E62 -> 0.07198988729 | F65: 0.1119945479 | G65: 0.07665511799 | H65: =H64/H62 -> -0.4067848316
A66: Growth in donors
A67: 40 | B67: Total donors in Year1 | C67: =FEPdata!$B19 -> 2507 | D67: =FEP100Dn!$B19 -> 894 | E67: =FEP100to249!$B19 -> 793 | F67: =FEP250to999!$B19 -> 660 | G67: =FEP1000to4999!$B19 -> 130 | H67: =FEP5000Up!$B19 -> 30
A68: 41 | B68: Total donors in Year2 | C68: =FEPdata!$D19 -> 2770 | D68: =FEP100Dn!$D19 -> 1106 | E68: =FEP100to249!$D19 -> 843 | F68: =FEP250to999!$D19 -> 664 | G68: =FEP1000to4999!$D19 -> 131 | H68: =FEP5000Up!$D19 -> 26
A69: 42 | B69: Net growth in donors | C69: =C68-C67 -> 263 | D69: =D68-D67 -> 212 | E69: =E68-E67 -> 50 | F69: =F68-F67 -> 4 | G69: 1 | H69: =H68-H67 -> -4
A70: 43 | B70: Overall rate of growth in donors | C70: =C69/C67 -> 0.1049062625 | D70: =D69/D67 -> 0.2371364653 | E70: =E69/E67 -> 0.0630517024 | F70: =F69/F67 -> 0.006060606061 | G70: 0.007692307692 | H70: =H69/H67 -> -0.1333333333
H71: Page 3
B72: FEP Gain/Loss Fundraising Performance Indicator | C72: All Donors | D72: Donors Under $100 | E72: $100 to $249 | F72: $250 to $999 | G72: $1,000 to $4,999 | H72: Donors $5,000 & Up
A74: Distribution of Year2 donors & gifts:
A75: 44 | B75: Total number of Year 2 donors | C75: =FEPdata!$D19 -> 2770 | D75: =FEP100Dn!$D19 -> 1106 | E75: =FEP100to249!$D19 -> 843 | F75: =FEP250to999!$D19 -> 664 | G75: =FEP1000to4999!$D19 -> 131 | H75: =FEP5000Up!$D19 -> 26
A76: 45 | B76: Total gifts they gave in Year2 | C76: =FEPdata!$E19 -> 737676 | D76: =FEP100Dn!$E19 -> 39156 | E76: =FEP100to249!$E19 -> 101764 | F76: =FEP250to999!$E19 -> 234960 | G76: =FEP1000to4999!$E19 -> 171228 | H76: =FEP5000Up!$E19 -> 190568
A77: 46 | B77: New donors in Year2 % | C77: =FEPdata!$D12/FEPdata!$D$19 -> 0.3653429603 | D77: =FEP100Dn!$D12/FEP100Dn!$D$19 -> 0.6184448463 | E77: =FEP100to249!$D12/FEP100to249!$D$19 -> 0.2870699881 | F77: =FEP250to999!$D12/FEP250to999!$D$19 -> 0.1189759036 | G77: =FEP1000to4999!$D12/FEP1000to4999!$D$19 -> 0.04580152672 | H77: =FEP5000Up!$D12/FEP5000Up!$D$19 -> 0.03846153846
A78: 47 | B78: % of gifts they gave in Year2 | C78: =FEPdata!$E12/FEPdata!$E$19 -> 0.1814319566 | D78: =FEP100Dn!$E12/FEP100Dn!$E$19 -> 0.5957196854 | E78: =FEP100to249!$E12/FEP100to249!$E$19 -> 0.3266872371 | F78: =FEP250to999!$E12/FEP250to999!$E$19 -> 0.1287282942 | G78: =FEP1000to4999!$E12/FEP1000to4999!$E$19 -> 0.04100380779 | H78: =FEP5000Up!$E12/FEP5000Up!$E$19 -> 0.2098988288
A79: 48 | B79: Previously lapsed donors in Year2 % | C79: =FEPdata!$D13/FEPdata!$D$19 -> 0.09927797834 | D79: =FEP100Dn!$D13/FEP100Dn!$D$19 -> 0.1130198915 | E79: =FEP100to249!$D13/FEP100to249!$D$19 -> 0.1198102017 | F79: =FEP250to999!$D13/FEP250to999!$D$19 -> 0.05421686747 | G79: =FEP1000to4999!$D13/FEP1000to4999!$D$19 -> 0.07633587786 | H79: =FEP5000Up!$D13/FEP5000Up!$D$19 -> 0.1153846154
A80: 49 | B80: % of gifts they gave in Year2 | C80: =FEPdata!$E13/FEPdata!$E$19 -> 0.0738494949 | D80: =FEP100Dn!$E13/FEP100Dn!$E$19 -> 0.1140310553 | E80: =FEP100to249!$E13/FEP100to249!$E$19 -> 0.08070634016 | F80: =FEP250to999!$E13/FEP250to999!$E$19 -> 0.03873850868 | G80: =FEP1000to4999!$E13/FEP1000to4999!$E$19 -> 0.0614327096 | H80: =FEP5000Up!$E13/FEP5000Up!$E$19 -> 0.1163784056
A81: 50 | B81: Upgraded donors in Year2 % | C81: =FEPdata!$D14/FEPdata!$D$19 -> 0.2101083032 | D81: =FEP100Dn!$D14/FEP100Dn!$D$19 -> 0.08951175407 | E81: =FEP100to249!$D14/FEP100to249!$D$19 -> 0.1850533808 | F81: =FEP250to999!$D14/FEP250to999!$D$19 -> 0.3930722892 | G81: =FEP1000to4999!$D14/FEP1000to4999!$D$19 -> 0.4198473282 | H81: =FEP5000Up!$D14/FEP5000Up!$D$19 -> 0.4230769231
A82: 51 | B82: % of gifts they gave in Year2 | C82: =FEPdata!$E14/FEPdata!$E$19 -> 0.4165704184 | D82: =FEP100Dn!$E14/FEP100Dn!$E$19 -> 0.1214628665 | E82: =FEP100to249!$E14/FEP100to249!$E$19 -> 0.2292657521 | F82: =FEP250to999!$E14/FEP250to999!$E$19 -> 0.4905132789 | G82: =FEP1000to4999!$E14/FEP1000to4999!$E$19 -> 0.5279043147 | H82: =FEP5000Up!$E14/FEP5000Up!$E$19 -> 0.386024936
A83: 52 | B83: Same gift donors in Year2 % | C83: =FEPdata!$D15/FEPdata!$D$19 -> 0.1079422383 | D83: =FEP100Dn!$D15/FEP100Dn!$D$19 -> 0.08047016275 | E83: =FEP100to249!$D15/FEP100to249!$D$19 -> 0.1577698695 | F83: =FEP250to999!$D15/FEP250to999!$D$19 -> 0.09487951807 | G83: =FEP1000to4999!$D15/FEP1000to4999!$D$19 -> 0.09923664122 | H83: =FEP5000Up!$D15/FEP5000Up!$D$19 -> 0.03846153846
A84: 53 | B84: % of gifts they gave in Year2 | C84: =FEPdata!$E15/FEPdata!$E$19 -> 0.0734753469 | D84: =FEP100Dn!$E15/FEP100Dn!$E$19 -> 0.09040760037 | E84: =FEP100to249!$E15/FEP100to249!$E$19 -> 0.1645572108 | F84: =FEP250to999!$E15/FEP250to999!$E$19 -> 0.0813670412 | G84: =FEP1000to4999!$E15/FEP1000to4999!$E$19 -> 0.08291284136 | H84: =FEP5000Up!$E15/FEP5000Up!$E$19 -> 0.003148482431
A85: 54 | B85: Downgraded donors in Year2 % | C85: =FEPdata!$D16/FEPdata!$D$19 -> 0.2173285199 | D85: =FEP100Dn!$D16/FEP100Dn!$D$19 -> 0.09855334539 | E85: =FEP100to249!$D16/FEP100to249!$D$19 -> 0.2502965599 | F85: =FEP250to999!$D16/FEP250to999!$D$19 -> 0.3388554217 | G85: =FEP1000to4999!$D16/FEP1000to4999!$D$19 -> 0.358778626 | H85: =FEP5000Up!$D16/FEP5000Up!$D$19 -> 0.3846153846
A86: 55 | B86: % of gifts they gave in Year2 | C86: =FEPdata!$E16/FEPdata!$E$19 -> 0.2546727832 | D86: =FEP100Dn!$E16/FEP100Dn!$E$19 -> 0.07837879252 | E86: =FEP100to249!$E16/FEP100to249!$E$19 -> 0.1987834598 | F86: =FEP250to999!$E16/FEP250to999!$E$19 -> 0.2606528771 | G86: =FEP1000to4999!$E16/FEP1000to4999!$E$19 -> 0.2867463265 | H86: =FEP5000Up!$E16/FEP5000Up!$E$19 -> 0.2845493472
A87: What Year1 donors did in Year2
A88: 56 | B88: Total number of Year 1 donors | C88: =FEPdata!$B19 -> 2507 | D88: =FEP100Dn!$B19 -> 894 | E88: =FEP100to249!$B19 -> 793 | F88: =FEP250to999!$B19 -> 660 | G88: =FEP1000to4999!$B19 -> 130 | H88: =FEP5000Up!$B19 -> 30
A89: 57 | B89: Total gifts they gave in Year1 | C89: =FEPdata!$C19 -> 818249 | D89: =FEP100Dn!$C19 -> 31740 | E89: =FEP100to249!$C19 -> 94930 | F89: =FEP250to999!$C19 -> 211296 | G89: =FEP1000to4999!$C19 -> 159037 | H89: =FEP5000Up!$C19 -> 321246
B90: Repeat donors:
A91: 58 | B91: Year1 donors that upgraded % | C91: =FEPdata!$B14/FEPdata!$B$19 -> 0.2321499801 | D91: =FEP100Dn!$B14/FEP100Dn!$B$19 -> 0.110738255 | E91: =FEP100to249!$B14/FEP100to249!$B$19 -> 0.1967213115 | F91: =FEP250to999!$B14/FEP250to999!$B$19 -> 0.3954545455 | G91: =FEP1000to4999!$B14/FEP1000to4999!$B$19 -> 0.4230769231 | H91: =FEP5000Up!$B14/FEP5000Up!$B$19 -> 0.3666666667
A92: 59 | B92: % of Year1 gifts | C92: =FEPdata!$C14/FEPdata!$C$19 -> 0.2240540471 | D92: =FEP100Dn!$C14/FEP100Dn!$C$19 -> 0.08289224953 | E92: =FEP100to249!$C14/FEP100to249!$C$19 -> 0.1437585589 | F92: =FEP250to999!$C14/FEP250to999!$C$19 -> 0.3430353627 | G92: =FEP1000to4999!$C14/FEP1000to4999!$C$19 -> 0.374271396 | H92: =FEP5000Up!$C14/FEP5000Up!$C$19 -> 0.109103304
A93: 60 | B93: Year1 donors that gave same % | C93: =FEPdata!$B15/FEPdata!$B$19 -> 0.119266055 | D93: =FEP100Dn!$B15/FEP100Dn!$B$19 -> 0.09955257271 | E93: =FEP100to249!$B15/FEP100to249!$B$19 -> 0.1677175284 | F93: =FEP250to999!$B15/FEP250to999!$B$19 -> 0.09545454545 | G93: =FEP1000to4999!$B15/FEP1000to4999!$B$19 -> 0.1 | H93: =FEP5000Up!$B15/FEP5000Up!$B$19 -> 0.03333333333
A94: 61 | B94: % of Year1 gifts | C94: =FEPdata!$C15/FEPdata!$C$19 -> 0.06624022761 | D94: =FEP100Dn!$C15/FEP100Dn!$C$19 -> 0.1115311909 | E94: =FEP100to249!$C15/FEP100to249!$C$19 -> 0.1764036659 | F94: =FEP250to999!$C15/FEP250to999!$C$19 -> 0.09047970619 | G94: =FEP1000to4999!$C15/FEP1000to4999!$C$19 -> 0.089268535 | H94: =FEP5000Up!$C15/FEP5000Up!$C$19 -> 0.001867727536
A95: 62 | B95: Year1 donors that downgraded % | C95: =FEPdata!$B16/FEPdata!$B$19 -> 0.2401276426 | D95: =FEP100Dn!$B16/FEP100Dn!$B$19 -> 0.1219239374 | E95: =FEP100to249!$B16/FEP100to249!$B$19 -> 0.2660781841 | F95: =FEP250to999!$B16/FEP250to999!$B$19 -> 0.3409090909 | G95: =FEP1000to4999!$B16/FEP1000to4999!$B$19 -> 0.3615384615 | H95: =FEP5000Up!$B16/FEP5000Up!$B$19 -> 0.3333333333
A96: 63 | B96: % of Year1 gifts | C96: =FEPdata!$C16/FEPdata!$C$19 -> 0.3843939925 | D96: =FEP100Dn!$C16/FEP100Dn!$C$19 -> 0.1738815375 | E96: =FEP100to249!$C16/FEP100to249!$C$19 -> 0.3350047403 | F96: =FEP250to999!$C16/FEP250to999!$C$19 -> 0.4305050735 | G96: =FEP1000to4999!$C16/FEP1000to4999!$C$19 -> 0.4322767658 | H96: =FEP5000Up!$C16/FEP5000Up!$C$19 -> 0.3657539705
A97: 64 | B97: Subtotal Year1 repeat donors % | C97: =C91+C93+C95 -> 0.5915436777 | D97: =D91+D93+D95 -> 0.3322147651 | E97: 0.630517024 | F97: =F91+F93+F95 -> 0.8318181818 | G97: 0.8846153846 | H97: 0.7333333333
A98: 65 | B98: % of Year1 gifts | C98: =C92+C94+C96 -> 0.6746882673 | D98: 0.3683049779 | E98: 0.6551669651 | F98: =F92+F94+F96 -> 0.8640201424 | G98: 0.8958166967 | H98: 0.476725002
B99: Lapsed donors (attrition):
A100: 66 | B100: New Year1 donors that lapsed % | C100: =FEPdata!$B17/FEPdata!$B$19 -> 0.2469086558 | D100: =FEP100Dn!$B17/FEP100Dn!$B$19 -> 0.4932885906 | E100: =FEP100to249!$B17/FEP100to249!$B$19 -> 0.185372005 | F100: =FEP250to999!$B17/FEP250to999!$B$19 -> 0.03787878788 | G100: =FEP1000to4999!$B17/FEP1000to4999!$B$19 -> 0.02307692308 | H100: =FEP5000Up!$B17/FEP5000Up!$B$19 -> 0.1
A101: 67 | B101: % of Year1 gifts | C101: =FEPdata!$C17/FEPdata!$C$19 -> 0.1261840833 | D101: =FEP100Dn!$C17/FEP100Dn!$C$19 -> 0.4698172653 | E101: =FEP100to249!$C17/FEP100to249!$C$19 -> 0.2050247551 | F101: =FEP250to999!$C17/FEP250to999!$C$19 -> 0.04318586249 | G101: =FEP1000to4999!$C17/FEP1000to4999!$C$19 -> 0.02357941863 | H101: =FEP5000Up!$C17/FEP5000Up!$C$19 -> 0.1743212367
A102: 68 | B102: Repeat Year1 donors that lapsed % | C102: =FEPdata!$B18/FEPdata!$B$19 -> 0.1615476665 | D102: =FEP100Dn!$B18/FEP100Dn!$B$19 -> 0.1744966443 | E102: =FEP100to249!$B18/FEP100to249!$B$19 -> 0.184110971 | F102: =FEP250to999!$B18/FEP250to999!$B$19 -> 0.1303030303 | G102: =FEP1000to4999!$B18/FEP1000to4999!$B$19 -> 0.09230769231 | H102: =FEP5000Up!$B18/FEP5000Up!$B$19 -> 0.1666666667

Sheet Income Summary
B1: Income | C1: FEP Fundraising Fitness Test | G1: =TODAY() -> 2014-08-31
B2: =StepByStep!#REF! -> 
F3: =StepByStep!$G$7 -> 12 | G3: <-- Year-end month
B4: Fundraising Income Summary | G4: Year2: | H4: =StepByStep!$G$10 -> 2013
B5: Using Mail, eMail and Website Gift Transaction Data By Giving Level/Range | G5: Year1: | H5: =H4-1 -> 2012
D7: ------------------------------ Giving Level/Range --------------------------------
B8: Fundraising Performance Indicator | C8: All Donors | D8: Donors Under $100 | E8: $100 to $249 | F8: $250 to $999 | G8: $1,000 to $4,999 | H8: Donors $5,000 & Up | J8: Monthly Donors | K8: Monthly as % of all
A11: 36 | B11: Total gifts in Year1 | C11: =FEPdata!$C19 -> 818249 | D11: =FEP100Dn!$C19 -> 31740 | E11: =FEP100to249!$C19 -> 94930 | F11: =FEP250to999!$C19 -> 211296 | G11: =FEP1000to4999!$C19 -> 159037 | H11: =FEP5000Up!$C19 -> 321246 | J11: 0.7678571429
A12: 37 | B12: Total gifts in Year2 | C12: =FEPdata!$E19 -> 737676 | D12: =FEP100Dn!$E19 -> 39156 | E12: =FEP100to249!$E19 -> 101764 | F12: =FEP250to999!$E19 -> 234960 | G12: =FEP1000to4999!$E19 -> 171228 | H12: =FEP5000Up!$E19 -> 190568
J13: 0.8902691511
A14: 40 | B14: Total donors in Year1 | C14: =FEPdata!$B19 -> 2507 | D14: =FEP100Dn!$B19 -> 894 | E14: =FEP100to249!$B19 -> 793 | F14: =FEP250to999!$B19 -> 660 | G14: =FEP1000to4999!$B19 -> 130 | H14: =FEP5000Up!$B19 -> 30 | J14: 0.8775510204
A15: 41 | B15: Total donors in Year2 | C15: =FEPdata!$D19 -> 2770 | D15: =FEP100Dn!$D19 -> 1106 | E15: =FEP100to249!$D19 -> 843 | F15: =FEP250to999!$D19 -> 664 | G15: =FEP1000to4999!$D19 -> 131 | H15: =FEP5000Up!$D19 -> 26
A16: 78c | B16: Number of gifts in Year2 | C16: =FEPdata!$K24 -> 10946 | D16: =FEP100Dn!$K24 -> 1434 | E16: =FEP100to249!$K24 -> 3026 | F16: =FEP250to999!$K24 -> 5108 | G16: =FEP1000to4999!$K24 -> 1056 | H16: =FEP5000Up!$K24 -> 322
A17: 78d | B17: Average frequency in Year2 | C17: =C16/C15 -> 3.951624549 | D17: =D16/D15 -> 1.296564195 | E17: 3.589561091 | F17: 7.692771084 | G17: 8.061068702 | H17: 12.38461538
A18: 78e | B18: Average amount in Year2 | C18: =C12/C16 -> 67.39228942 | D18: =D12/D16 -> 27.30543933 | E18: 33.62987442 | F18: 45.99843383 | G18: 162.1477273 | H18: 591.826087
J19: 0.7344559585
A20: 72 | B20: Monthly donors in Year2 *** | C20: =FEPdata!$D$26 -> 629 | D20: =FEP100Dn!$D$26 -> 10 | E20: =FEP100to249!$D$26 -> 191 | F20: =FEP250to999!$D$26 -> 353 | G20: =FEP1000to4999!$D$26 -> 63 | H20: =FEP5000Up!$D$26 -> 12
A21: 73 | B21: Monthly as % of Year2 donors | C21: =C20/C15 -> 0.2270758123 | D21: =D20/D15 -> 0.00904159132 | E21: 0.2265717675 | F21: 0.531626506 | G21: 0.4809160305 | H21: 0.4615384615
A22: 75 | B22: Monthly donors gifts in Year2 | C22: =FEPdata!$E$26 -> 352864 | D22: =FEP100Dn!$E$26 -> 712 | E22: =FEP100to249!$E$26 -> 33007 | F22: =FEP250to999!$E$26 -> 148207 | G22: =FEP1000to4999!$E$26 -> 91696 | H22: =FEP5000Up!$E$26 -> 79242
A24: 5a | B24: New donors in Year2 | C24: =FEPdata!$D12 -> 1012 | D24: =FEP100Dn!$D12 -> 684 | E24: =FEP100to249!$D12 -> 242 | F24: =FEP250to999!$D12 -> 79 | G24: =FEP1000to4999!$D12 -> 6 | H24: =FEP5000Up!$D12 -> 1
A25: 5b | B25: Reactivated donors in Year2 | C25: =FEPdata!$D13 -> 275 | D25: =FEP100Dn!$D13 -> 125 | E25: =FEP100to249!$D13 -> 101 | F25: =FEP250to999!$D13 -> 36 | G25: =FEP1000to4999!$D13 -> 10 | H25: =FEP5000Up!$D13 -> 3
A26: 2a | B26: Repeat donors in Year2 | C26: =FEPdata!D14+FEPdata!D15+FEPdata!D16 -> 1483 | D26: =FEP100Dn!D14+FEP100Dn!D15+FEP100Dn!D16 -> 297 | E26: =FEP100to249!D14+FEP100to249!D15+FEP100to249!D16 -> 500 | F26: =FEP250to999!D14+FEP250to999!D15+FEP250to999!D16 -> 549 | G26: =FEP1000to4999!D14+FEP1000to4999!D15+FEP1000to4999!D16 -> 115 | H26: =FEP5000Up!D14+FEP5000Up!D15+FEP5000Up!D16 -> 22 | J26: 133 | K26: =J26/#REF! -> 
A27: 58a | B27: Upgraded in Year2 | C27: =FEPdata!D14 -> 582 | D27: =FEP100Dn!D14 -> 99 | E27: =FEP100to249!D14 -> 156 | F27: =FEP250to999!D14 -> 261 | G27: =FEP1000to4999!D14 -> 55 | H27: =FEP5000Up!D14 -> 11
A28: 60a | B28: Same in Year2 | C28: =FEPdata!D15 -> 299 | D28: =FEP100Dn!D15 -> 89 | E28: =FEP100to249!D15 -> 133 | F28: =FEP250to999!D15 -> 63 | G28: =FEP1000to4999!D15 -> 13 | H28: =FEP5000Up!D15 -> 1
A29: 62a | B29: Downgraded in Year2 | C29: =FEPdata!D16 -> 602 | D29: =FEP100Dn!D16 -> 109 | E29: =FEP100to249!D16 -> 211 | F29: =FEP250to999!D16 -> 225 | G29: =FEP1000to4999!D16 -> 47 | H29: =FEP5000Up!D16 -> 10
A30: 7 | B30: Lapsed donors | C30: =FEPdata!B17+FEPdata!B18 -> 1024 | D30: =FEP100Dn!B17+FEP100Dn!B18 -> 597 | E30: =FEP100to249!B17+FEP100to249!B18 -> 293 | F30: =FEP250to999!B17+FEP250to999!B18 -> 111 | G30: =FEP1000to4999!B17+FEP1000to4999!B18 -> 15 | H30: =FEP5000Up!B17+FEP5000Up!B18 -> 8 | J30: 133 | K30: =J30/#REF! -> 
A31: 7a | B31: New in Year1 | C31: =FEPdata!B17 -> 619 | D31: =FEP100Dn!B17 -> 441 | E31: =FEP100to249!B17 -> 147 | F31: =FEP250to999!B17 -> 25 | G31: =FEP1000to4999!B17 -> 3 | H31: =FEP5000Up!B17 -> 3
A32: 7b | B32: Repeat in Year1 | C32: =FEPdata!B18 -> 405 | D32: =FEP100Dn!B18 -> 156 | E32: =FEP100to249!B18 -> 146 | F32: =FEP250to999!B18 -> 86 | G32: =FEP1000to4999!B18 -> 12 | H32: =FEP5000Up!B18 -> 5
J33: 66 | K33: =J33/C33 -> 
A34: 6a | B34: Acquisition rate** | C34: =C24/C$14 -> 0.4036697248 | D34: =D24/D$14 -> 0.7651006711 | E34: 0.3051702396 | F34: 0.1196969697 | G34: 0.04615384615 | H34: 0.03333333333 | J34: 0.1224489796
A35: 6b | B35: Reactivation rate** | C35: =C25/C$14 -> 0.10969286 | D35: =D25/D$14 -> 0.1398210291 | E35: 0.1273644388 | F35: 0.05454545455 | G35: 0.07692307692 | H35: 0.1 | J35: 49.62406015
A36: 64 | B36: Repeat rate** | C36: =C26/C$14 -> 0.5915436777 | D36: 0.3322147651 | E36: 0.630517024 | F36: 0.8318181818 | G36: 0.8846153846 | H36: 0.7333333333 | J36: 0.4962406015
A37: 58 | B37: Upgraded** | C37: =C27/C$14 -> 0.2321499801 | D37: 0.110738255 | E37: 0.1967213115 | F37: 0.3954545455 | G37: 0.4230769231 | H37: 0.3666666667
A38: 60 | B38: Same** | C38: =C28/C$14 -> 0.119266055 | D38: 0.09955257271 | E38: 0.1677175284 | F38: 0.09545454545 | G38: 0.1 | H38: 0.03333333333
A39: 62 | B39: Downgraded** | C39: =C29/C$14 -> 0.2401276426 | D39: 0.1219239374 | E39: 0.2660781841 | F39: 0.3409090909 | G39: 0.3615384615 | H39: 0.3333333333
A40: 70 | B40: Attrition rate** | C40: =C30/C$14 -> 0.4084563223 | D40: 0.6677852349 | E40: 0.369482976 | F40: 0.1681818182 | G40: 0.1153846154 | H40: 0.2666666667 | J40: 50.37593985
A41: 66 | B41: New** | C41: =C31/C$14 -> 0.2469086558 | D41: 0.4932885906 | E41: 0.185372005 | F41: 0.03787878788 | G41: 0.02307692308 | H41: 0.1
A42: 68 | B42: Repeat** | C42: =C32/C$14 -> 0.1615476665 | D42: 0.1744966443 | E42: 0.184110971 | F42: 0.1303030303 | G42: 0.09230769231 | H42: 0.1666666667
J43: 0.5037593985
A44: 43 | B44: Net change in total donors | C44: =(C15-C14)/C14 -> 0.1049062625 | D44: =(D15-D14)/D14 -> 0.2371364653 | E44: 0.0630517024 | F44: 0.006060606061 | G44: 0.007692307692 | H44: -0.1333333333
B46: ** Year 2 as a % of Total Year 1 Donors
B47: *** Monthly donors = donors making 6 or more gifts in year

Sheet Pareto Principle
B1: Pareto Principle | C1: FEP Analytics | F1: =TODAY() -> 2014-08-31 | H1: Page 1
B2: =StepByStep!#REF! ->  | C2: FEP Fundraising Fitness Test
F3: =StepByStep!$G$7 -> 12 | G3: <-- Year-end month
B4: Fundraising Performance Indicators | G4: Year2: | H4: =StepByStep!$G$10 -> 2013
B5: Using Gift Transaction Data By Giving Level/Range | G5: Year1: | H5: =H4-1 -> 2012
B6: Key indicators | C6: Pareto Principle - 80/20 rule
D8: ----------------------------- Giving Level/Range ------------------------------
B9: Fundraising Performance Indicator | C9: All Donors | D9: Donors Under $100 | E9: $100 to $249 | F9: $250 to $999 | G9: $1,000 to $4,999 | H9: Donors $5,000 & Up
B11: Number of donors
A12: 13 | B12: Overall donors retained | C12: =FEPdata!$B14+FEPdata!$B15+FEPdata!$B16 -> 1483 | D12: =FEP100Dn!$B14+FEP100Dn!$B15+FEP100Dn!$B16 -> 297 | E12: =FEP100to249!$B14+FEP100to249!$B15+FEP100to249!$B16 -> 500 | F12: =FEP250to999!$B14+FEP250to999!$B15+FEP250to999!$B16 -> 549 | G12: =FEP1000to4999!$B14+FEP1000to4999!$B15+FEP1000to4999!$B16 -> 115 | H12: =FEP5000Up!$B14+FEP5000Up!$B15+FEP5000Up!$B16 -> 22
A13: 14 | B13: Year1 total donors | C13: =FEPdata!$B19 -> 2507 | D13: =FEP100Dn!$B19 -> 894 | E13: =FEP100to249!$B19 -> 793 | F13: =FEP250to999!$B19 -> 660 | G13: =FEP1000to4999!$B19 -> 130 | H13: =FEP5000Up!$B19 -> 30
A14: 15 | B14: Year2 total donors | C14: =FEPdata!$D19 -> 2770 | D14: =FEP100Dn!$D19 -> 1106 | E14: =FEP100to249!$D19 -> 843 | F14: =FEP250to999!$D19 -> 664 | G14: =FEP1000to4999!$D19 -> 131 | H14: =FEP5000Up!$D19 -> 26
A15: 16 | B15: Percent of Year2 donors by range | C15: =C14/$C14 -> 1 | D15: =D14/$C14 -> 0.3992779783 | E15: =E14/$C14 -> 0.30433213 | F15: 0.2397111913 | G15: 0.04729241877 | H15: =H14/$C14 -> 0.009386281588
B16: Cum. % of Year2 donors - low to high | D16: =C$16+D$15 -> 0.3992779783 | E16: =D$16+E$15 -> 0.7036101083 | F16: 0.9433212996 | G16: 0.9906137184 | H16: 1
B17: Cum. % of Year2 donors - high to low | D17: =E$17+D$15 -> 1 | E17: =F$17+E$15 -> 0.6007220217 | F17: 0.2963898917 | G17: 0.05667870036 | H17: 0.009386281588
B19: Amount of gifts
A20: 17 | B20: Amount of gift$ Year2 | C20: =FEPdata!$E19 -> 737676 | D20: =FEP100Dn!$E19 -> 39156 | E20: =FEP100to249!$E19 -> 101764 | F20: =FEP250to999!$E19 -> 234960 | G20: =FEP1000to4999!$E19 -> 171228 | H20: =FEP5000Up!$E19 -> 190568
A21: 18 | B21: Percent of Year2 gift$ by range | C21: =C20/$C20 -> 1 | D21: =D20/$C20 -> 0.05308021408 | E21: =E20/$C20 -> 0.1379521633 | F21: 0.3185138191 | G21: 0.2321181657 | H21: =H20/$C20 -> 0.2583356379
B22: Cum. % of Year2 gift$ - low to high | D22: =C$22+D$21 -> 0.05308021408 | E22: =D$22+E$21 -> 0.1910323774 | F22: 0.5095461964 | G22: 0.7416643621 | H22: 1
B23: Cum. % of Year2 gift$ - high to low | D23: =E$23+D$21 -> 1 | E23: =F$23+E$21 -> 0.9469197859 | F23: 0.8089676226 | G23: 0.4904538036 | H23: 0.2583356379
B25: Pareto Principle
B26: Donors % to gift$ % - high to low | D26: Pareto 80/20 rule | E26: =F28 -> 0.8089676226 | F26: of gifts from | G26: =F27 -> 0.2963898917 | H26: of donors
B27: Cum. % of Year2 donors - high to low | E27: =F$17+E$15 -> 0.6007220217 | F27: =G$17+F$15 -> 0.2963898917 | G27: =H$17+G$15 -> 0.05667870036 | H27: =I$17+H$15 -> 0.009386281588
B28: Cum. % of Year2 gift$ - high to low | E28: =F$23+E$21 -> 0.9469197859 | F28: =G$23+F$21 -> 0.8089676226 | G28: =H$23+G$21 -> 0.4904538036 | H28: =I$23+H$21 -> 0.2583356379
B30: Donors % to gift$ % - low to high | D30: Conversely | E30: =E32 -> 0.1910323774 | F30: of gifts from | G30: =E31 -> 0.7036101083 | H30: of donors
B31: Cum. % of Year2 donors - low to high | D31: =C$16+D$15 -> 0.3992779783 | E31: =D$16+E$15 -> 0.7036101083 | F31: 0.9433212996 | G31: 0.9906137184
B32: Cum. % of Year2 gift$ - low to high | D32: =C$22+D$21 -> 0.05308021408 | E32: =D$22+E$21 -> 0.1910323774 | F32: 0.5095461964 | G32: 0.7416643621

Sheet 6 Year Trends
B1: 6 Year Trends | C1: FEP Analytics | G1: =TODAY() -> 2014-08-31
B2: =StepByStep!#REF! ->  | C2: FEP Fundraising Fitness Test
F3: =StepByStep!$G$7 -> 12 | G3: <-- Year-end month
B4: Fundraising Income Summary | G4: Year2: | H4: =StepByStep!$G$10 -> 2013
B5: Using Mail, eMail and Website Gift Transaction Data By Giving Level/Range | G5: Year1: | H5: =H4-1 -> 2012
B8: Fundraising Performance Indicator | C8: ='Yr6'!$E$4 -> 2007 | D8: ='Yr5'!$E$4 -> 2008 | E8: ='Yr4'!$E$4 -> 2009 | F8: ='Yr3'!$E$4 -> 2010 | G8: ='Yr2'!$E$4 -> 2011 | H8: ='Yr1'!$E$4 -> 2012 | J8: Monthly Donors | K8: Monthly as % of all
H9: YTD
A11: 36 | B11: Total gifts in Year1 | C11: ='Yr6'!$C19 -> 265119 | D11: ='Yr5'!$C19 -> 376712 | E11: ='Yr4'!$C19 -> 412741 | F11: ='Yr3'!$C19 -> 581172 | G11: ='Yr2'!$C19 -> 667898 | H11: ='Yr1'!$C19 -> 818249 | J11: 0.7678571429
A12: 37 | B12: Total gifts in Year2 | C12: ='Yr6'!$E19 -> 376712 | D12: ='Yr5'!$E19 -> 412741 | E12: ='Yr4'!$E19 -> 581172 | F12: ='Yr3'!$E19 -> 667898 | G12: ='Yr2'!$E19 -> 818249 | H12: ='Yr1'!$E19 -> 737676
J13: 0.8902691511
A14: 40 | B14: Total donors in Year1 | C14: ='Yr6'!$B19 -> 1019 | D14: ='Yr5'!$B19 -> 1164 | E14: ='Yr4'!$B19 -> 1510 | F14: ='Yr3'!$B19 -> 1833 | G14: ='Yr2'!$B19 -> 2268 | H14: ='Yr1'!$B19 -> 2507 | J14: 0.8775510204
A15: 41 | B15: Total donors in Year2 | C15: ='Yr6'!$D19 -> 1164 | D15: ='Yr5'!$D19 -> 1510 | E15: ='Yr4'!$D19 -> 1833 | F15: ='Yr3'!$D19 -> 2268 | G15: ='Yr2'!$D19 -> 2507 | H15: ='Yr1'!$D19 -> 2770
A16: 78c | B16: Number of gifts in Year2 | C16: ='Yr6'!$E27 -> 4861 | D16: ='Yr5'!$E27 -> 6159 | E16: ='Yr4'!$E27 -> 7615 | F16: ='Yr3'!$E27 -> 9045 | G16: ='Yr2'!$E27 -> 10313 | H16: ='Yr1'!$E27 -> 10946
A17: 78d | B17: Average frequency in Year2 | C17: =C16/C15 -> 4.176116838 | D17: =D16/D15 -> 4.078807947 | E17: 4.154391708 | F17: 3.988095238 | G17: 4.113681691 | H17: 3.951624549
A18: 78e | B18: Average amount in Year2 | C18: =C12/C16 -> 77.49681136 | D18: =D12/D16 -> 67.01428803 | E18: 76.31936967 | F18: 73.84168049 | G18: 79.34151071 | H18: 67.39228942
J19: 0.7344559585
A20: 72 | B20: Monthly donors in Year2 **** | C20: ='Yr6'!$D$26 -> 306 | D20: ='Yr5'!$D$26 -> 386 | E20: ='Yr4'!$D$26 -> 464 | F20: ='Yr3'!$D$26 -> 541 | G20: ='Yr2'!$D$26 -> 608 | H20: ='Yr1'!$D$26 -> 629
A21: 75 | B21: Monthly-donor gifts in Year2 | C21: ='Yr6'!$E$26 -> 120406 | D21: ='Yr5'!$E$26 -> 180111 | E21: ='Yr4'!$E$26 -> 204006 | F21: ='Yr3'!$E$26 -> 232065 | G21: ='Yr2'!$E$26 -> 354993 | H21: ='Yr1'!$E$26 -> 352864
A22: new | B22: Net change in monthly donors* | C22: n/a | D22: =D20/C20 -> 1.261437908 | E22: =E20/D20 -> 1.202072539 | F22: 1.165948276 | G22: 1.123844732 | H22: 1.034539474
A25: 5a | B25: New donors in Year2 | C25: ='Yr6'!$D12 -> 536 | D25: ='Yr5'!$D12 -> 738 | E25: ='Yr4'!$D12 -> 877 | F25: ='Yr3'!$D12 -> 931 | G25: ='Yr2'!$D12 -> 905 | H25: ='Yr1'!$D12 -> 1012
A26: 5b | B26: Reactivated donors in Year2 | C26: ='Yr6'!$D13 -> 77 | D26: ='Yr5'!$D13 -> 172 | E26: ='Yr4'!$D13 -> 131 | F26: ='Yr3'!$D13 -> 223 | G26: ='Yr2'!$D13 -> 254 | H26: ='Yr1'!$D13 -> 275
A27: 2a | B27: Repeat donors in Year2 | C27: ='Yr6'!$D14+'Yr6'!$D15+'Yr6'!$D16 -> 551 | D27: ='Yr5'!$D14+'Yr5'!$D15+'Yr5'!$D16 -> 600 | E27: ='Yr4'!$D14+'Yr4'!$D15+'Yr4'!$D16 -> 825 | F27: ='Yr3'!$D14+'Yr3'!$D15+'Yr3'!$D16 -> 1114 | G27: ='Yr2'!$D14+'Yr2'!$D15+'Yr2'!$D16 -> 1348 | H27: ='Yr1'!$D14+'Yr1'!$D15+'Yr1'!$D16 -> 1483 | J27: 133 | K27: =J27/#REF! -> 
A28: 58a | B28: Upgraded in Year2 | C28: ='Yr6'!$D14 -> 260 | D28: ='Yr5'!$D14 -> 279 | E28: ='Yr4'!$D14 -> 332 | F28: ='Yr3'!$D14 -> 492 | G28: ='Yr2'!$D14 -> 641 | H28: ='Yr1'!$D14 -> 582
A29: 60a | B29: Same in Year2 | C29: ='Yr6'!$D15 -> 133 | D29: ='Yr5'!$D15 -> 172 | E29: ='Yr4'!$D15 -> 211 | F29: ='Yr3'!$D15 -> 273 | G29: ='Yr2'!$D15 -> 293 | H29: ='Yr1'!$D15 -> 299
A30: 62a | B30: Downgraded in Year2 | C30: ='Yr6'!$D16 -> 158 | D30: ='Yr5'!$D16 -> 149 | E30: ='Yr4'!$D16 -> 282 | F30: ='Yr3'!$D16 -> 349 | G30: ='Yr2'!$D16 -> 414 | H30: ='Yr1'!$D16 -> 602
A31: 7 | B31: Lapsed donors | C31: ='Yr6'!$B17+'Yr6'!$B18 -> 468 | D31: ='Yr5'!$B17+'Yr5'!$B18 -> 564 | E31: ='Yr4'!$B17+'Yr4'!$B18 -> 685 | F31: ='Yr3'!$B17+'Yr3'!$B18 -> 719 | G31: ='Yr2'!$B17+'Yr2'!$B18 -> 920 | H31: ='Yr1'!$B17+'Yr1'!$B18 -> 1024 | J31: 133 | K31: =J31/#REF! -> 
A32: 7a | B32: New in Year1 | C32: ='Yr6'!$B17 -> 298 | D32: ='Yr5'!$B17 -> 372 | E32: ='Yr4'!$B17 -> 482 | F32: ='Yr3'!$B17 -> 519 | G32: ='Yr2'!$B17 -> 605 | H32: ='Yr1'!$B17 -> 619
A33: 7b | B33: Repeat in Year1 | C33: ='Yr6'!$B18 -> 170 | D33: ='Yr5'!$B18 -> 192 | E33: ='Yr4'!$B18 -> 203 | F33: ='Yr3'!$B18 -> 200 | G33: ='Yr2'!$B18 -> 315 | H33: ='Yr1'!$B18 -> 405
J34: 66 | K34: =J34/C34 -> 
A35: 6a | B35: Acquisition rate** | C35: =C25/C$14 -> 0.5260058881 | D35: =D25/D$14 -> 0.6340206186 | E35: 0.580794702 | F35: 0.5079105292 | G35: 0.3990299824 | H35: 0.4036697248 | J35: 0.1224489796
A36: 6b | B36: Reactivation rate** [***not yet] | C36: =C26/C$14 -> 0.0755642787 | D36: 0.147766323 | E36: 0.08675496689 | F36: 0.1216584834 | G36: 0.1119929453 | H36: 0.10969286 | J36: 49.62406015
A37: 64 | B37: Repeat rate** | C37: =C27/C$14 -> 0.5407262022 | D37: 0.5154639175 | E37: 0.5463576159 | F37: 0.6077468631 | G37: 0.594356261 | H37: 0.5915436777 | J37: 0.4962406015
A38: 58 | B38: Upgraded** | C38: =C28/C$14 -> 0.2551521099 | D38: 0.2396907216 | E38: 0.2198675497 | F38: 0.2684124386 | G38: 0.282627866 | H38: 0.2321499801
A39: 60 | B39: Same** | C39: 0.1305201178 | D39: 0.147766323 | E39: 0.1397350993 | F39: 0.1489361702 | G39: 0.1291887125 | H39: 0.119266055
A40: 62 | B40: Downgraded** | C40: 0.1550539745 | D40: 0.1280068729 | E40: 0.1867549669 | F40: 0.1903982542 | G40: 0.1825396825 | H40: 0.2401276426
A41: 70 | B41: Attrition rate** | C41: 0.4592737978 | D41: 0.4845360825 | E41: 0.4536423841 | F41: 0.3922531369 | G41: 0.405643739 | H41: 0.4084563223 | J41: 50.37593985
A42: 66 | B42: New** | C42: 0.2924435721 | D42: 0.3195876289 | E42: 0.319205298 | F42: 0.2831423895 | G42: 0.2667548501 | H42: 0.2469086558
A43: 68 | B43: Repeat** | C43: 0.1668302257 | D43: 0.1649484536 | E43: 0.1344370861 | F43: 0.1091107474 | G43: 0.1388888889 | H43: 0.1615476665
J44: 0.5037593985
A45: 43 | B45: Net change in total donors | C45: =(C15-C14)/C14 -> 0.142296369 | D45: =(D15-D14)/D14 -> 0.2972508591 | E45: 0.2139072848 | F45: 0.2373158756 | G45: 0.1053791887 | H45: 0.1049062625
B47: * Year 2 as a % of Year 1 - monthly donors only | D47: **** Year2 donors making 6 to 24 gifts in Year2 (no monthly coding yet).
B48: ** Year 2 as a % of Total Year 1 Donors
B49: *** [still old rate, NOT YET-->] Year 2 as a percent of some year but not last year (SYBNT)
B50: **** Monthly donors = donors making 6 or more gifts in year.

Sheet Greenfield
B1: Jim Greenfield | C1: FEP Analytics | F1: =TODAY() -> 2014-08-31 | H1: Page 1
C2: FEP Fundraising Fitness Test
F3: =StepByStep!$G$7 -> 12 | G3: <-- Year-end month
G4: This year: | H4: =StepByStep!$G$10 -> 2013
B5: Overall 3-Year "Growth in Giving" Analysis* | G5: Last year: | H5: =H4-1 -> 2012
G6: 2 years ago: | H6: =H5-1 -> 2011
E8: Rate of | G8: Rate of | H8: 3-Year cum
E9: Growth | G9: Growth | H9: Rate of
C10: 2 Years ago | D10: Last year | E10: Last year | F10: This year | G10: This year | H10: Growth
C11: [A] | D11: [B] | E11: [C=(B-A)/A] | F11: [D] | G11: [E=(D-B)/B] | H11: [F=(D-A)/A]
A13: 1 | B13: Donors of record (end of year) | C13: ='Yr3'!$B23+'Yr3'!$D12 -> 5005 | D13: ='Yr2'!$B23+'Yr2'!$D12 -> 5910 | E13: =(D13-C13)/C13 -> 0.1808191808 | F13: ='Yr1'!$B23+'Yr1'!$D12 -> 6922 | G13: =(F13-D13)/D13 -> 0.1712351946 | H13: =(F13-C13)/C13 -> 0.383016983
A14: 2 | B14: Donors participating | C14: ='Yr3'!$D19 -> 2268 | D14: ='Yr2'!$D19 -> 2507 | E14: =(D14-C14)/C14 -> 0.1053791887 | F14: ='Yr1'!$D19 -> 2770 | G14: =(F14-D14)/D14 -> 0.1049062625 | H14: =(F14-C14)/C14 -> 0.221340388
A15: 3 | B15: Percent participation (2/1) | C15: =C14/C13 -> 0.4531468531 | D15: =D14/D13 -> 0.4241962775 | E15: =(D15-C15)/C15 -> -0.06388784442 | F15: =F14/F13 -> 0.4001733603 | G15: =(F15-D15)/D15 -> -0.05663160775 | H15: =(F15-C15)/C15 -> -0.1169013808
A16: 4 | B16: Gross revenue | C16: ='Yr3'!$E19 -> 667898 | D16: ='Yr2'!$E19 -> 818249 | E16: =(D16-C16)/C16 -> 0.2251107205 | F16: ='Yr1'!$E19 -> 737676 | G16: =(F16-D16)/D16 -> -0.09847002563 | H16: =(F16-C16)/C16 -> 0.1044740365
A17: 5 | B17: Average gift size (4/2) | C17: =C16/C14 -> 294.4876543 | D17: =D16/D14 -> 326.38572 | E17: =(D17-C17)/C17 -> 0.1083171576 | F17: =F16/F14 -> 266.3090253 | G17: -0.1840665539 | H17: -0.09568696221
B19: * Source: J.M. Greenfield: "Budgeting for Fundraising and Evaluating Performance", Ch. 31 in
B20: Achieving Excellence in Fundraising: Third Edition, Jossey Bass, A Wiley Imprint, 2011, p. 357

Sheet Greenfield GIG
B1: Jim Greenfield GIG | D1: FEP Analytics | G1: =TODAY() -> 2014-08-31
D2: FEP Fundraising Fitness Test
G3: =StepByStep!$G$7 -> 12 | H3: <-- Year-end month
H4: This year: | I4: =StepByStep!$G$10 -> 2013
B5: 3-Year "Growth in Giving" Analysis* by Gift Range
E7: --------------------------------------- Gift Range -------------------------------------------
B8: 3-Year Cumulative Growth in Giving Category | D8: All Donors | E8: Donors Under $100 | F8: $100 to $249 | G8: $250 to $999 | H8: $1,000 to $4,999 | I8: Donors $5,000 & Up
A10: Donors of record
B11: 2 Years ago | D11: ='Yr3'!$B23+'Yr3'!$D12 -> 5005 | E11: ='Yr3'!$B52+'Yr3'!$D41 -> 2544 | F11: ='Yr3'!$B81+'Yr3'!$D70 -> 1441 | G11: ='Yr3'!$B110+'Yr3'!$D99 -> 814 | H11: ='Yr3'!$B139+'Yr3'!$D128 -> 157 | I11: ='Yr3'!$B168+'Yr3'!$D157 -> 49
B12: Last year | D12: ='Yr2'!$B23+'Yr2'!$D12 -> 5910 | E12: ='Yr2'!$B52+'Yr2'!$D41 -> 3089 | F12: ='Yr2'!$B81+'Yr2'!$D70 -> 1692 | G12: ='Yr2'!$B110+'Yr2'!$D99 -> 904 | H12: ='Yr2'!$B139+'Yr2'!$D128 -> 170 | I12: ='Yr2'!$B168+'Yr2'!$D157 -> 55
B13: Rate of growth last year | D13: =(D12-D11)/D11 -> 0.1808191808 | E13: 0.2142295597 | F13: 0.174184594 | G13: 0.1105651106 | H13: 0.08280254777 | I13: 0.1224489796
B14: This year | D14: ='Yr1'!$B23+'Yr1'!$D12 -> 6922 | E14: ='Yr1'!$B52+'Yr1'!$D41 -> 3773 | F14: ='Yr1'!$B81+'Yr1'!$D70 -> 1934 | G14: ='Yr1'!$B110+'Yr1'!$D99 -> 983 | H14: ='Yr1'!$B139+'Yr1'!$D128 -> 176 | I14: ='Yr1'!$B168+'Yr1'!$D157 -> 56
B15: Rate of growth this year | D15: =(D14-D12)/D12 -> 0.1712351946 | E15: 0.2214308838 | F15: 0.1430260047 | G15: 0.08738938053 | H15: 0.03529411765 | I15: 0.01818181818
B16: Donors of record | D16: =(D14-D11)/D11 -> 0.383016983 | E16: 0.4830974843 | F16: 0.3421235253 | G16: 0.2076167076 | H16: 0.1210191083 | I16: 0.1428571429
A17: Donors participating
B18: 2 Years ago | D18: ='Yr3'!$D19 -> 2268 | E18: ='Yr3'!$D48 -> 788 | F18: ='Yr3'!$D77 -> 710 | G18: ='Yr3'!$D106 -> 615 | H18: ='Yr3'!$D135 -> 126 | I18: ='Yr3'!$D164 -> 29
B19: Last year | D19: ='Yr2'!$D19 -> 2507 | E19: ='Yr2'!$D48 -> 894 | F19: ='Yr2'!$D77 -> 793 | G19: ='Yr2'!$D106 -> 660 | H19: ='Yr2'!$D135 -> 130 | I19: ='Yr2'!$D164 -> 30
B20: Rate of growth last year | D20: =(D19-D18)/D18 -> 0.1053791887 | E20: 0.1345177665 | F20: 0.1169014085 | G20: 0.07317073171 | H20: 0.03174603175 | I20: 0.03448275862
B21: This year | D21: ='Yr1'!$D19 -> 2770 | E21: ='Yr1'!$D48 -> 1106 | F21: ='Yr1'!$D77 -> 843 | G21: ='Yr1'!$D106 -> 664 | H21: ='Yr1'!$D135 -> 131 | I21: ='Yr1'!$D164 -> 26
B22: Rate of growth this year | D22: =(D21-D19)/D19 -> 0.1049062625 | E22: 0.2371364653 | F22: 0.0630517024 | G22: 0.006060606061 | H22: 0.007692307692 | I22: -0.1333333333
B23: Donors participating | D23: =(D21-D18)/D18 -> 0.221340388 | E23: 0.4035532995 | F23: 0.1873239437 | G23: 0.07967479675 | H23: 0.03968253968 | I23: -0.1034482759
A24: Percent participation (2/1)
B25: 2 Years ago | D25: =D18/D11 -> 0.4531468531 | E25: 0.3097484277 | F25: 0.4927133935 | G25: 0.7555282555 | H25: 0.8025477707 | I25: 0.5918367347
B26: Last year | D26: 0.4241962775 | E26: 0.2894140499 | F26: 0.4686761229 | G26: 0.7300884956 | H26: 0.7647058824 | I26: 0.5454545455
B27: Rate of growth last year | D27: =(D26-D25)/D25 -> -0.06388784442 | E27: =(E26-E25)/E25 -> -0.06564804209 | F27: =(F26-F25)/F25 -> -0.04878550261 | G27: -0.03367148716 | H27: -0.04715219421 | I27: -0.07836990596
B28: This year | D28: =D21/D14 -> 0.4001733603 | E28: 0.293135436 | F28: 0.4358841779 | G28: 0.6754832146 | H28: 0.7443181818 | I28: 0.4642857143
B29: Rate of growth this year | D29: =(D28-D26)/D26 -> -0.05663160775 | E29: =(E28-E26)/E26 -> 0.01285834651 | F29: =(F28-F26)/F26 -> -0.0699671766 | G29: -0.07479268781 | H29: -0.02666083916 | I29: -0.1488095238
B30: 3-Year cumulative rate of growth | D30: =(D28-D25)/D25 -> -0.1169013808 | E30: =(E28-E25)/E25 -> -0.05363382086 | F30: =(F28-F25)/F25 -> -0.1153392953 | G30: -0.1059457939 | H30: -0.07255591631 | I30: -0.2155172414
A31: Gross revenue
B32: 2 Years ago | D32: ='Yr3'!$E19 -> 667898 | E32: ='Yr3'!$E48 -> 27580 | F32: ='Yr3'!$E77 -> 81916 | G32: ='Yr3'!$E106 -> 174466 | H32: ='Yr3'!$E135 -> 136459 | I32: ='Yr3'!$E164 -> 247477
B33: Last year | D33: ='Yr2'!$E19 -> 818249 | E33: ='Yr2'!$E48 -> 31740 | F33: ='Yr2'!$E77 -> 94930 | G33: ='Yr2'!$E106 -> 211296 | H33: ='Yr2'!$E135 -> 159037 | I33: ='Yr2'!$E164 -> 321246
B34: Rate of growth last year | D34: =(D33-D32)/D32 -> 0.2251107205 | E34: 0.1508339376 | F34: 0.158870062 | G34: 0.2111013034 | H34: 0.1654562909 | I34: 0.2980842664
B35: This year | D35: ='Yr1'!$E19 -> 737676 | E35: ='Yr1'!$E48 -> 39156 | F35: ='Yr1'!$E77 -> 101764 | G35: ='Yr1'!$E106 -> 234960 | H35: ='Yr1'!$E135 -> 171228 | I35: ='Yr1'!$E164 -> 190568
B36: Rate of growth this year | D36: =(D35-D33)/D33 -> -0.09847002563 | E36: 0.2336483932 | F36: 0.07198988729 | G36: 0.1119945479 | H36: 0.07665511799 | I36: -0.4067848316
B37: Gross revenue | D37: =(D35-D32)/D32 -> 0.1044740365 | E37: 0.419724438 | F37: 0.2422969872 | G37: 0.3467380464 | H37: 0.2547944804 | I37: -0.2299567233
A38: Average gift size
B39: 2 Years ago | D39: =D32/D18 -> 294.4876543 | E39: =E32/E18 -> 35 | F39: 115.3746479 | G39: 283.6845528 | H39: 1083.007937 | I39: 8533.689655
B40: Last year | D40: =D33/D19 -> 326.38572 | E40: 35.5033557 | F40: 119.7099622 | G40: 320.1454545 | H40: 1223.361538 | I40: 10708.2
B41: Rate of growth last year | D41: =(D40-D39)/D39 -> 0.1083171576 | E41: =(E40-E39)/E39 -> 0.01438159156 | F41: 0.03757596977 | G41: 0.1285262145 | H41: 0.1295960973 | I41: 0.2548147909
B42: This year | D42: =D35/D21 -> 266.3090253 | E42: =E35/E21 -> 35.40325497 | F42: 120.7164887 | G42: 353.8554217 | H42: 1307.083969 | I42: 7329.538462
B43: Rate of growth this year | D43: =(D42-D40)/D40 -> -0.1840665539 | E43: =(E42-E40)/E40 -> -0.002819472409 | F43: 0.008408043437 | G43: 0.1052957856 | H43: 0.06843637663 | I43: -0.3155209595
B44: Average gift size | D44: =(D42-D39)/D39 -> -0.09568696221 | E44: =(E42-E39)/E39 -> 0.01152157065 | F44: 0.0462999536 | G44: 0.2473552689 | H44: 0.2069015613 | I44: -0.1411055759
F48: Rate of | H48: Rate of | I48: 3-Year cum
B49: ='Yr1'!A5 -> All donors | F49: Growth | H49: Growth | I49: Rate of
D50: 2 Years ago | E50: Last year | F50: Last year | G50: This year | H50: This year | I50: Growth
D51: [A] | E51: [B] | F51: [C=(B-A)/A] | G51: [D] | H51: [E=(D-B)/B] | I51: [F=(D-A)/A]
A53: 1 | B53: Donors of record (end of year) | D53: ='Yr3'!$B23+'Yr3'!$D12 -> 5005 | E53: ='Yr2'!$B23+'Yr2'!$D12 -> 5910 | F53: =(E53-D53)/D53 -> 0.1808191808 | G53: ='Yr1'!$B23+'Yr1'!$D12 -> 6922 | H53: =(G53-E53)/E53 -> 0.1712351946 | I53: =(G53-D53)/D53 -> 0.383016983
A54: 2 | B54: Participation | D54: ='Yr3'!$D19 -> 2268 | E54: ='Yr2'!$D19 -> 2507 | F54: =(E54-D54)/D54 -> 0.1053791887 | G54: ='Yr1'!$D19 -> 2770 | H54: =(G54-E54)/E54 -> 0.1049062625 | I54: =(G54-D54)/D54 -> 0.221340388
A55: 3 | B55: Percent participation (2/1) | D55: =D54/D53 -> 0.4531468531 | E55: =E54/E53 -> 0.4241962775 | F55: =(E55-D55)/D55 -> -0.06388784442 | G55: =G54/G53 -> 0.4001733603 | H55: =(G55-E55)/E55 -> -0.05663160775 | I55: =(G55-D55)/D55 -> -0.1169013808
A56: 4 | B56: Gross revenue | D56: ='Yr3'!$E19 -> 667898 | E56: ='Yr2'!$E19 -> 818249 | F56: =(E56-D56)/D56 -> 0.2251107205 | G56: ='Yr1'!$E19 -> 737676 | H56: =(G56-E56)/E56 -> -0.09847002563 | I56: =(G56-D56)/D56 -> 0.1044740365
A57: 5 | B57: Average gift size (4/2) | D57: =D56/D54 -> 294.4876543 | E57: =E56/E54 -> 326.38572 | F57: =(E57-D57)/D57 -> 0.1083171576 | G57: =G56/G54 -> 266.3090253 | H57: -0.1840665539 | I57: -0.09568696221
I59: 3-Year cum
B60: ='Yr1'!A150 -> $5,000 and up | F60: Rate of | H60: Rate of | I60: Rate of
D61: 2 Years ago | E61: Last year | F61: Growth | G61: This year | H61: Growth | I61: Growth
D62: [B] | E62: [D] | F62: [E=(D-B)/B] | G62: [F] | H62: [G=(F-D)/D] | I62: [F=(D-A)/A]
A64: 1 | B64: Donors of record (end of year) | D64: ='Yr3'!$B168+'Yr3'!$D157 -> 49 | E64: ='Yr2'!$B168+'Yr2'!$D157 -> 55 | F64: =(E64-D64)/D64 -> 0.1224489796 | G64: ='Yr1'!$B168+'Yr1'!$D157 -> 56 | H64: =(G64-E64)/E64 -> 0.01818181818 | I64: =(G64-D64)/D64 -> 0.1428571429
A65: 2 | B65: Participation | D65: ='Yr3'!$D164 -> 29 | E65: ='Yr2'!$D164 -> 30 | F65: =(E65-D65)/D65 -> 0.03448275862 | G65: ='Yr1'!$D164 -> 26 | H65: =(G65-E65)/E65 -> -0.1333333333 | I65: =(G65-D65)/D65 -> -0.1034482759
A66: 3 | B66: Percent participation (2/1) | D66: =D65/D64 -> 0.5918367347 | E66: =E65/E64 -> 0.5454545455 | F66: =(E66-D66)/D66 -> -0.07836990596 | G66: =G65/G64 -> 0.4642857143 | H66: =(G66-E66)/E66 -> -0.1488095238 | I66: =(G66-D66)/D66 -> -0.2155172414
A67: 4 | B67: Gross revenue | D67: ='Yr3'!$E164 -> 247477 | E67: ='Yr2'!$E164 -> 321246 | F67: =(E67-D67)/D67 -> 0.2980842664 | G67: ='Yr1'!$E164 -> 190568 | H67: =(G67-E67)/E67 -> -0.4067848316 | I67: =(G67-D67)/D67 -> -0.2299567233
A68: 5 | B68: Average gift size (4/2) | D68: =D67/D65 -> 8533.689655 | E68: =E67/E65 -> 10708.2 | F68: =(E68-D68)/D68 -> 0.2548147909 | G68: =G67/G65 -> 7329.538462 | H68: -0.3155209595 | I68: -0.1411055759
B70: * Source: J.M. Greenfield: "Budgeting for Fundraising and Evaluating Performance", Ch. 31 in
B71: Achieving Excellence in Fundraising: Third Edition, Jossey Bass, A Wiley Imprint, 2011, p. 357
I72: Page 2
B73: =B5 -> 3-Year "Growth in Giving" Analysis* by Gift Range
I74: 3-Year cum
B75: ='Yr1'!A121 -> $1,000 to $4,999 | F75: Rate of | H75: Rate of | I75: Rate of
D76: 2 Years ago | E76: Last year | F76: Growth | G76: This year | H76: Growth | I76: Growth
D77: [B] | E77: [D] | F77: [E=(D-B)/B] | G77: [F] | H77: [G=(F-D)/D] | I77: [F=(D-A)/A]
A79: 1 | B79: Donors of record (end of year) | D79: ='Yr3'!$B139+'Yr3'!$D128 -> 157 | E79: ='Yr2'!$B139+'Yr2'!$D128 -> 170 | F79: =(E79-D79)/D79 -> 0.08280254777 | G79: ='Yr1'!$B139+'Yr1'!$D128 -> 176 | H79: =(G79-E79)/E79 -> 0.03529411765 | I79: =(G79-D79)/D79 -> 0.1210191083
A80: 2 | B80: Participation | D80: ='Yr3'!$D135 -> 126 | E80: ='Yr2'!$D135 -> 130 | F80: =(E80-D80)/D80 -> 0.03174603175 | G80: ='Yr1'!$D135 -> 131 | H80: =(G80-E80)/E80 -> 0.007692307692 | I80: =(G80-D80)/D80 -> 0.03968253968
A81: 3 | B81: Percent participation (2/1) | D81: =D80/D79 -> 0.8025477707 | E81: =E80/E79 -> 0.7647058824 | F81: =(E81-D81)/D81 -> -0.04715219421 | G81: =G80/G79 -> 0.7443181818 | H81: =(G81-E81)/E81 -> -0.02666083916 | I81: =(G81-D81)/D81 -> -0.07255591631
A82: 4 | B82: Gross revenue | D82: ='Yr3'!$E135 -> 136459 | E82: ='Yr2'!$E135 -> 159037 | F82: =(E82-D82)/D82 -> 0.1654562909 | G82: ='Yr1'!$E135 -> 171228 | H82: =(G82-E82)/E82 -> 0.07665511799 | I82: =(G82-D82)/D82 -> 0.2547944804
A83: 5 | B83: Average gift size (4/2) | D83: =D82/D80 -> 1083.007937 | E83: =E82/E80 -> 1223.361538 | F83: =(E83-D83)/D83 -> 0.1295960973 | G83: =G82/G80 -> 1307.083969 | H83: 0.06843637663 | I83: 0.2069015613
I85: 3-Year cum
B86: ='Yr1'!A92 -> $250 to $999 | F86: Rate of | H86: Rate of | I86: Rate of
D87: 2 Years ago | E87: Last year | F87: Growth | G87: This year | H87: Growth | I87: Growth
D88: [B] | E88: [D] | F88: [E=(D-B)/B] | G88: [F] | H88: [G=(F-D)/D] | I88: [F=(D-A)/A]
A90: 1 | B90: Donors of record (end of year) | D90: ='Yr3'!$B110+'Yr3'!$D99 -> 814 | E90: ='Yr2'!$B110+'Yr2'!$D99 -> 904 | F90: =(E90-D90)/D90 -> 0.1105651106 | G90: ='Yr1'!$B110+'Yr1'!$D99 -> 983 | H90: =(G90-E90)/E90 -> 0.08738938053 | I90: =(G90-D90)/D90 -> 0.2076167076
A91: 2 | B91: Participation | D91: ='Yr3'!$D106 -> 615 | E91: ='Yr2'!$D106 -> 660 | F91: =(E91-D91)/D91 -> 0.07317073171 | G91: ='Yr1'!$D106 -> 664 | H91: =(G91-E91)/E91 -> 0.006060606061 | I91: =(G91-D91)/D91 -> 0.07967479675
A92: 3 | B92: Percent participation (2/1) | D92: =D91/D90 -> 0.7555282555 | E92: =E91/E90 -> 0.7300884956 | F92: =(E92-D92)/D92 -> -0.03367148716 | G92: =G91/G90 -> 0.6754832146 | H92: =(G92-E92)/E92 -> -0.07479268781 | I92: =(G92-D92)/D92 -> -0.1059457939
A93: 4 | B93: Gross revenue | D93: ='Yr3'!$E106 -> 174466 | E93: ='Yr2'!$E106 -> 211296 | F93: =(E93-D93)/D93 -> 0.2111013034 | G93: ='Yr1'!$E106 -> 234960 | H93: =(G93-E93)/E93 -> 0.1119945479 | I93: =(G93-D93)/D93 -> 0.3467380464
A94: 5 | B94: Average gift size (4/2) | D94: =D93/D91 -> 283.6845528 | E94: =E93/E91 -> 320.1454545 | F94: =(E94-D94)/D94 -> 0.1285262145 | G94: =G93/G91 -> 353.8554217 | H94: 0.1052957856 | I94: 0.2473552689
I95: Page 3
B96: =B5 -> 3-Year "Growth in Giving" Analysis* by Gift Range
I97: 3-Year cum
B98: ='Yr1'!A63 -> $100 to $249 | F98: Rate of | H98: Rate of | I98: Rate of
D99: 2 Years ago | E99: Last year | F99: Growth | G99: This year | H99: Growth | I99: Growth
D100: [B] | E100: [D] | F100: [E=(D-B)/B] | G100: [F] | H100: [G=(F-D)/D] | I100: [F=(D-A)/A]
A102: 1 | B102: Donors of record (end of year) | D102: ='Yr3'!$B81+'Yr3'!$D70 -> 1441 | E102: ='Yr2'!$B81+'Yr2'!$D70 -> 1692 | F102: =(E102-D102)/D102 -> 0.174184594 | G102: ='Yr1'!$B81+'Yr1'!$D70 -> 1934 | H102: =(G102-E102)/E102 -> 0.1430260047 | I102: =(G102-D102)/D102 -> 0.3421235253
A103: 2 | B103: Participation | D103: ='Yr3'!$D77 -> 710 | E103: ='Yr2'!$D77 -> 793 | F103: =(E103-D103)/D103 -> 0.1169014085 | G103: ='Yr1'!$D77 -> 843 | H103: =(G103-E103)/E103 -> 0.0630517024 | I103: =(G103-D103)/D103 -> 0.1873239437
A104: 3 | B104: Percent participation (2/1) | D104: =D103/D102 -> 0.4927133935 | E104: =E103/E102 -> 0.4686761229 | F104: =(E104-D104)/D104 -> -0.04878550261 | G104: =G103/G102 -> 0.4358841779 | H104: =(G104-E104)/E104 -> -0.0699671766 | I104: =(G104-D104)/D104 -> -0.1153392953
A105: 4 | B105: Gross revenue | D105: ='Yr3'!$E77 -> 81916 | E105: ='Yr2'!$E77 -> 94930 | F105: =(E105-D105)/D105 -> 0.158870062 | G105: ='Yr1'!$E77 -> 101764 | H105: =(G105-E105)/E105 -> 0.07198988729 | I105: =(G105-D105)/D105 -> 0.2422969872
A106: 5 | B106: Average gift size (4/2) | D106: =D105/D103 -> 115.3746479 | E106: =E105/E103 -> 119.7099622 | F106: =(E106-D106)/D106 -> 0.03757596977 | G106: =G105/G103 -> 120.7164887 | H106: 0.008408043437 | I106: 0.0462999536
I108: 3-Year cum
B109: ='Yr1'!A34 -> Under $100 | F109: Rate of | H109: Rate of | I109: Rate of
D110: 2 Years ago | E110: Last year | F110: Growth | G110: This year | H110: Growth | I110: Growth
D111: [B] | E111: [D] | F111: [E=(D-B)/B] | G111: [F] | H111: [G=(F-D)/D] | I111: [F=(D-A)/A]
A113: 1 | B113: Donors of record (end of year) | D113: ='Yr3'!$B52+'Yr3'!$D41 -> 2544 | E113: ='Yr2'!$B52+'Yr2'!$D41 -> 3089 | F113: =(E113-D113)/D113 -> 0.2142295597 | G113: ='Yr1'!$B52+'Yr1'!$D41 -> 3773 | H113: =(G113-E113)/E113 -> 0.2214308838 | I113: =(G113-D113)/D113 -> 0.4830974843
A114: 2 | B114: Participation | D114: ='Yr3'!$D48 -> 788 | E114: ='Yr2'!$D48 -> 894 | F114: =(E114-D114)/D114 -> 0.1345177665 | G114: ='Yr1'!$D48 -> 1106 | H114: =(G114-E114)/E114 -> 0.2371364653 | I114: =(G114-D114)/D114 -> 0.4035532995
A115: 3 | B115: Percent participation (2/1) | D115: =D114/D113 -> 0.3097484277 | E115: =E114/E113 -> 0.2894140499 | F115: =(E115-D115)/D115 -> -0.06564804209 | G115: =G114/G113 -> 0.293135436 | H115: =(G115-E115)/E115 -> 0.01285834651 | I115: =(G115-D115)/D115 -> -0.05363382086
A116: 4 | B116: Gross revenue | D116: ='Yr3'!$E48 -> 27580 | E116: ='Yr2'!$E48 -> 31740 | F116: =(E116-D116)/D116 -> 0.1508339376 | G116: ='Yr1'!$E48 -> 39156 | H116: =(G116-E116)/E116 -> 0.2336483932 | I116: =(G116-D116)/D116 -> 0.419724438
A117: 5 | B117: Average gift size (4/2) | D117: =D116/D114 -> 35 | E117: =E116/E114 -> 35.5033557 | F117: =(E117-D117)/D117 -> 0.01438159156 | G117: =G116/G114 -> 35.40325497 | H117: -0.002819472409 | I117: 0.01152157065

Sheet GainLoss
B1: Figure1 | C1: FEP Fundraising Fitness Test
B2: =StepByStep!#REF! -> 
F3: =StepByStep!$G$7 -> 12 | G3: <-- Year-end month
B4: Gain/Loss Growth-in-Giving Performance Report for --> | F4: =StepByStep!$G$10 -> 2013
B5: Base: | C5: Total all donors | E5: Average/Mean
F6: =F4 -> 2013
B7: Gain/Loss | C7: Period 1 | D7: Period 2 | E7: Gains | F7: Gain/Loss
B8: Category | C8: =F4-1 -> 2012 | D8: =F4 -> 2013 | E8: (Losses) | F8: Ratio
C9: (A$) | D9: (B$) | E9: (C$=B-A) | F9: (D%=C/totA)
A11: Gains | D11: Amount of Gifts
B12: New | C12: 2e-07 | D12: =FEPdata!E12 -> 133838 | E12: =D12-C12 -> 133838 | F12: =E12/(C$23+0.00001) -> 0.1635663472
B13: Recapture | C13: 2e-07 | D13: =FEPdata!E13 -> 54477 | E13: =D13-C13 -> 54477 | F13: =E13/(C$23+0.00001) -> 0.06657753324
B14: Upgrade | C14: =FEPdata!C14 -> 183332 | D14: =FEPdata!E14 -> 307294 | E14: =D14-C14 -> 123962 | F14: =E14/(C$23+0.00001) -> 0.1514966715
B15: Subtotal gains | C15: =SUM(C12:C14) -> 183332 | D15: =SUM(D12:D14) -> 495609 | E15: =D15-C15 -> 312277 | F15: =E15/(C$23+0.00001) -> 0.381640552
A16: Same | C16: =FEPdata!C15 -> 54201 | D16: =FEPdata!E15 -> 54201 | E16: =D16-C16 -> 0 | F16: =E16/(C$23+0.00001) -> 0
A17: Losses
B18: Downgrade | C18: =FEPdata!C16 -> 314530 | D18: =FEPdata!E16 -> 187866 | E18: =D18-C18 -> -126664 | F18: =E18/(C$23+0.00001) -> -0.1547988448
B19: Lapsed new | C19: =FEPdata!C17 -> 103250 | D19: 2e-07 | E19: =D19-C19 -> -103250 | F19: =E19/(C$23+0.00001) -> -0.1261840833
B20: Lapsed repeat | C20: =FEPdata!C18 -> 162936 | D20: 2e-07 | E20: =D20-C20 -> -162936 | F20: =E20/(C$23+0.00001) -> -0.1991276494
B21: Subtotal losses | C21: =SUM(C17:C20) -> 580716 | D21: =SUM(D17:D20) -> 187866 | E21: =D21-C21 -> -392850 | F21: =E21/(C$23+0.00001) -> -0.4801105776
A23: Total - gifts | C23: =C15+C16+C21 -> 818249 | D23: =D15+D16+D21 -> 737676 | E23: =D23-C23 -> -80573 | F23: =E23/(C$23+0.00001) -> -0.09847002563
F24: Overall rate of growth
A25: Gains | D25: Number of Donors
B26: New | C26: 0.0002 | D26: =FEPdata!D12 -> 1012 | E26: =D26-C26 -> 1011.9998 | F26: =E26/(C$37+0.00001) -> 0.403669579
B27: Recapture | C27: 0.0002 | D27: =FEPdata!D13 -> 275 | E27: =D27-C27 -> 274.9998 | F27: =E27/(C$37+0.00001) -> 0.1096927623
B28: Upgrade | C28: =FEPdata!B14 -> 582 | D28: =FEPdata!D14 -> 582 | E28: 0 | F28: =E28/(C$37+0.00001) -> 0
B29: Subtotal gains | C29: =SUM(C26:C28) -> 582.0004 | D29: =SUM(D26:D28) -> 1869 | E29: =SUM(E26:E28) -> 1286.9996 | F29: =E29/(C$37+0.00001) -> 0.5133623413
A30: Same | C30: =FEPdata!B15 -> 299 | D30: =FEPdata!D15 -> 299 | E30: =D30-C30 -> 0 | F30: =E30/(C$37+0.00001) -> 0
A31: Losses
B32: Downgrade | C32: =FEPdata!B16 -> 602 | D32: =FEPdata!D16 -> 602 | E32: =D32-C32 -> 0 | F32: =E32/(C$37+0.00001) -> 0
B33: Lapsed new | C33: =FEPdata!B17 -> 619 | D33: 0.0002 | E33: =D33-C33 -> -618.9998 | F33: =E33/(C$37+0.00001) -> -0.2469085356
B34: Lapsed repeat | C34: =FEPdata!B18 -> 405 | D34: 0.0002 | E34: =D34-C34 -> -404.9998 | F34: =E34/(C$37+0.00001) -> -0.1615475603
B35: Subtotal losses | C35: =SUM(C31:C34) -> 1626 | D35: =SUM(D31:D34) -> 602.0004 | E35: =D35-C35 -> -1023.9996 | F35: =E35/(C$37+0.00001) -> -0.4084560959
A37: Total - donors | C37: =C29+C30+C35 -> 2507.0004 | D37: =D29+D30+D35 -> 2770.0004 | E37: =D37-C37 -> 263 | F37: =E37/(C$37+0.00001) -> 0.1049062453
F38: Overall rate of growth
E39: Average gift size --------> | F39: =D23/D37 -> 266.3089868
B41: $ lost for every $100 gained | E41: =E21/E15*-100 -> 125.8017721 | F41: =F21/F15*-100 -> 125.8017721
B42: Net per-$100 gain(loss) in giving | E42: =100-E41 -> -25.80177214 | F42: =100-F41 -> -25.80177214
B43: Loss per dollar gain | E43: =E21/E15*-1 -> 1.258017721 | F43: =F21/F15*-1 -> 1.258017721
B44: Net per-dollar gain(loss) in giving | E44: =1-E43 -> -0.2580177214 | F44: =1-F43 -> -0.2580177214
B46: Donors lost for every 100 donors gained | E46: =E35/E29*-100 -> 79.56487321 | F46: =F35/F29*-100 -> 79.56487321
B47: Net per-100 gain(loss) in donors | E47: =100-E46 -> 20.43512679 | F47: =100-F46 -> 20.43512679
B48: Donor retention rate | E48: =1+E35/C37 -> 0.5915439024 | F48: =1+F35 -> 0.5915439041

Sheet Year2Distrib
B1: Year2Distrib | C1: FEP Fundraising Fitness Test | H1: =StepByStep!$G$7 -> 12 | I1: <-- Year-end month
B2: =StepByStep!#REF! ->  | G2: Year2: | H2: =StepByStep!$G$10 -> 2013
G3: Year1: | H3: =H2-1 -> 2012
B5: Distribution of Donors and Gifts in Year2
B6: By Gain/Loss Category
B8: Gain/Loss | C8: =$H$2 -> 2013 | D8: Donor | F8: =$H$2 -> 2013 | G8: Gift
B9: Category | C9: Donors | D9: Percent | F9: Gifts | G9: Percent
C11: Number of Donors | F11: Amount of Gifts
B12: New | C12: =FEPdata!D12 -> 1012 | D12: =C12/C$18 -> 0.3653429603 | F12: =FEPdata!E12 -> 133838 | G12: =F12/F$18 -> 0.1814319566
B13: Recapture | C13: =FEPdata!D13 -> 275 | D13: =C13/C$18 -> 0.09927797834 | F13: =FEPdata!E13 -> 54477 | G13: =F13/F$18 -> 0.0738494949
B14: Upgrade | C14: =FEPdata!D14 -> 582 | D14: =C14/C$18 -> 0.2101083032 | F14: =FEPdata!E14 -> 307294 | G14: =F14/F$18 -> 0.4165704184
B15: Same | C15: =FEPdata!D15 -> 299 | D15: =C15/C$18 -> 0.1079422383 | F15: =FEPdata!E15 -> 54201 | G15: =F15/F$18 -> 0.0734753469
B16: Downgrade | C16: =FEPdata!D16 -> 602 | D16: =C16/C$18 -> 0.2173285199 | F16: =FEPdata!E16 -> 187866 | G16: =F16/F$18 -> 0.2546727832
B18: Total | C18: =SUM(C12:C16) -> 2770 | D18: =C18/C$18 -> 1 | F18: =SUM(F12:F16) -> 737676 | G18: =F18/F$18 -> 1
C22: What Previous Year's Donors Did in Year2: | H22: =StepByStep!$G$10 -> 2013
C23: By Gain/Loss Category
B25: Gain/Loss | D25: Donor | I25: Gift
B26: Category | C26: Donors | D26: Percent | H26: Gifts | I26: Percent
C28: Number of Donors | H28: Amount of Gifts
B29: Upgrade | C29: =FEPdata!B14 -> 582 | D29: =C29/C$38 -> 0.2321499801 | F29: Gave more in Year2 | H29: =FEPdata!C14 -> 183332 | I29: =H29/H$38 -> 0.2240540471
B30: Same | C30: =FEPdata!B15 -> 299 | D30: =C30/C$38 -> 0.119266055 | F30: Gave the same in Year2 | H30: =FEPdata!C15 -> 54201 | I30: =H30/H$38 -> 0.06624022761
B31: Downgrade | C31: =FEPdata!B16 -> 602 | D31: =C31/C$38 -> 0.2401276426 | F31: Gave less in Year2 | H31: =FEPdata!C16 -> 314530 | I31: =H31/H$38 -> 0.3843939925
B32: Repeat | C32: =SUM(C29:C31) -> 1483 | D32: =C32/C$38 -> 0.5915436777 | F32: Gave in Year2 | H32: =SUM(H29:H31) -> 552063 | I32: =H32/H$38 -> 0.6746882673
B34: Lapsed new | C34: =FEPdata!B17 -> 619 | D34: =C34/C$38 -> 0.2469086558 | F34: Did not give in Year2 | H34: =FEPdata!C17 -> 103250 | I34: =H34/H$38 -> 0.1261840833
B35: Lapsed repeat | C35: =FEPdata!B18 -> 405 | D35: =C35/C$38 -> 0.1615476665 | F35: Did not give in Year2 | H35: =FEPdata!C18 -> 162936 | I35: =H35/H$38 -> 0.1991276494
B36: Attrition | C36: =SUM(C33:C35) -> 1024 | D36: =C36/C$38 -> 0.4084563223 | F36: Did not give in Year2 | H36: =SUM(H33:H35) -> 266186 | I36: =H36/H$38 -> 0.3253117327
B38: Total | C38: =C32+C36 -> 2507 | D38: =C38/C$38 -> 1 | H38: =H32+H36 -> 818249 | I38: =H38/H$38 -> 1

Sheet Comparison - FEP Ratios
B1: Comparison - FEP Ratios | E1: FEP Fundraising Fitness Test
G4: Comparative Gain/Loss Growth-in-Giving for | H4: =StepByStep!$G$10 -> 2013
C5: Comparison with 2010 Fundraising Effectiveness Survey Results (column E%)
F7: -------- Growth-in-Giving Performance Indicators ------- | K7: Caution: if you
C8: -------- Amount of Gifts ------- | F8: YOUR | G8: FEP | K8: enter data in this
B9: Gain(Loss) | C9: Year 1 | D9: Year 2 | E9: Gains | F9: Gain (Loss) | G9: Survey | K9: worksheet, you
B10: Category | C10: =D10-1 -> 2012 | D10: =StepByStep!$G$10 -> 2013 | E10: (Losses) | F10: Ratio | G10: Ratios(*) | H10: Difference | I10: Objective | K10: will destroy the
C11: (A$) | D11: (B$) | E11: (C$=B-A) | F11: (D%=C/totA) | G11: (E%) | H11: (E-D) | K11: formula cells.
A12: Gains | F12: =C24 -> 818249
B13: New | C13: n/a | D13: =FEPdata!E12 -> 133838 | E13: =D13 -> 133838 | F13: =E13/(C$24+0.00001) -> 0.1635663472 | G13: 0.2418032787 | H13: =G13-F13 -> 0.07823693152 | I13: increase | K13: Exception:
B14: Recapture | C14: n/a | D14: =FEPdata!E13 -> 54477 | E14: =D14 -> 54477 | F14: =E14/(C$24+0.00001) -> 0.06657753324 | G14: 0.1321721311 | H14: =G14-F14 -> 0.0655945979 | I14: increase | K14: Enter FEP Survey
B15: Upgrade | C15: =FEPdata!C14 -> 183332 | D15: =FEPdata!E14 -> 307294 | E15: =D15-C15 -> 123962 | F15: =E15/(C$24+0.00001) -> 0.1514966715 | G15: 0.2346311475 | H15: =G15-F15 -> 0.08313447599 | I15: increase | K15: data in yellow
B16: Subtotal gains | C16: =SUM(C13:C15) -> 183332 | D16: =SUM(D13:D15) -> 495609 | E16: =D16-C16 -> 312277 | F16: =E16/(C$24+0.00001) -> 0.381640552 | G16: 0.6086065574 | H16: =G16-F16 -> 0.2269660054 | I16: Maximize | K16: hi-lighted fields
A17: Same | C17: =FEPdata!C15 -> 54201 | D17: =FEPdata!E15 -> 54201 | E17: =D17-C17 -> 0 | F17: =E17/(C$24+0.00001) -> 0 | G17: 0 | H17: =G17-F17 -> 0 | I17: Upgrade
A18: Losses
B19: Downgrade | C19: =FEPdata!C16 -> 314530 | D19: =FEPdata!E16 -> 187866 | E19: =D19-C19 -> -126664 | F19: =E19/(C$24+0.00001) -> -0.1547988448 | G19: -0.2161885246 | H19: =G19-F19 -> -0.06138967974 | I19: Reduce
B20: Lapsed new | C20: =FEPdata!C17 -> 103250 | D20: n/a | E20: =-C20 -> -103250 | F20: =E20/(C$24+0.00001) -> -0.1261840833 | G20: -0.1321721311 | H20: =G20-F20 -> -0.005988047819 | I20: Reduce
B21: Lapsed repeat | C21: =FEPdata!C18 -> 162936 | D21: n/a | E21: =-C21 -> -162936 | F21: =E21/(C$24+0.00001) -> -0.1991276494 | G21: -0.1670081967 | H21: =G21-F21 -> 0.03211945269 | I21: Reduce
B22: Subtotal losses | C22: =SUM(C18:C21) -> 580716 | D22: =SUM(D18:D21) -> 187866 | E22: =D22-C22 -> -392850 | F22: =E22/(C$24+0.00001) -> -0.4801105776 | G22: -0.5153688525 | H22: =G22-F22 -> -0.03525827487 | I22: Minimize
A24: Total - gifts | C24: =C16+C17+C22 -> 818249 | D24: =D16+D17+D22 -> 737676 | E24: =D24-C24 -> -80573 | F24: =E24/(C$24+0.00001) -> -0.09847002563 | G24: 0.09323770492 | H24: =G24-F24 -> 0.1917077305 | I24: Net gain(loss)
F26: -------- Growth-in-Giving Performance Indicators -------
C27: ----- Number of Donors ----- | F27: YOUR | G27: FEP
C28: Year 1 | D28: Year 2 | E28: Gains | F28: Gain (Loss) | G28: Survey
C29: =D29-1 -> 2012 | D29: =StepByStep!$G$10 -> 2013 | E29: (Losses) | F29: Ratio | G29: Ratios(*) | H29: Difference | I29: Objective
C30: (A$) | D30: (B$) | E30: (C$=B-A) | F30: (D%=C/totA) | G30: (E%) | H30: (E-D)
A31: Gains | F31: =C43 -> 2507
B32: New | C32: n/a | D32: =FEPdata!D12 -> 1012 | E32: =D32 -> 1012 | F32: =E32/(C$43+0.00001) -> 0.4036697232 | G32: 0.4621167698 | H32: =G32-F32 -> 0.05844704664 | I32: increase
B33: Recapture | C33: n/a | D33: =FEPdata!D13 -> 275 | E33: =D33 -> 275 | F33: =E33/(C$43+0.00001) -> 0.1096928596 | G33: 0.1522133524 | H33: =G33-F33 -> 0.04252049286 | I33: increase
B34: Upgrade | C34: =FEPdata!B14 -> 582 | D34: =FEPdata!D14 -> 582 | E34: =D34-C34 -> 0 | F34: =E34/(C$43+0.00001) -> 0 | G34: 0 | H34: =G34-F34 -> 0 | I34: increase
B35: Subtotal gains | C35: =SUM(C32:C34) -> 582 | D35: =SUM(D32:D34) -> 1869 | E35: =D35-C35 -> 1287 | F35: =E35/(C$43+0.00001) -> 0.5133625827 | G35: 0.6143301222 | H35: =G35-F35 -> 0.1009675395 | I35: Maximize
A36: Same | C36: =FEPdata!B15 -> 299 | D36: =FEPdata!D15 -> 299 | E36: =D36-C36 -> 0 | F36: =E36/(C$43+0.00001) -> 0 | G36: 0 | H36: =G36-F36 -> 0 | I36: Upgrade
A37: Losses
B38: Downgrade | C38: =FEPdata!B16 -> 602 | D38: =FEPdata!D16 -> 602 | E38: =D38-C38 -> 0 | F38: =E38/(C$43+0.00001) -> 0 | G38: 0 | H38: =G38-F38 -> 0 | I38: Reduce
B39: Lapsed new | C39: =FEPdata!B17 -> 619 | D39: n/a | E39: =-C39 -> -619 | F39: =E39/(C$43+0.00001) -> -0.2469086548 | G39: -0.317475367 | H39: =G39-F39 -> -0.07056671222 | I39: Reduce
B40: Lapsed repeat | C40: =FEPdata!B18 -> 405 | D40: n/a | E40: =-C40 -> -405 | F40: =E40/(C$43+0.00001) -> -0.1615476659 | G40: -0.2158348174 | H40: =G40-F40 -> -0.05428715152 | I40: Reduce
B41: Subtotal losses | C41: =SUM(C37:C40) -> 1626 | D41: =SUM(D37:D40) -> 602 | E41: =D41-C41 -> -1024 | F41: =E41/(C$43+0.00001) -> -0.4084563207 | G41: -0.5333101844 | H41: =G41-F41 -> -0.1248538637 | I41: Minimize
A43: Total - donors | C43: =C35+C36+C41 -> 2507 | D43: =D35+D36+D41 -> 2770 | E43: =D43-C43 -> 263 | F43: =E43/(C$43+0.00001) -> 0.104906262 | G43: 0.08101993781 | H43: =G43-F43 -> -0.02388632424 | I43: Net gain(loss)
A44: (*) Comparative FEP survey ratios by size, subsector, region and age for several years can be
A45: found in the appendices of the annual Fundraising Effectiveness Survey reports at | G45: http://www.afpnet.org/FEP.

Sheet All Indicators
B1: 153 Performance Indicators | D1: FEP Analytics | G1: =TODAY() -> 2014-08-31 | I1: Page 1
B2: =StepByStep!#REF! ->  | D2: GiGi Fundraising Fitness Test
G3: =StepByStep!$G$7 -> 12 | H3: <-- Year-end month
B4: FEP Fundraising Performance Indicators | H4: Year2: | I4: =StepByStep!$G$10 -> 2013
B5: Using Gift Transaction Data By Giving Level/Range | H5: Year1: | I5: =I4-1 -> 2012
B6: * Key indicators
E7: ------------------------------- Giving Level/Range ----------------------------- | J7: --------- Formulas --------
A8: Ind No. | B8: Fundraising Performance Indicator | C8: Key | D8: All Donors | E8: Donors Under $100 | F8: $100 to $249 | G8: $250 to $999 | H8: $1,000 to $4,999 | I8: Donors $5,000 & Up | J8: Ratio Num | K8: Ratio Denom | L8: Dupe
B10: Donor retention rate
A11: 1 | B11: New donor retention rate | C11: * | D11: =(FEPdata!$B22-FEPdata!$B17)/FEPdata!$B22 -> 0.3160220994 | E11: =(FEP100Dn!$B22-FEP100Dn!$B17)/FEP100Dn!$B22 -> 0.1908256881 | F11: =(FEP100to249!$B22-FEP100to249!$B17)/FEP100to249!$B22 -> 0.4143426295 | G11: =(FEP250to999!$B22-FEP250to999!$B17)/FEP250to999!$B22 -> 0.7222222222 | H11: =(FEP1000to4999!$B22-FEP1000to4999!$B17)/FEP1000to4999!$B22 -> 0.7692307692 | I11: =(FEP5000Up!$B22-FEP5000Up!$B17)/FEP5000Up!$B22 -> 0.5 | J11: 1a | K11: 1b
A12: 1a | B12: Year1 new donors retained in Year2 | D12: =FEPdata!$B22-FEPdata!$B17 -> 286 | E12: =FEP100Dn!$B22-FEP100Dn!$B17 -> 104 | F12: =FEP100to249!$B22-FEP100to249!$B17 -> 104 | G12: =FEP250to999!$B22-FEP250to999!$B17 -> 65 | H12: =FEP1000to4999!$B22-FEP1000to4999!$B17 -> 10 | I12: =FEP5000Up!$B22-FEP5000Up!$B17 -> 3 | M12: =SUM(E12:I12)-D12 -> 0
A13: 1b | B13: New donors in Year 1 | D13: =FEPdata!$B22 -> 905 | E13: =FEP100Dn!$B22 -> 545 | F13: =FEP100to249!$B22 -> 251 | G13: =FEP250to999!$B22 -> 90 | H13: =FEP1000to4999!$B22 -> 13 | I13: =FEP5000Up!$B22 -> 6 | M13: =SUM(E13:I13)-D13 -> 0
A15: 2 | B15: Repeat donor retention rate | C15: * | D15: =(FEPdata!$B19 - FEPdata!$B22-FEPdata!$B18)/(FEPdata!$B19 - FEPdata!$B22) -> 0.7471910112 | E15: =(FEP100Dn!$B19 - FEP100Dn!$B22-FEP100Dn!$B18)/(FEP100Dn!$B19 - FEP100Dn!$B22) -> 0.553008596 | F15: =(FEP100to249!$B19 - FEP100to249!$B22-FEP100to249!$B18)/(FEP100to249!$B19 - FEP100to249!$B22) -> 0.7306273063 | G15: =(FEP250to999!$B19 - FEP250to999!$B22-FEP250to999!$B18)/(FEP250to999!$B19 - FEP250to999!$B22) -> 0.849122807 | H15: =(FEP1000to4999!$B19 - FEP1000to4999!$B22-FEP1000to4999!$B18)/(FEP1000to4999!$B19 - FEP1000to4999!$B22) -> 0.8974358974 | I15: =(FEP5000Up!$B19 - FEP5000Up!$B22-FEP5000Up!$B18)/(FEP5000Up!$B19 - FEP5000Up!$B22) -> 0.7916666667 | J15: 2a | K15: 2b
A16: 2a | B16: Year1 repeat donors retained in Year2 | D16: =FEPdata!$B19 - FEPdata!$B22-FEPdata!$B18 -> 1197 | E16: =FEP100Dn!$B19 - FEP100Dn!$B22-FEP100Dn!$B18 -> 193 | F16: =FEP100to249!$B19 - FEP100to249!$B22-FEP100to249!$B18 -> 396 | G16: =FEP250to999!$B19 - FEP250to999!$B22-FEP250to999!$B18 -> 484 | H16: =FEP1000to4999!$B19 - FEP1000to4999!$B22-FEP1000to4999!$B18 -> 105 | I16: =FEP5000Up!$B19 - FEP5000Up!$B22-FEP5000Up!$B18 -> 19 | M16: =SUM(E16:I16)-D16 -> 0
A17: 2b | B17: Repeat donors in Year 1 | D17: =FEPdata!$B19 - FEPdata!$B22 -> 1602 | E17: =FEP100Dn!$B19 - FEP100Dn!$B22 -> 349 | F17: =FEP100to249!$B19 - FEP100to249!$B22 -> 542 | G17: =FEP250to999!$B19 - FEP250to999!$B22 -> 570 | H17: =FEP1000to4999!$B19 - FEP1000to4999!$B22 -> 117 | I17: =FEP5000Up!$B19 - FEP5000Up!$B22 -> 24 | M17: =SUM(E17:I17)-D17 -> 0
A19: 3 | B19: Overall donor retention rate | D19: =(FEPdata!$B19-FEPdata!$B17-FEPdata!$B18)/FEPdata!$B19 -> 0.5915436777 | E19: =(FEP100Dn!$B19-FEP100Dn!$B17-FEP100Dn!$B18)/FEP100Dn!$B19 -> 0.3322147651 | F19: =(FEP100to249!$B19-FEP100to249!$B17-FEP100to249!$B18)/FEP100to249!$B19 -> 0.630517024 | G19: =(FEP250to999!$B19-FEP250to999!$B17-FEP250to999!$B18)/FEP250to999!$B19 -> 0.8318181818 | H19: =(FEP1000to4999!$B19-FEP1000to4999!$B17-FEP1000to4999!$B18)/FEP1000to4999!$B19 -> 0.8846153846 | I19: =(FEP5000Up!$B19-FEP5000Up!$B17-FEP5000Up!$B18)/FEP5000Up!$B19 -> 0.7333333333 | J19: 3a | K19: 3b
A20: 3a | B20: Year1 donors retained in Year2 | D20: =D12+D16 -> 1483 | E20: =E12+E16 -> 297 | F20: 500 | G20: 549 | H20: 115 | I20: 22 | L20: 13 | M20: =SUM(E20:I20)-D20 -> 0
A21: 3b | B21: Total donors in Year 1 | D21: =D13+D17 -> 2507 | E21: =E13+E17 -> 894 | F21: 793 | G21: 660 | H21: 130 | I21: 30 | L21: 14 | M21: =SUM(E21:I21)-D21 -> 0
A23: 4 | B23: Database donor retention rate | D23: =D110 -> 0.2974619289 | E23: 0.1366137909 | F23: 0.3552009456 | G23: 0.6471238938 | H23: 0.7352941176 | I23: 0.4545454545 | J23: 4a | K23: 4b | L23: 30
A24: 4a | B24: Prior donors retained in Year2 | D24: =D108 -> 1758 | E24: 422 | F24: 601 | G24: 585 | H24: 125 | I24: 25 | L24: 28 | M24: =SUM(E24:I24)-D24 -> 0
A25: 4b | B25: Donors in database end of Year1 | D25: 5910 | E25: 3089 | F25: 1692 | G25: 904 | H25: 170 | I25: 55 | L25: 29 | M25: =SUM(E25:I25)-D25 -> 0
B27: Donor gains
A28: 5 | B28: Donor gains (New + Recaptured) | C28: * | D28: =FEPdata!$D12+FEPdata!$D13 -> 1287 | E28: =FEP100Dn!$D12+FEP100Dn!$D13 -> 809 | F28: =FEP100to249!$D12+FEP100to249!$D13 -> 343 | G28: =FEP250to999!$D12+FEP250to999!$D13 -> 115 | H28: =FEP1000to4999!$D12+FEP1000to4999!$D13 -> 16 | I28: =FEP5000Up!$D12+FEP5000Up!$D13 -> 4 | M28: =SUM(E28:I28)-D28 -> 0
A29: 6 | B29: Overall donor acquisition rate | D29: =D28/D$55 -> 0.5133625848 | E29: 0.9049217002 | F29: 0.4325346784 | G29: 0.1742424242 | H29: 0.1230769231 | I29: 0.1333333333 | J29: 5 | K29: 14 | M29: Gains as % of Year 1 donors
A30: 5a | B30: New donors in Year 2 | D30: =FEPdata!$D12 -> 1012 | E30: =FEP100Dn!$D12 -> 684 | F30: =FEP100to249!$D12 -> 242 | G30: =FEP250to999!$D12 -> 79 | H30: =FEP1000to4999!$D12 -> 6 | I30: =FEP5000Up!$D12 -> 1 | M30: =SUM(E30:I30)-D30 -> 0
A31: 6a | B31: New donor acquisition rate | C31: * | D31: =D30/D$55 -> 0.4036697248 | E31: 0.7651006711 | F31: 0.3051702396 | G31: 0.1196969697 | H31: 0.04615384615 | I31: 0.03333333333 | J31: 5a | K31: 14 | M31: New donors as % of Year 1 donors
A32: 5b | B32: Recaptured donors in Year 2 | D32: =FEPdata!$D13 -> 275 | E32: =FEP100Dn!$D13 -> 125 | F32: =FEP100to249!$D13 -> 101 | G32: =FEP250to999!$D13 -> 36 | H32: =FEP1000to4999!$D13 -> 10 | I32: =FEP5000Up!$D13 -> 3 | M32: =SUM(E32:I32)-D32 -> 0
A33: 6b | B33: Repeat donor re-acquisition rate | C33: * | D33: =D32/D$55 -> 0.10969286 | E33: 0.1398210291 | F33: 0.1273644388 | G33: 0.05454545455 | H33: 0.07692307692 | I33: 0.1 | J33: 5b | K33: 14 | M33: Recap donors as % of Year 1 donors
B35: Donor losses (donor attrition)
A36: 7 | B36: Donor losses | C36: * | D36: =FEPdata!$B17+FEPdata!$B18 -> 1024 | E36: =FEP100Dn!$B17+FEP100Dn!$B18 -> 597 | F36: =FEP100to249!$B17+FEP100to249!$B18 -> 293 | G36: =FEP250to999!$B17+FEP250to999!$B18 -> 111 | H36: =FEP1000to4999!$B17+FEP1000to4999!$B18 -> 15 | I36: =FEP5000Up!$B17+FEP5000Up!$B18 -> 8 | M36: =SUM(E36:I36)-D36 -> 0
A37: 8 | B37: Losses as % of Year 1 donors | D37: =D36/D$55 -> 0.4084563223 | E37: 0.6677852349 | F37: 0.369482976 | G37: 0.1681818182 | H37: 0.1153846154 | I37: 0.2666666667 | J37: 7 | K37: 14
A38: 7a | B38: Lapsed new Year 1 donors | D38: =FEPdata!$B17 -> 619 | E38: =FEP100Dn!$B17 -> 441 | F38: =FEP100to249!$B17 -> 147 | G38: =FEP250to999!$B17 -> 25 | H38: =FEP1000to4999!$B17 -> 3 | I38: =FEP5000Up!$B17 -> 3 | M38: =SUM(E38:I38)-D38 -> 0
A39: 8a | B39: Lapsed new as % of Year 1 donors | C39: * | D39: =D38/D$55 -> 0.2469086558 | E39: 0.4932885906 | F39: 0.185372005 | G39: 0.03787878788 | H39: 0.02307692308 | I39: 0.1 | J39: 7a | K39: 14
A40: 7b | B40: Lapsed repeat Year 1 donors | D40: =FEPdata!$B18 -> 405 | E40: =FEP100Dn!$B18 -> 156 | F40: =FEP100to249!$B18 -> 146 | G40: =FEP250to999!$B18 -> 86 | H40: =FEP1000to4999!$B18 -> 12 | I40: =FEP5000Up!$B18 -> 5 | M40: =SUM(E40:I40)-D40 -> 0
A41: 8b | B41: Lapsed repeat as % of Year 1 donors | C41: * | D41: =D40/D$55 -> 0.1615476665 | E41: =E40/E$55 -> 0.1744966443 | F41: =F40/F$55 -> 0.184110971 | G41: =G40/G$55 -> 0.1303030303 | H41: =H40/H$55 -> 0.09230769231 | I41: =I40/I$55 -> 0.1666666667 | J41: 7b | K41: 14
I43: Page 2
A44: Ind No. | B44: Fundraising Performance Indicator | C44: Key | D44: All Donors | E44: Donors Under $100 | F44: $100 to $249 | G44: $250 to $999 | H44: $1,000 to $4,999 | I44: Donors $5,000 & Up | J44: Num | K44: Denom | L44: Dupe
B46: Donor gains, losses & net
A47: 9a | B47: Net gain in donors | D47: =D28-D36 -> 263 | E47: =E28-E36 -> 212 | F47: 50 | G47: 4 | H47: 1 | I47: -4
A48: 9 | B48: Donors lost for every 100 gained | C48: * | D48: =D36/D28*100 -> 79.56487956 | E48: 73.79480841 | F48: 85.42274052 | G48: 96.52173913 | H48: 93.75 | I48: 200 | J48: 7*100 | K48: 5
A49: 10 | B49: Donor losses as % of gains | D49: =D48/100 -> 0.7956487956 | E49: =E48/100 -> 0.7379480841 | F49: =F48/100 -> 0.8542274052 | G49: 0.9652173913 | H49: 0.9375 | I49: =I48/100 -> 2 | J49: 9 | K49: [100]
A50: 11 | B50: Net gain per 100 donors | C50: * | D50: =100-D48 -> 20.43512044 | E50: =100-E48 -> 26.20519159 | F50: =100-F48 -> 14.57725948 | G50: 3.47826087 | H50: 6.25 | I50: =100-I48 -> -100 | J50: 9 | K50: minus 100
A51: 12 | B51: Net gain in donors (%) | C51: * | D51: =D50/100 -> 0.2043512044 | E51: =E50/100 -> 0.2620519159 | F51: =F50/100 -> 0.1457725948 | G51: 0.0347826087 | H51: 0.0625 | I51: =I50/100 -> -1 | J51: 11 | K51: [100]
B53: Number of donors
A54: 13 | B54: Overall donors retained | D54: =FEPdata!$B14+FEPdata!$B15+FEPdata!$B16 -> 1483 | E54: =FEP100Dn!$B14+FEP100Dn!$B15+FEP100Dn!$B16 -> 297 | F54: =FEP100to249!$B14+FEP100to249!$B15+FEP100to249!$B16 -> 500 | G54: =FEP250to999!$B14+FEP250to999!$B15+FEP250to999!$B16 -> 549 | H54: =FEP1000to4999!$B14+FEP1000to4999!$B15+FEP1000to4999!$B16 -> 115 | I54: =FEP5000Up!$B14+FEP5000Up!$B15+FEP5000Up!$B16 -> 22 | M54: =SUM(E54:I54)-D54 -> 0
A55: 14 | B55: Year1 total donors | D55: =FEPdata!$B19 -> 2507 | E55: =FEP100Dn!$B19 -> 894 | F55: =FEP100to249!$B19 -> 793 | G55: =FEP250to999!$B19 -> 660 | H55: =FEP1000to4999!$B19 -> 130 | I55: =FEP5000Up!$B19 -> 30 | L55: 37.45,56 | M55: =SUM(E55:I55)-D55 -> 0
A56: 15 | B56: Year2 total donors | D56: =FEPdata!$D19 -> 2770 | E56: =FEP100Dn!$D19 -> 1106 | F56: =FEP100to249!$D19 -> 843 | G56: =FEP250to999!$D19 -> 664 | H56: =FEP1000to4999!$D19 -> 131 | I56: =FEP5000Up!$D19 -> 26 | L56: 41,44 | M56: =SUM(E56:I56)-D56 -> 0
A57: 16 | B57: Percent of Year2 donors by range | C57: * | D57: =D56/$D56 -> 1 | E57: 0.3992779783 | F57: 0.30433213 | G57: 0.2397111913 | H57: 0.04729241877 | I57: 0.009386281588 | J57: 15range | K57: 15all | M57: =SUM(E57:I57)-D57 -> 0
B59: Amount of gift$ (dollars)
A60: 17a | B60: Overall gift$ retained | D60: =FEPdata!$C14+FEPdata!$C15+FEPdata!$C16 -> 552063 | E60: =FEP100Dn!$C14+FEP100Dn!$C15+FEP100Dn!$C16 -> 11690 | F60: =FEP100to249!$C14+FEP100to249!$C15+FEP100to249!$C16 -> 62195 | G60: =FEP250to999!$C14+FEP250to999!$C15+FEP250to999!$C16 -> 182564 | H60: =FEP1000to4999!$C14+FEP1000to4999!$C15+FEP1000to4999!$C16 -> 142468 | I60: =FEP5000Up!$C14+FEP5000Up!$C15+FEP5000Up!$C16 -> 153146 | M60: =SUM(E60:I60)-D60 -> 0
A61: 17b | B61: Amount of gift$ Year1 | D61: =FEPdata!$C19 -> 818249 | E61: =FEP100Dn!$C19 -> 31740 | F61: =FEP100to249!$C19 -> 94930 | G61: =FEP250to999!$C19 -> 211296 | H61: =FEP1000to4999!$C19 -> 159037 | I61: =FEP5000Up!$C19 -> 321246 | L61: 57 | M61: =SUM(E61:I61)-D61 -> 0
A62: 17 | B62: Amount of gift$ Year2 | D62: =FEPdata!$E19 -> 737676 | E62: =FEP100Dn!$E19 -> 39156 | F62: =FEP100to249!$E19 -> 101764 | G62: =FEP250to999!$E19 -> 234960 | H62: =FEP1000to4999!$E19 -> 171228 | I62: =FEP5000Up!$E19 -> 190568 | M62: =SUM(E62:I62)-D62 -> 0
A63: 18 | B63: Percent of Year2 gift$ by range | C63: * | D63: =D62/$D62 -> 1 | E63: 0.05308021408 | F63: 0.1379521633 | G63: 0.3185138191 | H63: 0.2321181657 | I63: 0.2583356379 | J63: 17range | K63: 17all | M63: =SUM(E63:I63)-D63 -> 0
A64: 19 | B64: Average gift size in Year2 | C64: * | D64: =D62/D56 -> 266.3090253 | E64: 35.40325497 | F64: 120.7164887 | G64: 353.8554217 | H64: 1307.083969 | I64: 7329.538462 | J64: 17 | K64: 15
B66: Dollar retention rate
A67: 19a | B67: New dollar retention rate | C67: * | D67: =D68/D69 -> 0.445175851 | E67: =E68/E69 -> 0.208324485 | F67: 0.4037253761 | G67: 0.6370326173 | H67: 0.7258371107 | I67: 0.4154488518 | J67: 19b | K67: 19a
A68: 19b | B68: Year1 new dollars retained in Year2 | D68: =FEPdata!$C22-FEPdata!$C17 -> 82845 | E68: =FEP100Dn!$C22-FEP100Dn!$C17 -> 3924 | F68: =FEP100to249!$C22-FEP100to249!$C17 -> 13178 | G68: =FEP250to999!$C22-FEP250to999!$C17 -> 16015 | H68: =FEP1000to4999!$C22-FEP1000to4999!$C17 -> 9928 | I68: =FEP5000Up!$C22-FEP5000Up!$C17 -> 39800 | M68: =SUM(E68:I68)-D68 -> 0
A69: 19c | B69: New dollars in Year 1 | D69: =FEPdata!$C22 -> 186095 | E69: =FEP100Dn!$C22 -> 18836 | F69: =FEP100to249!$C22 -> 32641 | G69: =FEP250to999!$C22 -> 25140 | H69: =FEP1000to4999!$C22 -> 13678 | I69: =FEP5000Up!$C22 -> 95800 | M69: =SUM(E69:I69)-D69 -> 0
A71: 19d | B71: Repeat dollar retention rate | C71: * | D71: =D72/D73 -> 0.7422526789 | E71: =E72/E73 -> 0.6018288903 | F71: =F72/F73 -> 0.7869286712 | G71: =G72/G73 -> 0.8946743591 | H71: =H72/H73 -> 0.9118114461 | I71: =I72/I73 -> 0.5027634112 | J71: 19e | K71: 19f
A72: 19e | B72: Year1 repeat dollars retained in Year2 | D72: =FEPdata!$C19 - FEPdata!$C22-FEPdata!$C18 -> 469218 | E72: =FEP100Dn!$C19 - FEP100Dn!$C22-FEP100Dn!$C18 -> 7766 | F72: =FEP100to249!$C19 - FEP100to249!$C22-FEP100to249!$C18 -> 49017 | G72: =FEP250to999!$C19 - FEP250to999!$C22-FEP250to999!$C18 -> 166549 | H72: =FEP1000to4999!$C19 - FEP1000to4999!$C22-FEP1000to4999!$C18 -> 132540 | I72: =FEP5000Up!$C19 - FEP5000Up!$C22-FEP5000Up!$C18 -> 113346 | M72: =SUM(E72:I72)-D72 -> 0
A73: 19f | B73: Repeat dollars in Year 1 | D73: =FEPdata!$C19 - FEPdata!$C22 -> 632154 | E73: =FEP100Dn!$C19 - FEP100Dn!$C22 -> 12904 | F73: =FEP100to249!$C19 - FEP100to249!$C22 -> 62289 | G73: =FEP250to999!$C19 - FEP250to999!$C22 -> 186156 | H73: =FEP1000to4999!$C19 - FEP1000to4999!$C22 -> 145359 | I73: =FEP5000Up!$C19 - FEP5000Up!$C22 -> 225446 | M73: =SUM(E73:I73)-D73 -> 0
A75: 19g | B75: Overall dollar retention rate | D75: =D76/D77 -> 0.6746882673 | E75: =E76/E77 -> 0.3683049779 | F75: =F76/F77 -> 0.6551669651 | G75: =G76/G77 -> 0.8640201424 | H75: =H76/H77 -> 0.8958166967 | I75: =I76/I77 -> 0.476725002 | J75: 19h | K75: 19i
A76: 19h | B76: Year1 dollars retained in Year2 | D76: =D68+D72 -> 552063 | E76: 11690 | F76: 62195 | G76: 182564 | H76: 142468 | I76: 153146 | M76: =SUM(E76:I76)-D76 -> 0
A77: 19i | B77: Total dollars in Year 1 | D77: 818249 | E77: 31740 | F77: 94930 | G77: 211296 | H77: 159037 | I77: 321246 | L77: 36,56 | M77: =SUM(E77:I77)-D77 -> 0
B79: Dollar gains
A80: 20 | B80: Dollar gains | C80: * | D80: =FEPdata!$E12+FEPdata!$E13+FEPdata!$E14-FEPdata!$C14 -> 312277 | E80: =FEP100Dn!$E12+FEP100Dn!$E13+FEP100Dn!$E14-FEP100Dn!$C14 -> 29916 | F80: =FEP100to249!$E12+FEP100to249!$E13+FEP100to249!$E14-FEP100to249!$C14 -> 51142 | G80: =FEP250to999!$E12+FEP250to999!$E13+FEP250to999!$E14-FEP250to999!$C14 -> 82117 | H80: =FEP1000to4999!$E12+FEP1000to4999!$E13+FEP1000to4999!$E14-FEP1000to4999!$C14 -> 48409 | I80: =FEP5000Up!$E12+FEP5000Up!$E13+FEP5000Up!$E14-FEP5000Up!$C14 -> 100693 | M80: =SUM(E80:I80)-D80 -> 0
A81: 21 | B81: Gains as % of Year 1 dollars | D81: =D80/FEPdata!$C$19 -> 0.381640552 | E81: =E80/FEP100Dn!$C$19 -> 0.9425330813 | F81: =F80/FEP100to249!$C$19 -> 0.5387338039 | G81: =G80/FEP250to999!$C$19 -> 0.3886349008 | H81: =H80/FEP1000to4999!$C$19 -> 0.304388287 | I81: =I80/FEP5000Up!$C$19 -> 0.313445148 | J81: 20 | K81: 17a
A82: 21a | B82: New dollars in Year 2 | D82: =FEPdata!$E12 -> 133838 | E82: =FEP100Dn!$E12 -> 23326 | F82: =FEP100to249!$E12 -> 33245 | G82: =FEP250to999!$E12 -> 30246 | H82: =FEP1000to4999!$E12 -> 7021 | I82: =FEP5000Up!$E12 -> 40000 | M82: =SUM(E82:I82)-D82 -> 0
A83: 21b | B83: New dollars as % of Year 1 dollars | D83: =D82/FEPdata!$C$19 -> 0.1635663472 | E83: =E82/FEP100Dn!$C$19 -> 0.7349086326 | F83: =F82/FEP100to249!$C$19 -> 0.3502054145 | G83: =G82/FEP250to999!$C$19 -> 0.1431451613 | H83: =H82/FEP1000to4999!$C$19 -> 0.04414695951 | I83: =I82/FEP5000Up!$C$19 -> 0.1245151691 | J83: 21a | K83: 17a
A84: 21c | B84: Recaptured dollars in Year 2 | D84: =FEPdata!$E13 -> 54477 | E84: =FEP100Dn!$E13 -> 4465 | F84: =FEP100to249!$E13 -> 8213 | G84: =FEP250to999!$E13 -> 9102 | H84: =FEP1000to4999!$E13 -> 10519 | I84: =FEP5000Up!$E13 -> 22178 | M84: =SUM(E84:I84)-D84 -> 0
A85: 21d | B85: Recap dollars as % of Year 1 dollars | D85: =D84/FEPdata!$C$19 -> 0.06657753324 | E85: =E84/FEP100Dn!$C$19 -> 0.1406742281 | F85: =F84/FEP100to249!$C$19 -> 0.08651638049 | G85: =G84/FEP250to999!$C$19 -> 0.04307701045 | H85: =H84/FEP1000to4999!$C$19 -> 0.06614184121 | I85: =I84/FEP5000Up!$C$19 -> 0.06903743549 | J85: 21c | K85: 17a
A86: 21e | B86: Upgraded dollar gains in Year 2 | D86: =FEPdata!$E14-FEPdata!$C14 -> 123962 | E86: =FEP100Dn!$E14-FEP100Dn!$C14 -> 2125 | F86: =FEP100to249!$E14-FEP100to249!$C14 -> 9684 | G86: =FEP250to999!$E14-FEP250to999!$C14 -> 42769 | H86: =FEP1000to4999!$E14-FEP1000to4999!$C14 -> 30869 | I86: =FEP5000Up!$E14-FEP5000Up!$C14 -> 38515 | M86: =SUM(E86:I86)-D86 -> 0
A87: 21f | B87: Upgraded gains as % of Year 1 dollars | D87: =D86/FEPdata!$C$19 -> 0.1514966716 | E87: =E86/FEP100Dn!$C$19 -> 0.06695022054 | F87: =F86/FEP100to249!$C$19 -> 0.1020120088 | G87: =G86/FEP250to999!$C$19 -> 0.2024127291 | H87: =H86/FEP1000to4999!$C$19 -> 0.1940994863 | I87: =I86/FEP5000Up!$C$19 -> 0.1198925434 | J87: 21e | K87: 17a
I88: Page 3
A89: Ind No. | B89: FEP Gain/Loss Fundraising Performance Indicator | C89: Key | D89: All Donors | E89: Donors Under $100 | F89: $100 to $249 | G89: $250 to $999 | H89: $1,000 to $4,999 | I89: Donors $5,000 & Up | J89: Num | K89: Denom | L89: Dupe
B91: Dollar losses (dollar attrition)+B116+B181
A92: 22 | B92: Dollar losses | C92: * | D92: =FEPdata!$C17+FEPdata!$C18+FEPdata!$C16-FEPdata!$E16 -> 392850 | E92: =FEP100Dn!$C17+FEP100Dn!$C18+FEP100Dn!$C16-FEP100Dn!$E16 -> 22500 | F92: =FEP100to249!$C17+FEP100to249!$C18+FEP100to249!$C16-FEP100to249!$E16 -> 44308 | G92: =FEP250to999!$C17+FEP250to999!$C18+FEP250to999!$C16-FEP250to999!$E16 -> 58453 | H92: =FEP1000to4999!$C17+FEP1000to4999!$C18+FEP1000to4999!$C16-FEP1000to4999!$E16 -> 36218 | I92: =FEP5000Up!$C17+FEP5000Up!$C18+FEP5000Up!$C16-FEP5000Up!$E16 -> 231371 | M92: =SUM(E92:I92)-D92 -> 0
A93: 23 | B93: Losses as % of Year 1 dollars | D93: =D92/FEPdata!$C$19 -> 0.4801105776 | E93: =E92/FEP100Dn!$C$19 -> 0.7088846881 | F93: =F92/FEP100to249!$C$19 -> 0.4667439166 | G93: =G92/FEP250to999!$C$19 -> 0.2766403529 | H93: =H92/FEP1000to4999!$C$19 -> 0.227733169 | I93: =I92/FEP5000Up!$C$19 -> 0.7202299795 | J93: 22 | K93: 17a
A94: 23a | B94: Lapsed new Year 1 dollars | D94: =FEPdata!$C17 -> 103250 | E94: =FEP100Dn!$C17 -> 14912 | F94: =FEP100to249!$C17 -> 19463 | G94: =FEP250to999!$C17 -> 9125 | H94: =FEP1000to4999!$C17 -> 3750 | I94: =FEP5000Up!$C17 -> 56000 | M94: =SUM(E94:I94)-D94 -> 0
A95: 23b | B95: Lapsed new as % of Year 1 dollars | D95: =D94/FEPdata!$C$19 -> 0.1261840833 | E95: =E94/FEP100Dn!$C$19 -> 0.4698172653 | F95: =F94/FEP100to249!$C$19 -> 0.2050247551 | G95: =G94/FEP250to999!$C$19 -> 0.04318586249 | H95: =H94/FEP1000to4999!$C$19 -> 0.02357941863 | I95: =I94/FEP5000Up!$C$19 -> 0.1743212367 | J95: 23a | K95: 17a
A96: 23c | B96: Lapsed repeat Year 1 dollars | D96: =FEPdata!$C18 -> 162936 | E96: =FEP100Dn!$C18 -> 5138 | F96: =FEP100to249!$C18 -> 13272 | G96: =FEP250to999!$C18 -> 19607 | H96: =FEP1000to4999!$C18 -> 12819 | I96: =FEP5000Up!$C18 -> 112100 | M96: =SUM(E96:I96)-D96 -> 0
A97: 23d | B97: Lapsed repeat as % of Year 1 dollars | D97: =D96/FEPdata!$C$19 -> 0.1991276494 | E97: =E96/FEP100Dn!$C$19 -> 0.1618777568 | F97: =F96/FEP100to249!$C$19 -> 0.1398082798 | G97: =G96/FEP250to999!$C$19 -> 0.09279399515 | H97: =H96/FEP1000to4999!$C$19 -> 0.08060388463 | I97: =I96/FEP5000Up!$C$19 -> 0.3489537613 | J97: 23c | K97: 17a
A98: 23e | B98: Downgraded dollar losses in Year 2 | D98: =FEPdata!$C16-FEPdata!$E16 -> 126664 | E98: =FEP100Dn!$C16-FEP100Dn!$E16 -> 2450 | F98: =FEP100to249!$C16-FEP100to249!$E16 -> 11573 | G98: =FEP250to999!$C16-FEP250to999!$E16 -> 29721 | H98: =FEP1000to4999!$C16-FEP1000to4999!$E16 -> 19649 | I98: =FEP5000Up!$C16-FEP5000Up!$E16 -> 63271 | M98: =SUM(E98:I98)-D98 -> 0
A99: 23f | B99: Downgraded losses as % of Year 1 dollars | D99: =D98/FEPdata!$C$19 -> 0.1547988449 | E99: =E98/FEP100Dn!$C$19 -> 0.07718966604 | F99: =F98/FEP100to249!$C$19 -> 0.1219108817 | G99: =G98/FEP250to999!$C$19 -> 0.1406604952 | H99: =H98/FEP1000to4999!$C$19 -> 0.1235498658 | I99: =I98/FEP5000Up!$C$19 -> 0.1969549815 | J99: 23e | K99: 17a
B101: Dollar gains, losses and net
A102: 24 | B102: Dollars lost for every $100 gained | C102: * | D102: =D92/D80*100 -> 125.8017721 | E102: 75.21058965 | F102: 86.63720621 | G102: 71.18258095 | H102: 74.81666632 | I102: 229.7786341 | J102: 22*100 | K102: 20
A103: 25 | B103: Loss per dollar gained (%) | D103: =D102/100 -> 1.258017721 | E103: =E102/100 -> 0.7521058965 | F103: =F102/100 -> 0.8663720621 | G103: =G102/100 -> 0.7118258095 | H103: 0.7481666632 | I103: =I102/100 -> 2.297786341 | J103: 24 | K103: [100]
A104: 26 | B104: Net gain in gifts | C104: * | D104: =100-D102 -> -25.80177214 | E104: =100-E102 -> 24.78941035 | F104: =100-F102 -> 13.36279379 | G104: =100-G102 -> 28.81741905 | H104: 25.18333368 | I104: =100-I102 -> -129.7786341 | J104: 24 | K104: minus 100
A105: 27 | B105: Net gain in dollars (%) | D105: =D104/100 -> -0.2580177214 | E105: =E104/100 -> 0.2478941035 | F105: =F104/100 -> 0.1336279379 | G105: =G104/100 -> 0.2881741905 | H105: 0.2518333368 | I105: =I104/100 -> -1.297786341 | J105: 26 | K105: [100] | M105: Net per dollar gained (%)
B107: Database & one-time donors
A108: 28 | B108: Prior donors retained in Year2 | D108: =FEPdata!$D19-FEPdata!$D12 -> 1758 | E108: =FEP100Dn!$D19-FEP100Dn!$D12 -> 422 | F108: =FEP100to249!$D19-FEP100to249!$D12 -> 601 | G108: =FEP250to999!$D19-FEP250to999!$D12 -> 585 | H108: =FEP1000to4999!$D19-FEP1000to4999!$D12 -> 125 | I108: =FEP5000Up!$D19-FEP5000Up!$D12 -> 25 | L108: 4a
A109: 29 | B109: Donors in database end of Year1 | D109: =FEPdata!$B23 -> 5910 | E109: =FEP100Dn!$B23 -> 3089 | F109: =FEP100to249!$B23 -> 1692 | G109: =FEP250to999!$B23 -> 904 | H109: =FEP1000to4999!$B23 -> 170 | I109: =FEP5000Up!$B23 -> 55 | L109: 4b | M109: =SUM(E109:I109)-D109 -> 0
A110: 30 | B110: Database donor retention rate | D110: =D108/D109 -> 0.2974619289 | E110: =E108/E109 -> 0.1366137909 | F110: =F108/F109 -> 0.3552009456 | G110: =G108/G109 -> 0.6471238938 | H110: 0.7352941176 | I110: =I108/I109 -> 0.4545454545 | J110: 28 | K110: 29 | L110: 4
A111: 31 | B111: Total donors in database | D111: =FEPdata!$K$23 -> 6922 | E111: =FEP100Dn!$K$23 -> 3773 | F111: =FEP100to249!$K$23 -> 1934 | G111: =FEP250to999!$K$23 -> 983 | H111: =FEP1000to4999!$K$23 -> 176 | I111: =FEP5000Up!$K$23 -> 56 | M111: =SUM(E111:I111)-D111 -> 0
A112: 32 | B112: Total monthly donors in database | D112: =FEPdata!$K$25 -> 1025 | E112: =FEP100Dn!$K$25 -> 49 | F112: =FEP100to249!$K$25 -> 362 | G112: =FEP250to999!$K$25 -> 519 | H112: =FEP1000to4999!$K$25 -> 78 | I112: =FEP5000Up!$K$25 -> 17 | M112: =SUM(E112:I112)-D112 -> 0
A113: 33 | B113: Monthly donors as % of total | D113: =D112/D111 -> 0.14807859 | E113: =E112/E111 -> 0.01298701299 | F113: 0.1871768356 | G113: 0.5279755849 | H113: =H112/H111 -> 0.4431818182 | I113: 0.3035714286 | J113: 32 | K113: 31
A114: 34 | B114: One time lapsed donors | D114: =FEPdata!$B24 -> 3069 | E114: =FEP100Dn!$B24 -> 2214 | F114: =FEP100to249!$B24 -> 702 | G114: =FEP250to999!$B24 -> 109 | H114: =FEP1000to4999!$B24 -> 24 | I114: =FEP5000Up!$B24 -> 20 | M114: =SUM(E114:I114)-D114 -> 0
A115: 35 | B115: One time lapsed-donor rate | D115: =D114/D109 -> 0.5192893401 | E115: =E114/E109 -> 0.716736808 | F115: =F114/F109 -> 0.414893617 | G115: 0.1205752212 | H115: 0.1411764706 | I115: =I114/I109 -> 0.3636363636 | J115: 34 | K115: 29
B117: Growth in giving (GiG)
A118: 36 | B118: Total gifts raised in Year1 | D118: =FEPdata!$C19 -> 818249 | E118: =FEP100Dn!$C19 -> 31740 | F118: =FEP100to249!$C19 -> 94930 | G118: =FEP250to999!$C19 -> 211296 | H118: =FEP1000to4999!$C19 -> 159037 | I118: =FEP5000Up!$C19 -> 321246 | L118: 17b, 57 | M118: =SUM(E118:I118)-D118 -> 0
A119: 37 | B119: Total gifts raised in Year2 | D119: =FEPdata!$E19 -> 737676 | E119: =FEP100Dn!$E19 -> 39156 | F119: =FEP100to249!$E19 -> 101764 | G119: =FEP250to999!$E19 -> 234960 | H119: =FEP1000to4999!$E19 -> 171228 | I119: =FEP5000Up!$E19 -> 190568 | L119: 17,45 | M119: =SUM(E119:I119)-D119 -> 0
A120: 38 | B120: Net growth in giving | D120: =D119-D118 -> -80573 | E120: =E119-E118 -> 7416 | F120: =F119-F118 -> 6834 | G120: =G119-G118 -> 23664 | H120: =H119-H118 -> 12191 | I120: =I119-I118 -> -130678 | M120: =SUM(E120:I120)-D120 -> 0
A121: 39 | B121: Overall rate of growth in gifts | C121: * | D121: =D120/D118 -> -0.09847002563 | E121: =E120/E118 -> 0.2336483932 | F121: =F120/F118 -> 0.07198988729 | G121: 0.1119945479 | H121: 0.07665511799 | I121: =I120/I118 -> -0.4067848316 | J121: 38 | K121: 36
B123: Growth in donors
A124: 40 | B124: Total donors in Year1 | D124: =FEPdata!$B19 -> 2507 | E124: =FEP100Dn!$B19 -> 894 | F124: =FEP100to249!$B19 -> 793 | G124: =FEP250to999!$B19 -> 660 | H124: =FEP1000to4999!$B19 -> 130 | I124: =FEP5000Up!$B19 -> 30 | L124: 14,56 | M124: =SUM(E124:I124)-D124 -> 0
A125: 41 | B125: Total donors in Year2 | D125: =FEPdata!$D19 -> 2770 | E125: =FEP100Dn!$D19 -> 1106 | F125: =FEP100to249!$D19 -> 843 | G125: =FEP250to999!$D19 -> 664 | H125: =FEP1000to4999!$D19 -> 131 | I125: =FEP5000Up!$D19 -> 26 | L125: 15,44 | M125: =SUM(E125:I125)-D125 -> 0
A126: 42 | B126: Net growth in donors | D126: =D125-D124 -> 263 | E126: =E125-E124 -> 212 | F126: =F125-F124 -> 50 | G126: =G125-G124 -> 4 | H126: 1 | I126: =I125-I124 -> -4 | M126: =SUM(E126:I126)-D126 -> 0
A127: 43 | B127: Overall rate of growth in donors | C127: * | D127: =D126/D124 -> 0.1049062625 | E127: =E126/E124 -> 0.2371364653 | F127: =F126/F124 -> 0.0630517024 | G127: =G126/G124 -> 0.006060606061 | H127: 0.007692307692 | I127: =I126/I124 -> -0.1333333333 | J127: 42 | K127: 40
I128: Page 4
A129: Ind No. | B129: FEP Gain/Loss Fundraising Performance Indicator | C129: Key | D129: All Donors | E129: Donors Under $100 | F129: $100 to $249 | G129: $250 to $999 | H129: $1,000 to $4,999 | I129: Donors $5,000 & Up | J129: Num | K129: Denom | L129: Dupe
A131: Distribution of Year2 donors & gifts:
A132: 44 | B132: Total number of Year 2 donors | D132: =FEPdata!$D19 -> 2770 | E132: =FEP100Dn!$D19 -> 1106 | F132: =FEP100to249!$D19 -> 843 | G132: =FEP250to999!$D19 -> 664 | H132: =FEP1000to4999!$D19 -> 131 | I132: =FEP5000Up!$D19 -> 26 | L132: 15,41 | M132: =SUM(E132:I132)-D132 -> 0
A133: 45 | B133: Total gifts they gave in Year2 | D133: =FEPdata!$E19 -> 737676 | E133: =FEP100Dn!$E19 -> 39156 | F133: =FEP100to249!$E19 -> 101764 | G133: =FEP250to999!$E19 -> 234960 | H133: =FEP1000to4999!$E19 -> 171228 | I133: =FEP5000Up!$E19 -> 190568 | L133: 17,37 | M133: =SUM(E133:I133)-D133 -> 0
A134: New donors in Year2
A135: 46a | B135: New donors in Year2 | D135: =FEPdata!$D12 -> 1012 | E135: =FEP100Dn!$D12 -> 684 | F135: =FEP100to249!$D12 -> 242 | G135: =FEP250to999!$D12 -> 79 | H135: =FEP1000to4999!$D12 -> 6 | I135: =FEP5000Up!$D12 -> 1 | M135: =SUM(E135:I135)-D135 -> 0
A136: 46 | B136: New donors in Year2 % | D136: =FEPdata!$D12/FEPdata!$D$19 -> 0.3653429603 | E136: =FEP100Dn!$D12/FEP100Dn!$D$19 -> 0.6184448463 | F136: =FEP100to249!$D12/FEP100to249!$D$19 -> 0.2870699881 | G136: =FEP250to999!$D12/FEP250to999!$D$19 -> 0.1189759036 | H136: =FEP1000to4999!$D12/FEP1000to4999!$D$19 -> 0.04580152672 | I136: =FEP5000Up!$D12/FEP5000Up!$D$19 -> 0.03846153846 | J136: 46a | K136: 44
A137: 47a | B137: Gifts they gave in Year2 | D137: =FEPdata!$E12 -> 133838 | E137: =FEP100Dn!$E12 -> 23326 | F137: =FEP100to249!$E12 -> 33245 | G137: =FEP250to999!$E12 -> 30246 | H137: =FEP1000to4999!$E12 -> 7021 | I137: =FEP5000Up!$E12 -> 40000 | M137: =SUM(E137:I137)-D137 -> 0
A138: 47 | B138: % of gifts they gave in Year2 | D138: =FEPdata!$E12/FEPdata!$E$19 -> 0.1814319566 | E138: =FEP100Dn!$E12/FEP100Dn!$E$19 -> 0.5957196854 | F138: =FEP100to249!$E12/FEP100to249!$E$19 -> 0.3266872371 | G138: =FEP250to999!$E12/FEP250to999!$E$19 -> 0.1287282942 | H138: =FEP1000to4999!$E12/FEP1000to4999!$E$19 -> 0.04100380779 | I138: =FEP5000Up!$E12/FEP5000Up!$E$19 -> 0.2098988288 | J138: 47a | K138: 45
A139: 47b | B139: New donor average gift size in Year2 | D139: =D137/D135 -> 132.2509881 | E139: =E137/E135 -> 34.10233918 | F139: 137.3760331 | G139: 382.8607595 | H139: 1170.166667 | I139: =I137/(I135+0.00001) -> 39999.6
A140: Previously lapsed donors in Year2
A141: 48a | B141: Previously lapsed donors in Year2 | D141: =FEPdata!$D13 -> 275 | E141: =FEP100Dn!$D13 -> 125 | F141: =FEP100to249!$D13 -> 101 | G141: =FEP250to999!$D13 -> 36 | H141: =FEP1000to4999!$D13 -> 10 | I141: =FEP5000Up!$D13 -> 3 | M141: =SUM(E141:I141)-D141 -> 0
A142: 48 | B142: Previously lapsed donors in Year2 % | D142: =FEPdata!$D13/FEPdata!$D$19 -> 0.09927797834 | E142: =FEP100Dn!$D13/FEP100Dn!$D$19 -> 0.1130198915 | F142: =FEP100to249!$D13/FEP100to249!$D$19 -> 0.1198102017 | G142: =FEP250to999!$D13/FEP250to999!$D$19 -> 0.05421686747 | H142: =FEP1000to4999!$D13/FEP1000to4999!$D$19 -> 0.07633587786 | I142: =FEP5000Up!$D13/FEP5000Up!$D$19 -> 0.1153846154 | J142: 48a | K142: 44
A143: 49a | B143: Gifts they gave in Year2 | D143: =FEPdata!$E13 -> 54477 | E143: =FEP100Dn!$E13 -> 4465 | F143: =FEP100to249!$E13 -> 8213 | G143: =FEP250to999!$E13 -> 9102 | H143: =FEP1000to4999!$E13 -> 10519 | I143: =FEP5000Up!$E13 -> 22178 | M143: =SUM(E143:I143)-D143 -> 0
A144: 49 | B144: % of gifts they gave in Year2 | D144: =FEPdata!$E13/FEPdata!$E$19 -> 0.0738494949 | E144: =FEP100Dn!$E13/FEP100Dn!$E$19 -> 0.1140310553 | F144: =FEP100to249!$E13/FEP100to249!$E$19 -> 0.08070634016 | G144: =FEP250to999!$E13/FEP250to999!$E$19 -> 0.03873850868 | H144: =FEP1000to4999!$E13/FEP1000to4999!$E$19 -> 0.0614327096 | I144: =FEP5000Up!$E13/FEP5000Up!$E$19 -> 0.1163784056 | J144: 49a | K144: 45
A145: Upgraded donors in Year2
A146: 50a | B146: Upgraded donors in Year2 | D146: =FEPdata!$D14 -> 582 | E146: =FEP100Dn!$D14 -> 99 | F146: =FEP100to249!$D14 -> 156 | G146: =FEP250to999!$D14 -> 261 | H146: =FEP1000to4999!$D14 -> 55 | I146: =FEP5000Up!$D14 -> 11 | M146: =SUM(E146:I146)-D146 -> 0
A147: 50 | B147: Upgraded donors in Year2 % | C147: * | D147: =FEPdata!$D14/FEPdata!$D$19 -> 0.2101083032 | E147: =FEP100Dn!$D14/FEP100Dn!$D$19 -> 0.08951175407 | F147: =FEP100to249!$D14/FEP100to249!$D$19 -> 0.1850533808 | G147: =FEP250to999!$D14/FEP250to999!$D$19 -> 0.3930722892 | H147: =FEP1000to4999!$D14/FEP1000to4999!$D$19 -> 0.4198473282 | I147: =FEP5000Up!$D14/FEP5000Up!$D$19 -> 0.4230769231 | J147: 50a | K147: 44
A148: 51a | B148: Gifts they gave in Year2 | D148: =FEPdata!$E14 -> 307294 | E148: =FEP100Dn!$E14 -> 4756 | F148: =FEP100to249!$E14 -> 23331 | G148: =FEP250to999!$E14 -> 115251 | H148: =FEP1000to4999!$E14 -> 90392 | I148: =FEP5000Up!$E14 -> 73564 | M148: =SUM(E148:I148)-D148 -> 0
A149: 51 | B149: % of gifts they gave in Year2 | D149: =FEPdata!$E14/FEPdata!$E$19 -> 0.4165704184 | E149: =FEP100Dn!$E14/FEP100Dn!$E$19 -> 0.1214628665 | F149: =FEP100to249!$E14/FEP100to249!$E$19 -> 0.2292657521 | G149: =FEP250to999!$E14/FEP250to999!$E$19 -> 0.4905132789 | H149: =FEP1000to4999!$E14/FEP1000to4999!$E$19 -> 0.5279043147 | I149: =FEP5000Up!$E14/FEP5000Up!$E$19 -> 0.386024936 | J149: 51a | K149: 45
A150: 51b | B150: Upgrade dollar rate in Year2 | C150: * | D150: =(D148-D171)/D171 -> 0.6761612812 | E150: =(E148-E171)/E171 -> 0.8076776891 | F150: 0.7096065069 | G150: 0.59006374 | H150: 0.518606253 | I150: 1.098890125 | J150: 51a-59a | K150: 59a
A151: Same gift donors in Year2
A152: 52a | B152: Same gift donors in Year2 | D152: =FEPdata!$D15 -> 299 | E152: =FEP100Dn!$D15 -> 89 | F152: =FEP100to249!$D15 -> 133 | G152: =FEP250to999!$D15 -> 63 | H152: =FEP1000to4999!$D15 -> 13 | I152: =FEP5000Up!$D15 -> 1 | M152: =SUM(E152:I152)-D152 -> 0
A153: 52 | B153: Same gift donors in Year2 % | D153: =FEPdata!$D15/FEPdata!$D$19 -> 0.1079422383 | E153: =FEP100Dn!$D15/FEP100Dn!$D$19 -> 0.08047016275 | F153: =FEP100to249!$D15/FEP100to249!$D$19 -> 0.1577698695 | G153: =FEP250to999!$D15/FEP250to999!$D$19 -> 0.09487951807 | H153: =FEP1000to4999!$D15/FEP1000to4999!$D$19 -> 0.09923664122 | I153: =FEP5000Up!$D15/FEP5000Up!$D$19 -> 0.03846153846 | J153: 52a | K153: 44
A154: 53a | B154: Gifts they gave in Year2 | D154: =FEPdata!$E15 -> 54201 | E154: =FEP100Dn!$E15 -> 3540 | F154: =FEP100to249!$E15 -> 16746 | G154: =FEP250to999!$E15 -> 19118 | H154: =FEP1000to4999!$E15 -> 14197 | I154: =FEP5000Up!$E15 -> 600 | M154: =SUM(E154:I154)-D154 -> 0
A155: 53 | B155: % of gifts they gave in Year2 | D155: =FEPdata!$E15/FEPdata!$E$19 -> 0.0734753469 | E155: =FEP100Dn!$E15/FEP100Dn!$E$19 -> 0.09040760037 | F155: =FEP100to249!$E15/FEP100to249!$E$19 -> 0.1645572108 | G155: =FEP250to999!$E15/FEP250to999!$E$19 -> 0.0813670412 | H155: =FEP1000to4999!$E15/FEP1000to4999!$E$19 -> 0.08291284136 | I155: =FEP5000Up!$E15/FEP5000Up!$E$19 -> 0.003148482431 | J155: 53a | K155: 45
A156: Downgraded donors in Year2 %
A157: 54a | B157: Downgraded donors in Year2 % | D157: =FEPdata!$D16 -> 602 | E157: =FEP100Dn!$D16 -> 109 | F157: =FEP100to249!$D16 -> 211 | G157: =FEP250to999!$D16 -> 225 | H157: =FEP1000to4999!$D16 -> 47 | I157: =FEP5000Up!$D16 -> 10 | M157: =SUM(E157:I157)-D157 -> 0
A158: 54 | B158: Downgraded donors in Year2 % | D158: =FEPdata!$D16/FEPdata!$D$19 -> 0.2173285199 | E158: =FEP100Dn!$D16/FEP100Dn!$D$19 -> 0.09855334539 | F158: =FEP100to249!$D16/FEP100to249!$D$19 -> 0.2502965599 | G158: =FEP250to999!$D16/FEP250to999!$D$19 -> 0.3388554217 | H158: =FEP1000to4999!$D16/FEP1000to4999!$D$19 -> 0.358778626 | I158: =FEP5000Up!$D16/FEP5000Up!$D$19 -> 0.3846153846 | J158: 54a | K158: 44
A159: 55a | B159: Gifts they gave in Year2 | D159: =FEPdata!$E16 -> 187866 | E159: =FEP100Dn!$E16 -> 3069 | F159: =FEP100to249!$E16 -> 20229 | G159: =FEP250to999!$E16 -> 61243 | H159: =FEP1000to4999!$E16 -> 49099 | I159: =FEP5000Up!$E16 -> 54226 | M159: =SUM(E159:I159)-D159 -> 0
A160: 55 | B160: % of gifts they gave in Year2 | D160: =FEPdata!$E16/FEPdata!$E$19 -> 0.2546727832 | E160: =FEP100Dn!$E16/FEP100Dn!$E$19 -> 0.07837879252 | F160: =FEP100to249!$E16/FEP100to249!$E$19 -> 0.1987834598 | G160: =FEP250to999!$E16/FEP250to999!$E$19 -> 0.2606528771 | H160: =FEP1000to4999!$E16/FEP1000to4999!$E$19 -> 0.2867463265 | I160: =FEP5000Up!$E16/FEP5000Up!$E$19 -> 0.2845493472 | J160: 55a | K160: 45
I161: Page 5
A162: Ind No. | B162: FEP Gain/Loss Fundraising Performance Indicator | C162: Key | D162: All Donors | E162: Donors Under $100 | F162: $100 to $249 | G162: $250 to $999 | H162: $1,000 to $4,999 | I162: Donors $5,000 & Up | J162: Num | K162: Denom | L162: Dupe
A164: What Year1 donors did in Year2
A165: 56 | B165: Total number of Year 1 donors | D165: =FEPdata!$B19 -> 2507 | E165: =FEP100Dn!$B19 -> 894 | F165: =FEP100to249!$B19 -> 793 | G165: =FEP250to999!$B19 -> 660 | H165: =FEP1000to4999!$B19 -> 130 | I165: =FEP5000Up!$B19 -> 30 | L165: 14 | M165: =SUM(E165:I165)-D165 -> 0
A166: 57 | B166: Total gifts they gave in Year1 | D166: =FEPdata!$C19 -> 818249 | E166: =FEP100Dn!$C19 -> 31740 | F166: =FEP100to249!$C19 -> 94930 | G166: =FEP250to999!$C19 -> 211296 | H166: =FEP1000to4999!$C19 -> 159037 | I166: =FEP5000Up!$C19 -> 321246 | L166: 17a | M166: =SUM(E166:I166)-D166 -> 0
A167: Repeat donors - upgraded:
A168: 58a | B168: Year1 donors that upgraded in Year2 | D168: =FEPdata!$B14 -> 582 | E168: =FEP100Dn!$B14 -> 99 | F168: =FEP100to249!$B14 -> 156 | G168: =FEP250to999!$B14 -> 261 | H168: =FEP1000to4999!$B14 -> 55 | I168: =FEP5000Up!$B14 -> 11 | M168: =SUM(E168:I168)-D168 -> 0
A169: 58 | B169: Year1 donors that upgraded % | C169: * | D169: =FEPdata!$B14/FEPdata!$B$19 -> 0.2321499801 | E169: =FEP100Dn!$B14/FEP100Dn!$B$19 -> 0.110738255 | F169: =FEP100to249!$B14/FEP100to249!$B$19 -> 0.1967213115 | G169: =FEP250to999!$B14/FEP250to999!$B$19 -> 0.3954545455 | H169: =FEP1000to4999!$B14/FEP1000to4999!$B$19 -> 0.4230769231 | I169: =FEP5000Up!$B14/FEP5000Up!$B$19 -> 0.3666666667 | J169: 58a | K169: 56
A170: 58b | B170: Upgraded donors as % of repeat donors | C170: * | D170: =D168/D$189 -> 0.3924477411 | E170: =E168/E$189 -> 0.3333333333 | F170: 0.312 | G170: 0.4754098361 | H170: 0.4782608696 | I170: 0.5 | J170: 58a | K170: 64a
A171: 59a | B171: Gifts upgraded-donors gave in Year1 | D171: =FEPdata!$C14 -> 183332 | E171: =FEP100Dn!$C14 -> 2631 | F171: =FEP100to249!$C14 -> 13647 | G171: =FEP250to999!$C14 -> 72482 | H171: =FEP1000to4999!$C14 -> 59523 | I171: =FEP5000Up!$C14 -> 35049 | M171: =SUM(E171:I171)-D171 -> 0
A172: 59 | B172: % of Year1 gifts | D172: =FEPdata!$C14/FEPdata!$C$19 -> 0.2240540471 | E172: =FEP100Dn!$C14/FEP100Dn!$C$19 -> 0.08289224953 | F172: =FEP100to249!$C14/FEP100to249!$C$19 -> 0.1437585589 | G172: =FEP250to999!$C14/FEP250to999!$C$19 -> 0.3430353627 | H172: =FEP1000to4999!$C14/FEP1000to4999!$C$19 -> 0.374271396 | I172: =FEP5000Up!$C14/FEP5000Up!$C$19 -> 0.109103304 | J172: 59a | K172: 57
A173: 59b | B173: Upgraded gifts as % of repeat gifts | D173: =D171/D$191 -> 0.3320852874 | E173: =E171/E$191 -> 0.2250641574 | F173: 0.2194227832 | G173: 0.3970224141 | H173: 0.4177990847 | I173: 0.2288600421 | J173: 59a | K173: 65a
A174: Repeat donors - same:
A175: 60a | B175: Year1 donors that gave same in Year2 | D175: =FEPdata!$B15 -> 299 | E175: =FEP100Dn!$B15 -> 89 | F175: =FEP100to249!$B15 -> 133 | G175: =FEP250to999!$B15 -> 63 | H175: =FEP1000to4999!$B15 -> 13 | I175: =FEP5000Up!$B15 -> 1 | M175: =SUM(E175:I175)-D175 -> 0
A176: 60 | B176: Year1 donors that gave same % | D176: =FEPdata!$B15/FEPdata!$B$19 -> 0.119266055 | E176: =FEP100Dn!$B15/FEP100Dn!$B$19 -> 0.09955257271 | F176: =FEP100to249!$B15/FEP100to249!$B$19 -> 0.1677175284 | G176: =FEP250to999!$B15/FEP250to999!$B$19 -> 0.09545454545 | H176: =FEP1000to4999!$B15/FEP1000to4999!$B$19 -> 0.1 | I176: =FEP5000Up!$B15/FEP5000Up!$B$19 -> 0.03333333333 | J176: 60a | K176: 56
A177: 60b | B177: Same donors as % of repeat donors | C177: * | D177: =D175/D$189 -> 0.2016183412 | E177: =E175/E$189 -> 0.2996632997 | F177: 0.266 | G177: 0.1147540984 | H177: 0.1130434783 | I177: 0.04545454545 | J177: 60a | K177: 64a
A178: 61a | B178: Gifts same-donors gave in Year1 | D178: =FEPdata!$C15 -> 54201 | E178: =FEP100Dn!$C15 -> 3540 | F178: =FEP100to249!$C15 -> 16746 | G178: =FEP250to999!$C15 -> 19118 | H178: =FEP1000to4999!$C15 -> 14197 | I178: =FEP5000Up!$C15 -> 600 | M178: =SUM(E178:I178)-D178 -> 0
A179: 61 | B179: % of Year1 gifts | D179: =FEPdata!$C15/FEPdata!$C$19 -> 0.06624022761 | E179: =FEP100Dn!$C15/FEP100Dn!$C$19 -> 0.1115311909 | F179: =FEP100to249!$C15/FEP100to249!$C$19 -> 0.1764036659 | G179: =FEP250to999!$C15/FEP250to999!$C$19 -> 0.09047970619 | H179: =FEP1000to4999!$C15/FEP1000to4999!$C$19 -> 0.089268535 | I179: =FEP5000Up!$C15/FEP5000Up!$C$19 -> 0.001867727536 | J179: 61a | K179: 57
A180: 61b | B180: Same gifts as % of repeat gifts | D180: =D178/D$191 -> 0.09817901218 | E180: =E178/E$191 -> 0.3028229256 | F180: 0.2692499397 | G180: 0.1047194409 | H180: 0.09965044782 | I180: 0.003917830045 | J180: 61a | K180: 65a
A181: Repeat donors - downgraded:
A182: 62a | B182: Year1 donors that downgraded in Year2 | D182: =FEPdata!$B16 -> 602 | E182: =FEP100Dn!$B16 -> 109 | F182: =FEP100to249!$B16 -> 211 | G182: =FEP250to999!$B16 -> 225 | H182: =FEP1000to4999!$B16 -> 47 | I182: =FEP5000Up!$B16 -> 10 | M182: =SUM(E182:I182)-D182 -> 0
A183: 62 | B183: Year1 donors that downgraded % | D183: =FEPdata!$B16/FEPdata!$B$19 -> 0.2401276426 | E183: =FEP100Dn!$B16/FEP100Dn!$B$19 -> 0.1219239374 | F183: =FEP100to249!$B16/FEP100to249!$B$19 -> 0.2660781841 | G183: =FEP250to999!$B16/FEP250to999!$B$19 -> 0.3409090909 | H183: =FEP1000to4999!$B16/FEP1000to4999!$B$19 -> 0.3615384615 | I183: =FEP5000Up!$B16/FEP5000Up!$B$19 -> 0.3333333333 | J183: 62a | K183: 56
A184: 62b | B184: Downgraded donors as % of repeat donors | D184: =D182/D$189 -> 0.4059339177 | E184: =E182/E$189 -> 0.367003367 | F184: 0.422 | G184: 0.4098360656 | H184: 0.4086956522 | I184: 0.4545454545 | J184: 62a | K184: 64a
A185: 63a | B185: Gifts downgraded-donors gave in Year1 | D185: =FEPdata!$C16 -> 314530 | E185: =FEP100Dn!$C16 -> 5519 | F185: =FEP100to249!$C16 -> 31802 | G185: =FEP250to999!$C16 -> 90964 | H185: =FEP1000to4999!$C16 -> 68748 | I185: =FEP5000Up!$C16 -> 117497 | M185: =SUM(E185:I185)-D185 -> 0
A186: 63 | B186: % of Year1 gifts | D186: =FEPdata!$C16/FEPdata!$C$19 -> 0.3843939925 | E186: =FEP100Dn!$C16/FEP100Dn!$C$19 -> 0.1738815375 | F186: =FEP100to249!$C16/FEP100to249!$C$19 -> 0.3350047403 | G186: =FEP250to999!$C16/FEP250to999!$C$19 -> 0.4305050735 | H186: =FEP1000to4999!$C16/FEP1000to4999!$C$19 -> 0.4322767658 | I186: =FEP5000Up!$C16/FEP5000Up!$C$19 -> 0.3657539705 | J186: 63a | K186: 57
A187: 63b | B187: Downgraded gifts as % of repeat gifts | D187: =D185/D$191 -> 0.5697357005 | E187: =E185/E$191 -> 0.472112917 | F187: 0.5113272771 | G187: 0.4982581451 | H187: 0.4825504675 | I187: 0.7672221279 | J187: 62a | K187: 65a
A188: What Year1 repeat donors did in Year2
A189: 64a | B189: Total Year1 repeat donors | D189: =D168+D175+D182 -> 1483 | E189: 297 | F189: 500 | G189: 549 | H189: 115 | I189: 22 | M189: =SUM(E189:I189)-D189 -> 0
A190: 64 | B190: Total Year1 repeat donors % | D190: =D169+D176+D183 -> 0.5915436777 | E190: 0.3322147651 | F190: 0.630517024 | G190: 0.8318181818 | H190: 0.8846153846 | I190: 0.7333333333 | J190: 64a | K190: 56 | L190: 3
A191: 65a | B191: Gifts repeat donors gave in Year1 | D191: =D171+D178+D185 -> 552063 | E191: 11690 | F191: =F171+F178+F185 -> 62195 | G191: 182564 | H191: 142468 | I191: 153146 | M191: =SUM(E191:I191)-D191 -> 0
A192: 65 | B192: % of Year1 gifts | D192: 0.6746882673 | E192: 0.3683049779 | F192: 0.6551669651 | G192: 0.8640201424 | H192: 0.8958166967 | I192: 0.476725002 | J192: 65a | K192: 57 | L192: 19g
I194: Page 6
A195: Ind No. | B195: FEP Gain/Loss Fundraising Performance Indicator | C195: Key | D195: All Donors | E195: Donors Under $100 | F195: $100 to $249 | G195: $250 to $999 | H195: $1,000 to $4,999 | I195: Donors $5,000 & Up | J195: Num | K195: Denom | L195: Dupe
A197: Lapsed donors (attrition):
A198: New Year1 donors that lapsed
A199: 66a | B199: New Year1 donors that lapsed | D199: =FEPdata!$B17 -> 619 | E199: =FEP100Dn!$B17 -> 441 | F199: =FEP100to249!$B17 -> 147 | G199: =FEP250to999!$B17 -> 25 | H199: =FEP1000to4999!$B17 -> 3 | I199: =FEP5000Up!$B17 -> 3 | L199: 7a
A200: 66 | B200: New Year1 donors that lapsed % | C200: * | D200: =FEPdata!$B17/FEPdata!$B$19 -> 0.2469086558 | E200: =FEP100Dn!$B17/FEP100Dn!$B$19 -> 0.4932885906 | F200: =FEP100to249!$B17/FEP100to249!$B$19 -> 0.185372005 | G200: =FEP250to999!$B17/FEP250to999!$B$19 -> 0.03787878788 | H200: =FEP1000to4999!$B17/FEP1000to4999!$B$19 -> 0.02307692308 | I200: =FEP5000Up!$B17/FEP5000Up!$B$19 -> 0.1 | J200: 66a | K200: 56
A201: 67a | B201: Gifts lapsed-new-donors gave in Year1 | D201: =FEPdata!$C17 -> 103250 | E201: =FEP100Dn!$C17 -> 14912 | F201: =FEP100to249!$C17 -> 19463 | G201: =FEP250to999!$C17 -> 9125 | H201: =FEP1000to4999!$C17 -> 3750 | I201: =FEP5000Up!$C17 -> 56000
A202: 67 | B202: % of Year1 gifts | D202: =FEPdata!$C17/FEPdata!$C$19 -> 0.1261840833 | E202: =FEP100Dn!$C17/FEP100Dn!$C$19 -> 0.4698172653 | F202: =FEP100to249!$C17/FEP100to249!$C$19 -> 0.2050247551 | G202: =FEP250to999!$C17/FEP250to999!$C$19 -> 0.04318586249 | H202: =FEP1000to4999!$C17/FEP1000to4999!$C$19 -> 0.02357941863 | I202: =FEP5000Up!$C17/FEP5000Up!$C$19 -> 0.1743212367 | J202: 67a | K202: 57
A203: Repeat Year1 donors that lapsed
A204: 68a | B204: Repeat Year1 donors that lapsed | D204: =FEPdata!$B18 -> 405 | E204: =FEP100Dn!$B18 -> 156 | F204: =FEP100to249!$B18 -> 146 | G204: =FEP250to999!$B18 -> 86 | H204: =FEP1000to4999!$B18 -> 12 | I204: =FEP5000Up!$B18 -> 5 | L204: 7b
A205: 68 | B205: Repeat Year1 donors that lapsed % | C205: * | D205: =FEPdata!$B18/FEPdata!$B$19 -> 0.1615476665 | E205: =FEP100Dn!$B18/FEP100Dn!$B$19 -> 0.1744966443 | F205: =FEP100to249!$B18/FEP100to249!$B$19 -> 0.184110971 | G205: =FEP250to999!$B18/FEP250to999!$B$19 -> 0.1303030303 | H205: =FEP1000to4999!$B18/FEP1000to4999!$B$19 -> 0.09230769231 | I205: =FEP5000Up!$B18/FEP5000Up!$B$19 -> 0.1666666667 | J205: 68a | K205: 56
A206: 69a | B206: Gifts lapsed-repeat-donors gave in Year1 | D206: =FEPdata!$C18 -> 162936 | E206: =FEP100Dn!$C18 -> 5138 | F206: =FEP100to249!$C18 -> 13272 | G206: =FEP250to999!$C18 -> 19607 | H206: =FEP1000to4999!$C18 -> 12819 | I206: =FEP5000Up!$C18 -> 112100
A207: 69 | B207: % of Year1 gifts | D207: =FEPdata!$C18/FEPdata!$C$19 -> 0.1991276494 | E207: =FEP100Dn!$C18/FEP100Dn!$C$19 -> 0.1618777568 | F207: =FEP100to249!$C18/FEP100to249!$C$19 -> 0.1398082798 | G207: =FEP250to999!$C18/FEP250to999!$C$19 -> 0.09279399515 | H207: =FEP1000to4999!$C18/FEP1000to4999!$C$19 -> 0.08060388463 | I207: =FEP5000Up!$C18/FEP5000Up!$C$19 -> 0.3489537613 | J207: 69a | K207: 57
A208: Total Year1 lapsed donors
A209: 70a | B209: Total Year1 lapsed donors | D209: =D199+D204 -> 1024 | E209: =E199+E204 -> 597 | F209: 293 | G209: 111 | H209: 15 | I209: 8
A210: 70 | B210: Total Year1 lapsed donors % | D210: =D200+D205 -> 0.4084563223 | E210: =E200+E205 -> 0.6677852349 | F210: 0.369482976 | G210: 0.1681818182 | H210: 0.1153846154 | I210: 0.2666666667 | J210: 70a | K210: 56
A211: 71a | B211: Gifts all-lapsed-donors gave in Year1 | D211: =D201+D206 -> 266186 | E211: =E201+E206 -> 20050 | F211: 32735 | G211: 28732 | H211: 16569 | I211: 168100
A212: 71 | B212: % of Year1 gifts | D212: =D202+D207 -> 0.3253117327 | E212: =E202+E207 -> 0.6316950221 | F212: 0.3448330349 | G212: 0.1359798576 | H212: 0.1041833033 | I212: 0.523274998 | J212: 71a | K212: 57
A214: Monthly donors:
A215: 72 | B215: Monthly donors in Year2 | D215: =FEPdata!$D$26 -> 629 | E215: =FEP100Dn!$D$26 -> 10 | F215: =FEP100to249!$D$26 -> 191 | G215: =FEP250to999!$D$26 -> 353 | H215: =FEP1000to4999!$D$26 -> 63 | I215: =FEP5000Up!$D$26 -> 12 | M215: =SUM(E215:I215)-D215 -> 0
A216: 73 | B216: Monthly as % of Year2 donors | D216: =D215/D56 -> 0.2270758123 | E216: 0.00904159132 | F216: 0.2265717675 | G216: 0.531626506 | H216: 0.4809160305 | I216: 0.4615384615 | J216: 72 | K216: 15
A217: 74 | B217: % of total monthly donors/database | D217: =D215/D112 -> 0.6136585366 | E217: 0.2040816327 | F217: 0.5276243094 | G217: 0.6801541426 | H217: 0.8076923077 | I217: 0.7058823529 | J217: 72 | K217: 77
A218: 75 | B218: Monthly donor gifts in Year2 | D218: =FEPdata!$E$26 -> 352864 | E218: =FEP100Dn!$E$26 -> 712 | F218: =FEP100to249!$E$26 -> 33007 | G218: =FEP250to999!$E$26 -> 148207 | H218: =FEP1000to4999!$E$26 -> 91696 | I218: =FEP5000Up!$E$26 -> 79242 | M218: =SUM(E218:I218)-D218 -> 0
A219: 76 | B219: Monthly as % of Year2 gifts | D219: =D218/D133 -> 0.4783455067 | E219: 0.01818367555 | F219: 0.3243484926 | G219: 0.6307754511 | H219: 0.5355198916 | I219: 0.4158200747 | J219: 75 | K219: 17
A220: 77 | B220: Total monthly donors/database | D220: =FEPdata!$K$25 -> 1025 | E220: =FEP100Dn!$K$25 -> 49 | F220: =FEP100to249!$K$25 -> 362 | G220: =FEP250to999!$K$25 -> 519 | H220: =FEP1000to4999!$K$25 -> 78 | I220: =FEP5000Up!$K$25 -> 17 | M220: =SUM(E220:I220)-D220 -> 0
A222: Number of gifts
A223: 78a | B223: Total donors in Year2 | D223: =D125 -> 2770 | E223: 1106 | F223: 843 | G223: 664 | H223: 131 | I223: 26 | L223: 41 | M223: =SUM(E223:I223)-D223 -> 0
A224: 78b | B224: Total gifts in Year2 | D224: =D119 -> 737676 | E224: 39156 | F224: 101764 | G224: 234960 | H224: 171228 | I224: 190568 | M224: =SUM(E224:I224)-D224 -> 0
A225: 78c | B225: Number of gifts in Year2 | D225: =FEPdata!$K$24 -> 10946 | E225: =FEP100Dn!$K$24 -> 1434 | F225: =FEP100to249!$K$24 -> 3026 | G225: =FEP250to999!$K$24 -> 5108 | H225: =FEP1000to4999!$K$24 -> 1056 | I225: =FEP5000Up!$K$24 -> 322 | M225: =SUM(E225:I225)-D225 -> 0
... 2 more rows

Sheet ToWhatIf
A1: To What If | F1: =TODAY() -> 2014-08-31 | H1: Page 1 | I1: Data in this worksheet is
I2: For use with "GROWTHINGIVINGCALCULATOR" template
A3: Growth-in-Giving is measured for Year 2: | I3: Download from www.afpnet.org/FEP -->
D4: Year 2 | E4: =FEPdata!E4 -> 2013 | I4: "Measurement Tools"
A5: All donors | B5: All | E5: =StepByStep!$G$7 -> 12 | F5: <-- Year-end month
A6: Gain(Loss) Data - Software Extract for Year 2 and Year 1 data | I6: Copy A1 to H174 in this worksheet
I7: Paste to A1 in "FromTest" worksheet
B8: Number of | C8: Amount of | D8: Number of | E8: Amount of | I8: in the "GROWTHINGIVINGCALCULATOR" template
A9: Gain(Loss) | B9: =D9-1 -> 2012 | C9: =E9-1 -> 2012 | D9: =$E$4 -> 2013 | E9: =$E$4 -> 2013
A10: Category | B10: Donors | C10: Gifts ($) | D10: Donors | E10: Gifts ($) | I10: Follow instructions in "GROWTHINGIVINGCALCULATOR"
A12: New | B12: n/a | C12: n/a | D12: =FEPdata!D12 -> 1012 | E12: =FEPdata!E12 -> 133838 | I12: Questions and comments ---> fep@afpnet.org
A13: Recaptured | B13: n/a | C13: n/a | D13: =FEPdata!D13 -> 275 | E13: =FEPdata!E13 -> 54477
A14: Upgraded | B14: =FEPdata!B14 -> 582 | C14: =FEPdata!C14 -> 183332 | D14: =FEPdata!D14 -> 582 | E14: =FEPdata!E14 -> 307294
A15: Same | B15: =FEPdata!B15 -> 299 | C15: =FEPdata!C15 -> 54201 | D15: =FEPdata!D15 -> 299 | E15: =FEPdata!E15 -> 54201
A16: Downgraded | B16: =FEPdata!B16 -> 602 | C16: =FEPdata!C16 -> 314530 | D16: =FEPdata!D16 -> 602 | E16: =FEPdata!E16 -> 187866
A17: Lapsed new | B17: =FEPdata!B17 -> 619 | C17: =FEPdata!C17 -> 103250 | D17: n/a | E17: n/a
A18: Lapsed repeat | B18: =FEPdata!B18 -> 405 | C18: =FEPdata!C18 -> 162936 | D18: n/a | E18: n/a
A19: Total | B19: =FEPdata!B19 -> 2507 | C19: =FEPdata!C19 -> 818249 | D19: =FEPdata!D19 -> 2770 | E19: =FEPdata!E19 -> 737676
B21: Number | C21: Gift$
A22: New in year 1 | B22: =FEPdata!B22 -> 905 | C22: =FEPdata!C22 -> 186095 | D22: <-- i.e., last year's new donors and gift$
A23: Database EOY1 | B23: =FEPdata!B23 -> 5910 | D23: <-- i.e., Total number of donors on file at end of Year1
A24: One time donors | B24: =FEPdata!B24 -> 3069 | C24: =FEPdata!C24 -> 594358 | D24: <-- i.e., Number of one-time donors and gifts
A25: Recaptured lapsed 1 year | D25: =FEPdata!D25 -> 167 | E25: =FEPdata!E25 -> 45006 | F25: <-- Portion of Recaptured
A26: Monthly donors in Year2 | D26: =FEPdata!D26 -> 629 | E26: =FEPdata!E26 -> 352864 | F26: <-- i.e., Year2 donors making 6 to 24 gifts.
B27: =FEPdata!K23 -> 6922 | C27: <-- total # of donors on file | E27: =FEPdata!$K$24 -> 10946 | F27: <-- Total # of gifts in Year2 (vs #donors)
B28: =FEPdata!K25 -> 1025 | C28: =FEPdata!L25 -> 1641365 | D28: <-- Total # & $ for monthly donors in database
B29: =FEPdata!K26 -> 41 | C29: =FEPdata!L26 -> 14903 | D29: <-- Portion NEW monthly donors in Year2
A34: Under $100 | B34: A 100 dn
A35: Gain(Loss) Data - Software Extract for Year 2 and Year 1 data
B37: Number of | C37: Amount of | D37: Number of | E37: Amount of
A38: Gain(Loss) | B38: =D38-1 -> 2012 | C38: =E38-1 -> 2012 | D38: =$E$4 -> 2013 | E38: =$E$4 -> 2013
A39: Category | B39: Donors | C39: Gifts ($) | D39: Donors | E39: Gifts ($)
A41: New | B41: n/a | C41: n/a | D41: =FEP100Dn!D12 -> 684 | E41: =FEP100Dn!E12 -> 23326
A42: Recaptured | B42: n/a | C42: n/a | D42: =FEP100Dn!D13 -> 125 | E42: =FEP100Dn!E13 -> 4465
A43: Upgraded | B43: =FEP100Dn!B14 -> 99 | C43: =FEP100Dn!C14 -> 2631 | D43: =FEP100Dn!D14 -> 99 | E43: =FEP100Dn!E14 -> 4756
A44: Same | B44: =FEP100Dn!B15 -> 89 | C44: =FEP100Dn!C15 -> 3540 | D44: =FEP100Dn!D15 -> 89 | E44: =FEP100Dn!E15 -> 3540
A45: Downgraded | B45: =FEP100Dn!B16 -> 109 | C45: =FEP100Dn!C16 -> 5519 | D45: =FEP100Dn!D16 -> 109 | E45: =FEP100Dn!E16 -> 3069
A46: Lapsed new | B46: =FEP100Dn!B17 -> 441 | C46: =FEP100Dn!C17 -> 14912 | D46: n/a | E46: n/a
A47: Lapsed repeat | B47: =FEP100Dn!B18 -> 156 | C47: =FEP100Dn!C18 -> 5138 | D47: n/a | E47: n/a
A48: Total | B48: =FEP100Dn!B19 -> 894 | C48: =FEP100Dn!C19 -> 31740 | D48: =FEP100Dn!D19 -> 1106 | E48: =FEP100Dn!E19 -> 39156
B50: Number | C50: Gift$
A51: New in year 1 | B51: =FEP100Dn!B22 -> 545 | C51: =FEP100Dn!C22 -> 18836 | D51: <-- i.e., last year's new donors and gift$
A52: Database EOY1 | B52: =FEP100Dn!B23 -> 3089 | D52: <-- i.e., Total number of donors on file at end of Year1
A53: One time donors | B53: =FEP100Dn!B24 -> 2214 | C53: =FEP100Dn!C24 -> 77232 | D53: <-- i.e., Number of one-time donors and gifts
A54: Recaptured lapsed 1 year | D54: =FEP100Dn!D25 -> 70 | E54: =FEP100Dn!E25 -> 2651 | F54: <-- Portion of Recaptured
A55: Monthly donors in Year2 | D55: =FEP100Dn!D26 -> 10 | E55: =FEP100Dn!E26 -> 712 | F55: <-- i.e., Year2 donors making 6 to 24 gifts.
B56: =FEP100Dn!K23 -> 3773 | C56: <-- total # of donors on file | E56: =FEP100Dn!$K$24 -> 1434 | F56: <-- Total # of gifts in Year2 (vs #donors)
B57: =FEP100Dn!K25 -> 49 | C57: =FEP100Dn!L25 -> 6906 | D57: <-- Total # & $ for monthly donors in database
B58: =FEP100Dn!K26 -> 2 | C58: =FEP100Dn!L26 -> 144 | D58: <-- Portion NEW monthly donors in Year2
A63: $100 to $249 | B63: B 100-249 | H63: Page 1
A64: Gain(Loss) Data - Software Extract for Year 2 and Year 1 data
B66: Number of | C66: Amount of | D66: Number of | E66: Amount of
A67: Gain(Loss) | B67: =D67-1 -> 2012 | C67: =E67-1 -> 2012 | D67: =$E$4 -> 2013 | E67: =$E$4 -> 2013
A68: Category | B68: Donors | C68: Gifts ($) | D68: Donors | E68: Gifts ($)
A70: New | B70: n/a | C70: n/a | D70: =FEP100to249!D12 -> 242 | E70: =FEP100to249!E12 -> 33245
A71: Recaptured | B71: n/a | C71: n/a | D71: =FEP100to249!D13 -> 101 | E71: =FEP100to249!E13 -> 8213
A72: Upgraded | B72: =FEP100to249!B14 -> 156 | C72: =FEP100to249!C14 -> 13647 | D72: =FEP100to249!D14 -> 156 | E72: =FEP100to249!E14 -> 23331
A73: Same | B73: =FEP100to249!B15 -> 133 | C73: =FEP100to249!C15 -> 16746 | D73: =FEP100to249!D15 -> 133 | E73: =FEP100to249!E15 -> 16746
A74: Downgraded | B74: =FEP100to249!B16 -> 211 | C74: =FEP100to249!C16 -> 31802 | D74: =FEP100to249!D16 -> 211 | E74: =FEP100to249!E16 -> 20229
A75: Lapsed new | B75: =FEP100to249!B17 -> 147 | C75: =FEP100to249!C17 -> 19463 | D75: n/a | E75: n/a
A76: Lapsed repeat | B76: =FEP100to249!B18 -> 146 | C76: =FEP100to249!C18 -> 13272 | D76: n/a | E76: n/a
A77: Total | B77: =FEP100to249!B19 -> 793 | C77: =FEP100to249!C19 -> 94930 | D77: =FEP100to249!D19 -> 843 | E77: =FEP100to249!E19 -> 101764
B79: Number | C79: Gift$
A80: New in year 1 | B80: =FEP100to249!B22 -> 251 | C80: =FEP100to249!C22 -> 32641 | D80: <-- i.e., last year's new donors and gift$
A81: Database EOY1 | B81: =FEP100to249!B23 -> 1692 | D81: <-- i.e., Total number of donors on file at end of Year1
A82: One time donors | B82: =FEP100to249!B24 -> 702 | C82: =FEP100to249!C24 -> 90035 | D82: <-- i.e., Number of one-time donors and gifts
A83: Recaptured lapsed 1 year | D83: =FEP100to249!D25 -> 66 | E83: =FEP100to249!E25 -> 5320 | F83: <-- Portion of Recaptured
A84: Monthly donors in Year2 | D84: =FEP100to249!D26 -> 191 | E84: =FEP100to249!E26 -> 33007 | F84: <-- i.e., Year2 donors making 6 to 24 gifts.
B85: =FEP100to249!K23 -> 1934 | C85: <-- total # of donors on file | E85: =FEP100to249!$K$24 -> 3026 | F85: <-- Total # of gifts in Year2 (vs #donors)
B86: =FEP100to249!K25 -> 362 | C86: =FEP100to249!L25 -> 175095 | D86: <-- Total # & $ for monthly donors in database
B87: =FEP100to249!K26 -> 19 | C87: =FEP100to249!L26 -> 3379 | D87: <-- Portion NEW monthly donors in Year2
A92: $250 to $999 | B92: C 250-999
A93: Gain(Loss) Data - Software Extract for Year 2 and Year 1 data
B95: Number of | C95: Amount of | D95: Number of | E95: Amount of
A96: Gain(Loss) | B96: =D96-1 -> 2012 | C96: =E96-1 -> 2012 | D96: =$E$4 -> 2013 | E96: =$E$4 -> 2013
A97: Category | B97: Donors | C97: Gifts ($) | D97: Donors | E97: Gifts ($)
A99: New | B99: n/a | C99: n/a | D99: =FEP250to999!D12 -> 79 | E99: =FEP250to999!E12 -> 30246
A100: Recaptured | B100: n/a | C100: n/a | D100: =FEP250to999!D13 -> 36 | E100: =FEP250to999!E13 -> 9102
A101: Upgraded | B101: =FEP250to999!B14 -> 261 | C101: =FEP250to999!C14 -> 72482 | D101: =FEP250to999!D14 -> 261 | E101: =FEP250to999!E14 -> 115251
A102: Same | B102: =FEP250to999!B15 -> 63 | C102: =FEP250to999!C15 -> 19118 | D102: =FEP250to999!D15 -> 63 | E102: =FEP250to999!E15 -> 19118
A103: Downgraded | B103: =FEP250to999!B16 -> 225 | C103: =FEP250to999!C16 -> 90964 | D103: =FEP250to999!D16 -> 225 | E103: =FEP250to999!E16 -> 61243
A104: Lapsed new | B104: =FEP250to999!B17 -> 25 | C104: =FEP250to999!C17 -> 9125 | D104: n/a | E104: n/a
A105: Lapsed repeat | B105: =FEP250to999!B18 -> 86 | C105: =FEP250to999!C18 -> 19607 | D105: n/a | E105: n/a
A106: Total | B106: =FEP250to999!B19 -> 660 | C106: =FEP250to999!C19 -> 211296 | D106: =FEP250to999!D19 -> 664 | E106: =FEP250to999!E19 -> 234960
B108: Number | C108: Gift$
A109: New in year 1 | B109: =FEP250to999!B22 -> 90 | C109: =FEP250to999!C22 -> 25140 | D109: <-- i.e., last year's new donors and gift$
A110: Database EOY1 | B110: =FEP250to999!B23 -> 904 | D110: <-- i.e., Total number of donors on file at end of Year1
A111: One time donors | B111: =FEP250to999!B24 -> 109 | C111: =FEP250to999!C24 -> 39741 | D111: <-- i.e., Number of one-time donors and gifts
A112: Recaptured lapsed 1 year | D112: =FEP250to999!D25 -> 19 | E112: =FEP250to999!E25 -> 4838 | F112: <-- Portion of Recaptured
A113: Monthly donors in Year2 | D113: =FEP250to999!D26 -> 353 | E113: =FEP250to999!E26 -> 148207 | F113: <-- i.e., Year2 donors making 6 to 24 gifts.
B114: =FEP250to999!K23 -> 983 | C114: <-- total # of donors on file | E114: =FEP250to999!$K$24 -> 5108 | F114: <-- Total # of gifts in Year2 (vs #donors)
B115: =FEP250to999!K25 -> 519 | C115: =FEP250to999!L25 -> 688126 | D115: <-- Total # & $ for monthly donors in database
B116: =FEP250to999!K26 -> 17 | C116: =FEP250to999!L26 -> 7473 | D116: <-- Portion NEW monthly donors in Year2
A121: $1,000 to $4,999 | B121: D 1,000-4,999 | H121: Page 3
A122: Gain(Loss) Data - Software Extract for Year 2 and Year 1 data
B124: Number of | C124: Amount of | D124: Number of | E124: Amount of
A125: Gain(Loss) | B125: =D125-1 -> 2012 | C125: =E125-1 -> 2012 | D125: =$E$4 -> 2013 | E125: =$E$4 -> 2013
A126: Category | B126: Donors | C126: Gifts ($) | D126: Donors | E126: Gifts ($)
A128: New | B128: n/a | C128: n/a | D128: =FEP1000to4999!D12 -> 6 | E128: =FEP1000to4999!E12 -> 7021
A129: Recaptured | B129: n/a | C129: n/a | D129: =FEP1000to4999!D13 -> 10 | E129: =FEP1000to4999!E13 -> 10519
A130: Upgraded | B130: =FEP1000to4999!B14 -> 55 | C130: =FEP1000to4999!C14 -> 59523 | D130: =FEP1000to4999!D14 -> 55 | E130: =FEP1000to4999!E14 -> 90392
A131: Same | B131: =FEP1000to4999!B15 -> 13 | C131: =FEP1000to4999!C15 -> 14197 | D131: =FEP1000to4999!D15 -> 13 | E131: =FEP1000to4999!E15 -> 14197
A132: Downgraded | B132: =FEP1000to4999!B16 -> 47 | C132: =FEP1000to4999!C16 -> 68748 | D132: =FEP1000to4999!D16 -> 47 | E132: =FEP1000to4999!E16 -> 49099
A133: Lapsed new | B133: =FEP1000to4999!B17 -> 3 | C133: =FEP1000to4999!C17 -> 3750 | D133: n/a | E133: n/a
A134: Lapsed repeat | B134: =FEP1000to4999!B18 -> 12 | C134: =FEP1000to4999!C18 -> 12819 | D134: n/a | E134: n/a
A135: Total | B135: =FEP1000to4999!B19 -> 130 | C135: =FEP1000to4999!C19 -> 159037 | D135: =FEP1000to4999!D19 -> 131 | E135: =FEP1000to4999!E19 -> 171228
B137: Number | C137: Gift$
A138: New in year 1 | B138: =FEP1000to4999!B22 -> 13 | C138: =FEP1000to4999!C22 -> 13678 | D138: <-- i.e., last year's new donors and gift$
A139: Database EOY1 | B139: =FEP1000to4999!B23 -> 170 | D139: <-- i.e., Total number of donors on file at end of Year1
A140: One time donors | B140: =FEP1000to4999!B24 -> 24 | C140: =FEP1000to4999!C24 -> 35401 | D140: <-- i.e., Number of one-time donors and gifts
A141: Recaptured lapsed 1 year | D141: =FEP1000to4999!D25 -> 10 | E141: =FEP1000to4999!E25 -> 10519 | F141: <-- Portion of Recaptured
A142: Monthly donors in Year2 | D142: =FEP1000to4999!D26 -> 63 | E142: =FEP1000to4999!E26 -> 91696 | F142: <-- i.e., Year2 donors making 6 to 24 gifts.
B143: =FEP1000to4999!K23 -> 176 | C143: <-- total # of donors on file | E143: =FEP1000to4999!$K$24 -> 1056 | F143: <-- Total # of gifts in Year2 (vs #donors)
B144: =FEP1000to4999!K25 -> 78 | C144: =FEP1000to4999!L25 -> 370360 | D144: <-- Total # & $ for monthly donors in database
B145: =FEP1000to4999!K26 -> 3 | C145: =FEP1000to4999!L26 -> 3907 | D145: <-- Portion NEW monthly donors in Year2
A150: $5,000 and up | B150: E 5,000 up
A151: Gain(Loss) Data - Software Extract for Year 2 and Year 1 data
B153: Number of | C153: Amount of | D153: Number of | E153: Amount of
A154: Gain(Loss) | B154: =D154-1 -> 2012 | C154: =E154-1 -> 2012 | D154: =$E$4 -> 2013 | E154: =$E$4 -> 2013
A155: Category | B155: Donors | C155: Gifts ($) | D155: Donors | E155: Gifts ($)
A157: New | B157: n/a | C157: n/a | D157: =FEP5000Up!D12 -> 1 | E157: =FEP5000Up!E12 -> 40000
A158: Recaptured | B158: n/a | C158: n/a | D158: =FEP5000Up!D13 -> 3 | E158: =FEP5000Up!E13 -> 22178
A159: Upgraded | B159: =FEP5000Up!B14 -> 11 | C159: =FEP5000Up!C14 -> 35049 | D159: =FEP5000Up!D14 -> 11 | E159: =FEP5000Up!E14 -> 73564
A160: Same | B160: =FEP5000Up!B15 -> 1 | C160: =FEP5000Up!C15 -> 600 | D160: =FEP5000Up!D15 -> 1 | E160: =FEP5000Up!E15 -> 600
A161: Downgraded | B161: =FEP5000Up!B16 -> 10 | C161: =FEP5000Up!C16 -> 117497 | D161: =FEP5000Up!D16 -> 10 | E161: =FEP5000Up!E16 -> 54226
A162: Lapsed new | B162: =FEP5000Up!B17 -> 3 | C162: =FEP5000Up!C17 -> 56000 | D162: n/a | E162: n/a
A163: Lapsed repeat | B163: =FEP5000Up!B18 -> 5 | C163: =FEP5000Up!C18 -> 112100 | D163: n/a | E163: n/a
A164: Total | B164: =FEP5000Up!B19 -> 30 | C164: =FEP5000Up!C19 -> 321246 | D164: =FEP5000Up!D19 -> 26 | E164: =FEP5000Up!E19 -> 190568
B166: Number | C166: Gift$
A167: New in year 1 | B167: =FEP5000Up!B22 -> 6 | C167: =FEP5000Up!C22 -> 95800 | D167: <-- i.e., last year's new donors and gift$
A168: Database EOY1 | B168: =FEP5000Up!B23 -> 55 | D168: <-- i.e., Total number of donors on file at end of Year1
A169: One time donors | B169: =FEP5000Up!B24 -> 20 | C169: =FEP5000Up!C24 -> 351949 | D169: <-- i.e., Number of one-time donors and gifts
A170: Recaptured lapsed 1 year | D170: =FEP5000Up!D25 -> 2 | E170: =FEP5000Up!E25 -> 21678 | F170: <-- Portion of Recaptured
A171: Monthly donors in Year2 | D171: =FEP5000Up!D26 -> 12 | E171: =FEP5000Up!E26 -> 79242 | F171: <-- i.e., Year2 donors making 6 to 24 gifts.
B172: =FEP5000Up!K23 -> 56 | C172: <-- total # of donors on file | E172: =FEP5000Up!$K$24 -> 322 | F172: <-- Total # of gifts in Year2 (vs #donors)
B173: =FEP5000Up!K25 -> 17 | C173: =FEP5000Up!L25 -> 400878 | D173: <-- Total # & $ for monthly donors in database
B174: =FEP5000Up!K26 -> 0 | C174: =FEP5000Up!L26 -> 0 | D174: <-- Portion NEW monthly donors in Year2

Sheet Yr1
A1: To What If | F1: 2014-01-28
A3: Growth-in-Giving is measured for Year 2:
D4: Year 2 | E4: 2012
A5: All donors | B5: All | E5: 12 | F5: <-- Year-end month
A6: Gain(Loss) Data - Software Extract for Year 2 and Year 1 data
B8: Number of | C8: Amount of | D8: Number of | E8: Amount of
A9: Gain(Loss) | B9: 2011 | C9: 2011 | D9: 2012 | E9: 2012
A10: Category | B10: Donors | C10: Gifts ($) | D10: Donors | E10: Gifts ($)
A12: New | B12: n/a | C12: n/a | D12: 1012 | E12: 133838
A13: Recaptured | B13: n/a | C13: n/a | D13: 275 | E13: 54477
A14: Upgraded | B14: 582 | C14: 183332 | D14: 582 | E14: 307294
A15: Same | B15: 299 | C15: 54201 | D15: 299 | E15: 54201
A16: Downgraded | B16: 602 | C16: 314530 | D16: 602 | E16: 187866
A17: Lapsed new | B17: 619 | C17: 103250 | D17: n/a | E17: n/a
A18: Lapsed repeat | B18: 405 | C18: 162936 | D18: n/a | E18: n/a
A19: Total | B19: 2507 | C19: 818249 | D19: 2770 | E19: 737676
B21: Number | C21: Gift$
A22: New in year 1 | B22: 905 | C22: 186095 | D22: <-- i.e., last year's new donors and gift$
A23: Database EOY1 | B23: 5910 | D23: <-- i.e., Total number of donors on file at end of Year1
A24: One time donors | B24: 3069 | C24: 594358 | D24: <-- i.e., Number of one-time donors and gifts
A25: Recaptured lapsed 1 year | D25: 167 | E25: 45006 | F25: <-- Portion of Recaptured
A26: Monthly donors in Year2 | D26: 629 | E26: 352864 | F26: <-- i.e., Year2 donors making 6 to 24 gifts.
B27: 6922 | C27: <-- total # of donors on file | E27: 10946 | F27: <-- Total # of gifts in Year2 (vs #donors)
B28: 1025 | C28: 1641365 | D28: <-- Total # & $ for monthly donors in database
B29: 41 | C29: 14903 | D29: <-- Portion NEW monthly donors in Year2
A34: Under $100 | B34: A 100 dn
A35: Gain(Loss) Data - Software Extract for Year 2 and Year 1 data
B37: Number of | C37: Amount of | D37: Number of | E37: Amount of
A38: Gain(Loss) | B38: 2011 | C38: 2011 | D38: 2012 | E38: 2012
A39: Category | B39: Donors | C39: Gifts ($) | D39: Donors | E39: Gifts ($)
A41: New | B41: n/a | C41: n/a | D41: 684 | E41: 23326
A42: Recaptured | B42: n/a | C42: n/a | D42: 125 | E42: 4465
A43: Upgraded | B43: 99 | C43: 2631 | D43: 99 | E43: 4756
A44: Same | B44: 89 | C44: 3540 | D44: 89 | E44: 3540
A45: Downgraded | B45: 109 | C45: 5519 | D45: 109 | E45: 3069
A46: Lapsed new | B46: 441 | C46: 14912 | D46: n/a | E46: n/a
A47: Lapsed repeat | B47: 156 | C47: 5138 | D47: n/a | E47: n/a
A48: Total | B48: 894 | C48: 31740 | D48: 1106 | E48: 39156
B50: Number | C50: Gift$
A51: New in year 1 | B51: 545 | C51: 18836 | D51: <-- i.e., last year's new donors and gift$
A52: Database EOY1 | B52: 3089 | D52: <-- i.e., Total number of donors on file at end of Year1
A53: One time donors | B53: 2214 | C53: 77232 | D53: <-- i.e., Number of one-time donors and gifts
A54: Recaptured lapsed 1 year | D54: 70 | E54: 2651 | F54: <-- Portion of Recaptured
A55: Monthly donors in Year2 | D55: 10 | E55: 712 | F55: <-- i.e., Year2 donors making 6 to 24 gifts.
B56: 3773 | C56: <-- total # of donors on file | E56: 1434 | F56: <-- Total # of gifts in Year2 (vs #donors)
B57: 49 | C57: 6906 | D57: <-- Total # & $ for monthly donors in database
B58: 2 | C58: 144 | D58: <-- Portion NEW monthly donors in Year2
A63: $100 to $249 | B63: B 100-249
A64: Gain(Loss) Data - Software Extract for Year 2 and Year 1 data
B66: Number of | C66: Amount of | D66: Number of | E66: Amount of
A67: Gain(Loss) | B67: 2011 | C67: 2011 | D67: 2012 | E67: 2012
A68: Category | B68: Donors | C68: Gifts ($) | D68: Donors | E68: Gifts ($)
A70: New | B70: n/a | C70: n/a | D70: 242 | E70: 33245
A71: Recaptured | B71: n/a | C71: n/a | D71: 101 | E71: 8213
A72: Upgraded | B72: 156 | C72: 13647 | D72: 156 | E72: 23331
A73: Same | B73: 133 | C73: 16746 | D73: 133 | E73: 16746
A74: Downgraded | B74: 211 | C74: 31802 | D74: 211 | E74: 20229
A75: Lapsed new | B75: 147 | C75: 19463 | D75: n/a | E75: n/a
A76: Lapsed repeat | B76: 146 | C76: 13272 | D76: n/a | E76: n/a
A77: Total | B77: 793 | C77: 94930 | D77: 843 | E77: 101764
B79: Number | C79: Gift$
A80: New in year 1 | B80: 251 | C80: 32641 | D80: <-- i.e., last year's new donors and gift$
A81: Database EOY1 | B81: 1692 | D81: <-- i.e., Total number of donors on file at end of Year1
A82: One time donors | B82: 702 | C82: 90035 | D82: <-- i.e., Number of one-time donors and gifts
A83: Recaptured lapsed 1 year | D83: 66 | E83: 5320 | F83: <-- Portion of Recaptured
A84: Monthly donors in Year2 | D84: 191 | E84: 33007 | F84: <-- i.e., Year2 donors making 6 to 24 gifts.
B85: 1934 | C85: <-- total # of donors on file | E85: 3026 | F85: <-- Total # of gifts in Year2 (vs #donors)
B86: 362 | C86: 175095 | D86: <-- Total # & $ for monthly donors in database
B87: 19 | C87: 3379 | D87: <-- Portion NEW monthly donors in Year2
A92: $250 to $999 | B92: C 250-999
A93: Gain(Loss) Data - Software Extract for Year 2 and Year 1 data
B95: Number of | C95: Amount of | D95: Number of | E95: Amount of
A96: Gain(Loss) | B96: 2011 | C96: 2011 | D96: 2012 | E96: 2012
A97: Category | B97: Donors | C97: Gifts ($) | D97: Donors | E97: Gifts ($)
A99: New | B99: n/a | C99: n/a | D99: 79 | E99: 30246
A100: Recaptured | B100: n/a | C100: n/a | D100: 36 | E100: 9102
A101: Upgraded | B101: 261 | C101: 72482 | D101: 261 | E101: 115251
A102: Same | B102: 63 | C102: 19118 | D102: 63 | E102: 19118
A103: Downgraded | B103: 225 | C103: 90964 | D103: 225 | E103: 61243
A104: Lapsed new | B104: 25 | C104: 9125 | D104: n/a | E104: n/a
A105: Lapsed repeat | B105: 86 | C105: 19607 | D105: n/a | E105: n/a
A106: Total | B106: 660 | C106: 211296 | D106: 664 | E106: 234960
B108: Number | C108: Gift$
A109: New in year 1 | B109: 90 | C109: 25140 | D109: <-- i.e., last year's new donors and gift$
A110: Database EOY1 | B110: 904 | D110: <-- i.e., Total number of donors on file at end of Year1
A111: One time donors | B111: 109 | C111: 39741 | D111: <-- i.e., Number of one-time donors and gifts
A112: Recaptured lapsed 1 year | D112: 19 | E112: 4838 | F112: <-- Portion of Recaptured
A113: Monthly donors in Year2 | D113: 353 | E113: 148207 | F113: <-- i.e., Year2 donors making 6 to 24 gifts.
B114: 983 | C114: <-- total # of donors on file | E114: 5108 | F114: <-- Total # of gifts in Year2 (vs #donors)
B115: 519 | C115: 688126 | D115: <-- Total # & $ for monthly donors in database
B116: 17 | C116: 7473 | D116: <-- Portion NEW monthly donors in Year2
A121: $1,000 to $4,999 | B121: D 1,000-4,999
A122: Gain(Loss) Data - Software Extract for Year 2 and Year 1 data
B124: Number of | C124: Amount of | D124: Number of | E124: Amount of
A125: Gain(Loss) | B125: 2011 | C125: 2011 | D125: 2012 | E125: 2012
A126: Category | B126: Donors | C126: Gifts ($) | D126: Donors | E126: Gifts ($)
A128: New | B128: n/a | C128: n/a | D128: 6 | E128: 7021
A129: Recaptured | B129: n/a | C129: n/a | D129: 10 | E129: 10519
A130: Upgraded | B130: 55 | C130: 59523 | D130: 55 | E130: 90392
A131: Same | B131: 13 | C131: 14197 | D131: 13 | E131: 14197
A132: Downgraded | B132: 47 | C132: 68748 | D132: 47 | E132: 49099
A133: Lapsed new | B133: 3 | C133: 3750 | D133: n/a | E133: n/a
A134: Lapsed repeat | B134: 12 | C134: 12819 | D134: n/a | E134: n/a
A135: Total | B135: 130 | C135: 159037 | D135: 131 | E135: 171228
B137: Number | C137: Gift$
A138: New in year 1 | B138: 13 | C138: 13678 | D138: <-- i.e., last year's new donors and gift$
A139: Database EOY1 | B139: 170 | D139: <-- i.e., Total number of donors on file at end of Year1
A140: One time donors | B140: 24 | C140: 35401 | D140: <-- i.e., Number of one-time donors and gifts
A141: Recaptured lapsed 1 year | D141: 10 | E141: 10519 | F141: <-- Portion of Recaptured
A142: Monthly donors in Year2 | D142: 63 | E142: 91696 | F142: <-- i.e., Year2 donors making 6 to 24 gifts.
B143: 176 | C143: <-- total # of donors on file | E143: 1056 | F143: <-- Total # of gifts in Year2 (vs #donors)
B144: 78 | C144: 370360 | D144: <-- Total # & $ for monthly donors in database
B145: 3 | C145: 3907 | D145: <-- Portion NEW monthly donors in Year2
A150: $5,000 and up | B150: E 5,000 up
A151: Gain(Loss) Data - Software Extract for Year 2 and Year 1 data
B153: Number of | C153: Amount of | D153: Number of | E153: Amount of
A154: Gain(Loss) | B154: 2011 | C154: 2011 | D154: 2012 | E154: 2012
A155: Category | B155: Donors | C155: Gifts ($) | D155: Donors | E155: Gifts ($)
A157: New | B157: n/a | C157: n/a | D157: 1 | E157: 40000
A158: Recaptured | B158: n/a | C158: n/a | D158: 3 | E158: 22178
A159: Upgraded | B159: 11 | C159: 35049 | D159: 11 | E159: 73564
A160: Same | B160: 1 | C160: 600 | D160: 1 | E160: 600
A161: Downgraded | B161: 10 | C161: 117497 | D161: 10 | E161: 54226
A162: Lapsed new | B162: 3 | C162: 56000 | D162: n/a | E162: n/a
A163: Lapsed repeat | B163: 5 | C163: 112100 | D163: n/a | E163: n/a
A164: Total | B164: 30 | C164: 321246 | D164: 26 | E164: 190568
B166: Number | C166: Gift$
A167: New in year 1 | B167: 6 | C167: 95800 | D167: <-- i.e., last year's new donors and gift$
A168: Database EOY1 | B168: 55 | D168: <-- i.e., Total number of donors on file at end of Year1
A169: One time donors | B169: 20 | C169: 351949 | D169: <-- i.e., Number of one-time donors and gifts
A170: Recaptured lapsed 1 year | D170: 2 | E170: 21678 | F170: <-- Portion of Recaptured
A171: Monthly donors in Year2 | D171: 12 | E171: 79242 | F171: <-- i.e., Year2 donors making 6 to 24 gifts.
B172: 56 | C172: <-- total # of donors on file | E172: 322 | F172: <-- Total # of gifts in Year2 (vs #donors)
B173: 17 | C173: 400878 | D173: <-- Total # & $ for monthly donors in database
B174: 0 | C174: 0 | D174: <-- Portion NEW monthly donors in Year2

Sheet Yr2
A1: To What If | F1: 2014-01-28
A3: Growth-in-Giving is measured for Year 2:
D4: Year 2 | E4: 2011
A5: All donors | B5: All | E5: 12 | F5: <-- Year-end month
A6: Gain(Loss) Data - Software Extract for Year 2 and Year 1 data
B8: Number of | C8: Amount of | D8: Number of | E8: Amount of
A9: Gain(Loss) | B9: 2010 | C9: 2010 | D9: 2011 | E9: 2011
A10: Category | B10: Donors | C10: Gifts ($) | D10: Donors | E10: Gifts ($)
A12: New | B12: n/a | C12: n/a | D12: 905 | E12: 186095
A13: Recaptured | B13: n/a | C13: n/a | D13: 254 | E13: 33871
A14: Upgraded | B14: 641 | C14: 181338 | D14: 641 | E14: 430600
A15: Same | B15: 293 | C15: 61136 | D15: 293 | E15: 61136
A16: Downgraded | B16: 414 | C16: 245298 | D16: 414 | E16: 106547
A17: Lapsed new | B17: 605 | C17: 136438 | D17: n/a | E17: n/a
A18: Lapsed repeat | B18: 315 | C18: 43688 | D18: n/a | E18: n/a
A19: Total | B19: 2268 | C19: 667898 | D19: 2507 | E19: 818249
B21: Number | C21: Gift$
A22: New in year 1 | B22: 931 | C22: 244660 | D22: <-- i.e., last year's new donors and gift$
A23: Database EOY1 | B23: 5005 | D23: <-- i.e., Total number of donors on file at end of Year1
A24: One time donors | B24: 2450 | C24: 491108 | D24: <-- i.e., Number of one-time donors and gifts
A25: Recaptured lapsed 1 year | D25: 117 | E25: 13602 | F25: <-- Portion of Recaptured
A26: Monthly donors in Year2 | D26: 608 | E26: 354993 | F26: <-- i.e., Year2 donors making 6 to 24 gifts.
B27: 6922 | C27: <-- total # of donors on file | E27: 10313 | F27: <-- Total # of gifts in Year2 (vs #donors)
B28: 1025 | C28: 1641365 | D28: <-- Total # & $ for monthly donors in database
B29: 39 | C29: 13619 | D29: <-- Portion NEW monthly donors in Year2
A34: Under $100 | B34: A 100 dn
A35: Gain(Loss) Data - Software Extract for Year 2 and Year 1 data
B37: Number of | C37: Amount of | D37: Number of | E37: Amount of
A38: Gain(Loss) | B38: 2010 | C38: 2010 | D38: 2011 | E38: 2011
A39: Category | B39: Donors | C39: Gifts ($) | D39: Donors | E39: Gifts ($)
A41: New | B41: n/a | C41: n/a | D41: 545 | E41: 18836
A42: Recaptured | B42: n/a | C42: n/a | D42: 102 | E42: 3464
A43: Upgraded | B43: 93 | C43: 2508 | D43: 93 | E43: 4502
A44: Same | B44: 76 | C44: 2700 | D44: 76 | E44: 2700
A45: Downgraded | B45: 78 | C45: 3796 | D45: 78 | E45: 2238
A46: Lapsed new | B46: 418 | C46: 14533 | D46: n/a | E46: n/a
A47: Lapsed repeat | B47: 123 | C47: 4043 | D47: n/a | E47: n/a
A48: Total | B48: 788 | C48: 27580 | D48: 894 | E48: 31740
B50: Number | C50: Gift$
A51: New in year 1 | B51: 523 | C51: 18135 | D51: <-- i.e., last year's new donors and gift$
A52: Database EOY1 | B52: 2544 | D52: <-- i.e., Total number of donors on file at end of Year1
A53: One time donors | B53: 1773 | C53: 62320 | D53: <-- i.e., Number of one-time donors and gifts
A54: Recaptured lapsed 1 year | D54: 48 | E54: 1697 | F54: <-- Portion of Recaptured
A55: Monthly donors in Year2 | D55: 9 | E55: 653 | F55: <-- i.e., Year2 donors making 6 to 24 gifts.
B56: 3773 | C56: <-- total # of donors on file | E56: 1143 | F56: <-- Total # of gifts in Year2 (vs #donors)
B57: 49 | C57: 6906 | D57: <-- Total # & $ for monthly donors in database
B58: 3 | C58: 214 | D58: <-- Portion NEW monthly donors in Year2
A63: $100 to $249 | B63: B 100-249
A64: Gain(Loss) Data - Software Extract for Year 2 and Year 1 data
B66: Number of | C66: Amount of | D66: Number of | E66: Amount of
A67: Gain(Loss) | B67: 2010 | C67: 2010 | D67: 2011 | E67: 2011
A68: Category | B68: Donors | C68: Gifts ($) | D68: Donors | E68: Gifts ($)
A70: New | B70: n/a | C70: n/a | D70: 251 | E70: 32641
A71: Recaptured | B71: n/a | C71: n/a | D71: 100 | E71: 8302
A72: Upgraded | B72: 174 | C72: 15835 | D72: 174 | E72: 25995
A73: Same | B73: 131 | C73: 16638 | D73: 131 | E73: 16638
A74: Downgraded | B74: 137 | C74: 19071 | D74: 137 | E74: 11354
A75: Lapsed new | B75: 147 | C75: 19204 | D75: n/a | E75: n/a
A76: Lapsed repeat | B76: 121 | C76: 11168 | D76: n/a | E76: n/a
A77: Total | B77: 710 | C77: 81916 | D77: 793 | E77: 94930
B79: Number | C79: Gift$
A80: New in year 1 | B80: 257 | C80: 29668 | D80: <-- i.e., last year's new donors and gift$
A81: Database EOY1 | B81: 1441 | D81: <-- i.e., Total number of donors on file at end of Year1
A82: One time donors | B82: 555 | C82: 70572 | D82: <-- i.e., Number of one-time donors and gifts
A83: Recaptured lapsed 1 year | D83: 45 | E83: 4061 | F83: <-- Portion of Recaptured
A84: Monthly donors in Year2 | D84: 186 | E84: 32002 | F84: <-- i.e., Year2 donors making 6 to 24 gifts.
B85: 1934 | C85: <-- total # of donors on file | E85: 2922 | F85: <-- Total # of gifts in Year2 (vs #donors)
B86: 362 | C86: 175095 | D86: <-- Total # & $ for monthly donors in database
B87: 18 | C87: 2981 | D87: <-- Portion NEW monthly donors in Year2
A92: $250 to $999 | B92: C 250-999
A93: Gain(Loss) Data - Software Extract for Year 2 and Year 1 data
B95: Number of | C95: Amount of | D95: Number of | E95: Amount of
A96: Gain(Loss) | B96: 2010 | C96: 2010 | D96: 2011 | E96: 2011
A97: Category | B97: Donors | C97: Gifts ($) | D97: Donors | E97: Gifts ($)
A99: New | B99: n/a | C99: n/a | D99: 90 | E99: 25140
A100: Recaptured | B100: n/a | C100: n/a | D100: 44 | E100: 10170
A101: Upgraded | B101: 300 | C101: 73535 | D101: 300 | E101: 118687
A102: Same | B102: 66 | C102: 19614 | D102: 66 | E102: 19614
A103: Downgraded | B103: 160 | C103: 59229 | D103: 160 | E103: 37685
A104: Lapsed new | B104: 30 | C104: 9217 | D104: n/a | E104: n/a
A105: Lapsed repeat | B105: 59 | C105: 12871 | D105: n/a | E105: n/a
A106: Total | B106: 615 | C106: 174466 | D106: 660 | E106: 211296
B108: Number | C108: Gift$
A109: New in year 1 | B109: 122 | C109: 26516 | D109: <-- i.e., last year's new donors and gift$
A110: Database EOY1 | B110: 814 | D110: <-- i.e., Total number of donors on file at end of Year1
A111: One time donors | B111: 84 | C111: 30616 | D111: <-- i.e., Number of one-time donors and gifts
A112: Recaptured lapsed 1 year | D112: 21 | E112: 4994 | F112: <-- Portion of Recaptured
A113: Monthly donors in Year2 | D113: 340 | E113: 136625 | F113: <-- i.e., Year2 donors making 6 to 24 gifts.
B114: 983 | C114: <-- total # of donors on file | E114: 4943 | F114: <-- Total # of gifts in Year2 (vs #donors)
B115: 519 | C115: 688126 | D115: <-- Total # & $ for monthly donors in database
B116: 14 | C116: 5384 | D116: <-- Portion NEW monthly donors in Year2
A121: $1,000 to $4,999 | B121: D 1,000-4,999
A122: Gain(Loss) Data - Software Extract for Year 2 and Year 1 data
B124: Number of | C124: Amount of | D124: Number of | E124: Amount of
A125: Gain(Loss) | B125: 2010 | C125: 2010 | D125: 2011 | E125: 2011
A126: Category | B126: Donors | C126: Gifts ($) | D126: Donors | E126: Gifts ($)
A128: New | B128: n/a | C128: n/a | D128: 13 | E128: 13678
A129: Recaptured | B129: n/a | C129: n/a | D129: 7 | E129: 4285
A130: Upgraded | B130: 61 | C130: 51696 | D130: 61 | E130: 96752
A131: Same | B131: 18 | C131: 20884 | D131: 18 | E131: 20884
A132: Downgraded | B132: 31 | C132: 42478 | D132: 31 | E132: 23438
A133: Lapsed new | B133: 7 | C133: 13035 | D133: n/a | E133: n/a
A134: Lapsed repeat | B134: 9 | C134: 8366 | D134: n/a | E134: n/a
A135: Total | B135: 126 | C135: 136459 | D135: 130 | E135: 159037
B137: Number | C137: Gift$
A138: New in year 1 | B138: 23 | C138: 25327 | D138: <-- i.e., last year's new donors and gift$
A139: Database EOY1 | B139: 157 | D139: <-- i.e., Total number of donors on file at end of Year1
A140: One time donors | B140: 21 | C140: 31651 | D140: <-- i.e., Number of one-time donors and gifts
A141: Recaptured lapsed 1 year | D141: 3 | E141: 2850 | F141: <-- Portion of Recaptured
A142: Monthly donors in Year2 | D142: 59 | E142: 84776 | F142: <-- i.e., Year2 donors making 6 to 24 gifts.
B143: 176 | C143: <-- total # of donors on file | E143: 1009 | F143: <-- Total # of gifts in Year2 (vs #donors)
B144: 78 | C144: 370360 | D144: <-- Total # & $ for monthly donors in database
B145: 4 | C145: 5040 | D145: <-- Portion NEW monthly donors in Year2
A150: $5,000 and up | B150: E 5,000 up
A151: Gain(Loss) Data - Software Extract for Year 2 and Year 1 data
B153: Number of | C153: Amount of | D153: Number of | E153: Amount of
A154: Gain(Loss) | B154: 2010 | C154: 2010 | D154: 2011 | E154: 2011
A155: Category | B155: Donors | C155: Gifts ($) | D155: Donors | E155: Gifts ($)
A157: New | B157: n/a | C157: n/a | D157: 6 | E157: 95800
A158: Recaptured | B158: n/a | C158: n/a | D158: 1 | E158: 7650
A159: Upgraded | B159: 13 | C159: 37764 | D159: 13 | E159: 184664
A160: Same | B160: 2 | C160: 1300 | D160: 2 | E160: 1300
A161: Downgraded | B161: 8 | C161: 120724 | D161: 8 | E161: 31832
A162: Lapsed new | B162: 3 | C162: 80449 | D162: n/a | E162: n/a
A163: Lapsed repeat | B163: 3 | C163: 7240 | D163: n/a | E163: n/a
A164: Total | B164: 29 | C164: 247477 | D164: 30 | E164: 321246
B166: Number | C166: Gift$
A167: New in year 1 | B167: 6 | C167: 145014 | D167: <-- i.e., last year's new donors and gift$
A168: Database EOY1 | B168: 49 | D168: <-- i.e., Total number of donors on file at end of Year1
A169: One time donors | B169: 17 | C169: 295949 | D169: <-- i.e., Number of one-time donors and gifts
A170: Recaptured lapsed 1 year | D170: 0 | E170: 0 | F170: <-- Portion of Recaptured
A171: Monthly donors in Year2 | D171: 14 | E171: 100937 | F171: <-- i.e., Year2 donors making 6 to 24 gifts.
B172: 56 | C172: <-- total # of donors on file | E172: 296 | F172: <-- Total # of gifts in Year2 (vs #donors)
B173: 17 | C173: 400878 | D173: <-- Total # & $ for monthly donors in database
B174: 0 | C174: 0 | D174: <-- Portion NEW monthly donors in Year2

Sheet Yr3
A1: To What If | F1: 2014-01-28
A3: Growth-in-Giving is measured for Year 2:
D4: Year 2 | E4: 2010
A5: All donors | B5: All | E5: 12 | F5: <-- Year-end month
A6: Gain(Loss) Data - Software Extract for Year 2 and Year 1 data
B8: Number of | C8: Amount of | D8: Number of | E8: Amount of
A9: Gain(Loss) | B9: 2009 | C9: 2009 | D9: 2010 | E9: 2010
A10: Category | B10: Donors | C10: Gifts ($) | D10: Donors | E10: Gifts ($)
A12: New | B12: n/a | C12: n/a | D12: 931 | E12: 244660
A13: Recaptured | B13: n/a | C13: n/a | D13: 223 | E13: 52477
A14: Upgraded | B14: 492 | C14: 125463 | D14: 492 | E14: 207679
A15: Same | B15: 273 | C15: 55384 | D15: 273 | E15: 55384
A16: Downgraded | B16: 349 | C16: 173075 | D16: 349 | E16: 107698
A17: Lapsed new | B17: 519 | C17: 204020 | D17: n/a | E17: n/a
A18: Lapsed repeat | B18: 200 | C18: 23230 | D18: n/a | E18: n/a
A19: Total | B19: 1833 | C19: 581172 | D19: 2268 | E19: 667898
B21: Number | C21: Gift$
A22: New in year 1 | B22: 877 | C22: 258356 | D22: <-- i.e., last year's new donors and gift$
A23: Database EOY1 | B23: 4074 | D23: <-- i.e., Total number of donors on file at end of Year1
A24: One time donors | B24: 1911 | C24: 366620 | D24: <-- i.e., Number of one-time donors and gifts
A25: Recaptured lapsed 1 year | D25: 137 | E25: 43595 | F25: <-- Portion of Recaptured
A26: Monthly donors in Year2 | D26: 541 | E26: 232065 | F26: <-- i.e., Year2 donors making 6 to 24 gifts.
B27: 6922 | C27: <-- total # of donors on file | E27: 9045 | F27: <-- Total # of gifts in Year2 (vs #donors)
B28: 1025 | C28: 1641365 | D28: <-- Total # & $ for monthly donors in database
B29: 56 | C29: 13276 | D29: <-- Portion NEW monthly donors in Year2
A34: Under $100 | B34: A 100 dn
A35: Gain(Loss) Data - Software Extract for Year 2 and Year 1 data
B37: Number of | C37: Amount of | D37: Number of | E37: Amount of
A38: Gain(Loss) | B38: 2009 | C38: 2009 | D38: 2010 | E38: 2010
A39: Category | B39: Donors | C39: Gifts ($) | D39: Donors | E39: Gifts ($)
A41: New | B41: n/a | C41: n/a | D41: 523 | E41: 18135
A42: Recaptured | B42: n/a | C42: n/a | D42: 100 | E42: 3494
A43: Upgraded | B43: 52 | C43: 1383 | D43: 52 | E43: 2460
A44: Same | B44: 60 | C44: 2058 | D44: 60 | E44: 2058
A45: Downgraded | B45: 53 | C45: 2652 | D45: 53 | E45: 1433
A46: Lapsed new | B46: 345 | C46: 12103 | D46: n/a | E46: n/a
A47: Lapsed repeat | B47: 58 | C47: 2126 | D47: n/a | E47: n/a
A48: Total | B48: 568 | C48: 20322 | D48: 788 | E48: 27580
B50: Number | C50: Gift$
A51: New in year 1 | B51: 432 | C51: 15150 | D51: <-- i.e., last year's new donors and gift$
A52: Database EOY1 | B52: 2021 | D52: <-- i.e., Total number of donors on file at end of Year1
A53: One time donors | B53: 1387 | C53: 48922 | D53: <-- i.e., Number of one-time donors and gifts
A54: Recaptured lapsed 1 year | D54: 55 | E54: 1872 | F54: <-- Portion of Recaptured
A55: Monthly donors in Year2 | D55: 8 | E55: 552 | F55: <-- i.e., Year2 donors making 6 to 24 gifts.
B56: 3773 | C56: <-- total # of donors on file | E56: 978 | F56: <-- Total # of gifts in Year2 (vs #donors)
B57: 49 | C57: 6906 | D57: <-- Total # & $ for monthly donors in database
B58: 1 | C58: 40 | D58: <-- Portion NEW monthly donors in Year2
A63: $100 to $249 | B63: B 100-249
A64: Gain(Loss) Data - Software Extract for Year 2 and Year 1 data
B66: Number of | C66: Amount of | D66: Number of | E66: Amount of
A67: Gain(Loss) | B67: 2009 | C67: 2009 | D67: 2010 | E67: 2010
A68: Category | B68: Donors | C68: Gifts ($) | D68: Donors | E68: Gifts ($)
A70: New | B70: n/a | C70: n/a | D70: 257 | E70: 29668
A71: Recaptured | B71: n/a | C71: n/a | D71: 81 | E71: 7291
A72: Upgraded | B72: 138 | C72: 11415 | D72: 138 | E72: 20787
A73: Same | B73: 121 | C73: 14944 | D73: 121 | E73: 14944
A74: Downgraded | B74: 113 | C74: 15868 | D74: 113 | E74: 9226
A75: Lapsed new | B75: 136 | C75: 16799 | D75: n/a | E75: n/a
A76: Lapsed repeat | B76: 86 | C76: 7417 | D76: n/a | E76: n/a
A77: Total | B77: 594 | C77: 66443 | D77: 710 | E77: 81916
B79: Number | C79: Gift$
A80: New in year 1 | B80: 267 | C80: 30231 | D80: <-- i.e., last year's new donors and gift$
A81: Database EOY1 | B81: 1184 | D81: <-- i.e., Total number of donors on file at end of Year1
A82: One time donors | B82: 430 | C82: 53728 | D82: <-- i.e., Number of one-time donors and gifts
A83: Recaptured lapsed 1 year | D83: 54 | E83: 4750 | F83: <-- Portion of Recaptured
A84: Monthly donors in Year2 | D84: 164 | E84: 27518 | F84: <-- i.e., Year2 donors making 6 to 24 gifts.
B85: 1934 | C85: <-- total # of donors on file | E85: 2639 | F85: <-- Total # of gifts in Year2 (vs #donors)
B86: 362 | C86: 175095 | D86: <-- Total # & $ for monthly donors in database
B87: 22 | C87: 3455 | D87: <-- Portion NEW monthly donors in Year2
A92: $250 to $999 | B92: C 250-999
A93: Gain(Loss) Data - Software Extract for Year 2 and Year 1 data
B95: Number of | C95: Amount of | D95: Number of | E95: Amount of
A96: Gain(Loss) | B96: 2009 | C96: 2009 | D96: 2010 | E96: 2010
A97: Category | B97: Donors | C97: Gifts ($) | D97: Donors | E97: Gifts ($)
A99: New | B99: n/a | C99: n/a | D99: 122 | E99: 26516
A100: Recaptured | B100: n/a | C100: n/a | D100: 35 | E100: 6272
A101: Upgraded | B101: 239 | C101: 52898 | D101: 239 | E101: 86415
A102: Same | B102: 78 | C102: 24772 | D102: 78 | E102: 24772
A103: Downgraded | B103: 141 | C103: 52589 | D103: 141 | E103: 30491
A104: Lapsed new | B104: 26 | C104: 8118 | D104: n/a | E104: n/a
A105: Lapsed repeat | B105: 49 | C105: 8737 | D105: n/a | E105: n/a
A106: Total | B106: 533 | C106: 147114 | D106: 615 | E106: 174466
B108: Number | C108: Gift$
A109: New in year 1 | B109: 147 | C109: 35154 | D109: <-- i.e., last year's new donors and gift$
A110: Database EOY1 | B110: 692 | D110: <-- i.e., Total number of donors on file at end of Year1
A111: One time donors | B111: 62 | C111: 22719 | D111: <-- i.e., Number of one-time donors and gifts
A112: Recaptured lapsed 1 year | D112: 25 | E112: 4653 | F112: <-- Portion of Recaptured
A113: Monthly donors in Year2 | D113: 309 | E113: 110527 | F113: <-- i.e., Year2 donors making 6 to 24 gifts.
B114: 983 | C114: <-- total # of donors on file | E114: 4300 | F114: <-- Total # of gifts in Year2 (vs #donors)
B115: 519 | C115: 688126 | D115: <-- Total # & $ for monthly donors in database
B116: 32 | C116: 8540 | D116: <-- Portion NEW monthly donors in Year2
A121: $1,000 to $4,999 | B121: D 1,000-4,999
A122: Gain(Loss) Data - Software Extract for Year 2 and Year 1 data
B124: Number of | C124: Amount of | D124: Number of | E124: Amount of
A125: Gain(Loss) | B125: 2009 | C125: 2009 | D125: 2010 | E125: 2010
A126: Category | B126: Donors | C126: Gifts ($) | D126: Donors | E126: Gifts ($)
A128: New | B128: n/a | C128: n/a | D128: 23 | E128: 25327
A129: Recaptured | B129: n/a | C129: n/a | D129: 5 | E129: 4420
A130: Upgraded | B130: 55 | C130: 45618 | D130: 55 | E130: 73328
A131: Same | B131: 14 | C131: 13610 | D131: 14 | E131: 13610
A132: Downgraded | B132: 29 | C132: 34853 | D132: 29 | E132: 19774
A133: Lapsed new | B133: 3 | C133: 4500 | D133: n/a | E133: n/a
A134: Lapsed repeat | B134: 6 | C134: 2450 | D134: n/a | E134: n/a
A135: Total | B135: 107 | C135: 101031 | D135: 126 | E135: 136459
B137: Number | C137: Gift$
A138: New in year 1 | B138: 21 | C138: 14321 | D138: <-- i.e., last year's new donors and gift$
A139: Database EOY1 | B139: 134 | D139: <-- i.e., Total number of donors on file at end of Year1
A140: One time donors | B140: 18 | C140: 25751 | D140: <-- i.e., Number of one-time donors and gifts
A141: Recaptured lapsed 1 year | D141: 2 | E141: 2020 | F141: <-- Portion of Recaptured
A142: Monthly donors in Year2 | D142: 50 | E142: 54840 | F142: <-- i.e., Year2 donors making 6 to 24 gifts.
B143: 176 | C143: <-- total # of donors on file | E143: 837 | F143: <-- Total # of gifts in Year2 (vs #donors)
B144: 78 | C144: 370360 | D144: <-- Total # & $ for monthly donors in database
B145: 1 | C145: 1241 | D145: <-- Portion NEW monthly donors in Year2
A150: $5,000 and up | B150: E 5,000 up
A151: Gain(Loss) Data - Software Extract for Year 2 and Year 1 data
B153: Number of | C153: Amount of | D153: Number of | E153: Amount of
A154: Gain(Loss) | B154: 2009 | C154: 2009 | D154: 2010 | E154: 2010
A155: Category | B155: Donors | C155: Gifts ($) | D155: Donors | E155: Gifts ($)
A157: New | B157: n/a | C157: n/a | D157: 6 | E157: 145014
A158: Recaptured | B158: n/a | C158: n/a | D158: 2 | E158: 31000
A159: Upgraded | B159: 8 | C159: 14149 | D159: 8 | E159: 24689
A160: Same | B160: 0 | C160: 0 | D160: 0 | E160: 0
A161: Downgraded | B161: 13 | C161: 67113 | D161: 13 | E161: 46774
A162: Lapsed new | B162: 9 | C162: 162500 | D162: n/a | E162: n/a
A163: Lapsed repeat | B163: 1 | C163: 2500 | D163: n/a | E163: n/a
A164: Total | B164: 31 | C164: 246262 | D164: 29 | E164: 247477
B166: Number | C166: Gift$
A167: New in year 1 | B167: 10 | C167: 163500 | D167: <-- i.e., last year's new donors and gift$
A168: Database EOY1 | B168: 43 | D168: <-- i.e., Total number of donors on file at end of Year1
A169: One time donors | B169: 14 | C169: 215500 | D169: <-- i.e., Number of one-time donors and gifts
A170: Recaptured lapsed 1 year | D170: 1 | E170: 30300 | F170: <-- Portion of Recaptured
A171: Monthly donors in Year2 | D171: 10 | E171: 38628 | F171: <-- i.e., Year2 donors making 6 to 24 gifts.
B172: 56 | C172: <-- total # of donors on file | E172: 291 | F172: <-- Total # of gifts in Year2 (vs #donors)
B173: 17 | C173: 400878 | D173: <-- Total # & $ for monthly donors in database
B174: 0 | C174: 0 | D174: <-- Portion NEW monthly donors in Year2

Sheet Yr4
A1: To What If | F1: 2014-01-28
A3: Growth-in-Giving is measured for Year 2:
D4: Year 2 | E4: 2009
A5: All donors | B5: All | E5: 12 | F5: <-- Year-end month
A6: Gain(Loss) Data - Software Extract for Year 2 and Year 1 data
B8: Number of | C8: Amount of | D8: Number of | E8: Amount of
A9: Gain(Loss) | B9: 2008 | C9: 2008 | D9: 2009 | E9: 2009
A10: Category | B10: Donors | C10: Gifts ($) | D10: Donors | E10: Gifts ($)
A12: New | B12: n/a | C12: n/a | D12: 877 | E12: 258356
A13: Recaptured | B13: n/a | C13: n/a | D13: 131 | E13: 21728
A14: Upgraded | B14: 332 | C14: 101412 | D14: 332 | E14: 181969
A15: Same | B15: 211 | C15: 42644 | D15: 211 | E15: 42644
A16: Downgraded | B16: 282 | C16: 152258 | D16: 282 | E16: 76475
A17: Lapsed new | B17: 482 | C17: 44859 | D17: n/a | E17: n/a
A18: Lapsed repeat | B18: 203 | C18: 71568 | D18: n/a | E18: n/a
A19: Total | B19: 1510 | C19: 412741 | D19: 1833 | E19: 581172
B21: Number | C21: Gift$
A22: New in year 1 | B22: 738 | C22: 98361 | D22: <-- i.e., last year's new donors and gift$
A23: Database EOY1 | B23: 3197 | D23: <-- i.e., Total number of donors on file at end of Year1
A24: One time donors | B24: 1484 | C24: 182678 | D24: <-- i.e., Number of one-time donors and gifts
A25: Recaptured lapsed 1 year | D25: 84 | E25: 15369 | F25: <-- Portion of Recaptured
A26: Monthly donors in Year2 | D26: 464 | E26: 204006 | F26: <-- i.e., Year2 donors making 6 to 24 gifts.
B27: 6922 | C27: <-- total # of donors on file | E27: 7615 | F27: <-- Total # of gifts in Year2 (vs #donors)
B28: 1025 | C28: 1641365 | D28: <-- Total # & $ for monthly donors in database
B29: 72 | C29: 23648 | D29: <-- Portion NEW monthly donors in Year2
A34: Under $100 | B34: A 100 dn
A35: Gain(Loss) Data - Software Extract for Year 2 and Year 1 data
B37: Number of | C37: Amount of | D37: Number of | E37: Amount of
A38: Gain(Loss) | B38: 2008 | C38: 2008 | D38: 2009 | E38: 2009
A39: Category | B39: Donors | C39: Gifts ($) | D39: Donors | E39: Gifts ($)
A41: New | B41: n/a | C41: n/a | D41: 432 | E41: 15150
A42: Recaptured | B42: n/a | C42: n/a | D42: 21 | E42: 859
A43: Upgraded | B43: 35 | C43: 956 | D43: 35 | E43: 1825
A44: Same | B44: 35 | C44: 1234 | D44: 35 | E44: 1234
A45: Downgraded | B45: 45 | C45: 2348 | D45: 45 | E45: 1254
A46: Lapsed new | B46: 334 | C46: 12012 | D46: n/a | E46: n/a
A47: Lapsed repeat | B47: 87 | C47: 2996 | D47: n/a | E47: n/a
A48: Total | B48: 536 | C48: 19546 | D48: 568 | E48: 20322
B50: Number | C50: Gift$
A51: New in year 1 | B51: 387 | C51: 14075 | D51: <-- i.e., last year's new donors and gift$
A52: Database EOY1 | B52: 1589 | D52: <-- i.e., Total number of donors on file at end of Year1
A53: One time donors | B53: 1089 | C53: 38391 | D53: <-- i.e., Number of one-time donors and gifts
A54: Recaptured lapsed 1 year | D54: 6 | E54: 235 | F54: <-- Portion of Recaptured
A55: Monthly donors in Year2 | D55: 7 | E55: 465 | F55: <-- i.e., Year2 donors making 6 to 24 gifts.
B56: 3773 | C56: <-- total # of donors on file | E56: 725 | F56: <-- Total # of gifts in Year2 (vs #donors)
B57: 49 | C57: 6906 | D57: <-- Total # & $ for monthly donors in database
B58: 1 | C58: 40 | D58: <-- Portion NEW monthly donors in Year2
A63: $100 to $249 | B63: B 100-249
A64: Gain(Loss) Data - Software Extract for Year 2 and Year 1 data
B66: Number of | C66: Amount of | D66: Number of | E66: Amount of
A67: Gain(Loss) | B67: 2008 | C67: 2008 | D67: 2009 | E67: 2009
A68: Category | B68: Donors | C68: Gifts ($) | D68: Donors | E68: Gifts ($)
A70: New | B70: n/a | C70: n/a | D70: 267 | E70: 30231
A71: Recaptured | B71: n/a | C71: n/a | D71: 57 | E71: 4708
A72: Upgraded | B72: 85 | C72: 6697 | D72: 85 | E72: 12804
A73: Same | B73: 88 | C73: 11490 | D73: 88 | E73: 11490
A74: Downgraded | B74: 97 | C74: 13127 | D74: 97 | E74: 7210
A75: Lapsed new | B75: 117 | C75: 14456 | D75: n/a | E75: n/a
A76: Lapsed repeat | B76: 69 | C76: 5948 | D76: n/a | E76: n/a
A77: Total | B77: 456 | C77: 51718 | D77: 594 | E77: 66443
B79: Number | C79: Gift$
A80: New in year 1 | B80: 214 | C80: 23869 | D80: <-- i.e., last year's new donors and gift$
A81: Database EOY1 | B81: 917 | D81: <-- i.e., Total number of donors on file at end of Year1
A82: One time donors | B82: 324 | C82: 40050 | D82: <-- i.e., Number of one-time donors and gifts
A83: Recaptured lapsed 1 year | D83: 43 | E83: 3437 | F83: <-- Portion of Recaptured
A84: Monthly donors in Year2 | D84: 138 | E84: 21886 | F84: <-- i.e., Year2 donors making 6 to 24 gifts.
B85: 1934 | C85: <-- total # of donors on file | E85: 2220 | F85: <-- Total # of gifts in Year2 (vs #donors)
B86: 362 | C86: 175095 | D86: <-- Total # & $ for monthly donors in database
B87: 16 | C87: 2607 | D87: <-- Portion NEW monthly donors in Year2
A92: $250 to $999 | B92: C 250-999
A93: Gain(Loss) Data - Software Extract for Year 2 and Year 1 data
B95: Number of | C95: Amount of | D95: Number of | E95: Amount of
A96: Gain(Loss) | B96: 2008 | C96: 2008 | D96: 2009 | E96: 2009
A97: Category | B97: Donors | C97: Gifts ($) | D97: Donors | E97: Gifts ($)
A99: New | B99: n/a | C99: n/a | D99: 147 | E99: 35154
A100: Recaptured | B100: n/a | C100: n/a | D100: 42 | E100: 7991
A101: Upgraded | B101: 158 | C101: 35009 | D101: 158 | E101: 58386
A102: Same | B102: 81 | C102: 24384 | D102: 81 | E102: 24384
A103: Downgraded | B103: 105 | C103: 38146 | D103: 105 | E103: 21199
A104: Lapsed new | B104: 25 | C104: 6590 | D104: n/a | E104: n/a
A105: Lapsed repeat | B105: 41 | C105: 9648 | D105: n/a | E105: n/a
A106: Total | B106: 410 | C106: 113777 | D106: 533 | E106: 147114
B108: Number | C108: Gift$
A109: New in year 1 | B109: 116 | C109: 27299 | D109: <-- i.e., last year's new donors and gift$
A110: Database EOY1 | B110: 545 | D110: <-- i.e., Total number of donors on file at end of Year1
A111: One time donors | B111: 50 | C111: 17986 | D111: <-- i.e., Number of one-time donors and gifts
A112: Recaptured lapsed 1 year | D112: 29 | E112: 5877 | F112: <-- Portion of Recaptured
A113: Monthly donors in Year2 | D113: 260 | E113: 87452 | F113: <-- i.e., Year2 donors making 6 to 24 gifts.
B114: 983 | C114: <-- total # of donors on file | E114: 3604 | F114: <-- Total # of gifts in Year2 (vs #donors)
B115: 519 | C115: 688126 | D115: <-- Total # & $ for monthly donors in database
B116: 50 | C116: 15345 | D116: <-- Portion NEW monthly donors in Year2
A121: $1,000 to $4,999 | B121: D 1,000-4,999
A122: Gain(Loss) Data - Software Extract for Year 2 and Year 1 data
B124: Number of | C124: Amount of | D124: Number of | E124: Amount of
A125: Gain(Loss) | B125: 2008 | C125: 2008 | D125: 2009 | E125: 2009
A126: Category | B126: Donors | C126: Gifts ($) | D126: Donors | E126: Gifts ($)
A128: New | B128: n/a | C128: n/a | D128: 21 | E128: 14321
A129: Recaptured | B129: n/a | C129: n/a | D129: 10 | E129: 7730
A130: Upgraded | B130: 44 | C130: 32117 | D130: 44 | E130: 56854
A131: Same | B131: 6 | C131: 5248 | D131: 6 | E131: 5248
A132: Downgraded | B132: 26 | C132: 29005 | D132: 26 | E132: 16878
A133: Lapsed new | B133: 5 | C133: 6801 | D133: n/a | E133: n/a
A134: Lapsed repeat | B134: 3 | C134: 1350 | D134: n/a | E134: n/a
A135: Total | B135: 84 | C135: 74521 | D135: 107 | E135: 101031
B137: Number | C137: Gift$
A138: New in year 1 | B138: 18 | C138: 13118 | D138: <-- i.e., last year's new donors and gift$
A139: Database EOY1 | B139: 113 | D139: <-- i.e., Total number of donors on file at end of Year1
A140: One time donors | B140: 15 | C140: 21251 | D140: <-- i.e., Number of one-time donors and gifts
A141: Recaptured lapsed 1 year | D141: 5 | E141: 5380 | F141: <-- Portion of Recaptured
A142: Monthly donors in Year2 | D142: 49 | E142: 47753 | F142: <-- i.e., Year2 donors making 6 to 24 gifts.
B143: 176 | C143: <-- total # of donors on file | E143: 782 | F143: <-- Total # of gifts in Year2 (vs #donors)
B144: 78 | C144: 370360 | D144: <-- Total # & $ for monthly donors in database
B145: 5 | C145: 5656 | D145: <-- Portion NEW monthly donors in Year2
A150: $5,000 and up | B150: E 5,000 up
A151: Gain(Loss) Data - Software Extract for Year 2 and Year 1 data
B153: Number of | C153: Amount of | D153: Number of | E153: Amount of
A154: Gain(Loss) | B154: 2008 | C154: 2008 | D154: 2009 | E154: 2009
A155: Category | B155: Donors | C155: Gifts ($) | D155: Donors | E155: Gifts ($)
A157: New | B157: n/a | C157: n/a | D157: 10 | E157: 163500
A158: Recaptured | B158: n/a | C158: n/a | D158: 1 | E158: 440
A159: Upgraded | B159: 10 | C159: 26633 | D159: 10 | E159: 52100
A160: Same | B160: 1 | C160: 288 | D160: 1 | E160: 288
A161: Downgraded | B161: 9 | C161: 69632 | D161: 9 | E161: 29934
A162: Lapsed new | B162: 1 | C162: 5000 | D162: n/a | E162: n/a
A163: Lapsed repeat | B163: 3 | C163: 51626 | D163: n/a | E163: n/a
A164: Total | B164: 24 | C164: 153179 | D164: 31 | E164: 246262
B166: Number | C166: Gift$
A167: New in year 1 | B167: 3 | C167: 20000 | D167: <-- i.e., last year's new donors and gift$
A168: Database EOY1 | B168: 33 | D168: <-- i.e., Total number of donors on file at end of Year1
A169: One time donors | B169: 6 | C169: 65000 | D169: <-- i.e., Number of one-time donors and gifts
A170: Recaptured lapsed 1 year | D170: 1 | E170: 440 | F170: <-- Portion of Recaptured
A171: Monthly donors in Year2 | D171: 10 | E171: 46450 | F171: <-- i.e., Year2 donors making 6 to 24 gifts.
B172: 56 | C172: <-- total # of donors on file | E172: 284 | F172: <-- Total # of gifts in Year2 (vs #donors)
B173: 17 | C173: 400878 | D173: <-- Total # & $ for monthly donors in database
B174: 0 | C174: 0 | D174: <-- Portion NEW monthly donors in Year2

Sheet Yr5
A1: To What If | F1: 2014-01-28
A3: Growth-in-Giving is measured for Year 2:
D4: Year 2 | E4: 2008
A5: All donors | B5: All | E5: 12 | F5: <-- Year-end month
A6: Gain(Loss) Data - Software Extract for Year 2 and Year 1 data
B8: Number of | C8: Amount of | D8: Number of | E8: Amount of
A9: Gain(Loss) | B9: 2007 | C9: 2007 | D9: 2008 | E9: 2008
A10: Category | B10: Donors | C10: Gifts ($) | D10: Donors | E10: Gifts ($)
A12: New | B12: n/a | C12: n/a | D12: 738 | E12: 98361
A13: Recaptured | B13: n/a | C13: n/a | D13: 172 | E13: 24965
A14: Upgraded | B14: 279 | C14: 78422 | D14: 279 | E14: 145927
A15: Same | B15: 172 | C15: 34771 | D15: 172 | E15: 34771
A16: Downgraded | B16: 149 | C16: 141188 | D16: 149 | E16: 108717
A17: Lapsed new | B17: 372 | C17: 92329 | D17: n/a | E17: n/a
A18: Lapsed repeat | B18: 192 | C18: 30002 | D18: n/a | E18: n/a
A19: Total | B19: 1164 | C19: 376712 | D19: 1510 | E19: 412741
B21: Number | C21: Gift$
A22: New in year 1 | B22: 536 | C22: 176248 | D22: <-- i.e., last year's new donors and gift$
A23: Database EOY1 | B23: 2459 | D23: <-- i.e., Total number of donors on file at end of Year1
A24: One time donors | B24: 1102 | C24: 149285 | D24: <-- i.e., Number of one-time donors and gifts
A25: Recaptured lapsed 1 year | D25: 107 | E25: 18677 | F25: <-- Portion of Recaptured
A26: Monthly donors in Year2 | D26: 386 | E26: 180111 | F26: <-- i.e., Year2 donors making 6 to 24 gifts.
B27: 6922 | C27: <-- total # of donors on file | E27: 6159 | F27: <-- Total # of gifts in Year2 (vs #donors)
B28: 1025 | C28: 1641365 | D28: <-- Total # & $ for monthly donors in database
B29: 39 | C29: 11620 | D29: <-- Portion NEW monthly donors in Year2
A34: Under $100 | B34: A 100 dn
A35: Gain(Loss) Data - Software Extract for Year 2 and Year 1 data
B37: Number of | C37: Amount of | D37: Number of | E37: Amount of
A38: Gain(Loss) | B38: 2007 | C38: 2007 | D38: 2008 | E38: 2008
A39: Category | B39: Donors | C39: Gifts ($) | D39: Donors | E39: Gifts ($)
A41: New | B41: n/a | C41: n/a | D41: 387 | E41: 14075
A42: Recaptured | B42: n/a | C42: n/a | D42: 73 | E42: 2256
A43: Upgraded | B43: 37 | C43: 1019 | D43: 37 | E43: 1911
A44: Same | B44: 22 | C44: 904 | D44: 22 | E44: 904
A45: Downgraded | B45: 17 | C45: 773 | D45: 17 | E45: 400
A46: Lapsed new | B46: 199 | C46: 7074 | D46: n/a | E46: n/a
A47: Lapsed repeat | B47: 52 | C47: 1680 | D47: n/a | E47: n/a
A48: Total | B48: 327 | C48: 11450 | D48: 536 | E48: 19546
B50: Number | C50: Gift$
A51: New in year 1 | B51: 244 | C51: 8388 | D51: <-- i.e., last year's new donors and gift$
A52: Database EOY1 | B52: 1202 | D52: <-- i.e., Total number of donors on file at end of Year1
A53: One time donors | B53: 806 | C53: 28395 | D53: <-- i.e., Number of one-time donors and gifts
A54: Recaptured lapsed 1 year | D54: 40 | E54: 1239 | F54: <-- Portion of Recaptured
A55: Monthly donors in Year2 | D55: 6 | E55: 506 | F55: <-- i.e., Year2 donors making 6 to 24 gifts.
B56: 3773 | C56: <-- total # of donors on file | E56: 680 | F56: <-- Total # of gifts in Year2 (vs #donors)
B57: 49 | C57: 6906 | D57: <-- Total # & $ for monthly donors in database
B58: 1 | C58: 98 | D58: <-- Portion NEW monthly donors in Year2
A63: $100 to $249 | B63: B 100-249
A64: Gain(Loss) Data - Software Extract for Year 2 and Year 1 data
B66: Number of | C66: Amount of | D66: Number of | E66: Amount of
A67: Gain(Loss) | B67: 2007 | C67: 2007 | D67: 2008 | E67: 2008
A68: Category | B68: Donors | C68: Gifts ($) | D68: Donors | E68: Gifts ($)
A70: New | B70: n/a | C70: n/a | D70: 214 | E70: 23869
A71: Recaptured | B71: n/a | C71: n/a | D71: 59 | E71: 4891
A72: Upgraded | B72: 68 | C72: 5822 | D72: 68 | E72: 10191
A73: Same | B73: 74 | C73: 9737 | D73: 74 | E73: 9737
A74: Downgraded | B74: 41 | C74: 5688 | D74: 41 | E74: 3030
A75: Lapsed new | B75: 129 | C75: 14416 | D75: n/a | E75: n/a
A76: Lapsed repeat | B76: 97 | C76: 8576 | D76: n/a | E76: n/a
A77: Total | B77: 409 | C77: 44239 | D77: 456 | E77: 51718
B79: Number | C79: Gift$
A80: New in year 1 | B80: 179 | C80: 19344 | D80: <-- i.e., last year's new donors and gift$
A81: Database EOY1 | B81: 703 | D81: <-- i.e., Total number of donors on file at end of Year1
A82: One time donors | B82: 239 | C82: 28904 | D82: <-- i.e., Number of one-time donors and gifts
A83: Recaptured lapsed 1 year | D83: 41 | E83: 3571 | F83: <-- Portion of Recaptured
A84: Monthly donors in Year2 | D84: 118 | E84: 18359 | F84: <-- i.e., Year2 donors making 6 to 24 gifts.
B85: 1934 | C85: <-- total # of donors on file | E85: 1792 | F85: <-- Total # of gifts in Year2 (vs #donors)
B86: 362 | C86: 175095 | D86: <-- Total # & $ for monthly donors in database
B87: 15 | C87: 2245 | D87: <-- Portion NEW monthly donors in Year2
A92: $250 to $999 | B92: C 250-999
A93: Gain(Loss) Data - Software Extract for Year 2 and Year 1 data
B95: Number of | C95: Amount of | D95: Number of | E95: Amount of
A96: Gain(Loss) | B96: 2007 | C96: 2007 | D96: 2008 | E96: 2008
A97: Category | B97: Donors | C97: Gifts ($) | D97: Donors | E97: Gifts ($)
A99: New | B99: n/a | C99: n/a | D99: 116 | E99: 27299
A100: Recaptured | B100: n/a | C100: n/a | D100: 33 | E100: 8633
A101: Upgraded | B101: 125 | C101: 25181 | D101: 125 | E101: 42559
A102: Same | B102: 68 | C102: 18988 | D102: 68 | E102: 18988
A103: Downgraded | B103: 68 | C103: 24355 | D103: 68 | E103: 16298
A104: Lapsed new | B104: 35 | C104: 9639 | D104: n/a | E104: n/a
A105: Lapsed repeat | B105: 36 | C105: 8406 | D105: n/a | E105: n/a
A106: Total | B106: 332 | C106: 86569 | D106: 410 | E106: 113777
B108: Number | C108: Gift$
A109: New in year 1 | B109: 90 | C109: 19038 | D109: <-- i.e., last year's new donors and gift$
A110: Database EOY1 | B110: 429 | D110: <-- i.e., Total number of donors on file at end of Year1
A111: One time donors | B111: 40 | C111: 14536 | D111: <-- i.e., Number of one-time donors and gifts
A112: Recaptured lapsed 1 year | D112: 21 | E112: 5742 | F112: <-- Portion of Recaptured
A113: Monthly donors in Year2 | D113: 210 | E113: 70337 | F113: <-- i.e., Year2 donors making 6 to 24 gifts.
B114: 983 | C114: <-- total # of donors on file | E114: 2824 | F114: <-- Total # of gifts in Year2 (vs #donors)
B115: 519 | C115: 688126 | D115: <-- Total # & $ for monthly donors in database
B116: 20 | C116: 6625 | D116: <-- Portion NEW monthly donors in Year2
A121: $1,000 to $4,999 | B121: D 1,000-4,999
A122: Gain(Loss) Data - Software Extract for Year 2 and Year 1 data
B124: Number of | C124: Amount of | D124: Number of | E124: Amount of
A125: Gain(Loss) | B125: 2007 | C125: 2007 | D125: 2008 | E125: 2008
A126: Category | B126: Donors | C126: Gifts ($) | D126: Donors | E126: Gifts ($)
A128: New | B128: n/a | C128: n/a | D128: 18 | E128: 13118
A129: Recaptured | B129: n/a | C129: n/a | D129: 6 | E129: 4185
A130: Upgraded | B130: 37 | C130: 20635 | D130: 37 | E130: 38064
A131: Same | B131: 7 | C131: 4854 | D131: 7 | E131: 4854
A132: Downgraded | B132: 16 | C132: 20665 | D132: 16 | E132: 14300
A133: Lapsed new | B133: 5 | C133: 6200 | D133: n/a | E133: n/a
A134: Lapsed repeat | B134: 5 | C134: 4100 | D134: n/a | E134: n/a
A135: Total | B135: 70 | C135: 56454 | D135: 84 | E135: 74521
B137: Number | C137: Gift$
A138: New in year 1 | B138: 16 | C138: 13478 | D138: <-- i.e., last year's new donors and gift$
A139: Database EOY1 | B139: 95 | D139: <-- i.e., Total number of donors on file at end of Year1
A140: One time donors | B140: 12 | C140: 17450 | D140: <-- i.e., Number of one-time donors and gifts
A141: Recaptured lapsed 1 year | D141: 4 | E141: 3125 | F141: <-- Portion of Recaptured
A142: Monthly donors in Year2 | D142: 41 | E142: 37071 | F142: <-- i.e., Year2 donors making 6 to 24 gifts.
B143: 176 | C143: <-- total # of donors on file | E143: 620 | F143: <-- Total # of gifts in Year2 (vs #donors)
B144: 78 | C144: 370360 | D144: <-- Total # & $ for monthly donors in database
B145: 3 | C145: 2652 | D145: <-- Portion NEW monthly donors in Year2
A150: $5,000 and up | B150: E 5,000 up
A151: Gain(Loss) Data - Software Extract for Year 2 and Year 1 data
B153: Number of | C153: Amount of | D153: Number of | E153: Amount of
A154: Gain(Loss) | B154: 2007 | C154: 2007 | D154: 2008 | E154: 2008
A155: Category | B155: Donors | C155: Gifts ($) | D155: Donors | E155: Gifts ($)
A157: New | B157: n/a | C157: n/a | D157: 3 | E157: 20000
A158: Recaptured | B158: n/a | C158: n/a | D158: 1 | E158: 5000
A159: Upgraded | B159: 12 | C159: 25765 | D159: 12 | E159: 53202
A160: Same | B160: 1 | C160: 288 | D160: 1 | E160: 288
A161: Downgraded | B161: 7 | C161: 89707 | D161: 7 | E161: 74689
A162: Lapsed new | B162: 4 | C162: 55000 | D162: n/a | E162: n/a
A163: Lapsed repeat | B163: 2 | C163: 7240 | D163: n/a | E163: n/a
A164: Total | B164: 26 | C164: 178000 | D164: 24 | E164: 153179
B166: Number | C166: Gift$
A167: New in year 1 | B167: 7 | C167: 116000 | D167: <-- i.e., last year's new donors and gift$
A168: Database EOY1 | B168: 30 | D168: <-- i.e., Total number of donors on file at end of Year1
A169: One time donors | B169: 5 | C169: 60000 | D169: <-- i.e., Number of one-time donors and gifts
A170: Recaptured lapsed 1 year | D170: 1 | E170: 5000 | F170: <-- Portion of Recaptured
A171: Monthly donors in Year2 | D171: 11 | E171: 53838 | F171: <-- i.e., Year2 donors making 6 to 24 gifts.
B172: 56 | C172: <-- total # of donors on file | E172: 243 | F172: <-- Total # of gifts in Year2 (vs #donors)
B173: 17 | C173: 400878 | D173: <-- Total # & $ for monthly donors in database
B174: 0 | C174: 0 | D174: <-- Portion NEW monthly donors in Year2

Sheet Yr6
A1: To What If | F1: 2014-01-28
A3: Growth-in-Giving is measured for Year 2:
D4: Year 2 | E4: 2007
A5: All donors | B5: All | E5: 12 | F5: <-- Year-end month
A6: Gain(Loss) Data - Software Extract for Year 2 and Year 1 data
B8: Number of | C8: Amount of | D8: Number of | E8: Amount of
A9: Gain(Loss) | B9: 2006 | C9: 2006 | D9: 2007 | E9: 2007
A10: Category | B10: Donors | C10: Gifts ($) | D10: Donors | E10: Gifts ($)
A12: New | B12: n/a | C12: n/a | D12: 536 | E12: 176248
A13: Recaptured | B13: n/a | C13: n/a | D13: 77 | E13: 8706
A14: Upgraded | B14: 260 | C14: 79346 | D14: 260 | E14: 136318
A15: Same | B15: 133 | C15: 24675 | D15: 133 | E15: 24675
A16: Downgraded | B16: 158 | C16: 49017 | D16: 158 | E16: 30765
A17: Lapsed new | B17: 298 | C17: 94124 | D17: n/a | E17: n/a
A18: Lapsed repeat | B18: 170 | C18: 17957 | D18: n/a | E18: n/a
A19: Total | B19: 1019 | C19: 265119 | D19: 1164 | E19: 376712
B21: Number | C21: Gift$
A22: New in year 1 | B22: 496 | C22: 133914 | D22: <-- i.e., last year's new donors and gift$
A23: Database EOY1 | B23: 1923 | D23: <-- i.e., Total number of donors on file at end of Year1
A24: One time donors | B24: 818 | C24: 66052 | D24: <-- i.e., Number of one-time donors and gifts
A25: Recaptured lapsed 1 year | D25: 35 | E25: 5158 | F25: <-- Portion of Recaptured
A26: Monthly donors in Year2 | D26: 306 | E26: 120406 | F26: <-- i.e., Year2 donors making 6 to 24 gifts.
B27: 6922 | C27: <-- total # of donors on file | E27: 4861 | F27: <-- Total # of gifts in Year2 (vs #donors)
B28: 1025 | C28: 1641365 | D28: <-- Total # & $ for monthly donors in database
B29: 37 | C29: 6846 | D29: <-- Portion NEW monthly donors in Year2
A34: Under $100 | B34: A 100 dn
A35: Gain(Loss) Data - Software Extract for Year 2 and Year 1 data
B37: Number of | C37: Amount of | D37: Number of | E37: Amount of
A38: Gain(Loss) | B38: 2006 | C38: 2006 | D38: 2007 | E38: 2007
A39: Category | B39: Donors | C39: Gifts ($) | D39: Donors | E39: Gifts ($)
A41: New | B41: n/a | C41: n/a | D41: 244 | E41: 8388
A42: Recaptured | B42: n/a | C42: n/a | D42: 26 | E42: 950
A43: Upgraded | B43: 13 | C43: 366 | D43: 13 | E43: 591
A44: Same | B44: 22 | C44: 1046 | D44: 22 | E44: 1046
A45: Downgraded | B45: 22 | C45: 976 | D45: 22 | E45: 475
A46: Lapsed new | B46: 174 | C46: 6437 | D46: n/a | E46: n/a
A47: Lapsed repeat | B47: 87 | C47: 2828 | D47: n/a | E47: n/a
A48: Total | B48: 318 | C48: 11653 | D48: 327 | E48: 11450
B50: Number | C50: Gift$
A51: New in year 1 | B51: 205 | C51: 7639 | D51: <-- i.e., last year's new donors and gift$
A52: Database EOY1 | B52: 958 | D52: <-- i.e., Total number of donors on file at end of Year1
A53: One time donors | B53: 636 | C53: 22385 | D53: <-- i.e., Number of one-time donors and gifts
A54: Recaptured lapsed 1 year | D54: 11 | E54: 475 | F54: <-- Portion of Recaptured
A55: Monthly donors in Year2 | D55: 7 | E55: 563 | F55: <-- i.e., Year2 donors making 6 to 24 gifts.
B56: 3773 | C56: <-- total # of donors on file | E56: 424 | F56: <-- Total # of gifts in Year2 (vs #donors)
B57: 49 | C57: 6906 | D57: <-- Total # & $ for monthly donors in database
B58: 1 | C58: 63 | D58: <-- Portion NEW monthly donors in Year2
A63: $100 to $249 | B63: B 100-249
A64: Gain(Loss) Data - Software Extract for Year 2 and Year 1 data
B66: Number of | C66: Amount of | D66: Number of | E66: Amount of
A67: Gain(Loss) | B67: 2006 | C67: 2006 | D67: 2007 | E67: 2007
A68: Category | B68: Donors | C68: Gifts ($) | D68: Donors | E68: Gifts ($)
A70: New | B70: n/a | C70: n/a | D70: 179 | E70: 19344
A71: Recaptured | B71: n/a | C71: n/a | D71: 30 | E71: 2699
A72: Upgraded | B72: 88 | C72: 7724 | D72: 88 | E72: 12506
A73: Same | B73: 54 | C73: 5521 | D73: 54 | E73: 5521
A74: Downgraded | B74: 58 | C74: 7649 | D74: 58 | E74: 4169
A75: Lapsed new | B75: 90 | C75: 10569 | D75: n/a | E75: n/a
A76: Lapsed repeat | B76: 48 | C76: 3306 | D76: n/a | E76: n/a
A77: Total | B77: 338 | C77: 34769 | D77: 409 | E77: 44239
B79: Number | C79: Gift$
A80: New in year 1 | B80: 165 | C80: 17805 | D80: <-- i.e., last year's new donors and gift$
A81: Database EOY1 | B81: 524 | D81: <-- i.e., Total number of donors on file at end of Year1
A82: One time donors | B82: 147 | C82: 17755 | D82: <-- i.e., Number of one-time donors and gifts
A83: Recaptured lapsed 1 year | D83: 14 | E83: 1361 | F83: <-- Portion of Recaptured
A84: Monthly donors in Year2 | D84: 103 | E84: 15311 | F84: <-- i.e., Year2 donors making 6 to 24 gifts.
B85: 1934 | C85: <-- total # of donors on file | E85: 1535 | F85: <-- Total # of gifts in Year2 (vs #donors)
B86: 362 | C86: 175095 | D86: <-- Total # & $ for monthly donors in database
B87: 15 | C87: 2233 | D87: <-- Portion NEW monthly donors in Year2
A92: $250 to $999 | B92: C 250-999
A93: Gain(Loss) Data - Software Extract for Year 2 and Year 1 data
B95: Number of | C95: Amount of | D95: Number of | E95: Amount of
A96: Gain(Loss) | B96: 2006 | C96: 2006 | D96: 2007 | E96: 2007
A97: Category | B97: Donors | C97: Gifts ($) | D97: Donors | E97: Gifts ($)
A99: New | B99: n/a | C99: n/a | D99: 90 | E99: 19038
A100: Recaptured | B100: n/a | C100: n/a | D100: 17 | E100: 3490
A101: Upgraded | B101: 112 | C101: 22929 | D101: 112 | E101: 39893
A102: Same | B102: 50 | C102: 12358 | D102: 50 | E102: 12358
A103: Downgraded | B103: 63 | C103: 19032 | D103: 63 | E103: 11790
A104: Lapsed new | B104: 29 | C104: 6493 | D104: n/a | E104: n/a
A105: Lapsed repeat | B105: 27 | C105: 5605 | D105: n/a | E105: n/a
A106: Total | B106: 281 | C106: 66417 | D106: 332 | E106: 86569
B108: Number | C108: Gift$
A109: New in year 1 | B109: 101 | C109: 21978 | D109: <-- i.e., last year's new donors and gift$
A110: Database EOY1 | B110: 339 | D110: <-- i.e., Total number of donors on file at end of Year1
A111: One time donors | B111: 27 | C111: 9662 | D111: <-- i.e., Number of one-time donors and gifts
A112: Recaptured lapsed 1 year | D112: 7 | E112: 1825 | F112: <-- Portion of Recaptured
A113: Monthly donors in Year2 | D113: 160 | E113: 50718 | F113: <-- i.e., Year2 donors making 6 to 24 gifts.
B114: 983 | C114: <-- total # of donors on file | E114: 2278 | F114: <-- Total # of gifts in Year2 (vs #donors)
B115: 519 | C115: 688126 | D115: <-- Total # & $ for monthly donors in database
B116: 19 | C116: 4058 | D116: <-- Portion NEW monthly donors in Year2
A121: $1,000 to $4,999 | B121: D 1,000-4,999
A122: Gain(Loss) Data - Software Extract for Year 2 and Year 1 data
B124: Number of | C124: Amount of | D124: Number of | E124: Amount of
A125: Gain(Loss) | B125: 2006 | C125: 2006 | D125: 2007 | E125: 2007
A126: Category | B126: Donors | C126: Gifts ($) | D126: Donors | E126: Gifts ($)
A128: New | B128: n/a | C128: n/a | D128: 16 | E128: 13478
A129: Recaptured | B129: n/a | C129: n/a | D129: 4 | E129: 1567
A130: Upgraded | B130: 34 | C130: 17952 | D130: 34 | E130: 31032
A131: Same | B131: 6 | C131: 5450 | D131: 6 | E131: 5450
A132: Downgraded | B132: 10 | C132: 7513 | D132: 10 | E132: 4927
A133: Lapsed new | B133: 3 | C133: 4625 | D133: n/a | E133: n/a
A134: Lapsed repeat | B134: 8 | C134: 6218 | D134: n/a | E134: n/a
A135: Total | B135: 61 | C135: 41758 | D135: 70 | E135: 56454
B137: Number | C137: Gift$
A138: New in year 1 | B138: 18 | C138: 9453 | D138: <-- i.e., last year's new donors and gift$
A139: Database EOY1 | B139: 79 | D139: <-- i.e., Total number of donors on file at end of Year1
A140: One time donors | B140: 7 | C140: 11250 | D140: <-- i.e., Number of one-time donors and gifts
A141: Recaptured lapsed 1 year | D141: 3 | E141: 1497 | F141: <-- Portion of Recaptured
A142: Monthly donors in Year2 | D142: 27 | E142: 22817 | F142: <-- i.e., Year2 donors making 6 to 24 gifts.
B143: 176 | C143: <-- total # of donors on file | E143: 433 | F143: <-- Total # of gifts in Year2 (vs #donors)
B144: 78 | C144: 370360 | D144: <-- Total # & $ for monthly donors in database
B145: 2 | C145: 492 | D145: <-- Portion NEW monthly donors in Year2
A150: $5,000 and up | B150: E 5,000 up
A151: Gain(Loss) Data - Software Extract for Year 2 and Year 1 data
B153: Number of | C153: Amount of | D153: Number of | E153: Amount of
A154: Gain(Loss) | B154: 2006 | C154: 2006 | D154: 2007 | E154: 2007
A155: Category | B155: Donors | C155: Gifts ($) | D155: Donors | E155: Gifts ($)
A157: New | B157: n/a | C157: n/a | D157: 7 | E157: 116000
A158: Recaptured | B158: n/a | C158: n/a | D158: 0 | E158: 0
A159: Upgraded | B159: 13 | C159: 30375 | D159: 13 | E159: 52296
A160: Same | B160: 1 | C160: 300 | D160: 1 | E160: 300
A161: Downgraded | B161: 5 | C161: 13847 | D161: 5 | E161: 9404
A162: Lapsed new | B162: 2 | C162: 66000 | D162: n/a | E162: n/a
A163: Lapsed repeat | B163: 0 | C163: 0 | D163: n/a | E163: n/a
A164: Total | B164: 21 | C164: 110522 | D164: 26 | E164: 178000
B166: Number | C166: Gift$
A167: New in year 1 | B167: 7 | C167: 77039 | D167: <-- i.e., last year's new donors and gift$
A168: Database EOY1 | B168: 23 | D168: <-- i.e., Total number of donors on file at end of Year1
A169: One time donors | B169: 1 | C169: 5000 | D169: <-- i.e., Number of one-time donors and gifts
A170: Recaptured lapsed 1 year | D170: 0 | E170: 0 | F170: <-- Portion of Recaptured
A171: Monthly donors in Year2 | D171: 9 | E171: 30997 | F171: <-- i.e., Year2 donors making 6 to 24 gifts.
B172: 56 | C172: <-- total # of donors on file | E172: 191 | F172: <-- Total # of gifts in Year2 (vs #donors)
B173: 17 | C173: 400878 | D173: <-- Total # & $ for monthly donors in database
B174: 0 | C174: 0 | D174: <-- Portion NEW monthly donors in Year2

Sheet FEPdata
A1: FEPdata | F1: =TODAY() -> 2014-08-31 | H1: Sort Largest Year (col. G) - DESC | I1: 07:36:22 | M1: Last row | N1: =TODAY() -> 2014-08-31 | O1: 07:59:49 | Q1: Step | R1: Sub | S1: Start Sub | T1: End Sub | U1: Sub time | V1: Last cell
A2: =StepByStep!#REF! ->  | E2: Current Year 2 | H2: 10:09:11 | M2: 14981 | O2: 08:00:48
A3: Growth-in-Giving is measured for Year 2: | H3: From --> | I3: =K8 -> 31 | J3: <---- ="K" & row | M3: 14981 | O3: =O2-O1 -> 00:00:59 | Q3: All | R3: FitnessAll | S3: 05:41:28 | T3: 07:37:36 | U3: =T3-S3 -> 01:56:08 | W3: Step 3 - Data2
D4: Year 2 | E4: =StepByStep!G10 -> 2013 | H4: To --> | I4: =L19 -> 14981 | J4: <---- ="L" & row | O4: FEPdata | Q4: 1 | R4: SortData | S4: 07:31:07 | T4: 07:31:07 | U4: 00:00:00 | W4: Amt | X4: Gifts
A5: All donors | B5: All | E5: =StepByStep!$G$7 -> 12 | F5: <-- Year-end month | Q5: 2 | R5: DateYr | S5: 07:31:07 | T5: 07:32:55 | U5: 00:01:48 | W5: Control | X5: Control
A6: Gain(Loss) Data - Software Extract for Year 2 and Year 1 data | K6: Col K | L6: Col L | Q6: 3 | R6: Data2 | S6: 07:32:55 | T6: 07:35:26 | U6: 00:02:31 | W6: =SUM(C30:C200001) -> 4105073 | X6: =SUM(D30:D200001) -> 59740 | Y6: <--- FEPdata worksheet
J7: Row | K7: From | L7: To | M7: Count | Q7: 4 | R7: FirstYr | S7: 07:35:26 | T7: 07:35:44 | U7: 00:00:18 | W7: =SUM(Data!C2:'Data'!C500000) -> 0 | X7: =Data!E2-1 -> 59740 | Y7: <--- "Data" worksheet
B8: Number of | C8: Amount of | D8: Number of | E8: Amount of | H8: 5,000 up | I8: 25,000 & up | J8: 8 | K8: 31 | L8: 66 | M8: =L8-K8+1 -> 36 | Q8: 5 | R8: LargestYrAmt | S8: 07:35:44 | T8: 07:36:00 | U8: 00:00:16 | W8: =W6-W7 -> 4105073 | X8: =X6-X7 -> 0 | Y8: <--- needs to be zero
A9: Gain(Loss) | B9: =D9-1 -> 2012 | C9: =E9-1 -> 2012 | D9: =$E4 -> 2013 | E9: =$E4 -> 2013 | I9: 10,000-24,999 | J9: 9 | K9: =L8+1 -> 67 | L9: 143 | M9: =L9-L8 -> 77 | Q9: 6 | R9: FEPdataToRow | S9: 07:36:00 | T9: 07:36:16 | U9: 00:00:16
A10: Category | B10: Donors | C10: Gifts ($) | D10: Donors | E10: Gifts ($) | I10: 5,000-9,999 | J10: 10 | K10: 144 | L10: 249 | M10: 106 | Q10: 7 | R10: CopyData2 | S10: 07:36:16 | T10: 07:36:22 | U10: 00:00:06
H11: 1,000-4,999 | I11: 2,500-4,999 | J11: 11 | K11: 250 | L11: 417 | M11: 168 | Q11: 8 | R11: FEP5DataSets | S11: 07:36:22 | T11: 07:50:21 | U11: =T11-S11 -> 00:13:59
A12: New | B12: n/a | C12: n/a | D12: 1012 | E12: 133838 | I12: 1,000-2,499 | J12: 12 | K12: 418 | L12: 1061 | M12: 644 | R12: Total - 1 to 8 | U12: =SUM(U4:U11) -> 00:19:14
A13: Recaptured | B13: n/a | C13: n/a | D13: 275 | E13: 54477 | H13: 250-999 | I13: 500-999 | J13: 13 | K13: 1062 | L13: 2414 | M13: 1353
A14: Upgraded | B14: 582 | C14: 183332 | D14: 582 | E14: 307294 | I14: 250-499 | J14: 14 | K14: 2415 | L14: 4953 | M14: 2539
A15: Same | B15: 299 | C15: 54201 | D15: 299 | E15: 54201 | H15: 100-249 | I15: 100-249 | J15: 15 | K15: 4954 | L15: 9606 | M15: 4653 | R15: FEPdataToRpt | S15: 09:30:02 | T15: 09:56:00 | U15: =T15-S15 -> 00:25:58 | V15: <--old
A16: Downgraded | B16: 602 | C16: 314530 | D16: 602 | E16: 187866 | H16: Under 100 | I16: 50-99 | J16: 16 | K16: 9607 | L16: 12101 | M16: 2495 | R16: Ignore | T16: Delete from PSI, etc.
A17: Lapsed new | B17: 619 | C17: 103250 | D17: n/a | E17: n/a | I17: 25-49 | J17: 17 | K17: 12102 | L17: 14121 | M17: 2020
A18: Lapsed repeat | B18: 405 | C18: 162936 | D18: n/a | E18: n/a | F18: GiG# | G18: GiG$ | I18: 10-24 | J18: 18 | K18: 14122 | L18: 14884 | M18: 763 | T18: Ignore
A19: Total | B19: =SUM(B12:B18) -> 2507 | C19: =SUM(C12:C18) -> 818249 | D19: =SUM(D12:D18) -> 2770 | E19: =SUM(E12:E18) -> 737676 | F19: =(D19-B19)/B19 -> 0.1049062625 | G19: =(E19-C19)/C19 -> -0.09847002563 | I19: Under 10 | J19: 19 | K19: 14885 | L19: 14981 | M19: 97 | P19: Must run all steps in order!! | T19: Leaves 1st year data in FEP100dn, etc!!
A20: 36 hilighted data fields are retrieved from gift transaction data below | M20: =SUM(M8:M19) -> 14951 | T20: Generates "FEPrptData" worksheet - Trend analysis
B21: Number | C21: Gift$
A22: New in year 1 | B22: 905 | C22: 186095 | D22: <-- i.e., last year's new donors and gift$
A23: Database EOY1 | B23: 5910 | D23: <-- i.e., Total number of donors on file at end of Year1 | K23: 6922 | L23: <-- i.e., TOTAL number of donors on file
A24: One time donors | B24: 3069 | C24: 594358 | D24: <-- i.e., Number of one-time donors and gifts | K24: 10946 | L24: <-- Total # of gifts in Year2 (vs #donors)
A25: Recaptured lapsed 1 year | D25: 167 | E25: 45006 | F25: <-- Portion of Recaptured | K25: 1025 | L25: 1641365 | M25: <-- Total # & $ for monthly donors in database
A26: Monthly donors in Year2 | D26: 629 | E26: 352864 | F26: <-- i.e., Year2 donors making 6 to 24 gifts. | K26: 41 | L26: 14903 | M26: <-- Portion NEW monthly donors in Year2 | S26: <-- deletes A31:P200000
B28: [Asc] | D28: Gifts | F28: First | G28: Largest | H28: Monthly | I28: Gain/Loss | L28: Years of | M28: One time | N28: Recap 1
A29: Acct | B29: Year | C29: AmtYr | D29: Per year | E29: Seq# | F29: Year | G29: Year | H29: Giving | I29: Category | L29: Giving | M29: Donor | N29: Donor
A30: A | B30: B | C30: C | D30: D | E30: E | F30: F | G30: G | H30: H | I30: I | L30: L | M30: M | N30: N
A31: 103633 | B31: 2009 | C31: 100000 | D31: 1 | E31: 10221 | F31: 2009 | G31: 100000 | I31: New | L31: 1 | M31: 1
A32: 100516 | B32: 2004 | C32: 1150 | D32: 4 | E32: 1926 | F32: 2004 | G32: 83000 | L32: 1
A33: 100516 | B33: 2005 | C33: 2000 | D33: 2 | E33: 1927 | F33: 2004 | G33: 83000 | L33: 2
A34: 100516 | B34: 2006 | C34: 4500 | D34: 5 | E34: 1928 | F34: 2004 | G34: 83000 | I34: Downgraded | L34: 3
A35: 100516 | B35: 2007 | C35: 3503 | D35: 4 | E35: 1929 | F35: 2004 | G35: 83000 | I35: Upgraded | L35: 4
A36: 100516 | B36: 2008 | C36: 4000 | D36: 3 | E36: 1930 | F36: 2004 | G36: 83000 | I36: Downgraded | L36: 5
A37: 100516 | B37: 2009 | C37: 3500 | D37: 2 | E37: 1931 | F37: 2004 | G37: 83000 | I37: Downgraded | L37: 6
A38: 100516 | B38: 2010 | C38: 3000 | D38: 2 | E38: 1932 | F38: 2004 | G38: 83000 | I38: Upgraded | L38: 7
A39: 100516 | B39: 2011 | C39: 83000 | D39: 4 | E39: 1933 | F39: 2004 | G39: 83000 | I39: Lapsed-repeat | L39: 8
A40: 101894 | B40: 2006 | C40: 60000 | D40: 2 | E40: 6240 | F40: 2006 | G40: 60000 | I40: Lapsed-new | L40: 1
A41: 101894 | B41: 2010 | C41: 700 | D41: 4 | E41: 6241 | F41: 2006 | G41: 60000 | I41: Recap | L41: 2
A42: 101894 | B42: 2011 | C42: 700 | D42: 15 | E42: 6242 | F42: 2006 | G42: 60000 | H42: 15 | I42: Upgraded | L42: 3
A43: 101894 | B43: 2012 | C43: 2525 | D43: 27 | E43: 6243 | F43: 2006 | G43: 60000 | H43: 27 | L43: 4
A44: 104938 | B44: 2010 | C44: 60000 | D44: 1 | E44: 12541 | F44: 2010 | G44: 60000 | I44: New | L44: 1
A45: 104938 | B45: 2011 | C45: 13050 | D45: 2 | E45: 12542 | F45: 2010 | G45: 60000 | I45: Lapsed-repeat | L45: 2
A46: 102546 | B46: 2007 | C46: 48000 | D46: 1 | E46: 7808 | F46: 2007 | G46: 48000 | I46: New | L46: 1
A47: 102546 | B47: 2008 | C47: 46826 | D47: 1 | E47: 7809 | F47: 2007 | G47: 48000 | I47: Lapsed-repeat | L47: 2
A48: 103826 | B48: 2010 | C48: 45449 | D48: 1 | E48: 10621 | F48: 2010 | G48: 45449 | I48: New | L48: 1 | M48: 1
A49: 105795 | B49: 2012 | C49: 40000 | D49: 1 | E49: 13766 | F49: 2012 | G49: 40000 | I49: New | L49: 1 | M49: 1
A50: 100521 | B50: 2004 | C50: 300 | D50: 3 | E50: 1942 | F50: 2004 | G50: 37823 | L50: 1
A51: 100521 | B51: 2005 | C51: 350 | D51: 2 | E51: 1943 | F51: 2004 | G51: 37823 | L51: 2
A52: 100521 | B52: 2006 | C52: 300 | D52: 2 | E52: 1944 | F52: 2004 | G52: 37823 | I52: Same | L52: 3
A53: 100521 | B53: 2007 | C53: 300 | D53: 1 | E53: 1945 | F53: 2004 | G53: 37823 | I53: Upgraded | L53: 4
A54: 100521 | B54: 2008 | C54: 1750 | D54: 2 | E54: 1946 | F54: 2004 | G54: 37823 | I54: Upgraded | L54: 5
A55: 100521 | B55: 2009 | C55: 6772 | D55: 4 | E55: 1947 | F55: 2004 | G55: 37823 | I55: Downgraded | L55: 6
A56: 100521 | B56: 2010 | C56: 6650 | D56: 5 | E56: 1948 | F56: 2004 | G56: 37823 | I56: Upgraded | L56: 7
A57: 100521 | B57: 2011 | C57: 37823 | D57: 9 | E57: 1949 | F57: 2004 | G57: 37823 | H57: 9 | I57: Downgraded | L57: 8
A58: 100521 | B58: 2012 | C58: 18697 | D58: 5 | E58: 1950 | F58: 2004 | G58: 37823 | L58: 9
A59: 105951 | B59: 2011 | C59: 35000 | D59: 2 | E59: 13965 | F59: 2011 | G59: 35000 | I59: Lapsed-new | L59: 1 | M59: 1
A60: 101420 | B60: 2006 | C60: 1974 | D60: 3 | E60: 4836 | F60: 2006 | G60: 30300 | I60: Downgraded | L60: 1
A61: 101420 | B61: 2007 | C61: 200 | D61: 1 | E61: 4837 | F61: 2006 | G61: 30300 | I61: Upgraded | L61: 2
A62: 101420 | B62: 2008 | C62: 600 | D62: 2 | E62: 4838 | F62: 2006 | G62: 30300 | I62: Lapsed-repeat | L62: 3
A63: 101420 | B63: 2010 | C63: 30300 | D63: 2 | E63: 4839 | F63: 2006 | G63: 30300 | I63: Recap | L63: 4 | N63: Recap1
A64: 101420 | B64: 2011 | C64: 400 | D64: 2 | E64: 4840 | F64: 2006 | G64: 30300 | I64: Upgraded | L64: 5
A65: 101420 | B65: 2012 | C65: 600 | D65: 3 | E65: 4841 | F65: 2006 | G65: 30300 | L65: 6
A66: 102371 | B66: 2007 | C66: 30000 | D66: 1 | E66: 7477 | F66: 2007 | G66: 30000 | I66: New | L66: 1 | M66: 1
A67: 104585 | B67: 2010 | C67: 20000 | D67: 1 | E67: 12003 | F67: 2010 | G67: 20000 | I67: New | L67: 1 | M67: 1
A68: 102303 | B68: 2007 | C68: 500 | D68: 3 | E68: 7320 | F68: 2007 | G68: 18434 | I68: New | L68: 1
A69: 102303 | B69: 2008 | C69: 18434 | D69: 13 | E69: 7321 | F69: 2007 | G69: 18434 | H69: 13 | I69: Downgraded | L69: 2
A70: 102303 | B70: 2009 | C70: 4300 | D70: 4 | E70: 7322 | F70: 2007 | G70: 18434 | I70: Downgraded | L70: 3
A71: 102303 | B71: 2010 | C71: 2530 | D71: 4 | E71: 7323 | F71: 2007 | G71: 18434 | I71: Downgraded | L71: 4
A72: 102303 | B72: 2011 | C72: 1400 | D72: 4 | E72: 7324 | F72: 2007 | G72: 18434 | I72: Upgraded | L72: 5
A73: 102303 | B73: 2012 | C73: 3284 | D73: 4 | E73: 7325 | F73: 2007 | G73: 18434 | L73: 6
A74: 104924 | B74: 2010 | C74: 2500 | D74: 1 | E74: 12516 | F74: 2010 | G74: 15111 | I74: New | L74: 1
A75: 104924 | B75: 2011 | C75: 5774 | D75: 7 | E75: 12517 | F75: 2010 | G75: 15111 | H75: 7 | I75: Upgraded | L75: 2
A76: 104924 | B76: 2012 | C76: 15111 | D76: 6 | E76: 12518 | F76: 2010 | G76: 15111 | H76: 6 | L76: 3
A77: 104703 | B77: 2010 | C77: 15000 | D77: 1 | E77: 12184 | F77: 2010 | G77: 15000 | I77: New | L77: 1 | M77: 1
A78: 105185 | B78: 2011 | C78: 15000 | D78: 1 | E78: 12975 | F78: 2011 | G78: 15000 | I78: Downgraded | L78: 1
A79: 105185 | B79: 2012 | C79: 6352 | D79: 1 | E79: 12976 | F79: 2011 | G79: 15000 | L79: 2
A80: 105673 | B80: 2011 | C80: 15000 | D80: 1 | E80: 13623 | F80: 2011 | G80: 15000 | I80: Lapsed-new | L80: 1 | M80: 1
A81: 100057 | B81: 2002 | C81: 45 | D81: 3 | E81: 219 | F81: 2002 | G81: 14845 | L81: 1
A82: 100057 | B82: 2003 | C82: 60 | D82: 4 | E82: 220 | F82: 2002 | G82: 14845 | L82: 2
A83: 100057 | B83: 2004 | C83: 222 | D83: 7 | E83: 221 | F83: 2002 | G83: 14845 | H83: 7 | L83: 3
A84: 100057 | B84: 2006 | C84: 168 | D84: 4 | E84: 222 | F84: 2002 | G84: 14845 | I84: Upgraded | L84: 4
A85: 100057 | B85: 2007 | C85: 438 | D85: 11 | E85: 223 | F85: 2002 | G85: 14845 | H85: 11 | I85: Upgraded | L85: 5
A86: 100057 | B86: 2008 | C86: 3769 | D86: 63 | E86: 224 | F86: 2002 | G86: 14845 | H86: 63 | I86: Upgraded | L86: 6
A87: 100057 | B87: 2009 | C87: 5180 | D87: 106 | E87: 225 | F87: 2002 | G87: 14845 | H87: 106 | I87: Downgraded | L87: 7
A88: 100057 | B88: 2010 | C88: 4775 | D88: 113 | E88: 226 | F88: 2002 | G88: 14845 | H88: 113 | I88: Upgraded | L88: 8
A89: 100057 | B89: 2011 | C89: 14845 | D89: 87 | E89: 227 | F89: 2002 | G89: 14845 | H89: 87 | I89: Downgraded | L89: 9
A90: 100057 | B90: 2012 | C90: 12241 | D90: 130 | E90: 228 | F90: 2002 | G90: 14845 | H90: 130 | L90: 10
A91: 105844 | B91: 2011 | C91: 14000 | D91: 1 | E91: 13827 | F91: 2011 | G91: 14000 | I91: Downgraded | L91: 1
A92: 105844 | B92: 2012 | C92: 100 | D92: 1 | E92: 13828 | F92: 2011 | G92: 14000 | L92: 2
A93: 101603 | B93: 2006 | C93: 50 | D93: 1 | E93: 5413 | F93: 2006 | G93: 12678 | I93: Upgraded | L93: 1
A94: 101603 | B94: 2007 | C94: 240 | D94: 1 | E94: 5414 | F94: 2006 | G94: 12678 | I94: Lapsed-repeat | L94: 2
A95: 101603 | B95: 2009 | C95: 440 | D95: 2 | E95: 5415 | F95: 2006 | G95: 12678 | I95: Recap | L95: 3 | N95: Recap1
A96: 101603 | B96: 2010 | C96: 240 | D96: 1 | E96: 5416 | F96: 2006 | G96: 12678 | I96: Lapsed-repeat | L96: 4
A97: 101603 | B97: 2012 | C97: 12678 | D97: 1 | E97: 5417 | F97: 2006 | G97: 12678 | I97: Recap | L97: 5 | N97: Recap1
A98: 102209 | B98: 2007 | C98: 12500 | D98: 2 | E98: 7067 | F98: 2007 | G98: 12500 | I98: New | L98: 1
A99: 102209 | B99: 2008 | C99: 5000 | D99: 1 | E99: 7068 | F99: 2007 | G99: 12500 | I99: Downgraded | L99: 2
A100: 102209 | B100: 2009 | C100: 2500 | D100: 1 | E100: 7069 | F100: 2007 | G100: 12500 | I100: Lapsed-repeat | L100: 3
A101: 100512 | B101: 2004 | C101: 110 | D101: 2 | E101: 1912 | F101: 2004 | G101: 12431 | L101: 1
A102: 100512 | B102: 2005 | C102: 120 | D102: 12 | E102: 1913 | F102: 2004 | G102: 12431 | H102: 12 | L102: 2
A103: 100512 | B103: 2006 | C103: 335 | D103: 14 | E103: 1914 | F103: 2004 | G103: 12431 | H103: 14 | I103: Upgraded | L103: 3
A104: 100512 | B104: 2007 | C104: 406 | D104: 14 | E104: 1915 | F104: 2004 | G104: 12431 | H104: 14 | I104: Upgraded | L104: 4
A105: 100512 | B105: 2008 | C105: 1047 | D105: 17 | E105: 1916 | F105: 2004 | G105: 12431 | H105: 17 | I105: Upgraded | L105: 5
A106: 100512 | B106: 2009 | C106: 1053 | D106: 14 | E106: 1917 | F106: 2004 | G106: 12431 | H106: 14 | I106: Upgraded | L106: 6
A107: 100512 | B107: 2010 | C107: 1294 | D107: 21 | E107: 1918 | F107: 2004 | G107: 12431 | H107: 21 | I107: Upgraded | L107: 7
A108: 100512 | B108: 2011 | C108: 2232 | D108: 19 | E108: 1919 | F108: 2004 | G108: 12431 | H108: 19 | I108: Upgraded | L108: 8
A109: 100512 | B109: 2012 | C109: 12431 | D109: 17 | E109: 1920 | F109: 2004 | G109: 12431 | H109: 17 | L109: 9
A110: 103504 | B110: 2009 | C110: 1000 | D110: 1 | E110: 9943 | F110: 2009 | G110: 12261 | I110: New | L110: 1
A111: 103504 | B111: 2010 | C111: 1100 | D111: 3 | E111: 9944 | F111: 2009 | G111: 12261 | I111: Upgraded | L111: 2
A112: 103504 | B112: 2011 | C112: 12261 | D112: 6 | E112: 9945 | F112: 2009 | G112: 12261 | H112: 6 | I112: Downgraded | L112: 3
A113: 103504 | B113: 2012 | C113: 5287 | D113: 6 | E113: 9946 | F113: 2009 | G113: 12261 | H113: 6 | L113: 4
A114: 103572 | B114: 2009 | C114: 12000 | D114: 1 | E114: 10089 | F114: 2009 | G114: 12000 | I114: New | L114: 1
A115: 103572 | B115: 2012 | C115: 500 | D115: 1 | E115: 10090 | F115: 2009 | G115: 12000 | I115: Recap | L115: 2
A116: 100554 | B116: 2004 | C116: 4120 | D116: 8 | E116: 2039 | F116: 2004 | G116: 11700 | H116: 8 | L116: 1
A117: 100554 | B117: 2005 | C117: 7322 | D117: 10 | E117: 2040 | F117: 2004 | G117: 11700 | H117: 10 | L117: 2
A118: 100554 | B118: 2006 | C118: 8750 | D118: 11 | E118: 2041 | F118: 2004 | G118: 11700 | H118: 11 | I118: Upgraded | L118: 3
A119: 100554 | B119: 2007 | C119: 9900 | D119: 11 | E119: 2042 | F119: 2004 | G119: 11700 | H119: 11 | I119: Upgraded | L119: 4
A120: 100554 | B120: 2008 | C120: 11700 | D120: 13 | E120: 2043 | F120: 2004 | G120: 11700 | H120: 13 | I120: Downgraded | L120: 5
A121: 100554 | B121: 2009 | C121: 10800 | D121: 11 | E121: 2044 | F121: 2004 | G121: 11700 | H121: 11 | I121: Downgraded | L121: 6
A122: 100554 | B122: 2010 | C122: 9000 | D122: 10 | E122: 2045 | F122: 2004 | G122: 11700 | H122: 10 | I122: Downgraded | L122: 7
A123: 100554 | B123: 2011 | C123: 7200 | D123: 8 | E123: 2046 | F123: 2004 | G123: 11700 | H123: 8 | I123: Lapsed-repeat | L123: 8
A124: 102777 | B124: 2008 | C124: 11000 | D124: 1 | E124: 8337 | F124: 2008 | G124: 11000 | I124: New | L124: 1
A125: 102777 | B125: 2009 | C125: 200 | D125: 1 | E125: 8338 | F125: 2008 | G125: 11000 | I125: Upgraded | L125: 2
A126: 102777 | B126: 2010 | C126: 750 | D126: 2 | E126: 8339 | F126: 2008 | G126: 11000 | I126: Upgraded | L126: 3
A127: 102777 | B127: 2011 | C127: 1200 | D127: 2 | E127: 8340 | F127: 2008 | G127: 11000 | I127: Lapsed-repeat | L127: 4
A128: 103967 | B128: 2009 | C128: 11000 | D128: 1 | E128: 10888 | F128: 2009 | G128: 11000 | I128: New | L128: 1 | M128: 1
A129: 105379 | B129: 2011 | C129: 10800 | D129: 2 | E129: 13244 | F129: 2011 | G129: 10800 | I129: Downgraded | L129: 1
A130: 105379 | B130: 2012 | C130: 1500 | D130: 4 | E130: 13245 | F130: 2011 | G130: 10800 | L130: 2
A131: 100228 | B131: 2003 | C131: 150 | D131: 6 | E131: 767 | F131: 2003 | G131: 10600 | H131: 6 | L131: 1
A132: 100228 | B132: 2004 | C132: 300 | D132: 12 | E132: 768 | F132: 2003 | G132: 10600 | H132: 12 | L132: 2
A133: 100228 | B133: 2005 | C133: 300 | D133: 12 | E133: 769 | F133: 2003 | G133: 10600 | H133: 12 | L133: 3
A134: 100228 | B134: 2006 | C134: 300 | D134: 12 | E134: 770 | F134: 2003 | G134: 10600 | H134: 12 | I134: Upgraded | L134: 4
A135: 100228 | B135: 2007 | C135: 375 | D135: 13 | E135: 771 | F135: 2003 | G135: 10600 | H135: 13 | I135: Upgraded | L135: 5
A136: 100228 | B136: 2008 | C136: 600 | D136: 12 | E136: 772 | F136: 2003 | G136: 10600 | H136: 12 | I136: Upgraded | L136: 6
A137: 100228 | B137: 2009 | C137: 10600 | D137: 13 | E137: 773 | F137: 2003 | G137: 10600 | H137: 13 | I137: Downgraded | L137: 7
A138: 100228 | B138: 2010 | C138: 600 | D138: 12 | E138: 774 | F138: 2003 | G138: 10600 | H138: 12 | I138: Same | L138: 8
A139: 100228 | B139: 2011 | C139: 600 | D139: 12 | E139: 775 | F139: 2003 | G139: 10600 | H139: 12 | I139: Same | L139: 9
A140: 100228 | B140: 2012 | C140: 600 | D140: 12 | E140: 776 | F140: 2003 | G140: 10600 | H140: 12 | L140: 10
A141: 102051 | B141: 2007 | C141: 10000 | D141: 1 | E141: 6670 | F141: 2007 | G141: 10000 | I141: New | L141: 1 | M141: 1
A142: 102483 | B142: 2007 | C142: 10000 | D142: 1 | E142: 7687 | F142: 2007 | G142: 10000 | I142: New | L142: 1 | M142: 1
A143: 103364 | B143: 2009 | C143: 10000 | D143: 1 | E143: 9641 | F143: 2009 | G143: 10000 | I143: New | L143: 1 | M143: 1
A144: 100324 | B144: 2002 | C144: 65 | D144: 2 | E144: 1196 | F144: 2002 | G144: 9557 | L144: 1
A145: 100324 | B145: 2003 | C145: 680 | D145: 13 | E145: 1197 | F145: 2002 | G145: 9557 | H145: 13 | L145: 2
A146: 100324 | B146: 2004 | C146: 1009 | D146: 43 | E146: 1198 | F146: 2002 | G146: 9557 | H146: 43 | L146: 3
A147: 100324 | B147: 2005 | C147: 1418 | D147: 37 | E147: 1199 | F147: 2002 | G147: 9557 | H147: 37 | L147: 4
A148: 100324 | B148: 2006 | C148: 4936 | D148: 38 | E148: 1200 | F148: 2002 | G148: 9557 | H148: 38 | I148: Downgraded | L148: 5
A149: 100324 | B149: 2007 | C149: 4345 | D149: 27 | E149: 1201 | F149: 2002 | G149: 9557 | H149: 27 | I149: Upgraded | L149: 6
A150: 100324 | B150: 2008 | C150: 4500 | D150: 24 | E150: 1202 | F150: 2002 | G150: 9557 | H150: 24 | I150: Upgraded | L150: 7
A151: 100324 | B151: 2009 | C151: 5270 | D151: 15 | E151: 1203 | F151: 2002 | G151: 9557 | H151: 15 | I151: Downgraded | L151: 8
A152: 100324 | B152: 2010 | C152: 4799 | D152: 14 | E152: 1204 | F152: 2002 | G152: 9557 | H152: 14 | I152: Downgraded | L152: 9
A153: 100324 | B153: 2011 | C153: 2200 | D153: 14 | E153: 1205 | F153: 2002 | G153: 9557 | H153: 14 | I153: Upgraded | L153: 10
A154: 100324 | B154: 2012 | C154: 9557 | D154: 13 | E154: 1206 | F154: 2002 | G154: 9557 | H154: 13 | L154: 11
A155: 101368 | B155: 2005 | C155: 100 | D155: 1 | E155: 4652 | F155: 2005 | G155: 9468 | L155: 1
A156: 101368 | B156: 2006 | C156: 3857 | D156: 34 | E156: 4653 | F156: 2005 | G156: 9468 | H156: 34 | I156: Upgraded | L156: 2
A157: 101368 | B157: 2007 | C157: 5843 | D157: 29 | E157: 4654 | F157: 2005 | G157: 9468 | H157: 29 | I157: Downgraded | L157: 3
A158: 101368 | B158: 2008 | C158: 5818 | D158: 27 | E158: 4655 | F158: 2005 | G158: 9468 | H158: 27 | I158: Downgraded | L158: 4
A159: 101368 | B159: 2009 | C159: 5368 | D159: 25 | E159: 4656 | F159: 2005 | G159: 9468 | H159: 25 | I159: Upgraded | L159: 5
A160: 101368 | B160: 2010 | C160: 5968 | D160: 26 | E160: 4657 | F160: 2005 | G160: 9468 | H160: 26 | I160: Upgraded | L160: 6
A161: 101368 | B161: 2011 | C161: 9468 | D161: 24 | E161: 4658 | F161: 2005 | G161: 9468 | H161: 24 | I161: Downgraded | L161: 7
A162: 101368 | B162: 2012 | C162: 8179 | D162: 23 | E162: 4659 | F162: 2005 | G162: 9468 | H162: 23 | L162: 8
A163: 102790 | B163: 2008 | C163: 4000 | D163: 2 | E163: 8368 | F163: 2008 | G163: 9000 | I163: New | L163: 1
A164: 102790 | B164: 2009 | C164: 5000 | D164: 1 | E164: 8369 | F164: 2008 | G164: 9000 | I164: Downgraded | L164: 2
A165: 102790 | B165: 2010 | C165: 2000 | D165: 1 | E165: 8370 | F165: 2008 | G165: 9000 | I165: Lapsed-repeat | L165: 3
A166: 102790 | B166: 2012 | C166: 9000 | D166: 2 | E166: 8371 | F166: 2008 | G166: 9000 | I166: Recap | L166: 4 | N166: Recap1
A167: 101534 | B167: 2006 | C167: 7515 | D167: 10 | E167: 5216 | F167: 2006 | G167: 8334 | H167: 10 | I167: Upgraded | L167: 1
A168: 101534 | B168: 2007 | C168: 8334 | D168: 11 | E168: 5217 | F168: 2006 | G168: 8334 | H168: 11 | I168: Downgraded | L168: 2
A169: 101534 | B169: 2008 | C169: 4165 | D169: 4 | E169: 5218 | F169: 2006 | G169: 8334 | I169: Upgraded | L169: 3
A170: 101534 | B170: 2009 | C170: 5000 | D170: 1 | E170: 5219 | F170: 2006 | G170: 8334 | I170: Upgraded | L170: 4
A171: 101534 | B171: 2010 | C171: 5015 | D171: 2 | E171: 5220 | F171: 2006 | G171: 8334 | I171: Upgraded | L171: 5
A172: 101534 | B172: 2011 | C172: 5055 | D172: 2 | E172: 5221 | F172: 2006 | G172: 8334 | I172: Upgraded | L172: 6
A173: 101534 | B173: 2012 | C173: 5100 | D173: 2 | E173: 5222 | F173: 2006 | G173: 8334 | L173: 7
A174: 100319 | B174: 2004 | C174: 413 | D174: 21 | E174: 1173 | F174: 2004 | G174: 7725 | H174: 21 | L174: 1
A175: 100319 | B175: 2005 | C175: 780 | D175: 34 | E175: 1174 | F175: 2004 | G175: 7725 | H175: 34 | L175: 2
A176: 100319 | B176: 2006 | C176: 1650 | D176: 21 | E176: 1175 | F176: 2004 | G176: 7725 | H176: 21 | I176: Downgraded | L176: 3
A177: 100319 | B177: 2007 | C177: 1068 | D177: 21 | E177: 1176 | F177: 2004 | G177: 7725 | H177: 21 | I177: Upgraded | L177: 4
A178: 100319 | B178: 2008 | C178: 1697 | D178: 13 | E178: 1177 | F178: 2004 | G178: 7725 | H178: 13 | I178: Upgraded | L178: 5
A179: 100319 | B179: 2009 | C179: 3961 | D179: 21 | E179: 1178 | F179: 2004 | G179: 7725 | H179: 21 | I179: Downgraded | L179: 6
A180: 100319 | B180: 2010 | C180: 3325 | D180: 21 | E180: 1179 | F180: 2004 | G180: 7725 | H180: 21 | I180: Downgraded | L180: 7
A181: 100319 | B181: 2011 | C181: 2992 | D181: 17 | E181: 1180 | F181: 2004 | G181: 7725 | H181: 17 | I181: Upgraded | L181: 8
A182: 100319 | B182: 2012 | C182: 7725 | D182: 18 | E182: 1181 | F182: 2004 | G182: 7725 | H182: 18 | L182: 9
A183: 100608 | B183: 2005 | C183: 3500 | D183: 2 | E183: 2208 | F183: 2005 | G183: 7650 | L183: 1
A184: 100608 | B184: 2011 | C184: 7650 | D184: 1 | E184: 2209 | F184: 2005 | G184: 7650 | I184: Lapsed-repeat | L184: 2
A185: 103778 | B185: 2009 | C185: 7500 | D185: 1 | E185: 10519 | F185: 2009 | G185: 7500 | I185: New | L185: 1 | M185: 1
A186: 104033 | B186: 2010 | C186: 2065 | D186: 1 | E186: 10995 | F186: 2010 | G186: 7215 | I186: New | L186: 1
A187: 104033 | B187: 2011 | C187: 6804 | D187: 1 | E187: 10996 | F187: 2010 | G187: 7215 | I187: Upgraded | L187: 2
A188: 104033 | B188: 2012 | C188: 7215 | D188: 1 | E188: 10997 | F188: 2010 | G188: 7215 | L188: 3
A189: 100046 | B189: 2005 | C189: 2000 | D189: 1 | E189: 178 | F189: 2005 | G189: 7000 | L189: 1
A190: 100046 | B190: 2006 | C190: 2500 | D190: 2 | E190: 179 | F190: 2005 | G190: 7000 | I190: Upgraded | L190: 2
A191: 100046 | B191: 2007 | C191: 7000 | D191: 3 | E191: 180 | F191: 2005 | G191: 7000 | I191: Downgraded | L191: 3
A192: 100046 | B192: 2008 | C192: 6000 | D192: 1 | E192: 181 | F192: 2005 | G192: 7000 | I192: Downgraded | L192: 4
A193: 100046 | B193: 2009 | C193: 2026 | D193: 3 | E193: 182 | F193: 2005 | G193: 7000 | I193: Downgraded | L193: 5
A194: 100046 | B194: 2010 | C194: 1000 | D194: 1 | E194: 183 | F194: 2005 | G194: 7000 | I194: Upgraded | L194: 6
A195: 100046 | B195: 2011 | C195: 2100 | D195: 3 | E195: 184 | F195: 2005 | G195: 7000 | I195: Downgraded | L195: 7
A196: 100046 | B196: 2012 | C196: 1300 | D196: 3 | E196: 185 | F196: 2005 | G196: 7000 | L196: 8
A197: 102046 | B197: 2006 | C197: 1000 | D197: 1 | E197: 6654 | F197: 2006 | G197: 7000 | I197: Upgraded | L197: 1
A198: 102046 | B198: 2007 | C198: 7000 | D198: 1 | E198: 6655 | F198: 2006 | G198: 7000 | I198: Lapsed-repeat | L198: 2
A199: 103863 | B199: 2009 | C199: 7000 | D199: 1 | E199: 10687 | F199: 2009 | G199: 7000 | I199: New | L199: 1 | M199: 1
A200: 101749 | B200: 2006 | C200: 6000 | D200: 1 | E200: 5823 | F200: 2006 | G200: 6000 | I200: Lapsed-new | L200: 1
A201: 101749 | B201: 2008 | C201: 5000 | D201: 1 | E201: 5824 | F201: 2006 | G201: 6000 | I201: Recap | L201: 2 | N201: Recap1
... 4299 more rows

Sheet FEP100Dn
A1: FEP100Dn | C1: Fundraising Effectiveness Survey - 2012 | G1: =TODAY() -> 2014-08-31 | I1: Sort Largest Year (col. G) - DESC | J1: 07:38:27 | N1: =TODAY() -> 2014-08-31 | O1: 08:01:19
A2: =StepByStep!#REF! ->  | O2: 08:01:42
A3: Growth-in-Giving is measured for Year 2: | H3: From --> | I3: =K16 -> 9607 | J3: <---- ="K" & row | O3: =O2-O1 -> 00:00:23
D4: Year 2 | E4: =FEPdata!E4 -> 2013 | H4: To --> | I4: =L19 -> 14981 | J4: <---- ="L" & row | O4: FEPdata
A5: Under $100 | B5: A 100 dn | E5: =StepByStep!$G$7 -> 12 | F5: <-- Year-end month
A6: Gain(Loss) Data - Software Extract for Year 2 and Year 1 data | K6: Col K | L6: Col L
J7: Row | K7: From | L7: To | M7: Count
B8: Number of | C8: Amount of | D8: Number of | E8: Amount of | H8: 5,000 up | I8: 25,000 & up | J8: 8 | K8: 31 | L8: 66 | M8: =L8-K8+1 -> 36
A9: Gain(Loss) | B9: =D9-1 -> 2012 | C9: =E9-1 -> 2012 | D9: =$E4 -> 2013 | E9: =$E4 -> 2013 | I9: 10,000-24,999 | J9: 9 | K9: =L8+1 -> 67 | L9: 143 | M9: =L9-L8 -> 77
A10: Category | B10: Donors | C10: Gifts ($) | D10: Donors | E10: Gifts ($) | I10: 5,000-9,999 | J10: 10 | K10: 144 | L10: 249 | M10: 106
H11: 1,000-4,999 | I11: 2,500-4,999 | J11: 11 | K11: 250 | L11: 417 | M11: 168
A12: New | B12: n/a | C12: n/a | D12: 684 | E12: 23326 | I12: 1,000-2,499 | J12: 12 | K12: 418 | L12: 1061 | M12: 644
A13: Recaptured | B13: n/a | C13: n/a | D13: 125 | E13: 4465 | H13: 250-999 | I13: 500-999 | J13: 13 | K13: 1062 | L13: 2414 | M13: 1353
A14: Upgraded | B14: 99 | C14: 2631 | D14: 99 | E14: 4756 | I14: 250-499 | J14: 14 | K14: 2415 | L14: 4953 | M14: 2539
A15: Same | B15: 89 | C15: 3540 | D15: 89 | E15: 3540 | H15: 100-249 | I15: 100-249 | J15: 15 | K15: 4954 | L15: 9606 | M15: 4653
A16: Downgraded | B16: 109 | C16: 5519 | D16: 109 | E16: 3069 | H16: Under 100 | I16: 50-99 | J16: 16 | K16: 9607 | L16: 12101 | M16: 2495
A17: Lapsed new | B17: 441 | C17: 14912 | D17: n/a | E17: n/a | I17: 25-49 | J17: 17 | K17: 12102 | L17: 14121 | M17: 2020
A18: Lapsed repeat | B18: 156 | C18: 5138 | D18: n/a | E18: n/a | F18: GiG# | G18: GiG$ | I18: 10-24 | J18: 18 | K18: 14122 | L18: 14884 | M18: 763
A19: Total | B19: =SUM(B12:B18) -> 894 | C19: =SUM(C12:C18) -> 31740 | D19: =SUM(D12:D18) -> 1106 | E19: =SUM(E12:E18) -> 39156 | F19: =(D19-B19)/B19 -> 0.2371364653 | G19: =(E19-C19)/C19 -> 0.2336483932 | I19: Under 10 | J19: 19 | K19: 14885 | L19: 14981 | M19: 97
A20: 36 hilighted data fields are retrieved from gift transaction data below | M20: =SUM(M8:M19) -> 14951
B21: Number | C21: Gift$
A22: New in year 1 | B22: 545 | C22: 18836 | D22: <-- i.e., last year's new donors and gift$
A23: Database EOY1 | B23: 3089 | D23: <-- i.e., Total number of donors on file at end of Year1 | K23: 3773 | L23: <-- i.e., TOTAL number of donors on file
A24: One time donors | B24: 2214 | C24: 77232 | D24: <-- i.e., Number of one-time donors and gifts | K24: 1434 | L24: <-- Total # of gifts in Year2 (vs #donors)
A25: Recaptured lapsed 1 year | D25: 70 | E25: 2651 | F25: <-- Portion of Recaptured | K25: 49 | L25: 6906 | M25: <-- Total # & $ for monthly donors in database
A26: Monthly donors in Year2 | D26: 10 | E26: 712 | F26: <-- i.e., Year2 donors making 6 to 24 gifts. | K26: 2 | L26: 144 | M26: <-- Portion NEW monthly donors in Year2
B28: [Asc] | D28: Gifts | F28: First | G28: Largest | H28: Monthly | I28: Gain/Loss | L28: Years of | M28: One time | N28: Recap 1
A29: Acct | B29: Year | C29: AmtYr | D29: Per year | E29: Seq# | F29: Year | G29: Year | H29: Giving | I29: Category | L29: Giving | M29: Donor | N29: Donor
A30: A | B30: B | C30: C | D30: D | E30: E | F30: F | G30: G | H30: H | I30: I | L30: L | M30: M | N30: N
A31: 103633 | B31: 2009 | C31: 100000 | D31: 1 | E31: 10221 | F31: 2009 | G31: 100000
A32: 100516 | B32: 2004 | C32: 1150 | D32: 4 | E32: 1926 | F32: 2004 | G32: 83000
A33: 100516 | B33: 2005 | C33: 2000 | D33: 2 | E33: 1927 | F33: 2004 | G33: 83000
A34: 100516 | B34: 2006 | C34: 4500 | D34: 5 | E34: 1928 | F34: 2004 | G34: 83000
A35: 100516 | B35: 2007 | C35: 3503 | D35: 4 | E35: 1929 | F35: 2004 | G35: 83000
A36: 100516 | B36: 2008 | C36: 4000 | D36: 3 | E36: 1930 | F36: 2004 | G36: 83000
A37: 100516 | B37: 2009 | C37: 3500 | D37: 2 | E37: 1931 | F37: 2004 | G37: 83000
A38: 100516 | B38: 2010 | C38: 3000 | D38: 2 | E38: 1932 | F38: 2004 | G38: 83000
A39: 100516 | B39: 2011 | C39: 83000 | D39: 4 | E39: 1933 | F39: 2004 | G39: 83000
A40: 101894 | B40: 2006 | C40: 60000 | D40: 2 | E40: 6240 | F40: 2006 | G40: 60000
A41: 101894 | B41: 2010 | C41: 700 | D41: 4 | E41: 6241 | F41: 2006 | G41: 60000
A42: 101894 | B42: 2011 | C42: 700 | D42: 15 | E42: 6242 | F42: 2006 | G42: 60000 | H42: 15
A43: 101894 | B43: 2012 | C43: 2525 | D43: 27 | E43: 6243 | F43: 2006 | G43: 60000 | H43: 27
A44: 104938 | B44: 2010 | C44: 60000 | D44: 1 | E44: 12541 | F44: 2010 | G44: 60000
A45: 104938 | B45: 2011 | C45: 13050 | D45: 2 | E45: 12542 | F45: 2010 | G45: 60000
A46: 102546 | B46: 2007 | C46: 48000 | D46: 1 | E46: 7808 | F46: 2007 | G46: 48000
A47: 102546 | B47: 2008 | C47: 46826 | D47: 1 | E47: 7809 | F47: 2007 | G47: 48000
A48: 103826 | B48: 2010 | C48: 45449 | D48: 1 | E48: 10621 | F48: 2010 | G48: 45449
A49: 105795 | B49: 2012 | C49: 40000 | D49: 1 | E49: 13766 | F49: 2012 | G49: 40000
A50: 100521 | B50: 2004 | C50: 300 | D50: 3 | E50: 1942 | F50: 2004 | G50: 37823
A51: 100521 | B51: 2005 | C51: 350 | D51: 2 | E51: 1943 | F51: 2004 | G51: 37823
A52: 100521 | B52: 2006 | C52: 300 | D52: 2 | E52: 1944 | F52: 2004 | G52: 37823
A53: 100521 | B53: 2007 | C53: 300 | D53: 1 | E53: 1945 | F53: 2004 | G53: 37823
A54: 100521 | B54: 2008 | C54: 1750 | D54: 2 | E54: 1946 | F54: 2004 | G54: 37823
A55: 100521 | B55: 2009 | C55: 6772 | D55: 4 | E55: 1947 | F55: 2004 | G55: 37823
A56: 100521 | B56: 2010 | C56: 6650 | D56: 5 | E56: 1948 | F56: 2004 | G56: 37823
A57: 100521 | B57: 2011 | C57: 37823 | D57: 9 | E57: 1949 | F57: 2004 | G57: 37823 | H57: 9
A58: 100521 | B58: 2012 | C58: 18697 | D58: 5 | E58: 1950 | F58: 2004 | G58: 37823
A59: 105951 | B59: 2011 | C59: 35000 | D59: 2 | E59: 13965 | F59: 2011 | G59: 35000
A60: 101420 | B60: 2006 | C60: 1974 | D60: 3 | E60: 4836 | F60: 2006 | G60: 30300
A61: 101420 | B61: 2007 | C61: 200 | D61: 1 | E61: 4837 | F61: 2006 | G61: 30300
A62: 101420 | B62: 2008 | C62: 600 | D62: 2 | E62: 4838 | F62: 2006 | G62: 30300
A63: 101420 | B63: 2010 | C63: 30300 | D63: 2 | E63: 4839 | F63: 2006 | G63: 30300
A64: 101420 | B64: 2011 | C64: 400 | D64: 2 | E64: 4840 | F64: 2006 | G64: 30300
A65: 101420 | B65: 2012 | C65: 600 | D65: 3 | E65: 4841 | F65: 2006 | G65: 30300
A66: 102371 | B66: 2007 | C66: 30000 | D66: 1 | E66: 7477 | F66: 2007 | G66: 30000
A67: 104585 | B67: 2010 | C67: 20000 | D67: 1 | E67: 12003 | F67: 2010 | G67: 20000
A68: 102303 | B68: 2007 | C68: 500 | D68: 3 | E68: 7320 | F68: 2007 | G68: 18434
A69: 102303 | B69: 2008 | C69: 18434 | D69: 13 | E69: 7321 | F69: 2007 | G69: 18434 | H69: 13
A70: 102303 | B70: 2009 | C70: 4300 | D70: 4 | E70: 7322 | F70: 2007 | G70: 18434
A71: 102303 | B71: 2010 | C71: 2530 | D71: 4 | E71: 7323 | F71: 2007 | G71: 18434
A72: 102303 | B72: 2011 | C72: 1400 | D72: 4 | E72: 7324 | F72: 2007 | G72: 18434
A73: 102303 | B73: 2012 | C73: 3284 | D73: 4 | E73: 7325 | F73: 2007 | G73: 18434
A74: 104924 | B74: 2010 | C74: 2500 | D74: 1 | E74: 12516 | F74: 2010 | G74: 15111
A75: 104924 | B75: 2011 | C75: 5774 | D75: 7 | E75: 12517 | F75: 2010 | G75: 15111 | H75: 7
A76: 104924 | B76: 2012 | C76: 15111 | D76: 6 | E76: 12518 | F76: 2010 | G76: 15111 | H76: 6
A77: 104703 | B77: 2010 | C77: 15000 | D77: 1 | E77: 12184 | F77: 2010 | G77: 15000
A78: 105185 | B78: 2011 | C78: 15000 | D78: 1 | E78: 12975 | F78: 2011 | G78: 15000
A79: 105185 | B79: 2012 | C79: 6352 | D79: 1 | E79: 12976 | F79: 2011 | G79: 15000
A80: 105673 | B80: 2011 | C80: 15000 | D80: 1 | E80: 13623 | F80: 2011 | G80: 15000
A81: 100057 | B81: 2002 | C81: 45 | D81: 3 | E81: 219 | F81: 2002 | G81: 14845
A82: 100057 | B82: 2003 | C82: 60 | D82: 4 | E82: 220 | F82: 2002 | G82: 14845
A83: 100057 | B83: 2004 | C83: 222 | D83: 7 | E83: 221 | F83: 2002 | G83: 14845 | H83: 7
A84: 100057 | B84: 2006 | C84: 168 | D84: 4 | E84: 222 | F84: 2002 | G84: 14845
A85: 100057 | B85: 2007 | C85: 438 | D85: 11 | E85: 223 | F85: 2002 | G85: 14845 | H85: 11
A86: 100057 | B86: 2008 | C86: 3769 | D86: 63 | E86: 224 | F86: 2002 | G86: 14845 | H86: 63
A87: 100057 | B87: 2009 | C87: 5180 | D87: 106 | E87: 225 | F87: 2002 | G87: 14845 | H87: 106
A88: 100057 | B88: 2010 | C88: 4775 | D88: 113 | E88: 226 | F88: 2002 | G88: 14845 | H88: 113
A89: 100057 | B89: 2011 | C89: 14845 | D89: 87 | E89: 227 | F89: 2002 | G89: 14845 | H89: 87
A90: 100057 | B90: 2012 | C90: 12241 | D90: 130 | E90: 228 | F90: 2002 | G90: 14845 | H90: 130
A91: 105844 | B91: 2011 | C91: 14000 | D91: 1 | E91: 13827 | F91: 2011 | G91: 14000
A92: 105844 | B92: 2012 | C92: 100 | D92: 1 | E92: 13828 | F92: 2011 | G92: 14000
A93: 101603 | B93: 2006 | C93: 50 | D93: 1 | E93: 5413 | F93: 2006 | G93: 12678
A94: 101603 | B94: 2007 | C94: 240 | D94: 1 | E94: 5414 | F94: 2006 | G94: 12678
A95: 101603 | B95: 2009 | C95: 440 | D95: 2 | E95: 5415 | F95: 2006 | G95: 12678
A96: 101603 | B96: 2010 | C96: 240 | D96: 1 | E96: 5416 | F96: 2006 | G96: 12678
A97: 101603 | B97: 2012 | C97: 12678 | D97: 1 | E97: 5417 | F97: 2006 | G97: 12678
A98: 102209 | B98: 2007 | C98: 12500 | D98: 2 | E98: 7067 | F98: 2007 | G98: 12500
A99: 102209 | B99: 2008 | C99: 5000 | D99: 1 | E99: 7068 | F99: 2007 | G99: 12500
A100: 102209 | B100: 2009 | C100: 2500 | D100: 1 | E100: 7069 | F100: 2007 | G100: 12500
A101: 100512 | B101: 2004 | C101: 110 | D101: 2 | E101: 1912 | F101: 2004 | G101: 12431
A102: 100512 | B102: 2005 | C102: 120 | D102: 12 | E102: 1913 | F102: 2004 | G102: 12431 | H102: 12
A103: 100512 | B103: 2006 | C103: 335 | D103: 14 | E103: 1914 | F103: 2004 | G103: 12431 | H103: 14
A104: 100512 | B104: 2007 | C104: 406 | D104: 14 | E104: 1915 | F104: 2004 | G104: 12431 | H104: 14
A105: 100512 | B105: 2008 | C105: 1047 | D105: 17 | E105: 1916 | F105: 2004 | G105: 12431 | H105: 17
A106: 100512 | B106: 2009 | C106: 1053 | D106: 14 | E106: 1917 | F106: 2004 | G106: 12431 | H106: 14
A107: 100512 | B107: 2010 | C107: 1294 | D107: 21 | E107: 1918 | F107: 2004 | G107: 12431 | H107: 21
A108: 100512 | B108: 2011 | C108: 2232 | D108: 19 | E108: 1919 | F108: 2004 | G108: 12431 | H108: 19
A109: 100512 | B109: 2012 | C109: 12431 | D109: 17 | E109: 1920 | F109: 2004 | G109: 12431 | H109: 17
A110: 103504 | B110: 2009 | C110: 1000 | D110: 1 | E110: 9943 | F110: 2009 | G110: 12261
A111: 103504 | B111: 2010 | C111: 1100 | D111: 3 | E111: 9944 | F111: 2009 | G111: 12261
A112: 103504 | B112: 2011 | C112: 12261 | D112: 6 | E112: 9945 | F112: 2009 | G112: 12261 | H112: 6
A113: 103504 | B113: 2012 | C113: 5287 | D113: 6 | E113: 9946 | F113: 2009 | G113: 12261 | H113: 6
A114: 103572 | B114: 2009 | C114: 12000 | D114: 1 | E114: 10089 | F114: 2009 | G114: 12000
A115: 103572 | B115: 2012 | C115: 500 | D115: 1 | E115: 10090 | F115: 2009 | G115: 12000
A116: 100554 | B116: 2004 | C116: 4120 | D116: 8 | E116: 2039 | F116: 2004 | G116: 11700 | H116: 8
A117: 100554 | B117: 2005 | C117: 7322 | D117: 10 | E117: 2040 | F117: 2004 | G117: 11700 | H117: 10
A118: 100554 | B118: 2006 | C118: 8750 | D118: 11 | E118: 2041 | F118: 2004 | G118: 11700 | H118: 11
A119: 100554 | B119: 2007 | C119: 9900 | D119: 11 | E119: 2042 | F119: 2004 | G119: 11700 | H119: 11
A120: 100554 | B120: 2008 | C120: 11700 | D120: 13 | E120: 2043 | F120: 2004 | G120: 11700 | H120: 13
A121: 100554 | B121: 2009 | C121: 10800 | D121: 11 | E121: 2044 | F121: 2004 | G121: 11700 | H121: 11
A122: 100554 | B122: 2010 | C122: 9000 | D122: 10 | E122: 2045 | F122: 2004 | G122: 11700 | H122: 10
A123: 100554 | B123: 2011 | C123: 7200 | D123: 8 | E123: 2046 | F123: 2004 | G123: 11700 | H123: 8
A124: 102777 | B124: 2008 | C124: 11000 | D124: 1 | E124: 8337 | F124: 2008 | G124: 11000
A125: 102777 | B125: 2009 | C125: 200 | D125: 1 | E125: 8338 | F125: 2008 | G125: 11000
A126: 102777 | B126: 2010 | C126: 750 | D126: 2 | E126: 8339 | F126: 2008 | G126: 11000
A127: 102777 | B127: 2011 | C127: 1200 | D127: 2 | E127: 8340 | F127: 2008 | G127: 11000
A128: 103967 | B128: 2009 | C128: 11000 | D128: 1 | E128: 10888 | F128: 2009 | G128: 11000
A129: 105379 | B129: 2011 | C129: 10800 | D129: 2 | E129: 13244 | F129: 2011 | G129: 10800
A130: 105379 | B130: 2012 | C130: 1500 | D130: 4 | E130: 13245 | F130: 2011 | G130: 10800
A131: 100228 | B131: 2003 | C131: 150 | D131: 6 | E131: 767 | F131: 2003 | G131: 10600 | H131: 6
A132: 100228 | B132: 2004 | C132: 300 | D132: 12 | E132: 768 | F132: 2003 | G132: 10600 | H132: 12
A133: 100228 | B133: 2005 | C133: 300 | D133: 12 | E133: 769 | F133: 2003 | G133: 10600 | H133: 12
A134: 100228 | B134: 2006 | C134: 300 | D134: 12 | E134: 770 | F134: 2003 | G134: 10600 | H134: 12
A135: 100228 | B135: 2007 | C135: 375 | D135: 13 | E135: 771 | F135: 2003 | G135: 10600 | H135: 13
A136: 100228 | B136: 2008 | C136: 600 | D136: 12 | E136: 772 | F136: 2003 | G136: 10600 | H136: 12
A137: 100228 | B137: 2009 | C137: 10600 | D137: 13 | E137: 773 | F137: 2003 | G137: 10600 | H137: 13
A138: 100228 | B138: 2010 | C138: 600 | D138: 12 | E138: 774 | F138: 2003 | G138: 10600 | H138: 12
A139: 100228 | B139: 2011 | C139: 600 | D139: 12 | E139: 775 | F139: 2003 | G139: 10600 | H139: 12
A140: 100228 | B140: 2012 | C140: 600 | D140: 12 | E140: 776 | F140: 2003 | G140: 10600 | H140: 12
A141: 102051 | B141: 2007 | C141: 10000 | D141: 1 | E141: 6670 | F141: 2007 | G141: 10000
A142: 102483 | B142: 2007 | C142: 10000 | D142: 1 | E142: 7687 | F142: 2007 | G142: 10000
A143: 103364 | B143: 2009 | C143: 10000 | D143: 1 | E143: 9641 | F143: 2009 | G143: 10000
A144: 100324 | B144: 2002 | C144: 65 | D144: 2 | E144: 1196 | F144: 2002 | G144: 9557
A145: 100324 | B145: 2003 | C145: 680 | D145: 13 | E145: 1197 | F145: 2002 | G145: 9557 | H145: 13
A146: 100324 | B146: 2004 | C146: 1009 | D146: 43 | E146: 1198 | F146: 2002 | G146: 9557 | H146: 43
A147: 100324 | B147: 2005 | C147: 1418 | D147: 37 | E147: 1199 | F147: 2002 | G147: 9557 | H147: 37
A148: 100324 | B148: 2006 | C148: 4936 | D148: 38 | E148: 1200 | F148: 2002 | G148: 9557 | H148: 38
A149: 100324 | B149: 2007 | C149: 4345 | D149: 27 | E149: 1201 | F149: 2002 | G149: 9557 | H149: 27
A150: 100324 | B150: 2008 | C150: 4500 | D150: 24 | E150: 1202 | F150: 2002 | G150: 9557 | H150: 24
A151: 100324 | B151: 2009 | C151: 5270 | D151: 15 | E151: 1203 | F151: 2002 | G151: 9557 | H151: 15
A152: 100324 | B152: 2010 | C152: 4799 | D152: 14 | E152: 1204 | F152: 2002 | G152: 9557 | H152: 14
A153: 100324 | B153: 2011 | C153: 2200 | D153: 14 | E153: 1205 | F153: 2002 | G153: 9557 | H153: 14
A154: 100324 | B154: 2012 | C154: 9557 | D154: 13 | E154: 1206 | F154: 2002 | G154: 9557 | H154: 13
A155: 101368 | B155: 2005 | C155: 100 | D155: 1 | E155: 4652 | F155: 2005 | G155: 9468
A156: 101368 | B156: 2006 | C156: 3857 | D156: 34 | E156: 4653 | F156: 2005 | G156: 9468 | H156: 34
A157: 101368 | B157: 2007 | C157: 5843 | D157: 29 | E157: 4654 | F157: 2005 | G157: 9468 | H157: 29
A158: 101368 | B158: 2008 | C158: 5818 | D158: 27 | E158: 4655 | F158: 2005 | G158: 9468 | H158: 27
A159: 101368 | B159: 2009 | C159: 5368 | D159: 25 | E159: 4656 | F159: 2005 | G159: 9468 | H159: 25
A160: 101368 | B160: 2010 | C160: 5968 | D160: 26 | E160: 4657 | F160: 2005 | G160: 9468 | H160: 26
A161: 101368 | B161: 2011 | C161: 9468 | D161: 24 | E161: 4658 | F161: 2005 | G161: 9468 | H161: 24
A162: 101368 | B162: 2012 | C162: 8179 | D162: 23 | E162: 4659 | F162: 2005 | G162: 9468 | H162: 23
A163: 102790 | B163: 2008 | C163: 4000 | D163: 2 | E163: 8368 | F163: 2008 | G163: 9000
A164: 102790 | B164: 2009 | C164: 5000 | D164: 1 | E164: 8369 | F164: 2008 | G164: 9000
A165: 102790 | B165: 2010 | C165: 2000 | D165: 1 | E165: 8370 | F165: 2008 | G165: 9000
A166: 102790 | B166: 2012 | C166: 9000 | D166: 2 | E166: 8371 | F166: 2008 | G166: 9000
A167: 101534 | B167: 2006 | C167: 7515 | D167: 10 | E167: 5216 | F167: 2006 | G167: 8334 | H167: 10
A168: 101534 | B168: 2007 | C168: 8334 | D168: 11 | E168: 5217 | F168: 2006 | G168: 8334 | H168: 11
A169: 101534 | B169: 2008 | C169: 4165 | D169: 4 | E169: 5218 | F169: 2006 | G169: 8334
A170: 101534 | B170: 2009 | C170: 5000 | D170: 1 | E170: 5219 | F170: 2006 | G170: 8334
A171: 101534 | B171: 2010 | C171: 5015 | D171: 2 | E171: 5220 | F171: 2006 | G171: 8334
A172: 101534 | B172: 2011 | C172: 5055 | D172: 2 | E172: 5221 | F172: 2006 | G172: 8334
A173: 101534 | B173: 2012 | C173: 5100 | D173: 2 | E173: 5222 | F173: 2006 | G173: 8334
A174: 100319 | B174: 2004 | C174: 413 | D174: 21 | E174: 1173 | F174: 2004 | G174: 7725 | H174: 21
A175: 100319 | B175: 2005 | C175: 780 | D175: 34 | E175: 1174 | F175: 2004 | G175: 7725 | H175: 34
A176: 100319 | B176: 2006 | C176: 1650 | D176: 21 | E176: 1175 | F176: 2004 | G176: 7725 | H176: 21
A177: 100319 | B177: 2007 | C177: 1068 | D177: 21 | E177: 1176 | F177: 2004 | G177: 7725 | H177: 21
A178: 100319 | B178: 2008 | C178: 1697 | D178: 13 | E178: 1177 | F178: 2004 | G178: 7725 | H178: 13
A179: 100319 | B179: 2009 | C179: 3961 | D179: 21 | E179: 1178 | F179: 2004 | G179: 7725 | H179: 21
A180: 100319 | B180: 2010 | C180: 3325 | D180: 21 | E180: 1179 | F180: 2004 | G180: 7725 | H180: 21
A181: 100319 | B181: 2011 | C181: 2992 | D181: 17 | E181: 1180 | F181: 2004 | G181: 7725 | H181: 17
A182: 100319 | B182: 2012 | C182: 7725 | D182: 18 | E182: 1181 | F182: 2004 | G182: 7725 | H182: 18
A183: 100608 | B183: 2005 | C183: 3500 | D183: 2 | E183: 2208 | F183: 2005 | G183: 7650
A184: 100608 | B184: 2011 | C184: 7650 | D184: 1 | E184: 2209 | F184: 2005 | G184: 7650
A185: 103778 | B185: 2009 | C185: 7500 | D185: 1 | E185: 10519 | F185: 2009 | G185: 7500
A186: 104033 | B186: 2010 | C186: 2065 | D186: 1 | E186: 10995 | F186: 2010 | G186: 7215
A187: 104033 | B187: 2011 | C187: 6804 | D187: 1 | E187: 10996 | F187: 2010 | G187: 7215
A188: 104033 | B188: 2012 | C188: 7215 | D188: 1 | E188: 10997 | F188: 2010 | G188: 7215
A189: 100046 | B189: 2005 | C189: 2000 | D189: 1 | E189: 178 | F189: 2005 | G189: 7000
A190: 100046 | B190: 2006 | C190: 2500 | D190: 2 | E190: 179 | F190: 2005 | G190: 7000
A191: 100046 | B191: 2007 | C191: 7000 | D191: 3 | E191: 180 | F191: 2005 | G191: 7000
A192: 100046 | B192: 2008 | C192: 6000 | D192: 1 | E192: 181 | F192: 2005 | G192: 7000
A193: 100046 | B193: 2009 | C193: 2026 | D193: 3 | E193: 182 | F193: 2005 | G193: 7000
A194: 100046 | B194: 2010 | C194: 1000 | D194: 1 | E194: 183 | F194: 2005 | G194: 7000
A195: 100046 | B195: 2011 | C195: 2100 | D195: 3 | E195: 184 | F195: 2005 | G195: 7000
A196: 100046 | B196: 2012 | C196: 1300 | D196: 3 | E196: 185 | F196: 2005 | G196: 7000
A197: 102046 | B197: 2006 | C197: 1000 | D197: 1 | E197: 6654 | F197: 2006 | G197: 7000
A198: 102046 | B198: 2007 | C198: 7000 | D198: 1 | E198: 6655 | F198: 2006 | G198: 7000
A199: 103863 | B199: 2009 | C199: 7000 | D199: 1 | E199: 10687 | F199: 2009 | G199: 7000
A200: 101749 | B200: 2006 | C200: 6000 | D200: 1 | E200: 5823 | F200: 2006 | G200: 6000
A201: 101749 | B201: 2008 | C201: 5000 | D201: 1 | E201: 5824 | F201: 2006 | G201: 6000
... 4299 more rows

Sheet FEP100to249
A1: FEP100to249 | C1: Fundraising Effectiveness Survey - 2012 | G1: =TODAY() -> 2014-08-31 | I1: Sort Largest Year (col. G) - DESC | N1: =TODAY() -> 2014-08-31 | O1: 08:01:03
A2: =StepByStep!#REF! ->  | O2: 08:01:19
A3: Growth-in-Giving is measured for Year 2: | H3: From --> | I3: =K15 -> 4954 | J3: <---- ="K" & row | O3: =O2-O1 -> 00:00:16
D4: Year 2 | E4: =FEPdata!E4 -> 2013 | H4: To --> | I4: =L15 -> 9606 | J4: <---- ="L" & row | O4: FEPdata
A5: $100 to $249 | B5: B 100-249 | E5: =StepByStep!$G$7 -> 12 | F5: <-- Year-end month
A6: Gain(Loss) Data - Software Extract for Year 2 and Year 1 data | K6: Col K | L6: Col L
J7: Row | K7: From | L7: To | M7: Count
B8: Number of | C8: Amount of | D8: Number of | E8: Amount of | H8: 5,000 up | I8: 25,000 & up | J8: 8 | K8: 31 | L8: 66 | M8: =L8-K8+1 -> 36
A9: Gain(Loss) | B9: =D9-1 -> 2012 | C9: =E9-1 -> 2012 | D9: =$E4 -> 2013 | E9: =$E4 -> 2013 | I9: 10,000-24,999 | J9: 9 | K9: =L8+1 -> 67 | L9: 143 | M9: =L9-L8 -> 77
A10: Category | B10: Donors | C10: Gifts ($) | D10: Donors | E10: Gifts ($) | I10: 5,000-9,999 | J10: 10 | K10: 144 | L10: 249 | M10: 106
H11: 1,000-4,999 | I11: 2,500-4,999 | J11: 11 | K11: 250 | L11: 417 | M11: 168
A12: New | B12: n/a | C12: n/a | D12: 242 | E12: 33245 | I12: 1,000-2,499 | J12: 12 | K12: 418 | L12: 1061 | M12: 644
A13: Recaptured | B13: n/a | C13: n/a | D13: 101 | E13: 8213 | H13: 250-999 | I13: 500-999 | J13: 13 | K13: 1062 | L13: 2414 | M13: 1353
A14: Upgraded | B14: 156 | C14: 13647 | D14: 156 | E14: 23331 | I14: 250-499 | J14: 14 | K14: 2415 | L14: 4953 | M14: 2539
A15: Same | B15: 133 | C15: 16746 | D15: 133 | E15: 16746 | H15: 100-249 | I15: 100-249 | J15: 15 | K15: 4954 | L15: 9606 | M15: 4653
A16: Downgraded | B16: 211 | C16: 31802 | D16: 211 | E16: 20229 | H16: Under 100 | I16: 50-99 | J16: 16 | K16: 9607 | L16: 12101 | M16: 2495
A17: Lapsed new | B17: 147 | C17: 19463 | D17: n/a | E17: n/a | I17: 25-49 | J17: 17 | K17: 12102 | L17: 14121 | M17: 2020
A18: Lapsed repeat | B18: 146 | C18: 13272 | D18: n/a | E18: n/a | F18: GiG# | G18: GiG$ | I18: 10-24 | J18: 18 | K18: 14122 | L18: 14884 | M18: 763
A19: Total | B19: =SUM(B12:B18) -> 793 | C19: =SUM(C12:C18) -> 94930 | D19: =SUM(D12:D18) -> 843 | E19: =SUM(E12:E18) -> 101764 | F19: =(D19-B19)/B19 -> 0.0630517024 | G19: =(E19-C19)/C19 -> 0.07198988729 | I19: Under 10 | J19: 19 | K19: 14885 | L19: 14981 | M19: 97
A20: 36 hilighted data fields are retrieved from gift transaction data below | M20: =SUM(M8:M19) -> 14951
B21: Number | C21: Gift$
A22: New in year 1 | B22: 251 | C22: 32641 | D22: <-- i.e., last year's new donors and gift$
A23: Database EOY1 | B23: 1692 | D23: <-- i.e., Total number of donors on file at end of Year1 | K23: 1934 | L23: <-- i.e., TOTAL number of donors on file
A24: One time donors | B24: 702 | C24: 90035 | D24: <-- i.e., Number of one-time donors and gifts | K24: 3026 | L24: <-- Total # of gifts in Year2 (vs #donors)
A25: Recaptured lapsed 1 year | D25: 66 | E25: 5320 | F25: <-- Portion of Recaptured | K25: 362 | L25: 175095 | M25: <-- Total # & $ for monthly donors in database
A26: Monthly donors in Year2 | D26: 191 | E26: 33007 | F26: <-- i.e., Year2 donors making 6 to 24 gifts. | K26: 19 | L26: 3379 | M26: <-- Portion NEW monthly donors in Year2
B28: [Asc] | D28: Gifts | F28: First | G28: Largest | H28: Monthly | I28: Gain/Loss | L28: Years of | M28: One time | N28: Recap 1
A29: Acct | B29: Year | C29: AmtYr | D29: Per year | E29: Seq# | F29: Year | G29: Year | H29: Giving | I29: Category | L29: Giving | M29: Donor | N29: Donor
A30: A | B30: B | C30: C | D30: D | E30: E | F30: F | G30: G | H30: H | I30: I | L30: L | M30: M | N30: N
A31: 103633 | B31: 2009 | C31: 100000 | D31: 1 | E31: 10221 | F31: 2009 | G31: 100000
A32: 100516 | B32: 2004 | C32: 1150 | D32: 4 | E32: 1926 | F32: 2004 | G32: 83000
A33: 100516 | B33: 2005 | C33: 2000 | D33: 2 | E33: 1927 | F33: 2004 | G33: 83000
A34: 100516 | B34: 2006 | C34: 4500 | D34: 5 | E34: 1928 | F34: 2004 | G34: 83000
A35: 100516 | B35: 2007 | C35: 3503 | D35: 4 | E35: 1929 | F35: 2004 | G35: 83000
A36: 100516 | B36: 2008 | C36: 4000 | D36: 3 | E36: 1930 | F36: 2004 | G36: 83000
A37: 100516 | B37: 2009 | C37: 3500 | D37: 2 | E37: 1931 | F37: 2004 | G37: 83000
A38: 100516 | B38: 2010 | C38: 3000 | D38: 2 | E38: 1932 | F38: 2004 | G38: 83000
A39: 100516 | B39: 2011 | C39: 83000 | D39: 4 | E39: 1933 | F39: 2004 | G39: 83000
A40: 101894 | B40: 2006 | C40: 60000 | D40: 2 | E40: 6240 | F40: 2006 | G40: 60000
A41: 101894 | B41: 2010 | C41: 700 | D41: 4 | E41: 6241 | F41: 2006 | G41: 60000
A42: 101894 | B42: 2011 | C42: 700 | D42: 15 | E42: 6242 | F42: 2006 | G42: 60000 | H42: 15
A43: 101894 | B43: 2012 | C43: 2525 | D43: 27 | E43: 6243 | F43: 2006 | G43: 60000 | H43: 27
A44: 104938 | B44: 2010 | C44: 60000 | D44: 1 | E44: 12541 | F44: 2010 | G44: 60000
A45: 104938 | B45: 2011 | C45: 13050 | D45: 2 | E45: 12542 | F45: 2010 | G45: 60000
A46: 102546 | B46: 2007 | C46: 48000 | D46: 1 | E46: 7808 | F46: 2007 | G46: 48000
A47: 102546 | B47: 2008 | C47: 46826 | D47: 1 | E47: 7809 | F47: 2007 | G47: 48000
A48: 103826 | B48: 2010 | C48: 45449 | D48: 1 | E48: 10621 | F48: 2010 | G48: 45449
A49: 105795 | B49: 2012 | C49: 40000 | D49: 1 | E49: 13766 | F49: 2012 | G49: 40000
A50: 100521 | B50: 2004 | C50: 300 | D50: 3 | E50: 1942 | F50: 2004 | G50: 37823
A51: 100521 | B51: 2005 | C51: 350 | D51: 2 | E51: 1943 | F51: 2004 | G51: 37823
A52: 100521 | B52: 2006 | C52: 300 | D52: 2 | E52: 1944 | F52: 2004 | G52: 37823
A53: 100521 | B53: 2007 | C53: 300 | D53: 1 | E53: 1945 | F53: 2004 | G53: 37823
A54: 100521 | B54: 2008 | C54: 1750 | D54: 2 | E54: 1946 | F54: 2004 | G54: 37823
A55: 100521 | B55: 2009 | C55: 6772 | D55: 4 | E55: 1947 | F55: 2004 | G55: 37823
A56: 100521 | B56: 2010 | C56: 6650 | D56: 5 | E56: 1948 | F56: 2004 | G56: 37823
A57: 100521 | B57: 2011 | C57: 37823 | D57: 9 | E57: 1949 | F57: 2004 | G57: 37823 | H57: 9
A58: 100521 | B58: 2012 | C58: 18697 | D58: 5 | E58: 1950 | F58: 2004 | G58: 37823
A59: 105951 | B59: 2011 | C59: 35000 | D59: 2 | E59: 13965 | F59: 2011 | G59: 35000
A60: 101420 | B60: 2006 | C60: 1974 | D60: 3 | E60: 4836 | F60: 2006 | G60: 30300
A61: 101420 | B61: 2007 | C61: 200 | D61: 1 | E61: 4837 | F61: 2006 | G61: 30300
A62: 101420 | B62: 2008 | C62: 600 | D62: 2 | E62: 4838 | F62: 2006 | G62: 30300
A63: 101420 | B63: 2010 | C63: 30300 | D63: 2 | E63: 4839 | F63: 2006 | G63: 30300
A64: 101420 | B64: 2011 | C64: 400 | D64: 2 | E64: 4840 | F64: 2006 | G64: 30300
A65: 101420 | B65: 2012 | C65: 600 | D65: 3 | E65: 4841 | F65: 2006 | G65: 30300
A66: 102371 | B66: 2007 | C66: 30000 | D66: 1 | E66: 7477 | F66: 2007 | G66: 30000
A67: 104585 | B67: 2010 | C67: 20000 | D67: 1 | E67: 12003 | F67: 2010 | G67: 20000
A68: 102303 | B68: 2007 | C68: 500 | D68: 3 | E68: 7320 | F68: 2007 | G68: 18434
A69: 102303 | B69: 2008 | C69: 18434 | D69: 13 | E69: 7321 | F69: 2007 | G69: 18434 | H69: 13
A70: 102303 | B70: 2009 | C70: 4300 | D70: 4 | E70: 7322 | F70: 2007 | G70: 18434
A71: 102303 | B71: 2010 | C71: 2530 | D71: 4 | E71: 7323 | F71: 2007 | G71: 18434
A72: 102303 | B72: 2011 | C72: 1400 | D72: 4 | E72: 7324 | F72: 2007 | G72: 18434
A73: 102303 | B73: 2012 | C73: 3284 | D73: 4 | E73: 7325 | F73: 2007 | G73: 18434
A74: 104924 | B74: 2010 | C74: 2500 | D74: 1 | E74: 12516 | F74: 2010 | G74: 15111
A75: 104924 | B75: 2011 | C75: 5774 | D75: 7 | E75: 12517 | F75: 2010 | G75: 15111 | H75: 7
A76: 104924 | B76: 2012 | C76: 15111 | D76: 6 | E76: 12518 | F76: 2010 | G76: 15111 | H76: 6
A77: 104703 | B77: 2010 | C77: 15000 | D77: 1 | E77: 12184 | F77: 2010 | G77: 15000
A78: 105185 | B78: 2011 | C78: 15000 | D78: 1 | E78: 12975 | F78: 2011 | G78: 15000
A79: 105185 | B79: 2012 | C79: 6352 | D79: 1 | E79: 12976 | F79: 2011 | G79: 15000
A80: 105673 | B80: 2011 | C80: 15000 | D80: 1 | E80: 13623 | F80: 2011 | G80: 15000
A81: 100057 | B81: 2002 | C81: 45 | D81: 3 | E81: 219 | F81: 2002 | G81: 14845
A82: 100057 | B82: 2003 | C82: 60 | D82: 4 | E82: 220 | F82: 2002 | G82: 14845
A83: 100057 | B83: 2004 | C83: 222 | D83: 7 | E83: 221 | F83: 2002 | G83: 14845 | H83: 7
A84: 100057 | B84: 2006 | C84: 168 | D84: 4 | E84: 222 | F84: 2002 | G84: 14845
A85: 100057 | B85: 2007 | C85: 438 | D85: 11 | E85: 223 | F85: 2002 | G85: 14845 | H85: 11
A86: 100057 | B86: 2008 | C86: 3769 | D86: 63 | E86: 224 | F86: 2002 | G86: 14845 | H86: 63
A87: 100057 | B87: 2009 | C87: 5180 | D87: 106 | E87: 225 | F87: 2002 | G87: 14845 | H87: 106
A88: 100057 | B88: 2010 | C88: 4775 | D88: 113 | E88: 226 | F88: 2002 | G88: 14845 | H88: 113
A89: 100057 | B89: 2011 | C89: 14845 | D89: 87 | E89: 227 | F89: 2002 | G89: 14845 | H89: 87
A90: 100057 | B90: 2012 | C90: 12241 | D90: 130 | E90: 228 | F90: 2002 | G90: 14845 | H90: 130
A91: 105844 | B91: 2011 | C91: 14000 | D91: 1 | E91: 13827 | F91: 2011 | G91: 14000
A92: 105844 | B92: 2012 | C92: 100 | D92: 1 | E92: 13828 | F92: 2011 | G92: 14000
A93: 101603 | B93: 2006 | C93: 50 | D93: 1 | E93: 5413 | F93: 2006 | G93: 12678
A94: 101603 | B94: 2007 | C94: 240 | D94: 1 | E94: 5414 | F94: 2006 | G94: 12678
A95: 101603 | B95: 2009 | C95: 440 | D95: 2 | E95: 5415 | F95: 2006 | G95: 12678
A96: 101603 | B96: 2010 | C96: 240 | D96: 1 | E96: 5416 | F96: 2006 | G96: 12678
A97: 101603 | B97: 2012 | C97: 12678 | D97: 1 | E97: 5417 | F97: 2006 | G97: 12678
A98: 102209 | B98: 2007 | C98: 12500 | D98: 2 | E98: 7067 | F98: 2007 | G98: 12500
A99: 102209 | B99: 2008 | C99: 5000 | D99: 1 | E99: 7068 | F99: 2007 | G99: 12500
A100: 102209 | B100: 2009 | C100: 2500 | D100: 1 | E100: 7069 | F100: 2007 | G100: 12500
A101: 100512 | B101: 2004 | C101: 110 | D101: 2 | E101: 1912 | F101: 2004 | G101: 12431
A102: 100512 | B102: 2005 | C102: 120 | D102: 12 | E102: 1913 | F102: 2004 | G102: 12431 | H102: 12
A103: 100512 | B103: 2006 | C103: 335 | D103: 14 | E103: 1914 | F103: 2004 | G103: 12431 | H103: 14
A104: 100512 | B104: 2007 | C104: 406 | D104: 14 | E104: 1915 | F104: 2004 | G104: 12431 | H104: 14
A105: 100512 | B105: 2008 | C105: 1047 | D105: 17 | E105: 1916 | F105: 2004 | G105: 12431 | H105: 17
A106: 100512 | B106: 2009 | C106: 1053 | D106: 14 | E106: 1917 | F106: 2004 | G106: 12431 | H106: 14
A107: 100512 | B107: 2010 | C107: 1294 | D107: 21 | E107: 1918 | F107: 2004 | G107: 12431 | H107: 21
A108: 100512 | B108: 2011 | C108: 2232 | D108: 19 | E108: 1919 | F108: 2004 | G108: 12431 | H108: 19
A109: 100512 | B109: 2012 | C109: 12431 | D109: 17 | E109: 1920 | F109: 2004 | G109: 12431 | H109: 17
A110: 103504 | B110: 2009 | C110: 1000 | D110: 1 | E110: 9943 | F110: 2009 | G110: 12261
A111: 103504 | B111: 2010 | C111: 1100 | D111: 3 | E111: 9944 | F111: 2009 | G111: 12261
A112: 103504 | B112: 2011 | C112: 12261 | D112: 6 | E112: 9945 | F112: 2009 | G112: 12261 | H112: 6
A113: 103504 | B113: 2012 | C113: 5287 | D113: 6 | E113: 9946 | F113: 2009 | G113: 12261 | H113: 6
A114: 103572 | B114: 2009 | C114: 12000 | D114: 1 | E114: 10089 | F114: 2009 | G114: 12000
A115: 103572 | B115: 2012 | C115: 500 | D115: 1 | E115: 10090 | F115: 2009 | G115: 12000
A116: 100554 | B116: 2004 | C116: 4120 | D116: 8 | E116: 2039 | F116: 2004 | G116: 11700 | H116: 8
A117: 100554 | B117: 2005 | C117: 7322 | D117: 10 | E117: 2040 | F117: 2004 | G117: 11700 | H117: 10
A118: 100554 | B118: 2006 | C118: 8750 | D118: 11 | E118: 2041 | F118: 2004 | G118: 11700 | H118: 11
A119: 100554 | B119: 2007 | C119: 9900 | D119: 11 | E119: 2042 | F119: 2004 | G119: 11700 | H119: 11
A120: 100554 | B120: 2008 | C120: 11700 | D120: 13 | E120: 2043 | F120: 2004 | G120: 11700 | H120: 13
A121: 100554 | B121: 2009 | C121: 10800 | D121: 11 | E121: 2044 | F121: 2004 | G121: 11700 | H121: 11
A122: 100554 | B122: 2010 | C122: 9000 | D122: 10 | E122: 2045 | F122: 2004 | G122: 11700 | H122: 10
A123: 100554 | B123: 2011 | C123: 7200 | D123: 8 | E123: 2046 | F123: 2004 | G123: 11700 | H123: 8
A124: 102777 | B124: 2008 | C124: 11000 | D124: 1 | E124: 8337 | F124: 2008 | G124: 11000
A125: 102777 | B125: 2009 | C125: 200 | D125: 1 | E125: 8338 | F125: 2008 | G125: 11000
A126: 102777 | B126: 2010 | C126: 750 | D126: 2 | E126: 8339 | F126: 2008 | G126: 11000
A127: 102777 | B127: 2011 | C127: 1200 | D127: 2 | E127: 8340 | F127: 2008 | G127: 11000
A128: 103967 | B128: 2009 | C128: 11000 | D128: 1 | E128: 10888 | F128: 2009 | G128: 11000
A129: 105379 | B129: 2011 | C129: 10800 | D129: 2 | E129: 13244 | F129: 2011 | G129: 10800
A130: 105379 | B130: 2012 | C130: 1500 | D130: 4 | E130: 13245 | F130: 2011 | G130: 10800
A131: 100228 | B131: 2003 | C131: 150 | D131: 6 | E131: 767 | F131: 2003 | G131: 10600 | H131: 6
A132: 100228 | B132: 2004 | C132: 300 | D132: 12 | E132: 768 | F132: 2003 | G132: 10600 | H132: 12
A133: 100228 | B133: 2005 | C133: 300 | D133: 12 | E133: 769 | F133: 2003 | G133: 10600 | H133: 12
A134: 100228 | B134: 2006 | C134: 300 | D134: 12 | E134: 770 | F134: 2003 | G134: 10600 | H134: 12
A135: 100228 | B135: 2007 | C135: 375 | D135: 13 | E135: 771 | F135: 2003 | G135: 10600 | H135: 13
A136: 100228 | B136: 2008 | C136: 600 | D136: 12 | E136: 772 | F136: 2003 | G136: 10600 | H136: 12
A137: 100228 | B137: 2009 | C137: 10600 | D137: 13 | E137: 773 | F137: 2003 | G137: 10600 | H137: 13
A138: 100228 | B138: 2010 | C138: 600 | D138: 12 | E138: 774 | F138: 2003 | G138: 10600 | H138: 12
A139: 100228 | B139: 2011 | C139: 600 | D139: 12 | E139: 775 | F139: 2003 | G139: 10600 | H139: 12
A140: 100228 | B140: 2012 | C140: 600 | D140: 12 | E140: 776 | F140: 2003 | G140: 10600 | H140: 12
A141: 102051 | B141: 2007 | C141: 10000 | D141: 1 | E141: 6670 | F141: 2007 | G141: 10000
A142: 102483 | B142: 2007 | C142: 10000 | D142: 1 | E142: 7687 | F142: 2007 | G142: 10000
A143: 103364 | B143: 2009 | C143: 10000 | D143: 1 | E143: 9641 | F143: 2009 | G143: 10000
A144: 100324 | B144: 2002 | C144: 65 | D144: 2 | E144: 1196 | F144: 2002 | G144: 9557
A145: 100324 | B145: 2003 | C145: 680 | D145: 13 | E145: 1197 | F145: 2002 | G145: 9557 | H145: 13
A146: 100324 | B146: 2004 | C146: 1009 | D146: 43 | E146: 1198 | F146: 2002 | G146: 9557 | H146: 43
A147: 100324 | B147: 2005 | C147: 1418 | D147: 37 | E147: 1199 | F147: 2002 | G147: 9557 | H147: 37
A148: 100324 | B148: 2006 | C148: 4936 | D148: 38 | E148: 1200 | F148: 2002 | G148: 9557 | H148: 38
A149: 100324 | B149: 2007 | C149: 4345 | D149: 27 | E149: 1201 | F149: 2002 | G149: 9557 | H149: 27
A150: 100324 | B150: 2008 | C150: 4500 | D150: 24 | E150: 1202 | F150: 2002 | G150: 9557 | H150: 24
A151: 100324 | B151: 2009 | C151: 5270 | D151: 15 | E151: 1203 | F151: 2002 | G151: 9557 | H151: 15
A152: 100324 | B152: 2010 | C152: 4799 | D152: 14 | E152: 1204 | F152: 2002 | G152: 9557 | H152: 14
A153: 100324 | B153: 2011 | C153: 2200 | D153: 14 | E153: 1205 | F153: 2002 | G153: 9557 | H153: 14
A154: 100324 | B154: 2012 | C154: 9557 | D154: 13 | E154: 1206 | F154: 2002 | G154: 9557 | H154: 13
A155: 101368 | B155: 2005 | C155: 100 | D155: 1 | E155: 4652 | F155: 2005 | G155: 9468
A156: 101368 | B156: 2006 | C156: 3857 | D156: 34 | E156: 4653 | F156: 2005 | G156: 9468 | H156: 34
A157: 101368 | B157: 2007 | C157: 5843 | D157: 29 | E157: 4654 | F157: 2005 | G157: 9468 | H157: 29
A158: 101368 | B158: 2008 | C158: 5818 | D158: 27 | E158: 4655 | F158: 2005 | G158: 9468 | H158: 27
A159: 101368 | B159: 2009 | C159: 5368 | D159: 25 | E159: 4656 | F159: 2005 | G159: 9468 | H159: 25
A160: 101368 | B160: 2010 | C160: 5968 | D160: 26 | E160: 4657 | F160: 2005 | G160: 9468 | H160: 26
A161: 101368 | B161: 2011 | C161: 9468 | D161: 24 | E161: 4658 | F161: 2005 | G161: 9468 | H161: 24
A162: 101368 | B162: 2012 | C162: 8179 | D162: 23 | E162: 4659 | F162: 2005 | G162: 9468 | H162: 23
A163: 102790 | B163: 2008 | C163: 4000 | D163: 2 | E163: 8368 | F163: 2008 | G163: 9000
A164: 102790 | B164: 2009 | C164: 5000 | D164: 1 | E164: 8369 | F164: 2008 | G164: 9000
A165: 102790 | B165: 2010 | C165: 2000 | D165: 1 | E165: 8370 | F165: 2008 | G165: 9000
A166: 102790 | B166: 2012 | C166: 9000 | D166: 2 | E166: 8371 | F166: 2008 | G166: 9000
A167: 101534 | B167: 2006 | C167: 7515 | D167: 10 | E167: 5216 | F167: 2006 | G167: 8334 | H167: 10
A168: 101534 | B168: 2007 | C168: 8334 | D168: 11 | E168: 5217 | F168: 2006 | G168: 8334 | H168: 11
A169: 101534 | B169: 2008 | C169: 4165 | D169: 4 | E169: 5218 | F169: 2006 | G169: 8334
A170: 101534 | B170: 2009 | C170: 5000 | D170: 1 | E170: 5219 | F170: 2006 | G170: 8334
A171: 101534 | B171: 2010 | C171: 5015 | D171: 2 | E171: 5220 | F171: 2006 | G171: 8334
A172: 101534 | B172: 2011 | C172: 5055 | D172: 2 | E172: 5221 | F172: 2006 | G172: 8334
A173: 101534 | B173: 2012 | C173: 5100 | D173: 2 | E173: 5222 | F173: 2006 | G173: 8334
A174: 100319 | B174: 2004 | C174: 413 | D174: 21 | E174: 1173 | F174: 2004 | G174: 7725 | H174: 21
A175: 100319 | B175: 2005 | C175: 780 | D175: 34 | E175: 1174 | F175: 2004 | G175: 7725 | H175: 34
A176: 100319 | B176: 2006 | C176: 1650 | D176: 21 | E176: 1175 | F176: 2004 | G176: 7725 | H176: 21
A177: 100319 | B177: 2007 | C177: 1068 | D177: 21 | E177: 1176 | F177: 2004 | G177: 7725 | H177: 21
A178: 100319 | B178: 2008 | C178: 1697 | D178: 13 | E178: 1177 | F178: 2004 | G178: 7725 | H178: 13
A179: 100319 | B179: 2009 | C179: 3961 | D179: 21 | E179: 1178 | F179: 2004 | G179: 7725 | H179: 21
A180: 100319 | B180: 2010 | C180: 3325 | D180: 21 | E180: 1179 | F180: 2004 | G180: 7725 | H180: 21
A181: 100319 | B181: 2011 | C181: 2992 | D181: 17 | E181: 1180 | F181: 2004 | G181: 7725 | H181: 17
A182: 100319 | B182: 2012 | C182: 7725 | D182: 18 | E182: 1181 | F182: 2004 | G182: 7725 | H182: 18
A183: 100608 | B183: 2005 | C183: 3500 | D183: 2 | E183: 2208 | F183: 2005 | G183: 7650
A184: 100608 | B184: 2011 | C184: 7650 | D184: 1 | E184: 2209 | F184: 2005 | G184: 7650
A185: 103778 | B185: 2009 | C185: 7500 | D185: 1 | E185: 10519 | F185: 2009 | G185: 7500
A186: 104033 | B186: 2010 | C186: 2065 | D186: 1 | E186: 10995 | F186: 2010 | G186: 7215
A187: 104033 | B187: 2011 | C187: 6804 | D187: 1 | E187: 10996 | F187: 2010 | G187: 7215
A188: 104033 | B188: 2012 | C188: 7215 | D188: 1 | E188: 10997 | F188: 2010 | G188: 7215
A189: 100046 | B189: 2005 | C189: 2000 | D189: 1 | E189: 178 | F189: 2005 | G189: 7000
A190: 100046 | B190: 2006 | C190: 2500 | D190: 2 | E190: 179 | F190: 2005 | G190: 7000
A191: 100046 | B191: 2007 | C191: 7000 | D191: 3 | E191: 180 | F191: 2005 | G191: 7000
A192: 100046 | B192: 2008 | C192: 6000 | D192: 1 | E192: 181 | F192: 2005 | G192: 7000
A193: 100046 | B193: 2009 | C193: 2026 | D193: 3 | E193: 182 | F193: 2005 | G193: 7000
A194: 100046 | B194: 2010 | C194: 1000 | D194: 1 | E194: 183 | F194: 2005 | G194: 7000
A195: 100046 | B195: 2011 | C195: 2100 | D195: 3 | E195: 184 | F195: 2005 | G195: 7000
A196: 100046 | B196: 2012 | C196: 1300 | D196: 3 | E196: 185 | F196: 2005 | G196: 7000
A197: 102046 | B197: 2006 | C197: 1000 | D197: 1 | E197: 6654 | F197: 2006 | G197: 7000
A198: 102046 | B198: 2007 | C198: 7000 | D198: 1 | E198: 6655 | F198: 2006 | G198: 7000
A199: 103863 | B199: 2009 | C199: 7000 | D199: 1 | E199: 10687 | F199: 2009 | G199: 7000
A200: 101749 | B200: 2006 | C200: 6000 | D200: 1 | E200: 5823 | F200: 2006 | G200: 6000
A201: 101749 | B201: 2008 | C201: 5000 | D201: 1 | E201: 5824 | F201: 2006 | G201: 6000
... 4299 more rows

Sheet FEP250to999
A1: FEP250to999 | C1: Fundraising Effectiveness Survey - 2012 | G1: =TODAY() -> 2014-08-31 | I1: Sort Largest Year (col. G) - DESC | N1: =TODAY() -> 2014-08-31 | O1: 08:00:51
A2: =StepByStep!#REF! ->  | O2: 08:01:03
A3: Growth-in-Giving is measured for Year 2: | H3: From --> | I3: =K13 -> 1062 | J3: <---- ="K" & row | O3: =O2-O1 -> 00:00:12
D4: Year 2 | E4: =FEPdata!E4 -> 2013 | H4: To --> | I4: =L14 -> 4953 | J4: <---- ="L" & row | O4: FEPdata
A5: $250 to $999 | B5: C 250-999 | E5: =StepByStep!$G$7 -> 12 | F5: <-- Year-end month
A6: Gain(Loss) Data - Software Extract for Year 2 and Year 1 data | K6: Col K | L6: Col L
J7: Row | K7: From | L7: To | M7: Count
B8: Number of | C8: Amount of | D8: Number of | E8: Amount of | H8: 5,000 up | I8: 25,000 & up | J8: 8 | K8: 31 | L8: 66 | M8: =L8-K8+1 -> 36
A9: Gain(Loss) | B9: =D9-1 -> 2012 | C9: =E9-1 -> 2012 | D9: =$E4 -> 2013 | E9: =$E4 -> 2013 | I9: 10,000-24,999 | J9: 9 | K9: =L8+1 -> 67 | L9: 143 | M9: =L9-L8 -> 77
A10: Category | B10: Donors | C10: Gifts ($) | D10: Donors | E10: Gifts ($) | I10: 5,000-9,999 | J10: 10 | K10: 144 | L10: 249 | M10: 106
H11: 1,000-4,999 | I11: 2,500-4,999 | J11: 11 | K11: 250 | L11: 417 | M11: 168
A12: New | B12: n/a | C12: n/a | D12: 79 | E12: 30246 | I12: 1,000-2,499 | J12: 12 | K12: 418 | L12: 1061 | M12: 644
A13: Recaptured | B13: n/a | C13: n/a | D13: 36 | E13: 9102 | H13: 250-999 | I13: 500-999 | J13: 13 | K13: 1062 | L13: 2414 | M13: 1353
A14: Upgraded | B14: 261 | C14: 72482 | D14: 261 | E14: 115251 | I14: 250-499 | J14: 14 | K14: 2415 | L14: 4953 | M14: 2539
A15: Same | B15: 63 | C15: 19118 | D15: 63 | E15: 19118 | H15: 100-249 | I15: 100-249 | J15: 15 | K15: 4954 | L15: 9606 | M15: 4653
A16: Downgraded | B16: 225 | C16: 90964 | D16: 225 | E16: 61243 | H16: Under 100 | I16: 50-99 | J16: 16 | K16: 9607 | L16: 12101 | M16: 2495
A17: Lapsed new | B17: 25 | C17: 9125 | D17: n/a | E17: n/a | I17: 25-49 | J17: 17 | K17: 12102 | L17: 14121 | M17: 2020
A18: Lapsed repeat | B18: 86 | C18: 19607 | D18: n/a | E18: n/a | F18: GiG# | G18: GiG$ | I18: 10-24 | J18: 18 | K18: 14122 | L18: 14884 | M18: 763
A19: Total | B19: =SUM(B12:B18) -> 660 | C19: =SUM(C12:C18) -> 211296 | D19: =SUM(D12:D18) -> 664 | E19: =SUM(E12:E18) -> 234960 | F19: =(D19-B19)/B19 -> 0.006060606061 | G19: =(E19-C19)/C19 -> 0.1119945479 | I19: Under 10 | J19: 19 | K19: 14885 | L19: 14981 | M19: 97
A20: 36 hilighted data fields are retrieved from gift transaction data below | M20: =SUM(M8:M19) -> 14951
B21: Number | C21: Gift$
A22: New in year 1 | B22: 90 | C22: 25140 | D22: <-- i.e., last year's new donors and gift$
A23: Database EOY1 | B23: 904 | D23: <-- i.e., Total number of donors on file at end of Year1 | K23: 983 | L23: <-- i.e., TOTAL number of donors on file
A24: One time donors | B24: 109 | C24: 39741 | D24: <-- i.e., Number of one-time donors and gifts | K24: 5108 | L24: <-- Total # of gifts in Year2 (vs #donors)
A25: Recaptured lapsed 1 year | D25: 19 | E25: 4838 | F25: <-- Portion of Recaptured | K25: 519 | L25: 688126 | M25: <-- Total # & $ for monthly donors in database
A26: Monthly donors in Year2 | D26: 353 | E26: 148207 | F26: <-- i.e., Year2 donors making 6 to 24 gifts. | K26: 17 | L26: 7473 | M26: <-- Portion NEW monthly donors in Year2
B28: [Asc] | D28: Gifts | F28: First | G28: Largest | H28: Monthly | I28: Gain/Loss | L28: Years of | M28: One time | N28: Recap 1
A29: Acct | B29: Year | C29: AmtYr | D29: Per year | E29: Seq# | F29: Year | G29: Year | H29: Giving | I29: Category | L29: Giving | M29: Donor | N29: Donor
A30: A | B30: B | C30: C | D30: D | E30: E | F30: F | G30: G | H30: H | I30: I | L30: L | M30: M | N30: N
A31: 103633 | B31: 2009 | C31: 100000 | D31: 1 | E31: 10221 | F31: 2009 | G31: 100000
A32: 100516 | B32: 2004 | C32: 1150 | D32: 4 | E32: 1926 | F32: 2004 | G32: 83000
A33: 100516 | B33: 2005 | C33: 2000 | D33: 2 | E33: 1927 | F33: 2004 | G33: 83000
A34: 100516 | B34: 2006 | C34: 4500 | D34: 5 | E34: 1928 | F34: 2004 | G34: 83000
A35: 100516 | B35: 2007 | C35: 3503 | D35: 4 | E35: 1929 | F35: 2004 | G35: 83000
A36: 100516 | B36: 2008 | C36: 4000 | D36: 3 | E36: 1930 | F36: 2004 | G36: 83000
A37: 100516 | B37: 2009 | C37: 3500 | D37: 2 | E37: 1931 | F37: 2004 | G37: 83000
A38: 100516 | B38: 2010 | C38: 3000 | D38: 2 | E38: 1932 | F38: 2004 | G38: 83000
A39: 100516 | B39: 2011 | C39: 83000 | D39: 4 | E39: 1933 | F39: 2004 | G39: 83000
A40: 101894 | B40: 2006 | C40: 60000 | D40: 2 | E40: 6240 | F40: 2006 | G40: 60000
A41: 101894 | B41: 2010 | C41: 700 | D41: 4 | E41: 6241 | F41: 2006 | G41: 60000
A42: 101894 | B42: 2011 | C42: 700 | D42: 15 | E42: 6242 | F42: 2006 | G42: 60000 | H42: 15
A43: 101894 | B43: 2012 | C43: 2525 | D43: 27 | E43: 6243 | F43: 2006 | G43: 60000 | H43: 27
A44: 104938 | B44: 2010 | C44: 60000 | D44: 1 | E44: 12541 | F44: 2010 | G44: 60000
A45: 104938 | B45: 2011 | C45: 13050 | D45: 2 | E45: 12542 | F45: 2010 | G45: 60000
A46: 102546 | B46: 2007 | C46: 48000 | D46: 1 | E46: 7808 | F46: 2007 | G46: 48000
A47: 102546 | B47: 2008 | C47: 46826 | D47: 1 | E47: 7809 | F47: 2007 | G47: 48000
A48: 103826 | B48: 2010 | C48: 45449 | D48: 1 | E48: 10621 | F48: 2010 | G48: 45449
A49: 105795 | B49: 2012 | C49: 40000 | D49: 1 | E49: 13766 | F49: 2012 | G49: 40000
A50: 100521 | B50: 2004 | C50: 300 | D50: 3 | E50: 1942 | F50: 2004 | G50: 37823
A51: 100521 | B51: 2005 | C51: 350 | D51: 2 | E51: 1943 | F51: 2004 | G51: 37823
A52: 100521 | B52: 2006 | C52: 300 | D52: 2 | E52: 1944 | F52: 2004 | G52: 37823
A53: 100521 | B53: 2007 | C53: 300 | D53: 1 | E53: 1945 | F53: 2004 | G53: 37823
A54: 100521 | B54: 2008 | C54: 1750 | D54: 2 | E54: 1946 | F54: 2004 | G54: 37823
A55: 100521 | B55: 2009 | C55: 6772 | D55: 4 | E55: 1947 | F55: 2004 | G55: 37823
A56: 100521 | B56: 2010 | C56: 6650 | D56: 5 | E56: 1948 | F56: 2004 | G56: 37823
A57: 100521 | B57: 2011 | C57: 37823 | D57: 9 | E57: 1949 | F57: 2004 | G57: 37823 | H57: 9
A58: 100521 | B58: 2012 | C58: 18697 | D58: 5 | E58: 1950 | F58: 2004 | G58: 37823
A59: 105951 | B59: 2011 | C59: 35000 | D59: 2 | E59: 13965 | F59: 2011 | G59: 35000
A60: 101420 | B60: 2006 | C60: 1974 | D60: 3 | E60: 4836 | F60: 2006 | G60: 30300
A61: 101420 | B61: 2007 | C61: 200 | D61: 1 | E61: 4837 | F61: 2006 | G61: 30300
A62: 101420 | B62: 2008 | C62: 600 | D62: 2 | E62: 4838 | F62: 2006 | G62: 30300
A63: 101420 | B63: 2010 | C63: 30300 | D63: 2 | E63: 4839 | F63: 2006 | G63: 30300
A64: 101420 | B64: 2011 | C64: 400 | D64: 2 | E64: 4840 | F64: 2006 | G64: 30300
A65: 101420 | B65: 2012 | C65: 600 | D65: 3 | E65: 4841 | F65: 2006 | G65: 30300
A66: 102371 | B66: 2007 | C66: 30000 | D66: 1 | E66: 7477 | F66: 2007 | G66: 30000
A67: 104585 | B67: 2010 | C67: 20000 | D67: 1 | E67: 12003 | F67: 2010 | G67: 20000
A68: 102303 | B68: 2007 | C68: 500 | D68: 3 | E68: 7320 | F68: 2007 | G68: 18434
A69: 102303 | B69: 2008 | C69: 18434 | D69: 13 | E69: 7321 | F69: 2007 | G69: 18434 | H69: 13
A70: 102303 | B70: 2009 | C70: 4300 | D70: 4 | E70: 7322 | F70: 2007 | G70: 18434
A71: 102303 | B71: 2010 | C71: 2530 | D71: 4 | E71: 7323 | F71: 2007 | G71: 18434
A72: 102303 | B72: 2011 | C72: 1400 | D72: 4 | E72: 7324 | F72: 2007 | G72: 18434
A73: 102303 | B73: 2012 | C73: 3284 | D73: 4 | E73: 7325 | F73: 2007 | G73: 18434
A74: 104924 | B74: 2010 | C74: 2500 | D74: 1 | E74: 12516 | F74: 2010 | G74: 15111
A75: 104924 | B75: 2011 | C75: 5774 | D75: 7 | E75: 12517 | F75: 2010 | G75: 15111 | H75: 7
A76: 104924 | B76: 2012 | C76: 15111 | D76: 6 | E76: 12518 | F76: 2010 | G76: 15111 | H76: 6
A77: 104703 | B77: 2010 | C77: 15000 | D77: 1 | E77: 12184 | F77: 2010 | G77: 15000
A78: 105185 | B78: 2011 | C78: 15000 | D78: 1 | E78: 12975 | F78: 2011 | G78: 15000
A79: 105185 | B79: 2012 | C79: 6352 | D79: 1 | E79: 12976 | F79: 2011 | G79: 15000
A80: 105673 | B80: 2011 | C80: 15000 | D80: 1 | E80: 13623 | F80: 2011 | G80: 15000
A81: 100057 | B81: 2002 | C81: 45 | D81: 3 | E81: 219 | F81: 2002 | G81: 14845
A82: 100057 | B82: 2003 | C82: 60 | D82: 4 | E82: 220 | F82: 2002 | G82: 14845
A83: 100057 | B83: 2004 | C83: 222 | D83: 7 | E83: 221 | F83: 2002 | G83: 14845 | H83: 7
A84: 100057 | B84: 2006 | C84: 168 | D84: 4 | E84: 222 | F84: 2002 | G84: 14845
A85: 100057 | B85: 2007 | C85: 438 | D85: 11 | E85: 223 | F85: 2002 | G85: 14845 | H85: 11
A86: 100057 | B86: 2008 | C86: 3769 | D86: 63 | E86: 224 | F86: 2002 | G86: 14845 | H86: 63
A87: 100057 | B87: 2009 | C87: 5180 | D87: 106 | E87: 225 | F87: 2002 | G87: 14845 | H87: 106
A88: 100057 | B88: 2010 | C88: 4775 | D88: 113 | E88: 226 | F88: 2002 | G88: 14845 | H88: 113
A89: 100057 | B89: 2011 | C89: 14845 | D89: 87 | E89: 227 | F89: 2002 | G89: 14845 | H89: 87
A90: 100057 | B90: 2012 | C90: 12241 | D90: 130 | E90: 228 | F90: 2002 | G90: 14845 | H90: 130
A91: 105844 | B91: 2011 | C91: 14000 | D91: 1 | E91: 13827 | F91: 2011 | G91: 14000
A92: 105844 | B92: 2012 | C92: 100 | D92: 1 | E92: 13828 | F92: 2011 | G92: 14000
A93: 101603 | B93: 2006 | C93: 50 | D93: 1 | E93: 5413 | F93: 2006 | G93: 12678
A94: 101603 | B94: 2007 | C94: 240 | D94: 1 | E94: 5414 | F94: 2006 | G94: 12678
A95: 101603 | B95: 2009 | C95: 440 | D95: 2 | E95: 5415 | F95: 2006 | G95: 12678
A96: 101603 | B96: 2010 | C96: 240 | D96: 1 | E96: 5416 | F96: 2006 | G96: 12678
A97: 101603 | B97: 2012 | C97: 12678 | D97: 1 | E97: 5417 | F97: 2006 | G97: 12678
A98: 102209 | B98: 2007 | C98: 12500 | D98: 2 | E98: 7067 | F98: 2007 | G98: 12500
A99: 102209 | B99: 2008 | C99: 5000 | D99: 1 | E99: 7068 | F99: 2007 | G99: 12500
A100: 102209 | B100: 2009 | C100: 2500 | D100: 1 | E100: 7069 | F100: 2007 | G100: 12500
A101: 100512 | B101: 2004 | C101: 110 | D101: 2 | E101: 1912 | F101: 2004 | G101: 12431
A102: 100512 | B102: 2005 | C102: 120 | D102: 12 | E102: 1913 | F102: 2004 | G102: 12431 | H102: 12
A103: 100512 | B103: 2006 | C103: 335 | D103: 14 | E103: 1914 | F103: 2004 | G103: 12431 | H103: 14
A104: 100512 | B104: 2007 | C104: 406 | D104: 14 | E104: 1915 | F104: 2004 | G104: 12431 | H104: 14
A105: 100512 | B105: 2008 | C105: 1047 | D105: 17 | E105: 1916 | F105: 2004 | G105: 12431 | H105: 17
A106: 100512 | B106: 2009 | C106: 1053 | D106: 14 | E106: 1917 | F106: 2004 | G106: 12431 | H106: 14
A107: 100512 | B107: 2010 | C107: 1294 | D107: 21 | E107: 1918 | F107: 2004 | G107: 12431 | H107: 21
A108: 100512 | B108: 2011 | C108: 2232 | D108: 19 | E108: 1919 | F108: 2004 | G108: 12431 | H108: 19
A109: 100512 | B109: 2012 | C109: 12431 | D109: 17 | E109: 1920 | F109: 2004 | G109: 12431 | H109: 17
A110: 103504 | B110: 2009 | C110: 1000 | D110: 1 | E110: 9943 | F110: 2009 | G110: 12261
A111: 103504 | B111: 2010 | C111: 1100 | D111: 3 | E111: 9944 | F111: 2009 | G111: 12261
A112: 103504 | B112: 2011 | C112: 12261 | D112: 6 | E112: 9945 | F112: 2009 | G112: 12261 | H112: 6
A113: 103504 | B113: 2012 | C113: 5287 | D113: 6 | E113: 9946 | F113: 2009 | G113: 12261 | H113: 6
A114: 103572 | B114: 2009 | C114: 12000 | D114: 1 | E114: 10089 | F114: 2009 | G114: 12000
A115: 103572 | B115: 2012 | C115: 500 | D115: 1 | E115: 10090 | F115: 2009 | G115: 12000
A116: 100554 | B116: 2004 | C116: 4120 | D116: 8 | E116: 2039 | F116: 2004 | G116: 11700 | H116: 8
A117: 100554 | B117: 2005 | C117: 7322 | D117: 10 | E117: 2040 | F117: 2004 | G117: 11700 | H117: 10
A118: 100554 | B118: 2006 | C118: 8750 | D118: 11 | E118: 2041 | F118: 2004 | G118: 11700 | H118: 11
A119: 100554 | B119: 2007 | C119: 9900 | D119: 11 | E119: 2042 | F119: 2004 | G119: 11700 | H119: 11
A120: 100554 | B120: 2008 | C120: 11700 | D120: 13 | E120: 2043 | F120: 2004 | G120: 11700 | H120: 13
A121: 100554 | B121: 2009 | C121: 10800 | D121: 11 | E121: 2044 | F121: 2004 | G121: 11700 | H121: 11
A122: 100554 | B122: 2010 | C122: 9000 | D122: 10 | E122: 2045 | F122: 2004 | G122: 11700 | H122: 10
A123: 100554 | B123: 2011 | C123: 7200 | D123: 8 | E123: 2046 | F123: 2004 | G123: 11700 | H123: 8
A124: 102777 | B124: 2008 | C124: 11000 | D124: 1 | E124: 8337 | F124: 2008 | G124: 11000
A125: 102777 | B125: 2009 | C125: 200 | D125: 1 | E125: 8338 | F125: 2008 | G125: 11000
A126: 102777 | B126: 2010 | C126: 750 | D126: 2 | E126: 8339 | F126: 2008 | G126: 11000
A127: 102777 | B127: 2011 | C127: 1200 | D127: 2 | E127: 8340 | F127: 2008 | G127: 11000
A128: 103967 | B128: 2009 | C128: 11000 | D128: 1 | E128: 10888 | F128: 2009 | G128: 11000
A129: 105379 | B129: 2011 | C129: 10800 | D129: 2 | E129: 13244 | F129: 2011 | G129: 10800
A130: 105379 | B130: 2012 | C130: 1500 | D130: 4 | E130: 13245 | F130: 2011 | G130: 10800
A131: 100228 | B131: 2003 | C131: 150 | D131: 6 | E131: 767 | F131: 2003 | G131: 10600 | H131: 6
A132: 100228 | B132: 2004 | C132: 300 | D132: 12 | E132: 768 | F132: 2003 | G132: 10600 | H132: 12
A133: 100228 | B133: 2005 | C133: 300 | D133: 12 | E133: 769 | F133: 2003 | G133: 10600 | H133: 12
A134: 100228 | B134: 2006 | C134: 300 | D134: 12 | E134: 770 | F134: 2003 | G134: 10600 | H134: 12
A135: 100228 | B135: 2007 | C135: 375 | D135: 13 | E135: 771 | F135: 2003 | G135: 10600 | H135: 13
A136: 100228 | B136: 2008 | C136: 600 | D136: 12 | E136: 772 | F136: 2003 | G136: 10600 | H136: 12
A137: 100228 | B137: 2009 | C137: 10600 | D137: 13 | E137: 773 | F137: 2003 | G137: 10600 | H137: 13
A138: 100228 | B138: 2010 | C138: 600 | D138: 12 | E138: 774 | F138: 2003 | G138: 10600 | H138: 12
A139: 100228 | B139: 2011 | C139: 600 | D139: 12 | E139: 775 | F139: 2003 | G139: 10600 | H139: 12
A140: 100228 | B140: 2012 | C140: 600 | D140: 12 | E140: 776 | F140: 2003 | G140: 10600 | H140: 12
A141: 102051 | B141: 2007 | C141: 10000 | D141: 1 | E141: 6670 | F141: 2007 | G141: 10000
A142: 102483 | B142: 2007 | C142: 10000 | D142: 1 | E142: 7687 | F142: 2007 | G142: 10000
A143: 103364 | B143: 2009 | C143: 10000 | D143: 1 | E143: 9641 | F143: 2009 | G143: 10000
A144: 100324 | B144: 2002 | C144: 65 | D144: 2 | E144: 1196 | F144: 2002 | G144: 9557
A145: 100324 | B145: 2003 | C145: 680 | D145: 13 | E145: 1197 | F145: 2002 | G145: 9557 | H145: 13
A146: 100324 | B146: 2004 | C146: 1009 | D146: 43 | E146: 1198 | F146: 2002 | G146: 9557 | H146: 43
A147: 100324 | B147: 2005 | C147: 1418 | D147: 37 | E147: 1199 | F147: 2002 | G147: 9557 | H147: 37
A148: 100324 | B148: 2006 | C148: 4936 | D148: 38 | E148: 1200 | F148: 2002 | G148: 9557 | H148: 38
A149: 100324 | B149: 2007 | C149: 4345 | D149: 27 | E149: 1201 | F149: 2002 | G149: 9557 | H149: 27
A150: 100324 | B150: 2008 | C150: 4500 | D150: 24 | E150: 1202 | F150: 2002 | G150: 9557 | H150: 24
A151: 100324 | B151: 2009 | C151: 5270 | D151: 15 | E151: 1203 | F151: 2002 | G151: 9557 | H151: 15
A152: 100324 | B152: 2010 | C152: 4799 | D152: 14 | E152: 1204 | F152: 2002 | G152: 9557 | H152: 14
A153: 100324 | B153: 2011 | C153: 2200 | D153: 14 | E153: 1205 | F153: 2002 | G153: 9557 | H153: 14
A154: 100324 | B154: 2012 | C154: 9557 | D154: 13 | E154: 1206 | F154: 2002 | G154: 9557 | H154: 13
A155: 101368 | B155: 2005 | C155: 100 | D155: 1 | E155: 4652 | F155: 2005 | G155: 9468
A156: 101368 | B156: 2006 | C156: 3857 | D156: 34 | E156: 4653 | F156: 2005 | G156: 9468 | H156: 34
A157: 101368 | B157: 2007 | C157: 5843 | D157: 29 | E157: 4654 | F157: 2005 | G157: 9468 | H157: 29
A158: 101368 | B158: 2008 | C158: 5818 | D158: 27 | E158: 4655 | F158: 2005 | G158: 9468 | H158: 27
A159: 101368 | B159: 2009 | C159: 5368 | D159: 25 | E159: 4656 | F159: 2005 | G159: 9468 | H159: 25
A160: 101368 | B160: 2010 | C160: 5968 | D160: 26 | E160: 4657 | F160: 2005 | G160: 9468 | H160: 26
A161: 101368 | B161: 2011 | C161: 9468 | D161: 24 | E161: 4658 | F161: 2005 | G161: 9468 | H161: 24
A162: 101368 | B162: 2012 | C162: 8179 | D162: 23 | E162: 4659 | F162: 2005 | G162: 9468 | H162: 23
A163: 102790 | B163: 2008 | C163: 4000 | D163: 2 | E163: 8368 | F163: 2008 | G163: 9000
A164: 102790 | B164: 2009 | C164: 5000 | D164: 1 | E164: 8369 | F164: 2008 | G164: 9000
A165: 102790 | B165: 2010 | C165: 2000 | D165: 1 | E165: 8370 | F165: 2008 | G165: 9000
A166: 102790 | B166: 2012 | C166: 9000 | D166: 2 | E166: 8371 | F166: 2008 | G166: 9000
A167: 101534 | B167: 2006 | C167: 7515 | D167: 10 | E167: 5216 | F167: 2006 | G167: 8334 | H167: 10
A168: 101534 | B168: 2007 | C168: 8334 | D168: 11 | E168: 5217 | F168: 2006 | G168: 8334 | H168: 11
A169: 101534 | B169: 2008 | C169: 4165 | D169: 4 | E169: 5218 | F169: 2006 | G169: 8334
A170: 101534 | B170: 2009 | C170: 5000 | D170: 1 | E170: 5219 | F170: 2006 | G170: 8334
A171: 101534 | B171: 2010 | C171: 5015 | D171: 2 | E171: 5220 | F171: 2006 | G171: 8334
A172: 101534 | B172: 2011 | C172: 5055 | D172: 2 | E172: 5221 | F172: 2006 | G172: 8334
A173: 101534 | B173: 2012 | C173: 5100 | D173: 2 | E173: 5222 | F173: 2006 | G173: 8334
A174: 100319 | B174: 2004 | C174: 413 | D174: 21 | E174: 1173 | F174: 2004 | G174: 7725 | H174: 21
A175: 100319 | B175: 2005 | C175: 780 | D175: 34 | E175: 1174 | F175: 2004 | G175: 7725 | H175: 34
A176: 100319 | B176: 2006 | C176: 1650 | D176: 21 | E176: 1175 | F176: 2004 | G176: 7725 | H176: 21
A177: 100319 | B177: 2007 | C177: 1068 | D177: 21 | E177: 1176 | F177: 2004 | G177: 7725 | H177: 21
A178: 100319 | B178: 2008 | C178: 1697 | D178: 13 | E178: 1177 | F178: 2004 | G178: 7725 | H178: 13
A179: 100319 | B179: 2009 | C179: 3961 | D179: 21 | E179: 1178 | F179: 2004 | G179: 7725 | H179: 21
A180: 100319 | B180: 2010 | C180: 3325 | D180: 21 | E180: 1179 | F180: 2004 | G180: 7725 | H180: 21
A181: 100319 | B181: 2011 | C181: 2992 | D181: 17 | E181: 1180 | F181: 2004 | G181: 7725 | H181: 17
A182: 100319 | B182: 2012 | C182: 7725 | D182: 18 | E182: 1181 | F182: 2004 | G182: 7725 | H182: 18
A183: 100608 | B183: 2005 | C183: 3500 | D183: 2 | E183: 2208 | F183: 2005 | G183: 7650
A184: 100608 | B184: 2011 | C184: 7650 | D184: 1 | E184: 2209 | F184: 2005 | G184: 7650
A185: 103778 | B185: 2009 | C185: 7500 | D185: 1 | E185: 10519 | F185: 2009 | G185: 7500
A186: 104033 | B186: 2010 | C186: 2065 | D186: 1 | E186: 10995 | F186: 2010 | G186: 7215
A187: 104033 | B187: 2011 | C187: 6804 | D187: 1 | E187: 10996 | F187: 2010 | G187: 7215
A188: 104033 | B188: 2012 | C188: 7215 | D188: 1 | E188: 10997 | F188: 2010 | G188: 7215
A189: 100046 | B189: 2005 | C189: 2000 | D189: 1 | E189: 178 | F189: 2005 | G189: 7000
A190: 100046 | B190: 2006 | C190: 2500 | D190: 2 | E190: 179 | F190: 2005 | G190: 7000
A191: 100046 | B191: 2007 | C191: 7000 | D191: 3 | E191: 180 | F191: 2005 | G191: 7000
A192: 100046 | B192: 2008 | C192: 6000 | D192: 1 | E192: 181 | F192: 2005 | G192: 7000
A193: 100046 | B193: 2009 | C193: 2026 | D193: 3 | E193: 182 | F193: 2005 | G193: 7000
A194: 100046 | B194: 2010 | C194: 1000 | D194: 1 | E194: 183 | F194: 2005 | G194: 7000
A195: 100046 | B195: 2011 | C195: 2100 | D195: 3 | E195: 184 | F195: 2005 | G195: 7000
A196: 100046 | B196: 2012 | C196: 1300 | D196: 3 | E196: 185 | F196: 2005 | G196: 7000
A197: 102046 | B197: 2006 | C197: 1000 | D197: 1 | E197: 6654 | F197: 2006 | G197: 7000
A198: 102046 | B198: 2007 | C198: 7000 | D198: 1 | E198: 6655 | F198: 2006 | G198: 7000
A199: 103863 | B199: 2009 | C199: 7000 | D199: 1 | E199: 10687 | F199: 2009 | G199: 7000
A200: 101749 | B200: 2006 | C200: 6000 | D200: 1 | E200: 5823 | F200: 2006 | G200: 6000
A201: 101749 | B201: 2008 | C201: 5000 | D201: 1 | E201: 5824 | F201: 2006 | G201: 6000
... 4299 more rows

Sheet FEP1000to4999
A1: FEP1000to4999 | C1: Fundraising Effectiveness Survey - 2012 | G1: =TODAY() -> 2014-08-31 | I1: Sort Largest Year (col. G) - DESC | N1: =TODAY() -> 2014-08-31 | O1: 08:00:49
A2: =StepByStep!#REF! ->  | O2: 08:00:51
A3: Growth-in-Giving is measured for Year 2: | H3: From --> | I3: =K11 -> 250 | J3: <---- ="K" & row | O3: =O2-O1 -> 00:00:02
D4: Year 2 | E4: =FEPdata!E4 -> 2013 | H4: To --> | I4: =L12 -> 1061 | J4: <---- ="L" & row | O4: FEPdata
A5: $1,000 to $4,999 | B5: D 1,000-4,999 | E5: =StepByStep!$G$7 -> 12 | F5: <-- Year-end month
A6: Gain(Loss) Data - Software Extract for Year 2 and Year 1 data | K6: Col K | L6: Col L
J7: Row | K7: From | L7: To | M7: Count
B8: Number of | C8: Amount of | D8: Number of | E8: Amount of | H8: 5,000 up | I8: 25,000 & up | J8: 8 | K8: 31 | L8: 66 | M8: =L8-K8+1 -> 36
A9: Gain(Loss) | B9: =D9-1 -> 2012 | C9: =E9-1 -> 2012 | D9: =$E4 -> 2013 | E9: =$E4 -> 2013 | I9: 10,000-24,999 | J9: 9 | K9: =L8+1 -> 67 | L9: 143 | M9: =L9-L8 -> 77
A10: Category | B10: Donors | C10: Gifts ($) | D10: Donors | E10: Gifts ($) | I10: 5,000-9,999 | J10: 10 | K10: 144 | L10: 249 | M10: 106
H11: 1,000-4,999 | I11: 2,500-4,999 | J11: 11 | K11: 250 | L11: 417 | M11: 168
A12: New | B12: n/a | C12: n/a | D12: 6 | E12: 7021 | I12: 1,000-2,499 | J12: 12 | K12: 418 | L12: 1061 | M12: 644
A13: Recaptured | B13: n/a | C13: n/a | D13: 10 | E13: 10519 | H13: 250-999 | I13: 500-999 | J13: 13 | K13: 1062 | L13: 2414 | M13: 1353
A14: Upgraded | B14: 55 | C14: 59523 | D14: 55 | E14: 90392 | I14: 250-499 | J14: 14 | K14: 2415 | L14: 4953 | M14: 2539
A15: Same | B15: 13 | C15: 14197 | D15: 13 | E15: 14197 | H15: 100-249 | I15: 100-249 | J15: 15 | K15: 4954 | L15: 9606 | M15: 4653
A16: Downgraded | B16: 47 | C16: 68748 | D16: 47 | E16: 49099 | H16: Under 100 | I16: 50-99 | J16: 16 | K16: 9607 | L16: 12101 | M16: 2495
A17: Lapsed new | B17: 3 | C17: 3750 | D17: n/a | E17: n/a | I17: 25-49 | J17: 17 | K17: 12102 | L17: 14121 | M17: 2020
A18: Lapsed repeat | B18: 12 | C18: 12819 | D18: n/a | E18: n/a | F18: GiG# | G18: GiG$ | I18: 10-24 | J18: 18 | K18: 14122 | L18: 14884 | M18: 763
A19: Total | B19: =SUM(B12:B18) -> 130 | C19: =SUM(C12:C18) -> 159037 | D19: =SUM(D12:D18) -> 131 | E19: =SUM(E12:E18) -> 171228 | F19: =(D19-B19)/B19 -> 0.007692307692 | G19: =(E19-C19)/C19 -> 0.07665511799 | I19: Under 10 | J19: 19 | K19: 14885 | L19: 14981 | M19: 97
A20: 36 hilighted data fields are retrieved from gift transaction data below | M20: =SUM(M8:M19) -> 14951
B21: Number | C21: Gift$
A22: New in year 1 | B22: 13 | C22: 13678 | D22: <-- i.e., last year's new donors and gift$
A23: Database EOY1 | B23: 170 | D23: <-- i.e., Total number of donors on file at end of Year1 | K23: 176 | L23: <-- i.e., TOTAL number of donors on file
A24: One time donors | B24: 24 | C24: 35401 | D24: <-- i.e., Number of one-time donors and gifts | K24: 1056 | L24: <-- Total # of gifts in Year2 (vs #donors)
A25: Recaptured lapsed 1 year | D25: 10 | E25: 10519 | F25: <-- Portion of Recaptured | K25: 78 | L25: 370360 | M25: <-- Total # & $ for monthly donors in database
A26: Monthly donors in Year2 | D26: 63 | E26: 91696 | F26: <-- i.e., Year2 donors making 6 to 24 gifts. | K26: 3 | L26: 3907 | M26: <-- Portion NEW monthly donors in Year2
B28: [Asc] | D28: Gifts | F28: First | G28: Largest | H28: Monthly | I28: Gain/Loss | L28: Years of | M28: One time | N28: Recap 1
A29: Acct | B29: Year | C29: AmtYr | D29: Per year | E29: Seq# | F29: Year | G29: Year | H29: Giving | I29: Category | L29: Giving | M29: Donor | N29: Donor
A30: A | B30: B | C30: C | D30: D | E30: E | F30: F | G30: G | H30: H | I30: I | L30: L | M30: M | N30: N
A31: 103633 | B31: 2009 | C31: 100000 | D31: 1 | E31: 10221 | F31: 2009 | G31: 100000
A32: 100516 | B32: 2004 | C32: 1150 | D32: 4 | E32: 1926 | F32: 2004 | G32: 83000
A33: 100516 | B33: 2005 | C33: 2000 | D33: 2 | E33: 1927 | F33: 2004 | G33: 83000
A34: 100516 | B34: 2006 | C34: 4500 | D34: 5 | E34: 1928 | F34: 2004 | G34: 83000
A35: 100516 | B35: 2007 | C35: 3503 | D35: 4 | E35: 1929 | F35: 2004 | G35: 83000
A36: 100516 | B36: 2008 | C36: 4000 | D36: 3 | E36: 1930 | F36: 2004 | G36: 83000
A37: 100516 | B37: 2009 | C37: 3500 | D37: 2 | E37: 1931 | F37: 2004 | G37: 83000
A38: 100516 | B38: 2010 | C38: 3000 | D38: 2 | E38: 1932 | F38: 2004 | G38: 83000
A39: 100516 | B39: 2011 | C39: 83000 | D39: 4 | E39: 1933 | F39: 2004 | G39: 83000
A40: 101894 | B40: 2006 | C40: 60000 | D40: 2 | E40: 6240 | F40: 2006 | G40: 60000
A41: 101894 | B41: 2010 | C41: 700 | D41: 4 | E41: 6241 | F41: 2006 | G41: 60000
A42: 101894 | B42: 2011 | C42: 700 | D42: 15 | E42: 6242 | F42: 2006 | G42: 60000 | H42: 15
A43: 101894 | B43: 2012 | C43: 2525 | D43: 27 | E43: 6243 | F43: 2006 | G43: 60000 | H43: 27
A44: 104938 | B44: 2010 | C44: 60000 | D44: 1 | E44: 12541 | F44: 2010 | G44: 60000
A45: 104938 | B45: 2011 | C45: 13050 | D45: 2 | E45: 12542 | F45: 2010 | G45: 60000
A46: 102546 | B46: 2007 | C46: 48000 | D46: 1 | E46: 7808 | F46: 2007 | G46: 48000
A47: 102546 | B47: 2008 | C47: 46826 | D47: 1 | E47: 7809 | F47: 2007 | G47: 48000
A48: 103826 | B48: 2010 | C48: 45449 | D48: 1 | E48: 10621 | F48: 2010 | G48: 45449
A49: 105795 | B49: 2012 | C49: 40000 | D49: 1 | E49: 13766 | F49: 2012 | G49: 40000
A50: 100521 | B50: 2004 | C50: 300 | D50: 3 | E50: 1942 | F50: 2004 | G50: 37823
A51: 100521 | B51: 2005 | C51: 350 | D51: 2 | E51: 1943 | F51: 2004 | G51: 37823
A52: 100521 | B52: 2006 | C52: 300 | D52: 2 | E52: 1944 | F52: 2004 | G52: 37823
A53: 100521 | B53: 2007 | C53: 300 | D53: 1 | E53: 1945 | F53: 2004 | G53: 37823
A54: 100521 | B54: 2008 | C54: 1750 | D54: 2 | E54: 1946 | F54: 2004 | G54: 37823
A55: 100521 | B55: 2009 | C55: 6772 | D55: 4 | E55: 1947 | F55: 2004 | G55: 37823
A56: 100521 | B56: 2010 | C56: 6650 | D56: 5 | E56: 1948 | F56: 2004 | G56: 37823
A57: 100521 | B57: 2011 | C57: 37823 | D57: 9 | E57: 1949 | F57: 2004 | G57: 37823 | H57: 9
A58: 100521 | B58: 2012 | C58: 18697 | D58: 5 | E58: 1950 | F58: 2004 | G58: 37823
A59: 105951 | B59: 2011 | C59: 35000 | D59: 2 | E59: 13965 | F59: 2011 | G59: 35000
A60: 101420 | B60: 2006 | C60: 1974 | D60: 3 | E60: 4836 | F60: 2006 | G60: 30300
A61: 101420 | B61: 2007 | C61: 200 | D61: 1 | E61: 4837 | F61: 2006 | G61: 30300
A62: 101420 | B62: 2008 | C62: 600 | D62: 2 | E62: 4838 | F62: 2006 | G62: 30300
A63: 101420 | B63: 2010 | C63: 30300 | D63: 2 | E63: 4839 | F63: 2006 | G63: 30300
A64: 101420 | B64: 2011 | C64: 400 | D64: 2 | E64: 4840 | F64: 2006 | G64: 30300
A65: 101420 | B65: 2012 | C65: 600 | D65: 3 | E65: 4841 | F65: 2006 | G65: 30300
A66: 102371 | B66: 2007 | C66: 30000 | D66: 1 | E66: 7477 | F66: 2007 | G66: 30000
A67: 104585 | B67: 2010 | C67: 20000 | D67: 1 | E67: 12003 | F67: 2010 | G67: 20000
A68: 102303 | B68: 2007 | C68: 500 | D68: 3 | E68: 7320 | F68: 2007 | G68: 18434
A69: 102303 | B69: 2008 | C69: 18434 | D69: 13 | E69: 7321 | F69: 2007 | G69: 18434 | H69: 13
A70: 102303 | B70: 2009 | C70: 4300 | D70: 4 | E70: 7322 | F70: 2007 | G70: 18434
A71: 102303 | B71: 2010 | C71: 2530 | D71: 4 | E71: 7323 | F71: 2007 | G71: 18434
A72: 102303 | B72: 2011 | C72: 1400 | D72: 4 | E72: 7324 | F72: 2007 | G72: 18434
A73: 102303 | B73: 2012 | C73: 3284 | D73: 4 | E73: 7325 | F73: 2007 | G73: 18434
A74: 104924 | B74: 2010 | C74: 2500 | D74: 1 | E74: 12516 | F74: 2010 | G74: 15111
A75: 104924 | B75: 2011 | C75: 5774 | D75: 7 | E75: 12517 | F75: 2010 | G75: 15111 | H75: 7
A76: 104924 | B76: 2012 | C76: 15111 | D76: 6 | E76: 12518 | F76: 2010 | G76: 15111 | H76: 6
A77: 104703 | B77: 2010 | C77: 15000 | D77: 1 | E77: 12184 | F77: 2010 | G77: 15000
A78: 105185 | B78: 2011 | C78: 15000 | D78: 1 | E78: 12975 | F78: 2011 | G78: 15000
A79: 105185 | B79: 2012 | C79: 6352 | D79: 1 | E79: 12976 | F79: 2011 | G79: 15000
A80: 105673 | B80: 2011 | C80: 15000 | D80: 1 | E80: 13623 | F80: 2011 | G80: 15000
A81: 100057 | B81: 2002 | C81: 45 | D81: 3 | E81: 219 | F81: 2002 | G81: 14845
A82: 100057 | B82: 2003 | C82: 60 | D82: 4 | E82: 220 | F82: 2002 | G82: 14845
A83: 100057 | B83: 2004 | C83: 222 | D83: 7 | E83: 221 | F83: 2002 | G83: 14845 | H83: 7
A84: 100057 | B84: 2006 | C84: 168 | D84: 4 | E84: 222 | F84: 2002 | G84: 14845
A85: 100057 | B85: 2007 | C85: 438 | D85: 11 | E85: 223 | F85: 2002 | G85: 14845 | H85: 11
A86: 100057 | B86: 2008 | C86: 3769 | D86: 63 | E86: 224 | F86: 2002 | G86: 14845 | H86: 63
A87: 100057 | B87: 2009 | C87: 5180 | D87: 106 | E87: 225 | F87: 2002 | G87: 14845 | H87: 106
A88: 100057 | B88: 2010 | C88: 4775 | D88: 113 | E88: 226 | F88: 2002 | G88: 14845 | H88: 113
A89: 100057 | B89: 2011 | C89: 14845 | D89: 87 | E89: 227 | F89: 2002 | G89: 14845 | H89: 87
A90: 100057 | B90: 2012 | C90: 12241 | D90: 130 | E90: 228 | F90: 2002 | G90: 14845 | H90: 130
A91: 105844 | B91: 2011 | C91: 14000 | D91: 1 | E91: 13827 | F91: 2011 | G91: 14000
A92: 105844 | B92: 2012 | C92: 100 | D92: 1 | E92: 13828 | F92: 2011 | G92: 14000
A93: 101603 | B93: 2006 | C93: 50 | D93: 1 | E93: 5413 | F93: 2006 | G93: 12678
A94: 101603 | B94: 2007 | C94: 240 | D94: 1 | E94: 5414 | F94: 2006 | G94: 12678
A95: 101603 | B95: 2009 | C95: 440 | D95: 2 | E95: 5415 | F95: 2006 | G95: 12678
A96: 101603 | B96: 2010 | C96: 240 | D96: 1 | E96: 5416 | F96: 2006 | G96: 12678
A97: 101603 | B97: 2012 | C97: 12678 | D97: 1 | E97: 5417 | F97: 2006 | G97: 12678
A98: 102209 | B98: 2007 | C98: 12500 | D98: 2 | E98: 7067 | F98: 2007 | G98: 12500
A99: 102209 | B99: 2008 | C99: 5000 | D99: 1 | E99: 7068 | F99: 2007 | G99: 12500
A100: 102209 | B100: 2009 | C100: 2500 | D100: 1 | E100: 7069 | F100: 2007 | G100: 12500
A101: 100512 | B101: 2004 | C101: 110 | D101: 2 | E101: 1912 | F101: 2004 | G101: 12431
A102: 100512 | B102: 2005 | C102: 120 | D102: 12 | E102: 1913 | F102: 2004 | G102: 12431 | H102: 12
A103: 100512 | B103: 2006 | C103: 335 | D103: 14 | E103: 1914 | F103: 2004 | G103: 12431 | H103: 14
A104: 100512 | B104: 2007 | C104: 406 | D104: 14 | E104: 1915 | F104: 2004 | G104: 12431 | H104: 14
A105: 100512 | B105: 2008 | C105: 1047 | D105: 17 | E105: 1916 | F105: 2004 | G105: 12431 | H105: 17
A106: 100512 | B106: 2009 | C106: 1053 | D106: 14 | E106: 1917 | F106: 2004 | G106: 12431 | H106: 14
A107: 100512 | B107: 2010 | C107: 1294 | D107: 21 | E107: 1918 | F107: 2004 | G107: 12431 | H107: 21
A108: 100512 | B108: 2011 | C108: 2232 | D108: 19 | E108: 1919 | F108: 2004 | G108: 12431 | H108: 19
A109: 100512 | B109: 2012 | C109: 12431 | D109: 17 | E109: 1920 | F109: 2004 | G109: 12431 | H109: 17
A110: 103504 | B110: 2009 | C110: 1000 | D110: 1 | E110: 9943 | F110: 2009 | G110: 12261
A111: 103504 | B111: 2010 | C111: 1100 | D111: 3 | E111: 9944 | F111: 2009 | G111: 12261
A112: 103504 | B112: 2011 | C112: 12261 | D112: 6 | E112: 9945 | F112: 2009 | G112: 12261 | H112: 6
A113: 103504 | B113: 2012 | C113: 5287 | D113: 6 | E113: 9946 | F113: 2009 | G113: 12261 | H113: 6
A114: 103572 | B114: 2009 | C114: 12000 | D114: 1 | E114: 10089 | F114: 2009 | G114: 12000
A115: 103572 | B115: 2012 | C115: 500 | D115: 1 | E115: 10090 | F115: 2009 | G115: 12000
A116: 100554 | B116: 2004 | C116: 4120 | D116: 8 | E116: 2039 | F116: 2004 | G116: 11700 | H116: 8
A117: 100554 | B117: 2005 | C117: 7322 | D117: 10 | E117: 2040 | F117: 2004 | G117: 11700 | H117: 10
A118: 100554 | B118: 2006 | C118: 8750 | D118: 11 | E118: 2041 | F118: 2004 | G118: 11700 | H118: 11
A119: 100554 | B119: 2007 | C119: 9900 | D119: 11 | E119: 2042 | F119: 2004 | G119: 11700 | H119: 11
A120: 100554 | B120: 2008 | C120: 11700 | D120: 13 | E120: 2043 | F120: 2004 | G120: 11700 | H120: 13
A121: 100554 | B121: 2009 | C121: 10800 | D121: 11 | E121: 2044 | F121: 2004 | G121: 11700 | H121: 11
A122: 100554 | B122: 2010 | C122: 9000 | D122: 10 | E122: 2045 | F122: 2004 | G122: 11700 | H122: 10
A123: 100554 | B123: 2011 | C123: 7200 | D123: 8 | E123: 2046 | F123: 2004 | G123: 11700 | H123: 8
A124: 102777 | B124: 2008 | C124: 11000 | D124: 1 | E124: 8337 | F124: 2008 | G124: 11000
A125: 102777 | B125: 2009 | C125: 200 | D125: 1 | E125: 8338 | F125: 2008 | G125: 11000
A126: 102777 | B126: 2010 | C126: 750 | D126: 2 | E126: 8339 | F126: 2008 | G126: 11000
A127: 102777 | B127: 2011 | C127: 1200 | D127: 2 | E127: 8340 | F127: 2008 | G127: 11000
A128: 103967 | B128: 2009 | C128: 11000 | D128: 1 | E128: 10888 | F128: 2009 | G128: 11000
A129: 105379 | B129: 2011 | C129: 10800 | D129: 2 | E129: 13244 | F129: 2011 | G129: 10800
A130: 105379 | B130: 2012 | C130: 1500 | D130: 4 | E130: 13245 | F130: 2011 | G130: 10800
A131: 100228 | B131: 2003 | C131: 150 | D131: 6 | E131: 767 | F131: 2003 | G131: 10600 | H131: 6
A132: 100228 | B132: 2004 | C132: 300 | D132: 12 | E132: 768 | F132: 2003 | G132: 10600 | H132: 12
A133: 100228 | B133: 2005 | C133: 300 | D133: 12 | E133: 769 | F133: 2003 | G133: 10600 | H133: 12
A134: 100228 | B134: 2006 | C134: 300 | D134: 12 | E134: 770 | F134: 2003 | G134: 10600 | H134: 12
A135: 100228 | B135: 2007 | C135: 375 | D135: 13 | E135: 771 | F135: 2003 | G135: 10600 | H135: 13
A136: 100228 | B136: 2008 | C136: 600 | D136: 12 | E136: 772 | F136: 2003 | G136: 10600 | H136: 12
A137: 100228 | B137: 2009 | C137: 10600 | D137: 13 | E137: 773 | F137: 2003 | G137: 10600 | H137: 13
A138: 100228 | B138: 2010 | C138: 600 | D138: 12 | E138: 774 | F138: 2003 | G138: 10600 | H138: 12
A139: 100228 | B139: 2011 | C139: 600 | D139: 12 | E139: 775 | F139: 2003 | G139: 10600 | H139: 12
A140: 100228 | B140: 2012 | C140: 600 | D140: 12 | E140: 776 | F140: 2003 | G140: 10600 | H140: 12
A141: 102051 | B141: 2007 | C141: 10000 | D141: 1 | E141: 6670 | F141: 2007 | G141: 10000
A142: 102483 | B142: 2007 | C142: 10000 | D142: 1 | E142: 7687 | F142: 2007 | G142: 10000
A143: 103364 | B143: 2009 | C143: 10000 | D143: 1 | E143: 9641 | F143: 2009 | G143: 10000
A144: 100324 | B144: 2002 | C144: 65 | D144: 2 | E144: 1196 | F144: 2002 | G144: 9557
A145: 100324 | B145: 2003 | C145: 680 | D145: 13 | E145: 1197 | F145: 2002 | G145: 9557 | H145: 13
A146: 100324 | B146: 2004 | C146: 1009 | D146: 43 | E146: 1198 | F146: 2002 | G146: 9557 | H146: 43
A147: 100324 | B147: 2005 | C147: 1418 | D147: 37 | E147: 1199 | F147: 2002 | G147: 9557 | H147: 37
A148: 100324 | B148: 2006 | C148: 4936 | D148: 38 | E148: 1200 | F148: 2002 | G148: 9557 | H148: 38
A149: 100324 | B149: 2007 | C149: 4345 | D149: 27 | E149: 1201 | F149: 2002 | G149: 9557 | H149: 27
A150: 100324 | B150: 2008 | C150: 4500 | D150: 24 | E150: 1202 | F150: 2002 | G150: 9557 | H150: 24
A151: 100324 | B151: 2009 | C151: 5270 | D151: 15 | E151: 1203 | F151: 2002 | G151: 9557 | H151: 15
A152: 100324 | B152: 2010 | C152: 4799 | D152: 14 | E152: 1204 | F152: 2002 | G152: 9557 | H152: 14
A153: 100324 | B153: 2011 | C153: 2200 | D153: 14 | E153: 1205 | F153: 2002 | G153: 9557 | H153: 14
A154: 100324 | B154: 2012 | C154: 9557 | D154: 13 | E154: 1206 | F154: 2002 | G154: 9557 | H154: 13
A155: 101368 | B155: 2005 | C155: 100 | D155: 1 | E155: 4652 | F155: 2005 | G155: 9468
A156: 101368 | B156: 2006 | C156: 3857 | D156: 34 | E156: 4653 | F156: 2005 | G156: 9468 | H156: 34
A157: 101368 | B157: 2007 | C157: 5843 | D157: 29 | E157: 4654 | F157: 2005 | G157: 9468 | H157: 29
A158: 101368 | B158: 2008 | C158: 5818 | D158: 27 | E158: 4655 | F158: 2005 | G158: 9468 | H158: 27
A159: 101368 | B159: 2009 | C159: 5368 | D159: 25 | E159: 4656 | F159: 2005 | G159: 9468 | H159: 25
A160: 101368 | B160: 2010 | C160: 5968 | D160: 26 | E160: 4657 | F160: 2005 | G160: 9468 | H160: 26
A161: 101368 | B161: 2011 | C161: 9468 | D161: 24 | E161: 4658 | F161: 2005 | G161: 9468 | H161: 24
A162: 101368 | B162: 2012 | C162: 8179 | D162: 23 | E162: 4659 | F162: 2005 | G162: 9468 | H162: 23
A163: 102790 | B163: 2008 | C163: 4000 | D163: 2 | E163: 8368 | F163: 2008 | G163: 9000
A164: 102790 | B164: 2009 | C164: 5000 | D164: 1 | E164: 8369 | F164: 2008 | G164: 9000
A165: 102790 | B165: 2010 | C165: 2000 | D165: 1 | E165: 8370 | F165: 2008 | G165: 9000
A166: 102790 | B166: 2012 | C166: 9000 | D166: 2 | E166: 8371 | F166: 2008 | G166: 9000
A167: 101534 | B167: 2006 | C167: 7515 | D167: 10 | E167: 5216 | F167: 2006 | G167: 8334 | H167: 10
A168: 101534 | B168: 2007 | C168: 8334 | D168: 11 | E168: 5217 | F168: 2006 | G168: 8334 | H168: 11
A169: 101534 | B169: 2008 | C169: 4165 | D169: 4 | E169: 5218 | F169: 2006 | G169: 8334
A170: 101534 | B170: 2009 | C170: 5000 | D170: 1 | E170: 5219 | F170: 2006 | G170: 8334
A171: 101534 | B171: 2010 | C171: 5015 | D171: 2 | E171: 5220 | F171: 2006 | G171: 8334
A172: 101534 | B172: 2011 | C172: 5055 | D172: 2 | E172: 5221 | F172: 2006 | G172: 8334
A173: 101534 | B173: 2012 | C173: 5100 | D173: 2 | E173: 5222 | F173: 2006 | G173: 8334
A174: 100319 | B174: 2004 | C174: 413 | D174: 21 | E174: 1173 | F174: 2004 | G174: 7725 | H174: 21
A175: 100319 | B175: 2005 | C175: 780 | D175: 34 | E175: 1174 | F175: 2004 | G175: 7725 | H175: 34
A176: 100319 | B176: 2006 | C176: 1650 | D176: 21 | E176: 1175 | F176: 2004 | G176: 7725 | H176: 21
A177: 100319 | B177: 2007 | C177: 1068 | D177: 21 | E177: 1176 | F177: 2004 | G177: 7725 | H177: 21
A178: 100319 | B178: 2008 | C178: 1697 | D178: 13 | E178: 1177 | F178: 2004 | G178: 7725 | H178: 13
A179: 100319 | B179: 2009 | C179: 3961 | D179: 21 | E179: 1178 | F179: 2004 | G179: 7725 | H179: 21
A180: 100319 | B180: 2010 | C180: 3325 | D180: 21 | E180: 1179 | F180: 2004 | G180: 7725 | H180: 21
A181: 100319 | B181: 2011 | C181: 2992 | D181: 17 | E181: 1180 | F181: 2004 | G181: 7725 | H181: 17
A182: 100319 | B182: 2012 | C182: 7725 | D182: 18 | E182: 1181 | F182: 2004 | G182: 7725 | H182: 18
A183: 100608 | B183: 2005 | C183: 3500 | D183: 2 | E183: 2208 | F183: 2005 | G183: 7650
A184: 100608 | B184: 2011 | C184: 7650 | D184: 1 | E184: 2209 | F184: 2005 | G184: 7650
A185: 103778 | B185: 2009 | C185: 7500 | D185: 1 | E185: 10519 | F185: 2009 | G185: 7500
A186: 104033 | B186: 2010 | C186: 2065 | D186: 1 | E186: 10995 | F186: 2010 | G186: 7215
A187: 104033 | B187: 2011 | C187: 6804 | D187: 1 | E187: 10996 | F187: 2010 | G187: 7215
A188: 104033 | B188: 2012 | C188: 7215 | D188: 1 | E188: 10997 | F188: 2010 | G188: 7215
A189: 100046 | B189: 2005 | C189: 2000 | D189: 1 | E189: 178 | F189: 2005 | G189: 7000
A190: 100046 | B190: 2006 | C190: 2500 | D190: 2 | E190: 179 | F190: 2005 | G190: 7000
A191: 100046 | B191: 2007 | C191: 7000 | D191: 3 | E191: 180 | F191: 2005 | G191: 7000
A192: 100046 | B192: 2008 | C192: 6000 | D192: 1 | E192: 181 | F192: 2005 | G192: 7000
A193: 100046 | B193: 2009 | C193: 2026 | D193: 3 | E193: 182 | F193: 2005 | G193: 7000
A194: 100046 | B194: 2010 | C194: 1000 | D194: 1 | E194: 183 | F194: 2005 | G194: 7000
A195: 100046 | B195: 2011 | C195: 2100 | D195: 3 | E195: 184 | F195: 2005 | G195: 7000
A196: 100046 | B196: 2012 | C196: 1300 | D196: 3 | E196: 185 | F196: 2005 | G196: 7000
A197: 102046 | B197: 2006 | C197: 1000 | D197: 1 | E197: 6654 | F197: 2006 | G197: 7000
A198: 102046 | B198: 2007 | C198: 7000 | D198: 1 | E198: 6655 | F198: 2006 | G198: 7000
A199: 103863 | B199: 2009 | C199: 7000 | D199: 1 | E199: 10687 | F199: 2009 | G199: 7000
A200: 101749 | B200: 2006 | C200: 6000 | D200: 1 | E200: 5823 | F200: 2006 | G200: 6000
A201: 101749 | B201: 2008 | C201: 5000 | D201: 1 | E201: 5824 | F201: 2006 | G201: 6000
... 4299 more rows

Sheet FEP5000Up
A1: FEP5000Up | C1: Fundraising Effectiveness Survey - 2012 | G1: =TODAY() -> 2014-08-31 | I1: Sort Largest Year (col. G) - DESC | N1: =TODAY() -> 2014-08-31 | O1: 08:00:48
A2: =StepByStep!#REF! ->  | O2: 08:00:49
A3: Growth-in-Giving is measured for Year 2: | H3: From --> | I3: =K8 -> 31 | J3: <---- ="K" & row | O3: =O2-O1 -> 00:00:01
D4: Year 2 | E4: =FEPdata!E4 -> 2013 | H4: To --> | I4: =L10 -> 249 | J4: <---- ="L" & row | O4: FEPdata
A5: $5,000 and up | B5: E 5,000 up | E5: =StepByStep!$G$7 -> 12 | F5: <-- Year-end month
A6: Gain(Loss) Data - Software Extract for Year 2 and Year 1 data | K6: Col K | L6: Col L
J7: Row | K7: From | L7: To | M7: Count
B8: Number of | C8: Amount of | D8: Number of | E8: Amount of | H8: 5,000 up | I8: 25,000 & up | J8: 8 | K8: 31 | L8: 66 | M8: =L8-K8+1 -> 36
A9: Gain(Loss) | B9: =D9-1 -> 2012 | C9: =E9-1 -> 2012 | D9: =$E4 -> 2013 | E9: =$E4 -> 2013 | I9: 10,000-24,999 | J9: 9 | K9: =L8+1 -> 67 | L9: 143 | M9: =L9-L8 -> 77
A10: Category | B10: Donors | C10: Gifts ($) | D10: Donors | E10: Gifts ($) | I10: 5,000-9,999 | J10: 10 | K10: 144 | L10: 249 | M10: 106
H11: 1,000-4,999 | I11: 2,500-4,999 | J11: 11 | K11: 250 | L11: 417 | M11: 168
A12: New | B12: n/a | C12: n/a | D12: 1 | E12: 40000 | I12: 1,000-2,499 | J12: 12 | K12: 418 | L12: 1061 | M12: 644
A13: Recaptured | B13: n/a | C13: n/a | D13: 3 | E13: 22178 | H13: 250-999 | I13: 500-999 | J13: 13 | K13: 1062 | L13: 2414 | M13: 1353
A14: Upgraded | B14: 11 | C14: 35049 | D14: 11 | E14: 73564 | I14: 250-499 | J14: 14 | K14: 2415 | L14: 4953 | M14: 2539
A15: Same | B15: 1 | C15: 600 | D15: 1 | E15: 600 | H15: 100-249 | I15: 100-249 | J15: 15 | K15: 4954 | L15: 9606 | M15: 4653
A16: Downgraded | B16: 10 | C16: 117497 | D16: 10 | E16: 54226 | H16: Under 100 | I16: 50-99 | J16: 16 | K16: 9607 | L16: 12101 | M16: 2495
A17: Lapsed new | B17: 3 | C17: 56000 | D17: n/a | E17: n/a | I17: 25-49 | J17: 17 | K17: 12102 | L17: 14121 | M17: 2020
A18: Lapsed repeat | B18: 5 | C18: 112100 | D18: n/a | E18: n/a | F18: GiG# | G18: GiG$ | I18: 10-24 | J18: 18 | K18: 14122 | L18: 14884 | M18: 763
A19: Total | B19: =SUM(B12:B18) -> 30 | C19: =SUM(C12:C18) -> 321246 | D19: =SUM(D12:D18) -> 26 | E19: =SUM(E12:E18) -> 190568 | F19: =(D19-B19)/B19 -> -0.1333333333 | G19: =(E19-C19)/C19 -> -0.4067848316 | I19: Under 10 | J19: 19 | K19: 14885 | L19: 14981 | M19: 97
A20: 36 hilighted data fields are retrieved from gift transaction data below | M20: =SUM(M8:M19) -> 14951
B21: Number | C21: Gift$
A22: New in year 1 | B22: 6 | C22: 95800 | D22: <-- i.e., last year's new donors and gift$
A23: Database EOY1 | B23: 55 | D23: <-- i.e., Total number of donors on file at end of Year1 | K23: 56 | L23: <-- i.e., TOTAL number of donors on file
A24: One time donors | B24: 20 | C24: 351949 | D24: <-- i.e., Number of one-time donors and gifts | K24: 322 | L24: <-- Total # of gifts in Year2 (vs #donors)
